Workbook

Sheet วิธีใช้
A1: วิธีใช้งาน โปรแกรม RID Probability Based Rule Curve
A3: 1. Input Data
B5: 1.1 ไปชีต "Monthly Storage"
B6: กรอกข้อมูล Storage รายวัน ลงในชีต Monthly Storage ตามตารางที่จัดเตรียมไว้ให้ซึ่งรองรับข้อมูลถึง 50 ปี
B7: โดยในปีแรกที่กรอกให้เป็นปีที่มีข้อมูลครบทั้งปี และกรอกข้อมูลจนถึงปีปัจจุบัน
B27: 1.2 ไปชีต "EL_Area_Vol"
B28: กรอกข้อมูลโค้งความจุ โดยเริ่มกรอกในแถวที่ 3 เป็นต้นไปไม่เกิน 1000 บรรทัด
A45: 2. ไปที่ชีต "หา NRI"
B47: 2.1 เช็คปีแรกที่กรอกข้อมูลเป็นปีที่มีข้อมูลครบปี
B63: 2.2 ลบชื่อปีล่าสุดที่ข้อมูลมีไม่ครบปี
B89: 2.3 โปรแกรมจะคำนวนค่าอัลฟาของจำนวนปีที่ระดับ 0.01-0.20
A116: 3. ไปที่ชีต "NRI"
B117: 3.1 กรอกข้อมูลอ่างเก็บน้ำ
B133: 3.2 ตรวจสอบกราฟแบ่งฤดูแล้ง ฤดูฝน
C134: - โดยโปรแกรมหาค่า NRI ได้อัตโนมัติ จะขึ้นกล่องข้อความ "แนะนำ" หน้าปุ่ม Auto
C135: ให้กดปุ่ม Auto เพื่อนำค่า NRI ไปใช้งานต่อ

Sheet Monthly Storage
A1: RID Probabilty Based Rule Curve
A2: หน่วย : ล้าน ลบ.ม.
A3: Dam | B3: Date(d/m/y) | C3: Average | D3: 1986 | E3: 1987 | F3: 1988 | G3: 1989 | H3: 1990 | I3: 1991 | J3: 1992 | K3: 1993 | L3: 1994 | M3: 1995 | N3: 1996 | O3: 1997 | P3: 1998 | Q3: 1999 | R3: 2000 | S3: 2001 | T3: 2002 | U3: 2003 | V3: 2004 | W3: 2005 | X3: 2006 | Y3: 2007 | Z3: 2008 | AA3: 2009 | AB3: 2010 | AC3: 2011 | AD3: 2012 | AE3: 2013 | AF3: 2014 | AG3: 2015 | AH3: 2016 | AI3: 2017 | AJ3: 2018 | AK3: 2019
A4: KKJ | B4: 2010-01-01 | C4: =AVERAGE(D4:IV4) -> 217.1455588 | D4: 242.89 | E4: 133.96 | F4: 252.44 | G4: 204.17 | H4: 287.18 | I4: 155.48 | J4: 182.32 | K4: 117.62 | L4: 85.98 | M4: 183.83 | N4: 272.35 | O4: 209.35 | P4: 224.16 | Q4: 107.67 | R4: 257.69 | S4: 195.83 | T4: 259 | U4: 283.46 | V4: 212.58 | W4: 292.12 | X4: 298.57 | Y4: 248.68 | Z4: 223.14 | AA4: 272.75 | AB4: 229.82 | AC4: 269.04 | AD4: 277.88 | AE4: 180.8 | AF4: 255.38 | AG4: 184.61 | AH4: 73.15 | AI4: 180.529 | AJ4: 262.514 | AK4: 266.006
A5: =A4 -> KKJ | B5: 2010-01-02 | C5: 216.8537941 | D5: 242.61 | E5: 136.06 | F5: 252.3 | G5: 203.61 | H5: 286.59 | I5: 155.48 | J5: 182.18 | K5: 117.71 | L5: 85.98 | M5: 182.32 | N5: 271.21 | O5: 209.35 | P5: 224.02 | Q5: 107.42 | R5: 257.69 | S5: 195.69 | T5: 258.85 | U5: 282.87 | V5: 207.81 | W5: 291.97 | X5: 298.57 | Y5: 248.53 | Z5: 223.28 | AA5: 272.46 | AB5: 229.54 | AC5: 268.71 | AD5: 277.55 | AE5: 180.42 | AF5: 255.38 | AG5: 184.35 | AH5: 73.21 | AI5: 180.656 | AJ5: 262.68 | AK5: 265.973
A6: =A5 -> KKJ | B6: 2010-01-03 | C6: 216.7513235 | D6: 242.46 | E6: 135.97 | F6: 252.15 | G6: 203.05 | H6: 285.39 | I6: 155.48 | J6: 181.64 | K6: 117.62 | L6: 85.9 | M6: 181.5 | N6: 271.11 | O6: 209.49 | P6: 223.88 | Q6: 107.17 | R6: 257.54 | S6: 195.55 | T6: 258.42 | U6: 282.57 | V6: 211.59 | W6: 291.67 | X6: 298.42 | Y6: 248.53 | Z6: 223.43 | AA6: 272.31 | AB6: 229.25 | AC6: 268.21 | AD6: 277.21 | AE6: 179.91 | AF6: 255.38 | AG6: 184.1 | AH6: 73.21 | AI6: 180.782 | AJ6: 262.764 | AK6: 265.889
A7: KKJ | B7: 2010-01-04 | C7: 216.4581176 | D7: 242.17 | E7: 135.77 | F7: 251.86 | G7: 202.49 | H7: 284.5 | I7: 155.27 | J7: 180.95 | K7: 117.8 | L7: 85.4 | M7: 179.66 | N7: 271.32 | O7: 209.49 | P7: 223.73 | Q7: 106.83 | R7: 257.54 | S7: 195.27 | T7: 257.83 | U7: 281.98 | V7: 211.03 | W7: 291.37 | X7: 298.42 | Y7: 248.24 | Z7: 223.43 | AA7: 272.16 | AB7: 228.97 | AC7: 267.88 | AD7: 276.88 | AE7: 179.53 | AF7: 255.38 | AG7: 183.85 | AH7: 73.21 | AI7: 180.846 | AJ7: 262.764 | AK7: 265.756
A8: KKJ | B8: 2010-01-05 | C8: 216.2065588 | D8: 242.03 | E8: 136.64 | F8: 251.72 | G8: 201.94 | H8: 283.61 | I8: 154.86 | J8: 180.27 | K8: 117.89 | L8: 84.68 | M8: 178.53 | N8: 271.03 | O8: 209.49 | P8: 223.59 | Q8: 106.5 | R8: 257.54 | S8: 194.86 | T8: 257.25 | U8: 281.98 | V8: 210.75 | W8: 291.07 | X8: 298.27 | Y8: 247.81 | Z8: 223.28 | AA8: 272.02 | AB8: 228.68 | AC8: 267.54 | AD8: 276.55 | AE8: 179.28 | AF8: 255.38 | AG8: 183.59 | AH8: 73.21 | AI8: 180.846 | AJ8: 262.764 | AK8: 265.573
A9: KKJ | B9: 2010-01-06 | C9: 215.9227647 | D9: 241.89 | E9: 138.58 | F9: 251.43 | G9: 201.52 | H9: 282.57 | I9: 154.54 | J9: 179.54 | K9: 118.06 | L9: 83.68 | M9: 176.85 | N9: 270.29 | O9: 209.49 | P9: 223.45 | Q9: 106.17 | R9: 257.4 | S9: 194.44 | T9: 256.81 | U9: 282.27 | V9: 210.47 | W9: 290.62 | X9: 298.12 | Y9: 247.38 | Z9: 222.86 | AA9: 271.72 | AB9: 228.4 | AC9: 267.05 | AD9: 276.22 | AE9: 179.28 | AF9: 255.38 | AG9: 183.34 | AH9: 72.52 | AI9: 180.846 | AJ9: 262.847 | AK9: 265.341
A10: KKJ | B10: 2010-01-07 | C10: 215.5998529 | D10: 241.74 | E10: 138.48 | F10: 250.99 | G10: 200.96 | H10: 282.12 | I10: 154.03 | J10: 178.87 | K10: 118.15 | L10: 82.97 | M10: 174.95 | N10: 270.44 | O10: 209.49 | P10: 223.31 | Q10: 105.84 | R10: 257.4 | S10: 194.03 | T10: 256.38 | U10: 282.42 | V10: 210.19 | W10: 289.88 | X10: 298.12 | Y10: 246.8 | Z10: 222.43 | AA10: 271.43 | AB10: 228.11 | AC10: 266.71 | AD10: 275.72 | AE10: 179.28 | AF10: 255.38 | AG10: 183.21 | AH10: 71.71 | AI10: 180.884 | AJ10: 262.88 | AK10: 265.091
A11: KKJ | B11: 2010-01-08 | C11: 215.2326471 | D11: 241.45 | E11: 138.38 | F11: 250.41 | G11: 200.4 | H11: 280.93 | I11: 153.41 | J11: 178.3 | K11: 118.15 | L11: 82.26 | M11: 173.29 | N11: 269.99 | O11: 209.49 | P11: 222.88 | Q11: 105.51 | R11: 257.25 | S11: 193.75 | T11: 255.94 | U11: 282.13 | V11: 209.77 | W11: 289.28 | X11: 298.12 | Y11: 246.65 | Z11: 222.15 | AA11: 271.13 | AB11: 227.83 | AC11: 266.21 | AD11: 275.22 | AE11: 179.03 | AF11: 255.22 | AG11: 183.08 | AH11: 71.37 | AI11: 180.909 | AJ11: 262.93 | AK11: 265.091
A12: KKJ | B12: 2010-01-09 | C12: 214.9598529 | D12: 241.17 | E12: 138.19 | F12: 249.83 | G12: 199.99 | H12: 279.89 | I12: 152.58 | J12: 177.74 | K12: 118.06 | L12: 81.84 | M12: 171.85 | N12: 269.99 | O12: 209.49 | P12: 222.46 | Q12: 105.26 | R12: 257.25 | S12: 193.61 | T12: 255.5 | U12: 281.68 | V12: 209.07 | W12: 288.68 | X12: 297.52 | Y12: 246.65 | Z12: 222.29 | AA12: 270.84 | AB12: 227.69 | AC12: 265.88 | AD12: 274.55 | AE12: 178.52 | AF12: 255.22 | AG12: 182.96 | AH12: 71.14 | AI12: 180.896 | AJ12: 263.013 | AK12: 267.336
A13: KKJ | B13: 2010-01-10 | C13: 214.6128824 | D13: 241.02 | E13: 138.09 | F13: 248.53 | G13: 199.71 | H13: 279.15 | I13: 151.56 | J13: 177.29 | K13: 117.89 | L13: 81.35 | M13: 170.53 | N13: 269.7 | O13: 209.21 | P13: 222.03 | Q13: 105.01 | R13: 257.1 | S13: 193.34 | T13: 255.07 | U13: 281.23 | V13: 208.09 | W13: 288.98 | X13: 297.37 | Y13: 246.51 | Z13: 222.43 | AA13: 270.54 | AB13: 227.69 | AC13: 265.55 | AD13: 273.89 | AE13: 178.01 | AF13: 255.05 | AG13: 182.96 | AH13: 69.7 | AI13: 180.846 | AJ13: 263.079 | AK13: 268.333
A14: KKJ | B14: 2010-01-11 | C14: 214.2732647 | D14: 241.02 | E14: 137.51 | F14: 247.52 | G14: 199.15 | H14: 277.97 | I14: 150.74 | J14: 176.73 | K14: 117.8 | L14: 80.52 | M14: 169 | N14: 269.7 | O14: 209.07 | P14: 221.75 | Q14: 104.77 | R14: 256.81 | S14: 193.06 | T14: 254.48 | U14: 280.79 | V14: 207.11 | W14: 288.53 | X14: 297.37 | Y14: 246.22 | Z14: 222.43 | AA14: 270.54 | AB14: 227.69 | AC14: 265.22 | AD14: 273.22 | AE14: 177.63 | AF14: 254.89 | AG14: 183.85 | AH14: 69.42 | AI14: 181.036 | AJ14: 263.079 | AK14: 268.666
A15: KKJ | B15: 2010-01-12 | C15: 213.8659118 | D15: 240.59 | E15: 137.32 | F15: 246.79 | G15: 198.6 | H15: 276.78 | I15: 149.82 | J15: 176.51 | K15: 117.8 | L15: 79.76 | M15: 167.59 | N15: 269.41 | O15: 208.93 | P15: 221.61 | Q15: 104.6 | R15: 256.67 | S15: 192.64 | T15: 253.9 | U15: 279.75 | V15: 206.13 | W15: 287.78 | X15: 297.22 | Y15: 245.79 | Z15: 221.58 | AA15: 270.1 | AB15: 227.55 | AC15: 265.22 | AD15: 272.56 | AE15: 176.62 | AF15: 254.72 | AG15: 184.73 | AH15: 69.42 | AI15: 181.289 | AJ15: 262.996 | AK15: 268.666
A16: KKJ | B16: 2010-01-13 | C16: 213.4535882 | D16: 240.3 | E16: 137.61 | F16: 245.92 | G16: 198.04 | H16: 275.75 | I16: 148.91 | J16: 175.84 | K16: 117.62 | L16: 79 | M16: 166.61 | N16: 269.11 | O16: 208.79 | P16: 221.47 | Q16: 104.36 | R16: 256.23 | S16: 192.23 | T16: 253.32 | U16: 279.01 | V16: 205.71 | W16: 287.04 | X16: 296.77 | Y16: 245.35 | Z16: 220.45 | AA16: 269.81 | AB16: 227.4 | AC16: 265.22 | AD16: 271.89 | AE16: 175.46 | AF16: 254.55 | AG16: 185.11 | AH16: 69.42 | AI16: 181.543 | AJ16: 262.913 | AK16: 268.666
A17: KKJ | B17: 2010-01-14 | C17: 212.9533529 | D17: 240.16 | E17: 136.64 | F17: 244.63 | G17: 197.49 | H17: 274.71 | I17: 147.9 | J17: 175.28 | K17: 117.62 | L17: 78.11 | M17: 166.07 | N17: 268.97 | O17: 208.79 | P17: 221.04 | Q17: 103.95 | R17: 256.08 | S17: 191.81 | T17: 252.74 | U17: 278.42 | V17: 205.15 | W17: 286.29 | X17: 296.47 | Y17: 243.48 | Z17: 219.32 | AA17: 269.51 | AB17: 227.12 | AC17: 265.05 | AD17: 271.23 | AE17: 174.26 | AF17: 254.39 | AG17: 185.24 | AH17: 69.25 | AI17: 181.797 | AJ17: 262.814 | AK17: 268.633
A18: KKJ | B18: 2010-01-15 | C18: 212.5543235 | D18: 240.01 | E18: 136.26 | F18: 244.19 | G18: 196.93 | H18: 273.83 | I18: 146.89 | J18: 174.84 | K18: 117.53 | L18: 77.57 | M18: 165.54 | N18: 268.67 | O18: 208.65 | P18: 220.19 | Q18: 103.62 | R18: 255.79 | S18: 191.12 | T18: 252.3 | U18: 277.53 | V18: 204.31 | W18: 285.7 | X18: 296.17 | Y18: 244.49 | Z18: 218.61 | AA18: 269.22 | AB18: 226.8 | AC18: 264.72 | AD18: 270.73 | AE18: 173.06 | AF18: 254.22 | AG18: 185.24 | AH18: 68.9 | AI18: 181.987 | AJ18: 262.68 | AK18: 268.55
A19: KKJ | B19: 2010-01-16 | C19: 212.1878235 | D19: 239.73 | E19: 136.06 | F19: 243.76 | G19: 196.38 | H19: 272.64 | I19: 146.08 | J19: 174.28 | K19: 117.53 | L19: 77.17 | M19: 165 | N19: 268.23 | O19: 208.65 | P19: 219.34 | Q19: 103.78 | R19: 255.65 | S19: 190.71 | T19: 251.87 | U19: 276.49 | V19: 203.47 | W19: 285.1 | X19: 296.02 | Y19: 244.49 | Z19: 218.33 | AA19: 268.92 | AB19: 226.55 | AC19: 264.55 | AD19: 271.06 | AE19: 171.76 | AF19: 254.05 | AG19: 185.24 | AH19: 68.56 | AI19: 181.923 | AJ19: 262.58 | AK19: 268.433
A20: KKJ | B20: 2010-01-17 | C20: 211.7611176 | D20: 239.44 | E20: 135.97 | F20: 243.33 | G20: 195.82 | H20: 271.76 | I20: 145.38 | J20: 173.73 | K20: 117.45 | L20: 76.7 | M20: 164.35 | N20: 267.94 | O20: 208.65 | P20: 218.5 | Q20: 103.78 | R20: 255.5 | S20: 190.3 | T20: 251.43 | U20: 275.31 | V20: 202.5 | W20: 284.65 | X20: 295.72 | Y20: 244.34 | Z20: 217.63 | AA20: 268.63 | AB20: 226.27 | AC20: 264.39 | AD20: 271.06 | AE20: 170.96 | AF20: 253.89 | AG20: 185.11 | AH20: 66.89 | AI20: 181.734 | AJ20: 262.464 | AK20: 268.3
A21: KKJ | B21: 2010-01-18 | C21: 211.2995588 | D21: 239.3 | E21: 135.77 | F21: 242.61 | G21: 195.13 | H21: 270.88 | I21: 144.58 | J21: 173.07 | K21: 117.45 | L21: 75.96 | M21: 163.28 | N21: 267.64 | O21: 208.51 | P21: 217.65 | Q21: 103.78 | R21: 255.36 | S21: 189.61 | T21: 250.85 | U21: 274.13 | V21: 201.66 | W21: 284.65 | X21: 294.82 | Y21: 244.05 | Z21: 216.21 | AA21: 268.34 | AB21: 225.98 | AC21: 264.22 | AD21: 270.43 | AE21: 170.56 | AF21: 253.72 | AG21: 184.99 | AH21: 66.89 | AI21: 181.607 | AJ21: 262.348 | AK21: 268.15
A22: KKJ | B22: 2010-01-19 | C22: 210.7721176 | D22: 239.01 | E22: 135.49 | F22: 241.74 | G22: 194.58 | H22: 270.14 | I22: 143.79 | J22: 172.29 | K22: 117.45 | L22: 75.3 | M22: 162.11 | N22: 267.35 | O22: 208.37 | P22: 216.94 | Q22: 103.29 | R22: 255.07 | S22: 188.78 | T22: 250.13 | U22: 273.09 | V22: 201.24 | W22: 284.36 | X22: 293.62 | Y22: 243.62 | Z22: 214.67 | AA22: 268.04 | AB22: 225.7 | AC22: 263.89 | AD22: 270.23 | AE22: 170.05 | AF22: 252.39 | AG22: 184.86 | AH22: 66.89 | AI22: 181.607 | AJ22: 262.181 | AK22: 267.984
A23: KKJ | B23: 2010-01-20 | C23: 210.2953824 | D23: 238.86 | E23: 135.29 | F23: 241.74 | G23: 194.02 | H23: 269.11 | I23: 142.8 | J23: 171.85 | K23: 117.36 | L23: 74.63 | M23: 162.43 | N23: 267.06 | O23: 208.37 | P23: 216.52 | Q23: 103.05 | R23: 254.77 | S23: 188.09 | T23: 249.4 | U23: 272.06 | V23: 200.83 | W23: 283.76 | X23: 292.42 | Y23: 243.04 | Z23: 213.26 | AA23: 267.75 | AB23: 225.41 | AC23: 263.55 | AD23: 269.73 | AE23: 169.55 | AF23: 250.73 | AG23: 184.73 | AH23: 66.83 | AI23: 181.543 | AJ23: 261.965 | AK23: 267.535
A24: KKJ | B24: 2010-01-21 | C24: 209.6823529 | D24: 238.72 | E24: 134.24 | F24: 240.01 | G24: 193.47 | H24: 268.08 | I24: 141.81 | J24: 171.3 | K24: 117.18 | L24: 74.04 | M24: 162.43 | N24: 266.61 | O24: 208.23 | P24: 215.96 | Q24: 102.72 | R24: 254.63 | S24: 187.27 | T24: 248.24 | U24: 271.47 | V24: 200.41 | W24: 283.02 | X24: 291.22 | Y24: 242.47 | Z24: 211.85 | AA24: 267.31 | AB24: 225.13 | AC24: 263.22 | AD24: 269.23 | AE24: 169.15 | AF24: 249.07 | AG24: 184.61 | AH24: 66.83 | AI24: 181.448 | AJ24: 261.018 | AK24: 266.804
A25: KKJ | B25: 2010-01-22 | C25: 209.1183235 | D25: 238.43 | E25: 133.58 | F25: 239.58 | G25: 192.92 | H25: 267.05 | I25: 140.82 | J25: 170.64 | K25: 116.83 | L25: 73.65 | M25: 162.64 | N25: 266.17 | O25: 208.09 | P25: 215.11 | Q25: 102.4 | R25: 254.19 | S25: 186.58 | T25: 247.52 | U25: 270.88 | V25: 199.57 | W25: 282.27 | X25: 290.02 | Y25: 241.89 | Z25: 210.59 | AA25: 266.72 | AB25: 224.84 | AC25: 262.89 | AD25: 268.73 | AE25: 168.65 | AF25: 248.4 | AG25: 184.61 | AH25: 66.66 | AI25: 181.327 | AJ25: 259.72 | AK25: 266.056
A26: KKJ | B26: 2010-01-23 | C26: 208.6057059 | D26: 238.15 | E26: 133.29 | F26: 238.87 | G26: 192.09 | H26: 266.02 | I26: 139.85 | J26: 169.99 | K26: 116.66 | L26: 73.07 | M26: 162.96 | N26: 265.88 | O26: 207.95 | P26: 214.27 | Q26: 102.16 | R26: 253.76 | S26: 186.17 | T26: 246.8 | U26: 269.85 | V26: 198.6 | W26: 281.68 | X26: 290.02 | Y26: 241.6 | Z26: 209.89 | AA26: 265.99 | AB26: 224.56 | AC26: 262.56 | AD26: 268.23 | AE26: 168.25 | AF26: 247.9 | AG26: 183.47 | AH26: 66.32 | AI26: 181.188 | AJ26: 259.255 | AK26: 265.291
A27: KKJ | B27: 2010-01-24 | C27: 208.0550588 | D27: 237.72 | E27: 133.1 | F27: 238.15 | G27: 190.84 | H27: 265 | I27: 139.06 | J27: 169.33 | K27: 116.57 | L27: 72.55 | M27: 163.28 | N27: 265.53 | O27: 207.53 | P27: 213.42 | Q27: 101.91 | R27: 253.17 | S27: 185.75 | T27: 246.36 | U27: 268.67 | V27: 197.91 | W27: 281.38 | X27: 289.88 | Y27: 241.17 | Z27: 209.61 | AA27: 265.25 | AB27: 224.28 | AC27: 262.06 | AD27: 267.57 | AE27: 167.95 | AF27: 247.4 | AG27: 182.32 | AH27: 64.59 | AI27: 180.782 | AJ27: 259.005 | AK27: 264.775
A28: KKJ | B28: 2010-01-25 | C28: 207.5535882 | D28: 237.43 | E28: 132.91 | F28: 237.43 | G28: 189.6 | H28: 264.26 | I28: 138.19 | J28: 168.9 | K28: 116.57 | L28: 71.71 | M28: 163.07 | N28: 265.29 | O28: 207.11 | P28: 212.58 | Q28: 101.91 | R28: 252.74 | S28: 184.93 | T28: 245.64 | U28: 267.5 | V28: 197.49 | W28: 281.09 | X28: 289.43 | Y28: 240.74 | Z28: 209.05 | AA28: 264.52 | AB28: 224.13 | AC28: 261.73 | AD28: 266.9 | AE28: 167.65 | AF28: 246.91 | AG28: 181.44 | AH28: 64.36 | AI28: 180.364 | AJ28: 258.756 | AK28: 264.492
A29: KKJ | B29: 2010-01-26 | C29: 207.0132353 | D29: 237.14 | E29: 132.53 | F29: 236.57 | G29: 188.64 | H29: 263.38 | I29: 137.32 | J29: 168.46 | K29: 116.57 | L29: 70.88 | M29: 162.96 | N29: 265 | O29: 206.69 | P29: 211.73 | Q29: 101.91 | R29: 252.45 | S29: 183.97 | T29: 245.06 | U29: 266.47 | V29: 197.49 | W29: 281.09 | X29: 288.53 | Y29: 240.31 | Z29: 208.21 | AA29: 263.79 | AB29: 223.99 | AC29: 261.23 | AD29: 266.24 | AE29: 167.25 | AF29: 245.41 | AG29: 180.42 | AH29: 64.36 | AI29: 179.932 | AJ29: 258.274 | AK29: 264.194
A30: KKJ | B30: 2010-01-27 | C30: 206.3311176 | D30: 236.86 | E30: 132.15 | F30: 235.85 | G30: 187.67 | H30: 262.5 | I30: 136.26 | J30: 167.92 | K30: 116.3 | L30: 70.12 | M30: 162.85 | N30: 263.53 | O30: 206.27 | P30: 211.17 | Q30: 101.83 | R30: 252.01 | S30: 183.01 | T30: 244.34 | U30: 265.59 | V30: 195.41 | W30: 280.49 | X30: 287.49 | Y30: 239.73 | Z30: 207.23 | AA30: 263.06 | AB30: 223.85 | AC30: 260.89 | AD30: 265.57 | AE30: 166.85 | AF30: 243.58 | AG30: 179.54 | AH30: 64.42 | AI30: 179.515 | AJ30: 257.775 | AK30: 263.628
A31: KKJ | B31: 2010-01-28 | C31: 205.6980294 | D31: 236.57 | E31: 131.68 | F31: 234.85 | G31: 187.12 | H31: 261.48 | I31: 135.2 | J31: 167.05 | K31: 115.87 | L31: 69.37 | M31: 162.64 | N31: 261.92 | O31: 206.27 | P31: 210.61 | Q31: 101.51 | R31: 251.72 | S31: 182.05 | T31: 243.62 | U31: 265 | V31: 194.86 | W31: 279.6 | X31: 286.44 | Y31: 239.16 | Z31: 206.53 | AA31: 262.32 | AB31: 223.71 | AC31: 260.4 | AD31: 264.91 | AE31: 166.45 | AF31: 241.92 | AG31: 179.15 | AH31: 64.478 | AI31: 179.134 | AJ31: 257.277 | AK31: 262.864
A32: KKJ | B32: 2010-01-29 | C32: 205.1350588 | D32: 236.28 | E32: 131.21 | F32: 233.99 | G32: 186.44 | H32: 260.31 | I32: 134.15 | J32: 166.29 | K32: 115.69 | L32: 68.81 | M32: 162.53 | N32: 260.46 | O32: 206.13 | P32: 210.19 | Q32: 101.27 | R32: 251.58 | S32: 181.23 | T32: 243.04 | U32: 264.27 | V32: 194.03 | W32: 278.71 | X32: 286.14 | Y32: 238.58 | Z32: 206.11 | AA32: 261.59 | AB32: 223.43 | AC32: 259.89 | AD32: 264.08 | AE32: 165.95 | AF32: 241.25 | AG32: 179.03 | AH32: 64.335 | AI32: 178.754 | AJ32: 256.778 | AK32: 262.065
A33: KKJ | B33: 2010-01-30 | C33: 204.5743529 | D33: 235.99 | E33: 130.83 | F33: 233.13 | G33: 185.89 | H33: 259.14 | I33: 133.2 | J33: 165.64 | K33: 115.52 | L33: 68.37 | M33: 162.43 | N33: 259.29 | O33: 205.99 | P33: 209.63 | Q33: 101.03 | R33: 251.43 | S33: 180.96 | T33: 242.47 | U33: 262.8 | V33: 192.92 | W33: 277.82 | X33: 285.7 | Y33: 238.15 | Z33: 205.83 | AA33: 260.86 | AB33: 223.14 | AC33: 259.23 | AD33: 263.25 | AE33: 165.35 | AF33: 240.75 | AG33: 178.9 | AH33: 64.019 | AI33: 178.373 | AJ33: 256.279 | AK33: 261.217
A34: KKJ | B34: 2010-01-31 | C34: 204.0512353 | D34: 235.71 | E34: 130.36 | F34: 232.27 | G34: 185.48 | H34: 258.12 | I34: 132.34 | J34: 165.1 | K34: 115.52 | L34: 67.81 | M34: 162.43 | N34: 257.69 | O34: 205.71 | P34: 209.21 | Q34: 100.79 | R34: 251.14 | S34: 180.55 | T34: 242.03 | U34: 262.22 | V34: 191.81 | W34: 277.23 | X34: 285.1 | Y34: 237.86 | Z34: 205.83 | AA34: 260.13 | AB34: 222.71 | AC34: 258.73 | AD34: 262.42 | AE34: 164.34 | AF34: 240.25 | AG34: 178.77 | AH34: 63.674 | AI34: 177.993 | AJ34: 255.78 | AK34: 260.635
A35: KKJ | B35: 2010-02-01 | C35: 203.3594412 | D35: 235.42 | E35: 129.89 | F35: 231.27 | G35: 184.79 | H35: 256.95 | I35: 131.77 | J35: 164.67 | K35: 115.43 | L35: 67.02 | M35: 162.32 | N35: 256.08 | O35: 204.87 | P35: 208.09 | Q35: 100.55 | R35: 250.85 | S35: 179.89 | T35: 241.46 | U35: 261.19 | V35: 190.85 | W35: 276.93 | X35: 284.36 | Y35: 237.14 | Z35: 203.46 | AA35: 259.4 | AB35: 222.29 | AC35: 257.9 | AD35: 261.58 | AE35: 163.74 | AF35: 239.76 | AG35: 177.38 | AH35: 63.502 | AI35: 177.626 | AJ35: 255.481 | AK35: 260.312
A36: KKJ | B36: 2010-02-02 | C36: 202.5941765 | D36: 234.99 | E36: 129.61 | F36: 230.28 | G36: 184.24 | H36: 255.64 | I36: 130.93 | J36: 164.03 | K36: 115.34 | L36: 66.23 | M36: 162 | N36: 254.63 | O36: 204.03 | P36: 206.97 | Q36: 100.39 | R36: 250.27 | S36: 178.87 | T36: 240.74 | U36: 260.17 | V36: 189.88 | W36: 275.9 | X36: 283.46 | Y36: 236.28 | Z36: 202.48 | AA36: 258.27 | AB36: 221.87 | AC36: 257.24 | AD36: 260.92 | AE36: 162.94 | AF36: 238.23 | AG36: 176.37 | AH36: 63.474 | AI36: 176.725 | AJ36: 254.833 | AK36: 259.97
A37: KKJ | B37: 2010-02-03 | C37: 201.8373529 | D37: 234.71 | E37: 129.05 | F37: 229.28 | G37: 183.69 | H37: 254.62 | I37: 129.89 | J37: 163.39 | K37: 115.08 | L37: 65.44 | M37: 161.89 | N37: 253.32 | O37: 203.33 | P37: 205.99 | Q37: 100.07 | R37: 249.4 | S37: 177.75 | T37: 240.02 | U37: 259.15 | V37: 189.06 | W37: 274.57 | X37: 282.42 | Y37: 235.28 | Z37: 202.2 | AA37: 257.94 | AB37: 221.3 | AC37: 256.57 | AD37: 260.25 | AE37: 162.84 | AF37: 236.46 | AG37: 175.36 | AH37: 63.445 | AI37: 175.283 | AJ37: 254.183 | AK37: 259.239
A38: KKJ | B38: 2010-02-04 | C38: 201.1181471 | D38: 234.28 | E38: 128.68 | F38: 228.42 | G38: 183.14 | H38: 253.75 | I38: 128.96 | J38: 162.75 | K38: 114.82 | L38: 64.61 | M38: 161.79 | N38: 251.87 | O38: 202.64 | P38: 204.87 | Q38: 99.59 | R38: 248.68 | S38: 176.85 | T38: 239.16 | U38: 258.42 | V38: 188.23 | W38: 273.24 | X38: 281.53 | Y38: 234.42 | Z38: 201.64 | AA38: 257.21 | AB38: 220.73 | AC38: 255.91 | AD38: 259.76 | AE38: 162.84 | AF38: 234.81 | AG38: 175.06 | AH38: 63.416 | AI38: 174.381 | AJ38: 253.452 | AK38: 258.108
A39: KKJ | B39: 2010-02-05 | C39: 200.4400882 | D39: 233.85 | E39: 128.31 | F39: 227.57 | G39: 182.59 | H39: 252.88 | I39: 128.03 | J39: 162.21 | K39: 114.65 | L39: 64.07 | M39: 161.68 | N39: 250.42 | O39: 201.94 | P39: 203.89 | Q39: 99.19 | R39: 248.1 | S39: 176.29 | T39: 238.58 | U39: 257.69 | V39: 186.99 | W39: 271.47 | X39: 280.34 | Y39: 233.7 | Z39: 200.67 | AA39: 256.48 | AB39: 220.17 | AC39: 255.4 | AD39: 259.09 | AE39: 162.74 | AF39: 234.3 | AG39: 174.86 | AH39: 63.387 | AI39: 174.011 | AJ39: 252.438 | AK39: 256.977
A40: KKJ | B40: 2010-02-06 | C40: 199.7968529 | D40: 233.27 | E40: 127.66 | F40: 226.71 | G40: 182.05 | H40: 252.01 | I40: 127.01 | J40: 161.47 | K40: 114.3 | L40: 63.78 | M40: 161.58 | N40: 248.97 | O40: 200.97 | P40: 202.92 | Q40: 98.64 | R40: 247.81 | S40: 175.96 | T40: 238.01 | U40: 256.96 | V40: 185.62 | W40: 269.7 | X40: 279.75 | Y40: 233.27 | Z40: 199.97 | AA40: 255.76 | AB40: 219.6 | AC40: 254.74 | AD40: 258.42 | AE40: 162.64 | AF40: 233.8 | AG40: 174.66 | AH40: 63.359 | AI40: 173.64 | AJ40: 252.238 | AK40: 255.846
A41: KKJ | B41: 2010-02-07 | C41: 199.1713235 | D41: 232.99 | E41: 127.2 | F41: 225.86 | G41: 181.5 | H41: 251.14 | I41: 126.18 | J41: 160.73 | K41: 114.04 | L41: 63.37 | M41: 161.47 | N41: 247.52 | O41: 200.13 | P41: 202.08 | Q41: 98.01 | R41: 247.52 | S41: 175.51 | T41: 237.29 | U41: 256.08 | V41: 184.24 | W41: 267.94 | X41: 279.45 | Y41: 232.7 | Z41: 199.84 | AA41: 255.03 | AB41: 219.04 | AC41: 254.08 | AD41: 257.76 | AE41: 162.64 | AF41: 233.04 | AG41: 174.36 | AH41: 63.244 | AI41: 173.269 | AJ41: 251.906 | AK41: 254.666
A42: KKJ | B42: 2010-02-08 | C42: 198.5008824 | D42: 232.99 | E42: 126.83 | F42: 224.87 | G42: 180.82 | H42: 250.41 | I42: 125.36 | J42: 159.88 | K42: 113.95 | L42: 62.66 | M42: 161.47 | N42: 245.64 | O42: 199.16 | P42: 201.38 | Q42: 97.45 | R42: 247.38 | S42: 174.73 | T42: 236.57 | U42: 255.21 | V42: 182.87 | W42: 266.76 | X42: 279.01 | Y42: 231.85 | Z42: 199.42 | AA42: 254.3 | AB42: 218.61 | AC42: 253.41 | AD42: 257.09 | AE42: 162.64 | AF42: 232.53 | AG42: 173.06 | AH42: 62.928 | AI42: 172.899 | AJ42: 251.391 | AK42: 253.502
A43: KKJ | B43: 2010-02-09 | C43: 197.7534118 | D43: 232.42 | E43: 126.83 | F43: 224.01 | G43: 180.13 | H43: 249.69 | I43: 124.44 | J43: 158.93 | K43: 113.95 | L43: 62.03 | M43: 161.15 | N43: 243.76 | O43: 198.19 | P43: 200.69 | Q43: 96.91 | R43: 247.09 | S43: 173.96 | T43: 235.71 | U43: 254.63 | V43: 181.64 | W43: 265.73 | X43: 278.12 | Y43: 230.99 | Z43: 198.86 | AA43: 253.57 | AB43: 217.77 | AC43: 252.75 | AD43: 256.43 | AE43: 162.54 | AF43: 231.13 | AG43: 171.96 | AH43: 62.555 | AI43: 171.837 | AJ43: 250.709 | AK43: 252.505
A44: KKJ | B44: 2010-02-10 | C44: 196.9748529 | D44: 232.13 | E44: 126.83 | F44: 223.02 | G44: 179.54 | H44: 248.96 | I44: 123.44 | J44: 158.09 | K44: 113.26 | L44: 61.28 | M44: 161.04 | N44: 241.89 | O44: 197.21 | P44: 199.99 | Q44: 96.28 | R44: 246.36 | S44: 173.18 | T44: 235 | U44: 253.9 | V44: 180.82 | W44: 264.56 | X44: 277.08 | Y44: 230.13 | Z44: 198.31 | AA44: 252.85 | AB44: 217.2 | AC44: 252.25 | AD44: 255.76 | AE44: 162.24 | AF44: 229.49 | AG44: 170.96 | AH44: 62.181 | AI44: 170.264 | AJ44: 250.027 | AK44: 251.623
A45: KKJ | B45: 2010-02-11 | C45: 196.2220588 | D45: 231.56 | E45: 126.55 | F45: 222.03 | G45: 178.98 | H45: 248.09 | I45: 122.44 | J45: 157.46 | K45: 112.4 | L45: 60.6 | M45: 160.94 | N45: 240.45 | O45: 196.52 | P45: 199.16 | Q45: 95.5 | R45: 245.5 | S45: 172.41 | T45: 234.28 | U45: 253.47 | V45: 180.14 | W45: 263.09 | X45: 276.19 | Y45: 229.28 | Z45: 197.61 | AA45: 252.12 | AB45: 216.5 | AC45: 251.58 | AD45: 254.77 | AE45: 161.84 | AF45: 228.04 | AG45: 170.66 | AH45: 61.98 | AI45: 169.372 | AJ45: 249.296 | AK45: 250.742
A46: KKJ | B46: 2010-02-12 | C46: 195.5187647 | D46: 231.13 | E46: 126.27 | F46: 221.04 | G46: 178.19 | H46: 247.23 | I46: 121.81 | J46: 156.83 | K46: 111.55 | L46: 60.03 | M46: 160.83 | N46: 239.59 | O46: 195.69 | P46: 198.19 | Q46: 94.73 | R46: 244.92 | S46: 171.97 | T46: 233.71 | U46: 253.17 | V46: 179.21 | W46: 261.92 | X46: 275.31 | Y46: 228.56 | Z46: 197.47 | AA46: 251.4 | AB46: 215.79 | AC46: 250.92 | AD46: 252.27 | AE46: 161.24 | AF46: 227.2 | AG46: 170.45 | AH46: 61.951 | AI46: 169.042 | AJ46: 248.165 | AK46: 249.86
A47: KKJ | B47: 2010-02-13 | C47: 194.7423824 | D47: 230.56 | E47: 125.81 | F47: 220.05 | G47: 177.86 | H47: 246.5 | I47: 121.09 | J47: 156.21 | K47: 110.78 | L47: 59.64 | M47: 160.62 | N47: 237.86 | O47: 194.72 | P47: 197.21 | Q47: 94.19 | R47: 244.34 | S47: 171.75 | T47: 233.14 | U47: 252.59 | V47: 177.97 | W47: 260.61 | X47: 274.86 | Y47: 227.99 | Z47: 197.47 | AA47: 250.67 | AB47: 215.09 | AC47: 250.25 | AD47: 248.28 | AE47: 160.34 | AF47: 226.7 | AG47: 170.25 | AH47: 60.401 | AI47: 168.761 | AJ47: 247.683 | AK47: 248.996
A48: KKJ | B48: 2010-02-14 | C48: 193.9931176 | D48: 230.13 | E48: 125.36 | F48: 219.06 | G48: 177.29 | H48: 245.78 | I48: 120.29 | J48: 155.58 | K48: 109.93 | L48: 59.08 | M48: 160.3 | N48: 236.57 | O48: 193.61 | P48: 196.66 | Q48: 93.66 | R48: 243.76 | S48: 171.31 | T48: 233.14 | U48: 251.58 | V48: 176.74 | W48: 259.29 | X48: 274.72 | Y48: 227.28 | Z48: 196.64 | AA48: 249.95 | AB48: 214.24 | AC48: 249.59 | AD48: 244.46 | AE48: 159.23 | AF48: 226.32 | AG48: 169.95 | AH48: 60.373 | AI48: 168.461 | AJ48: 247.317 | AK48: 248.115
A49: KKJ | B49: 2010-02-15 | C49: 193.1264412 | D49: 229.7 | E49: 125.08 | F49: 218.07 | G49: 176.62 | H49: 245.06 | I49: 119.57 | J49: 154.86 | K49: 109.17 | L49: 58.25 | M49: 160.09 | N49: 235 | O49: 192.51 | P49: 195.69 | Q49: 93.2 | R49: 243.19 | S49: 170.54 | T49: 232.42 | U49: 250.56 | V49: 175.51 | W49: 258.27 | X49: 273.98 | Y49: 226.29 | Z49: 195.26 | AA49: 249.22 | AB49: 213.26 | AC49: 248.92 | AD49: 240.83 | AE49: 158.53 | AF49: 225.81 | AG49: 168.35 | AH49: 60.344 | AI49: 168.16 | AJ49: 246.751 | AK49: 247.234
A50: KKJ | B50: 2010-02-16 | C50: 192.1922353 | D50: 229.28 | E50: 124.72 | F50: 217.22 | G50: 176.06 | H50: 244.34 | I50: 116.74 | J50: 154.13 | K50: 108.41 | L50: 57.43 | M50: 159.77 | N50: 233.57 | O50: 191.54 | P50: 194.86 | Q50: 92.82 | R50: 242.76 | S50: 169.66 | T50: 231.71 | U50: 249.4 | V50: 174.29 | W50: 257.25 | X50: 273.09 | Y50: 225.29 | Z50: 193.6 | AA50: 248.5 | AB50: 212.27 | AC50: 248.26 | AD50: 237.41 | AE50: 158.23 | AF50: 224.42 | AG50: 167.65 | AH50: 60.315 | AI50: 167.168 | AJ50: 245.987 | AK50: 246.386
A51: KKJ | B51: 2010-02-17 | C51: 191.2364706 | D51: 228.85 | E51: 123.9 | F51: 216.23 | G51: 175.51 | H51: 243.62 | I51: 115.78 | J51: 153.61 | K51: 107.74 | L51: 56.4 | M51: 159.77 | N51: 232.14 | O51: 190.71 | P51: 194.03 | Q51: 92.36 | R51: 242.03 | S51: 168.9 | T51: 230.99 | U51: 248.39 | V51: 173.51 | W51: 256.08 | X51: 271.62 | Y51: 224.3 | Z51: 191.94 | AA51: 247.63 | AB51: 211.25 | AC51: 247.42 | AD51: 234.37 | AE51: 157.83 | AF51: 222.13 | AG51: 166.55 | AH51: 60.171 | AI51: 165.686 | AJ51: 245.222 | AK51: 245.371
A52: KKJ | B52: 2010-02-18 | C52: 190.3844118 | D52: 228.42 | E52: 123.26 | F52: 215.39 | G52: 174.95 | H52: 242.75 | I52: 114.91 | J52: 153 | K52: 106.83 | L52: 55.55 | M52: 159.77 | N52: 230.56 | O52: 190.02 | P52: 193.06 | Q52: 91.75 | R52: 241.31 | S52: 168.14 | T52: 230.71 | U52: 247.81 | V52: 172.85 | W52: 254.77 | X52: 269.85 | Y52: 223.45 | Z52: 190.42 | AA52: 246.76 | AB52: 210.31 | AC52: 246.76 | AD52: 233.1 | AE52: 157.33 | AF52: 219.98 | AG52: 165.95 | AH52: 59.884 | AI52: 164.884 | AJ52: 244.408 | AK52: 244.174
A53: KKJ | B53: 2010-02-19 | C53: 189.6195294 | D53: 228.14 | E53: 122.35 | F53: 214.4 | G53: 174.4 | H53: 242.03 | I53: 114.21 | J53: 152.28 | K53: 105.83 | L53: 54.81 | M53: 159.67 | N53: 228.85 | O53: 188.92 | P53: 192.09 | Q53: 91.15 | R53: 240.74 | S53: 167.7 | T53: 230.42 | U53: 247.23 | V53: 171.97 | W53: 253.47 | X53: 268.82 | Y53: 222.45 | Z53: 189.18 | AA53: 245.61 | AB53: 210.33 | AC53: 245.93 | AD53: 232.08 | AE53: 156.93 | AF53: 219.34 | AG53: 165.45 | AH53: 59.54 | AI53: 164.574 | AJ53: 243.16 | AK53: 243.01
A54: KKJ | B54: 2010-02-20 | C54: 188.8226471 | D54: 227.99 | E54: 121.27 | F54: 213.84 | G54: 173.84 | H54: 241.17 | I54: 113.44 | J54: 151.25 | K54: 105.01 | L54: 54.29 | M54: 159.56 | N54: 227.43 | O54: 187.95 | P54: 191.12 | Q54: 90.7 | R54: 240.45 | S54: 167.27 | T54: 230.14 | U54: 246.51 | V54: 170.76 | W54: 252.16 | X54: 267.35 | Y54: 221.74 | Z54: 188.22 | AA54: 244.02 | AB54: 209.35 | AC54: 245.26 | AD54: 230.94 | AE54: 155.93 | AF54: 218.96 | AG54: 164.94 | AH54: 58.505 | AI54: 164.263 | AJ54: 242.495 | AK54: 241.847
A55: KKJ | B55: 2010-02-21 | C55: 187.9971471 | D55: 227.14 | E55: 120.38 | F55: 213.13 | G55: 173.29 | H55: 240.45 | I55: 112.66 | J55: 150.23 | K55: 104.02 | L55: 53.61 | M55: 159.14 | N55: 225.87 | O55: 186.85 | P55: 190.57 | Q55: 90.18 | R55: 240.16 | S55: 166.84 | T55: 229.57 | U55: 245.35 | V55: 169.55 | W55: 249.69 | X55: 266.32 | Y55: 221.18 | Z55: 187.39 | AA55: 242.87 | AB55: 208.37 | AC55: 244.6 | AD55: 229.93 | AE55: 154.93 | AF55: 218.46 | AG55: 164.44 | AH55: 58.031 | AI55: 163.973 | AJ55: 242.046 | AK55: 240.683
A56: KKJ | B56: 2010-02-22 | C56: 187.1817647 | D56: 226.57 | E56: 119.84 | F56: 212.29 | G56: 172.62 | H56: 239.73 | I56: 111.63 | J56: 149.41 | K56: 103.13 | L56: 52.79 | M56: 158.72 | N56: 224.3 | O56: 185.75 | P56: 189.75 | Q56: 89.73 | R56: 239.73 | S56: 166.19 | T56: 229.14 | U56: 244.2 | V56: 168.36 | W56: 248.53 | X56: 265.15 | Y56: 220.33 | Z56: 186.7 | AA56: 241.71 | AB56: 207.53 | AC56: 243.93 | AD56: 228.79 | AE56: 153.82 | AF56: 217.95 | AG56: 163.04 | AH56: 58.03 | AI56: 163.773 | AJ56: 241.498 | AK56: 239.519
A57: KKJ | B57: 2010-02-23 | C57: 186.3358529 | D57: 226.14 | E57: 119.22 | F57: 211.45 | G57: 172.07 | H57: 239.01 | I57: 110.61 | J57: 148.3 | K57: 102.48 | L57: 52.03 | M57: 158.2 | N57: 224.02 | O57: 184.66 | P57: 188.92 | Q57: 89.36 | R57: 239.16 | S57: 165.43 | T57: 228.28 | U57: 243.19 | V57: 167.38 | W57: 247.09 | X57: 263.68 | Y57: 219.34 | Z57: 186.02 | AA57: 240.56 | AB57: 206.69 | AC57: 242.94 | AD57: 227.77 | AE57: 152.62 | AF57: 216.43 | AG57: 162.04 | AH57: 58.031 | AI57: 162.951 | AJ57: 240.766 | AK57: 238.581
A58: KKJ | B58: 2010-02-24 | C58: 185.4818529 | D58: 226.14 | E58: 118.15 | F58: 210.61 | G58: 171.41 | H58: 238.43 | I58: 109.42 | J58: 147.39 | K58: 101.59 | L58: 51.33 | M58: 157.67 | N58: 224.59 | O58: 183.7 | P58: 188.23 | Q58: 89.06 | R58: 238.44 | S58: 164.68 | T58: 227.71 | U58: 242.32 | V58: 166.73 | W58: 245.35 | X58: 261.92 | Y58: 218.35 | Z58: 185.33 | AA58: 239.41 | AB58: 205.71 | AC58: 242.11 | AD58: 226.63 | AE58: 151.52 | AF58: 214.53 | AG58: 160.94 | AH58: 58.031 | AI58: 161.599 | AJ58: 239.633 | AK58: 237.72
A59: KKJ | B59: 2010-02-25 | C59: 184.5922059 | D59: 224.87 | E59: 117.09 | F59: 209.76 | G59: 170.75 | H59: 237.57 | I59: 108.33 | J59: 146.48 | K59: 100.7 | L59: 50.74 | M59: 157.15 | N59: 224.59 | O59: 183.01 | P59: 187.4 | Q59: 88.32 | R59: 237.72 | S59: 163.82 | T59: 227 | U59: 241.89 | V59: 166.08 | W59: 243.48 | X59: 260.46 | Y59: 217.36 | Z59: 184.64 | AA59: 238.26 | AB59: 204.6 | AC59: 241.27 | AD59: 225.62 | AE59: 150.32 | AF59: 212.75 | AG59: 160.24 | AH59: 58.031 | AI59: 160.877 | AJ59: 238.1 | AK59: 236.857
A60: KKJ | B60: 2010-02-26 | C60: 183.7613235 | D60: 224.01 | E60: 116.13 | F60: 208.92 | G60: 170.32 | H60: 237 | I60: 107.33 | J60: 145.38 | K60: 99.66 | L60: 50.2 | M60: 156.73 | N60: 223.74 | O60: 182.33 | P60: 186.44 | Q60: 87.59 | R60: 237.29 | S60: 163.07 | T60: 226.58 | U60: 241.46 | V60: 165.22 | W60: 241.6 | X60: 259.15 | Y60: 216.51 | Z60: 184.23 | AA60: 237.12 | AB60: 203.48 | AC60: 240.11 | AD60: 224.48 | AE60: 149.12 | AF60: 211.99 | AG60: 159.732 | AH60: 57.643 | AI60: 160.607 | AJ60: 236.743 | AK60: 235.97
A61: KKJ | B61: 2010-02-27 | C61: 182.9963529 | D61: 222.74 | E61: 115 | F61: 208.08 | G61: 169.88 | H61: 236.28 | I61: 106.25 | J61: 144.38 | K61: 98.87 | L61: 50.1 | M61: 156.31 | N61: 222.88 | O61: 181.64 | P61: 185.48 | Q61: 86.93 | R61: 236.86 | S61: 162.86 | T61: 225.87 | U61: 240.74 | V61: 164.04 | W61: 239.88 | X61: 258.13 | Y61: 215.95 | Z61: 184.23 | AA61: 235.83 | AB61: 202.37 | AC61: 239.06 | AD61: 224.1 | AE61: 148.32 | AF61: 211.61 | AG61: 159.13 | AH61: 57.082 | AI61: 160.336 | AJ61: 235.576 | AK61: 235.082
A62: KKJ | B62: 2010-02-28 | C62: 182.2059118 | D62: 221.46 | E62: 113.87 | F62: 207.24 | G62: 169.22 | H62: 235.71 | I62: 105.09 | J62: 143.99 | K62: 97.92 | L62: 49.81 | M62: 156.52 | N62: 221.75 | O62: 180.68 | P62: 184.52 | Q62: 86.27 | R62: 236.72 | S62: 162.43 | T62: 225.15 | U62: 239.59 | V62: 162.86 | W62: 238.15 | X62: 257.54 | Y62: 215.39 | Z62: 182.86 | AA62: 234.11 | AB62: 201.25 | AC62: 238.3 | AD62: 223.21 | AE62: 147.91 | AF62: 211.1 | AG62: 158.63 | AH62: 57.08 | AI62: 159.875 | AJ62: 234.601 | AK62: 234.195
A63: KKJ | B63: 2010-03-01 | C63: 181.0833824 | D63: 220.19 | E63: 112.57 | F63: 204.87 | G63: 168.57 | H63: 234.85 | I63: 103.78 | J63: 142.3 | K63: 97.21 | L63: 49.66 | M63: 156.52 | N63: 219.2 | O63: 179.77 | P63: 183.42 | Q63: 85.62 | R63: 236.72 | S63: 161.69 | T63: 223.59 | U63: 238.44 | V63: 160.52 | W63: 236.57 | X63: 256.23 | Y63: 214.26 | Z63: 179.72 | AA63: 232.96 | AB63: 200.14 | AC63: 237.54 | AD63: 221.69 | AE63: 147.51 | AF63: 210.6 | AG63: 157.23 | AH63: 56.349 | AI63: 159.234 | AJ63: 234.005 | AK63: 233.307
A64: KKJ | B64: 2010-03-02 | C64: 180.0313529 | D64: 218.63 | E64: 111.38 | F64: 203.61 | G64: 168.13 | H64: 234.13 | I64: 102.56 | J64: 141.41 | K64: 96.59 | L64: 49.28 | M64: 155.89 | N64: 217.79 | O64: 179.21 | P64: 182.19 | Q64: 85.19 | R64: 236.29 | S64: 160.73 | T64: 222.74 | U64: 237.29 | V64: 159.78 | W64: 234.85 | X64: 254.63 | Y64: 213.13 | Z64: 178.26 | AA64: 231.68 | AB64: 196.04 | AC64: 236.66 | AD64: 221.05 | AE64: 147.11 | AF64: 208.95 | AG64: 155.93 | AH64: 56.22 | AI64: 158.072 | AJ64: 233.244 | AK64: 232.42
A65: KKJ | B65: 2010-03-03 | C65: 179.0486765 | D65: 217.22 | E65: 110.36 | F65: 203.05 | G65: 167.48 | H65: 233.42 | I65: 101.26 | J65: 140.53 | K65: 95.65 | L65: 48.51 | M65: 155.27 | N65: 216.38 | O65: 178.87 | P65: 180.68 | Q65: 84.76 | R65: 236 | S65: 160.1 | T65: 221.89 | U65: 236.72 | V65: 159.04 | W65: 232.99 | X65: 252.88 | Y65: 212.01 | Z65: 176.92 | AA65: 230.39 | AB65: 195 | AC65: 235.51 | AD65: 220.29 | AE65: 146.31 | AF65: 207.17 | AG65: 154.73 | AH65: 56.22 | AI65: 156.549 | AJ65: 232.141 | AK65: 231.355
A66: KKJ | B66: 2010-03-04 | C66: 178.0866765 | D66: 215.53 | E66: 109.26 | F66: 201.38 | G66: 167.05 | H66: 232.56 | I66: 99.98 | J66: 139.45 | K66: 94.73 | L66: 47.95 | M66: 154.65 | N66: 215.53 | O66: 178.53 | P66: 179.1 | Q66: 84.18 | R66: 235.57 | S66: 159.25 | T66: 221.04 | U66: 236.14 | V66: 158.2 | W66: 230.99 | X66: 251.14 | Y66: 210.89 | Z66: 175.69 | AA66: 229.11 | AB66: 195.73 | AC66: 234.5 | AD66: 219.66 | AE66: 145.11 | AF66: 205.52 | AG66: 153.93 | AH66: 56.22 | AI66: 155.227 | AJ66: 231.025 | AK66: 230.125
A67: KKJ | B67: 2010-03-05 | C67: 177.1830588 | D67: 213.98 | E67: 108.41 | F67: 199.99 | G67: 166.4 | H67: 231.56 | I67: 98.87 | J67: 138.38 | K67: 93.73 | L67: 47.43 | M67: 154.03 | N67: 214.69 | O67: 177.75 | P67: 177.41 | Q67: 83.54 | R67: 235.43 | S67: 158.62 | T67: 220.19 | U67: 235.57 | V67: 156.94 | W67: 229 | X67: 249.4 | Y67: 210.04 | Z67: 174.58 | AA67: 227.83 | AB67: 195.73 | AC67: 233.48 | AD67: 218.9 | AE67: 144.71 | AF67: 205.14 | AG67: 153.72 | AH67: 55.444 | AI67: 154.436 | AJ67: 229.998 | AK67: 228.896
A68: KKJ | B68: 2010-03-06 | C68: =AVERAGE(D68:IV68) -> 176.2309706 | D68: 212.99 | E68: 107.33 | F68: 198.6 | G68: 165.97 | H68: 230.7 | I68: 97.76 | J68: 137.61 | K68: 92.73 | L68: 47.06 | M68: 153.51 | N68: 213.84 | O68: 176.96 | P68: 175.85 | Q68: 82.97 | R68: 235 | S68: 158.31 | T68: 219.2 | U68: 234.85 | V68: 155.69 | W68: 227 | X68: 247.95 | Y68: 209.2 | Z68: 173.47 | AA68: 226.55 | AB68: 191.86 | AC68: 232.47 | AD68: 218.26 | AE68: 144.01 | AF68: 204.76 | AG68: 153.42 | AH68: 55.444 | AI68: 153.955 | AJ68: 228.883 | AK68: 227.691
A69: KKJ | B69: 2010-03-07 | C69: 175.3121176 | D69: 211.45 | E69: 106.41 | F69: 197.21 | G69: 165.43 | H69: 229.85 | I69: 96.59 | J69: 136.35 | K69: 91.82 | L69: 46.65 | M69: 153 | N69: 213 | O69: 176.18 | P69: 174.29 | Q69: 82.34 | R69: 234.57 | S69: 157.78 | T69: 218.21 | U69: 233.71 | V69: 154.45 | W69: 225.15 | X69: 246.8 | Y69: 208.5 | Z69: 171.93 | AA69: 225.13 | AB69: 190.9 | AC69: 231.46 | AD69: 217.5 | AE69: 143.41 | AF69: 204.38 | AG69: 152.92 | AH69: 55.444 | AI69: 153.304 | AJ69: 227.691 | AK69: 226.803
A70: =A69 -> KKJ | B70: 2010-03-08 | C70: 174.3022353 | D70: 210.04 | E70: 105.01 | F70: 195.96 | G70: 164.89 | H70: 228.99 | I70: 95.42 | J70: 135.01 | K70: 91 | L70: 45.92 | M70: 152.48 | N70: 211.73 | O70: 175.18 | P70: 172.74 | Q70: 81.71 | R70: 233.99 | S70: 157.15 | T70: 217.08 | U70: 232.56 | V70: 153.31 | W70: 223.59 | X70: 245.5 | Y70: 207.38 | Z70: 170.5 | AA70: 223.08 | AB70: 190.06 | AC70: 230.44 | AD70: 216.87 | AE70: 142.71 | AF70: 203.88 | AG70: 151.22 | AH70: 55.358 | AI70: 152.863 | AJ70: 226.968 | AK70: 225.687
A71: KKJ | B71: 2010-03-09 | C71: 173.2829118 | D71: 208.64 | E71: 105.17 | F71: 194.58 | G71: 164.25 | H71: 228.14 | I71: 94.26 | J71: 133.77 | K71: 90.25 | L71: 45.11 | M71: 151.76 | N71: 210.61 | O71: 174.07 | P71: 171.53 | Q71: 81.22 | R71: 233.14 | S71: 155.69 | T71: 215.96 | U71: 231.42 | V71: 152.49 | W71: 222.03 | X71: 243.91 | Y71: 205.84 | Z71: 169.08 | AA71: 221.44 | AB71: 189.22 | AC71: 229.18 | AD71: 216.11 | AE71: 142.4 | AF71: 202.23 | AG71: 149.92 | AH71: 55.099 | AI71: 152.472 | AJ71: 226.005 | AK71: 224.623
A72: KKJ | B72: 2010-03-10 | C72: 172.1994412 | D72: 206.96 | E72: 104.51 | F72: 193.19 | G72: 163.6 | H72: 227.28 | I72: 92.96 | J72: 132.63 | K72: 89.35 | L72: 44.36 | M72: 151.15 | N72: 209.63 | O72: 173.29 | P72: 170.1 | Q72: 80.59 | R72: 232.56 | S72: 154.45 | T72: 214.83 | U72: 230.57 | V72: 151.77 | W72: 220.19 | X72: 242.18 | Y72: 204.31 | Z72: 167.67 | AA72: 219.6 | AB72: 188.38 | AC72: 227.91 | AD72: 215.48 | AE72: 142.1 | AF72: 200.45 | AG72: 148.62 | AH72: 54.78 | AI72: 151.15 | AJ72: 224.534 | AK72: 223.647
A73: KKJ | B73: 2010-03-11 | C73: 171.0959412 | D73: 205.56 | E73: 103.94 | F73: 191.95 | G73: 162.96 | H73: 226.43 | I73: 91.75 | J73: 131.59 | K73: 88.68 | L73: 43.71 | M73: 150.74 | N73: 208.79 | O73: 172.74 | P73: 168.57 | Q73: 79.83 | R73: 232.28 | S73: 153.31 | T73: 213.84 | U73: 229.99 | V73: 150.85 | W73: 218.21 | X73: 240.45 | Y73: 202.77 | Z73: 166.26 | AA73: 217.77 | AB73: 185.35 | AC73: 226.64 | AD73: 214.46 | AE73: 141.8 | AF73: 198.93 | AG73: 147.81 | AH73: 54.108 | AI73: 149.497 | AJ73: 223.102 | AK73: 222.595
A74: KKJ | B74: 2010-03-12 | C74: 170.0972941 | D74: 204.03 | E74: 103.94 | F74: 190.57 | G74: 162.32 | H74: 225.58 | I74: 90.77 | J74: 130.46 | K74: 87.73 | L74: 43.28 | M74: 150.13 | N74: 207.81 | O74: 171.97 | P74: 166.94 | Q74: 79.14 | R74: 232.14 | S74: 152.28 | T74: 213.14 | U74: 229.57 | V74: 149.52 | W74: 216.24 | X74: 238.73 | Y74: 201.24 | Z74: 164.86 | AA74: 215.93 | AB74: 186.82 | AC74: 225.25 | AD74: 212.31 | AE74: 141.5 | AF74: 197.03 | AG74: 147.51 | AH74: 53.288 | AI74: 147.904 | AJ74: 221.834 | AK74: 221.542
A75: KKJ | B75: 2010-03-13 | C75: 168.9861471 | D75: 202.49 | E75: 102.31 | F75: 189.33 | G75: 161.68 | H75: 224.58 | I75: 89.65 | J75: 129.33 | K75: 86.85 | L75: 42.94 | M75: 149.41 | N75: 206.83 | O75: 170.98 | P75: 165.32 | Q75: 78.46 | R75: 231.85 | S75: 151.56 | T75: 212.44 | U75: 228.71 | V75: 148.2 | W75: 214.27 | X75: 237.15 | Y75: 199.71 | Z75: 163.47 | AA75: 214.1 | AB75: 185.4 | AC75: 223.85 | AD75: 210.15 | AE75: 140.2 | AF75: 196.52 | AG75: 147.21 | AH75: 53.271 | AI75: 146.341 | AJ75: 220.591 | AK75: 220.376
A76: KKJ | B76: 2010-03-14 | C76: 167.8796176 | D76: 200.96 | E76: 101.26 | F76: 187.95 | G76: 161.04 | H76: 223.73 | I76: 88.46 | J76: 128.12 | K76: 86.12 | L76: 42.39 | M76: 148.91 | N76: 205.85 | O76: 169.99 | P76: 163.82 | Q76: 77.78 | R76: 231.28 | S76: 150.95 | T76: 211.59 | U76: 227.43 | V76: 146.89 | W76: 212.01 | X76: 236 | Y76: 198.18 | Z76: 161.98 | AA76: 212.27 | AB76: 183.9 | AC76: 222.46 | AD76: 207.87 | AE76: 138.9 | AF76: 196.14 | AG76: 146.41 | AH76: 53.249 | AI76: 145.51 | AJ76: 219.387 | AK76: 219.121
A77: KKJ | B77: 2010-03-15 | C77: 166.7974412 | D77: 199.43 | E77: 100.22 | F77: 186.57 | G77: 160.3 | H77: 222.88 | I77: 87.29 | J77: 126.92 | K77: 85.4 | L77: 41.6 | M77: 148.4 | N77: 204.87 | O77: 169.01 | P77: 162.33 | Q77: 77.17 | R77: 230.28 | S77: 150.34 | T77: 210.61 | U77: 226.29 | V77: 145.69 | W77: 210.47 | X77: 234.71 | Y77: 196.65 | Z77: 160.5 | AA77: 210.45 | AB77: 182.4 | AC77: 221.06 | AD77: 205.71 | AE77: 137.6 | AF77: 195.51 | AG77: 145.81 | AH77: 53.224 | AI77: 144.979 | AJ77: 218.765 | AK77: 217.675
A78: KKJ | B78: 2010-03-16 | C78: 165.6071176 | D78: 197.9 | E78: 99.03 | F78: 185.2 | G78: 159.25 | H78: 222.03 | I78: 86.05 | J78: 125.63 | K78: 84.54 | L78: 41.07 | M78: 147.79 | N78: 203.89 | O78: 168.14 | P78: 160.94 | Q78: 76.63 | R78: 229.14 | S78: 149.93 | T78: 209.49 | U78: 225.15 | V78: 144.89 | W78: 208.93 | X78: 232.99 | Y78: 195.13 | Z78: 158.92 | AA78: 208.49 | AB78: 180.9 | AC78: 219.79 | AD78: 203.69 | AE78: 136.49 | AF78: 193.73 | AG78: 143.41 | AH78: 53.116 | AI78: 144.448 | AJ78: 217.891 | AK78: 216.027
A79: KKJ | B79: 2010-03-17 | C79: 164.4122353 | D79: 196.51 | E79: 97.84 | F79: 183.83 | G79: 158.3 | H79: 221.32 | I79: 84.68 | J79: 124.44 | K79: 83.82 | L79: 40.34 | M79: 147.09 | N79: 202.92 | O79: 167.7 | P79: 159.46 | Q79: 75.97 | R79: 228 | S79: 149.62 | T79: 208.51 | U79: 224.3 | V79: 144.19 | W79: 207.11 | X79: 231.14 | Y79: 193.61 | Z79: 157.24 | AA79: 206.53 | AB79: 179.36 | AC79: 218.4 | AD79: 201.91 | AE79: 135.39 | AF79: 191.83 | AG79: 142.1 | AH79: 53.095 | AI79: 142.865 | AJ79: 216.293 | AK79: 214.303
A80: KKJ | B80: 2010-03-18 | C80: 163.2329706 | D80: 194.85 | E80: 96.67 | F80: 182.46 | G80: 157.36 | H80: 220.47 | I80: 83.4 | J80: 123.17 | K80: 83.11 | L80: 39.71 | M80: 146.69 | N80: 201.94 | O80: 167.59 | P80: 157.99 | Q80: 75.17 | R80: 227 | S80: 148.91 | T80: 207.53 | U80: 223.73 | V80: 143.3 | W80: 205.15 | X80: 229.14 | Y80: 192.09 | Z80: 156.09 | AA80: 204.71 | AB80: 177.7 | AC80: 217.26 | AD80: 200.14 | AE80: 134.29 | AF80: 189.93 | AG80: 141.7 | AH80: 52.409 | AI80: 140.861 | AJ80: 214.886 | AK80: 212.515
A81: KKJ | B81: 2010-03-19 | C81: 162.1787941 | D81: 193.33 | E81: 95.42 | F81: 182.46 | G81: 156.31 | H81: 219.62 | I81: 82.33 | J81: 121.9 | K81: 81.98 | L81: 39.2 | M81: 146.08 | N81: 200.97 | O81: 167.38 | P81: 156.53 | Q81: 74.77 | R81: 226.01 | S81: 148.2 | T81: 206.83 | U81: 223.17 | V81: 142.01 | W81: 203.2 | X81: 227.15 | Y81: 190.57 | Z81: 155.26 | AA81: 203.04 | AB81: 176.04 | AC81: 217.13 | AD81: 198.74 | AE81: 133.69 | AF81: 188.54 | AG81: 141.2 | AH81: 51.478 | AI81: 139.208 | AJ81: 213.58 | AK81: 210.753
A82: KKJ | B82: 2010-03-20 | C82: 161.0858824 | D82: 191.81 | E82: 94.26 | F82: 179.77 | G82: 155.27 | H82: 218.77 | I82: 81.28 | J82: 120.73 | K82: 80.93 | L82: 38.85 | M82: 145.48 | N82: 199.99 | O82: 167.05 | P82: 155.07 | Q82: 74.05 | R82: 225.01 | S82: 147.29 | T82: 206.13 | U82: 222.32 | V82: 140.73 | W82: 201.24 | X82: 225.44 | Y82: 189.19 | Z82: 154.23 | AA82: 201.37 | AB82: 174.39 | AC82: 216.88 | AD82: 197.35 | AE82: 133.29 | AF82: 188.03 | AG82: 140.7 | AH82: 51.116 | AI82: 137.575 | AJ82: 212.338 | AK82: 208.991
A83: KKJ | B83: 2010-03-21 | C83: 160.0322059 | D83: 190.02 | E83: 92.96 | F83: 178.64 | G83: 154.13 | H83: 217.64 | I83: 80.17 | J83: 119.48 | K83: 80.03 | L83: 38.39 | M83: 144.88 | N83: 198.88 | O83: 166.73 | P83: 153.72 | Q83: 73.33 | R83: 224.16 | S83: 146.69 | T83: 205.15 | U83: 221.04 | V83: 139.46 | W83: 199.3 | X83: 224.02 | Y83: 187.81 | Z83: 152.99 | AA83: 199.56 | AB83: 173.62 | AC83: 216.37 | AD83: 195.57 | AE83: 132.79 | AF83: 187.65 | AG83: 140.2 | AH83: 50.767 | AI83: 136.624 | AJ83: 211.045 | AK83: 207.279
A84: KKJ | B84: 2010-03-22 | C84: 158.9601176 | D84: 189.05 | E84: 91.67 | F84: 177.52 | G84: 153 | H84: 216.8 | I84: 79 | J84: 118.06 | K84: 79.14 | L84: 37.72 | M84: 144.38 | N84: 197.77 | O84: 166.4 | P84: 152.49 | Q84: 72.68 | R84: 223.31 | S84: 146.19 | T84: 203.2 | U84: 219.77 | V84: 138.29 | W84: 197.77 | X84: 222.46 | Y84: 186.44 | Z84: 151.65 | AA84: 196.92 | AB84: 172.96 | AC84: 215.36 | AD84: 194.3 | AE84: 132.29 | AF84: 187.14 | AG84: 138.5 | AH84: 50.602 | AI84: 135.922 | AJ84: 210.259 | AK84: 205.631
A85: KKJ | B85: 2010-03-23 | C85: 157.8798235 | D85: 187.4 | E85: 90.55 | F85: 176.4 | G85: 151.86 | H85: 215.95 | I85: 77.84 | J85: 116.74 | K85: 77.57 | L85: 37.09 | M85: 143.79 | N85: 196.66 | O85: 165.76 | P85: 151.25 | Q85: 72.23 | R85: 222.18 | S85: 147.9 | T85: 201.11 | U85: 218.5 | V85: 137.61 | W85: 196.24 | X85: 220.48 | Y85: 185.06 | Z85: 150.23 | AA85: 195.81 | AB85: 172.3 | AC85: 213.84 | AD85: 193.04 | AE85: 130.78 | AF85: 185.37 | AG85: 137.2 | AH85: 50.572 | AI85: 135.171 | AJ85: 209.308 | AK85: 204.123
A86: KKJ | B86: 2010-03-24 | C86: 156.6805882 | D86: 185.89 | E86: 89.2 | F86: 175.06 | G86: 150.74 | H86: 215.11 | I86: 76.56 | J86: 115.43 | K86: 77.37 | L86: 36.76 | M86: 143.09 | N86: 195.55 | O86: 164.89 | P86: 150.13 | Q86: 71.97 | R86: 221.04 | S86: 147.9 | T86: 199.02 | U86: 216.8 | V86: 136.94 | W86: 194.44 | X86: 218.5 | Y86: 183.55 | Z86: 148.91 | AA86: 193.87 | AB86: 171.64 | AC86: 212.31 | AD86: 191.39 | AE86: 129.38 | AF86: 183.59 | AG86: 135.79 | AH86: 50.551 | AI86: 133.268 | AJ86: 207.748 | AK86: 202.753
A87: KKJ | B87: 2010-03-25 | C87: 155.4698824 | D87: 184.24 | E87: 88.09 | F87: 173.95 | G87: 149.62 | H87: 214.12 | I87: 75.16 | J87: 114.13 | K87: 76.76 | L87: 36.58 | M87: 142.4 | N87: 194.44 | O87: 164.04 | P87: 149.22 | Q87: 71.59 | R87: 219.91 | S87: 147.5 | T87: 197.21 | U87: 215.67 | V87: 135.88 | W87: 192.51 | X87: 216.38 | Y87: 182.18 | Z87: 147.69 | AA87: 192.08 | AB87: 170.98 | AC87: 210.67 | AD87: 189.61 | AE87: 127.98 | AF87: 182.07 | AG87: 135.49 | AH87: 49.063 | AI87: 131.114 | AJ87: 206.265 | AK87: 201.384
A88: KKJ | B88: 2010-03-26 | C88: 154.266 | D88: 182.59 | E88: 86.85 | F88: 172.73 | G88: 148.5 | H88: 212.99 | I88: 74.11 | J88: 112.83 | K88: 75.83 | L88: 36.33 | M88: 141.81 | N88: 193.38 | O88: 163.07 | P88: 148.2 | Q88: 71.01 | R88: 218.78 | S88: 147.09 | T88: 195.27 | U88: 214.55 | V88: 134.63 | W88: 190.57 | X88: 214.27 | Y88: 180.68 | Z88: 146.59 | AA88: 190.28 | AB88: 170.21 | AC88: 209.02 | AD88: 187.71 | AE88: 126.58 | AF88: 180.68 | AG88: 134.99 | AH88: 48.805 | AI88: 129.16 | AJ88: 204.934 | AK88: 200.015
A89: KKJ | B89: 2010-03-27 | C89: 153.1337941 | D89: 181.09 | E89: 85.54 | F89: 171.63 | G89: 147.39 | H89: 212.01 | I89: 73.13 | J89: 111.55 | K89: 75.03 | L89: 36.69 | M89: 141.22 | N89: 192.23 | O89: 162.22 | P89: 147.19 | Q89: 70.19 | R89: 217.79 | S89: 146.69 | T89: 193.75 | U89: 213.28 | V89: 133.3 | W89: 188.51 | X89: 212.58 | Y89: 179.2 | Z89: 145.29 | AA89: 188.35 | AB89: 169.55 | AC89: 207.37 | AD89: 185.81 | AE89: 125.28 | AF89: 179.91 | AG89: 134.49 | AH89: 48.783 | AI89: 127.207 | AJ89: 203.666 | AK89: 198.633
A90: KKJ | B90: 2010-03-28 | C90: 152.0226471 | D90: 179.54 | E90: 84.39 | F90: 170.53 | G90: 146.28 | H90: 211.17 | I90: 72.22 | J90: 110.19 | K90: 74.04 | L90: 38.32 | M90: 140.63 | N90: 191.12 | O90: 161.37 | P90: 146.19 | Q90: 69.43 | R90: 216.8 | S90: 146.19 | T90: 192.23 | U90: 211.59 | V90: 131.97 | W90: 186.58 | X90: 210.89 | Y90: 177.74 | Z90: 143.89 | AA90: 186.43 | AB90: 167.68 | AC90: 205.72 | AD90: 183.78 | AE90: 123.97 | AF90: 179.41 | AG90: 133.99 | AH90: 48.662 | AI90: 126.102 | AJ90: 202.475 | AK90: 197.251
A91: KKJ | B91: 2010-03-29 | C91: 150.9787647 | D91: 178.42 | E91: 83.25 | F91: 169.22 | G91: 145.18 | H91: 210.04 | I91: 71.2 | J91: 108.75 | K91: 73.07 | L91: 42.43 | M91: 139.94 | N91: 189.88 | O91: 160.94 | P91: 145.29 | Q91: 68.69 | R91: 215.67 | S91: 145.79 | T91: 190.71 | U91: 209.91 | V91: 130.74 | W91: 185.07 | X91: 208.93 | Y91: 176.29 | Z91: 142.51 | AA91: 184.23 | AB91: 165.7 | AC91: 204.07 | AD91: 181.75 | AE91: 123.44 | AF91: 178.9 | AG91: 132.29 | AH91: 48.364 | AI91: 125.564 | AJ91: 201.308 | AK91: 195.742
A92: KKJ | B92: 2010-03-30 | C92: 149.8086765 | D92: 177.07 | E92: 81.98 | F92: 168.13 | G92: 144.09 | H92: 209.06 | I92: 70.06 | J92: 107.41 | K92: 72.29 | L92: 46.06 | M92: 139.55 | N92: 188.64 | O92: 160.63 | P92: 144.39 | Q92: 67.88 | R92: 214.55 | S92: 145.39 | T92: 189.19 | U92: 208.23 | V92: 129.99 | W92: 183.42 | X92: 206.69 | Y92: 174.95 | Z92: 140.84 | AA92: 181.77 | AB92: 161.33 | AC92: 202.17 | AD92: 179.72 | AE92: 122.9 | AF92: 177.13 | AG92: 130.98 | AH92: 47.727 | AI92: 125.296 | AJ92: 199.888 | AK92: 194.094
A93: KKJ | B93: 2010-03-31 | C93: 148.6362647 | D93: 175.84 | E93: 80.93 | F93: 167.05 | G93: 142.99 | H93: 208.22 | I93: 68.81 | J93: 106.33 | K93: 71.33 | L93: 47.53 | M93: 138.97 | N93: 187.27 | O93: 160.41 | P93: 143.59 | Q93: 67.08 | R93: 213.98 | S93: 144.89 | T93: 187.82 | U93: 206.55 | V93: 129.25 | W93: 181.5 | X93: 204.59 | Y93: 173.62 | Z93: 138.98 | AA93: 179.38 | AB93: 159.63 | AC93: 200.27 | AD93: 177.77 | AE93: 122.36 | AF93: 175.26 | AG93: 129.78 | AH93: 47.382 | AI93: 123.8 | AJ93: 198.405 | AK93: 192.066
A94: KKJ | B94: 2010-04-01 | C94: 147.5384118 | D94: 174.95 | E94: 80.17 | F94: 165.97 | G94: 142.1 | H94: 207.1 | I94: 68.12 | J94: 105.01 | K94: 70.12 | L94: 48.23 | M94: 138.38 | N94: 185.75 | O94: 160.31 | P94: 143.3 | Q94: 66.6 | R94: 213.28 | S94: 144.29 | T94: 186.57 | U94: 205.71 | V94: 128.41 | W94: 179.66 | X94: 202.64 | Y94: 172.18 | Z94: 137.14 | AA94: 177.03 | AB94: 158.03 | AC94: 198.37 | AD94: 175.97 | AE94: 121.82 | AF94: 173.46 | AG94: 129.48 | AH94: 47.209 | AI94: 122.28 | AJ94: 196.883 | AK94: 189.784
A95: KKJ | B95: 2010-04-02 | C95: 146.3245 | D95: 174.06 | E95: 79.14 | F95: 164.89 | G95: 141.22 | H95: 205.98 | I95: 67.38 | J95: 103.7 | K95: 68.87 | L95: 48.66 | M95: 137.03 | N95: 182.74 | O95: 160.2 | P95: 142.21 | Q95: 66.17 | R95: 212.58 | S95: 143.59 | T95: 185.47 | U95: 204.87 | V95: 127.39 | W95: 177.86 | X95: 200.69 | Y95: 170.86 | Z95: 135.13 | AA95: 174.69 | AB95: 156.33 | AC95: 196.46 | AD95: 175.27 | AE95: 120.98 | AF95: 172.06 | AG95: 128.98 | AH95: 45.787 | AI95: 120.884 | AJ95: 195.4 | AK95: 187.502
A96: KKJ | B96: 2010-04-03 | C96: 145.1505 | D96: 173.29 | E96: 78.18 | F96: 163.92 | G96: 140.33 | H96: 204.87 | I96: 67.08 | J96: 102.48 | K96: 67.57 | L96: 48.94 | M96: 136.06 | N96: 180.41 | O96: 160.1 | P96: 140.83 | Q96: 65.81 | R96: 211.59 | S96: 143.1 | T96: 184.51 | U96: 203.75 | V96: 126.19 | W96: 176.07 | X96: 198.74 | Y96: 169.33 | Z96: 133.13 | AA96: 172.7 | AB96: 154.62 | AC96: 194.56 | AD96: 174.17 | AE96: 119.68 | AF96: 170.56 | AG96: 128.48 | AH96: 45.442 | AI96: 119.349 | AJ96: 194.056 | AK96: 185.22
A97: KKJ | B97: 2010-04-04 | C97: 143.9882941 | D97: 172.51 | E97: 77.17 | F97: 162.96 | G97: 139.45 | H97: 203.33 | I97: 67.2 | J97: 101.51 | K97: 66.65 | L97: 49.04 | M97: 135.1 | N97: 178.87 | O97: 159.67 | P97: 139.56 | Q97: 65.45 | R97: 210.47 | S97: 142.41 | T97: 183.28 | U97: 202.22 | V97: 124.72 | W97: 174.4 | X97: 196.8 | Y97: 168.02 | Z97: 131.33 | AA97: 170.72 | AB97: 152.92 | AC97: 192.66 | AD97: 172.67 | AE97: 117.91 | AF97: 169.05 | AG97: 127.98 | AH97: 45.421 | AI97: 118.551 | AJ97: 192.662 | AK97: 182.938
A98: KKJ | B98: 2010-04-05 | C98: 142.8639118 | D98: 171.74 | E98: 76.36 | F98: 162.43 | G98: 138.58 | H98: 201.52 | I98: 67.32 | J98: 100.06 | K98: 65.8 | L98: 49.09 | M98: 133.96 | N98: 177.97 | O98: 159.04 | P98: 138.39 | Q98: 64.91 | R98: 208.93 | S98: 142.01 | T98: 181.5 | U98: 200.41 | V98: 123.63 | W98: 173.29 | X98: 194.86 | Y98: 166.51 | Z98: 129.83 | AA98: 168.76 | AB98: 151.92 | AC98: 190.76 | AD98: 171.26 | AE98: 116.45 | AF98: 168.35 | AG98: 126.38 | AH98: 45.399 | AI98: 118.044 | AJ98: 191.254 | AK98: 180.656
A99: KKJ | B99: 2010-04-06 | C99: 141.7363235 | D99: 170.75 | E99: 75.43 | F99: 161.89 | G99: 137.61 | H99: 199.85 | I99: 67.26 | J99: 98.79 | K99: 65.32 | L99: 48.99 | M99: 132.63 | N99: 176.96 | O99: 158.31 | P99: 137.42 | Q99: 64.14 | R99: 207.11 | S99: 141.62 | T99: 179.66 | U99: 198.6 | V99: 122.63 | W99: 171.97 | X99: 193.2 | Y99: 165 | Z99: 128.34 | AA99: 166.91 | AB99: 151.12 | AC99: 188.86 | AD99: 170.06 | AE99: 115.38 | AF99: 166.75 | AG99: 125.05 | AH99: 45.377 | AI99: 117.7 | AJ99: 189.721 | AK99: 178.627
A100: KKJ | B100: 2010-04-07 | C100: 140.5417941 | D100: 169.88 | E100: 74.44 | F100: 161.26 | G100: 136.74 | H100: 197.9 | I100: 67.2 | J100: 97.45 | K100: 64.43 | L100: 48.85 | M100: 131.77 | N100: 175.96 | O100: 157.47 | P100: 136.45 | Q100: 63.37 | R100: 205.43 | S100: 141.12 | T100: 177.74 | U100: 196.94 | V100: 121.64 | W100: 170.32 | X100: 191.68 | Y100: 163.5 | Z100: 126.96 | AA100: 164.65 | AB100: 150.32 | AC100: 186.96 | AD100: 168.96 | AE100: 113.84 | AF100: 165.15 | AG100: 123.74 | AH100: 45.248 | AI100: 116.28 | AJ100: 188.174 | AK100: 176.599
A101: KKJ | B101: 2010-04-08 | C101: 139.3652353 | D101: 169.11 | E101: 73.59 | F101: 160.73 | G101: 135.87 | H101: 195.96 | I101: 66.9 | J101: 95.97 | K101: 63.54 | L101: 48.75 | M101: 132.91 | N101: 175.29 | O101: 156.63 | P101: 135.68 | Q101: 62.61 | R101: 203.61 | S101: 140.34 | T101: 175.95 | U101: 195.55 | V101: 120.47 | W101: 168.68 | X101: 189.75 | Y101: 162 | Z101: 125.58 | AA101: 162.41 | AB101: 147.6 | AC101: 185.05 | AD101: 168.16 | AE101: 112.31 | AF101: 163.24 | AG101: 123.37 | AH101: 44.946 | AI101: 114.668 | AJ101: 186.652 | AK101: 174.542
A102: KKJ | B102: 2010-04-09 | C102: 138.1271471 | D102: 168.68 | E102: 72.74 | F102: 160.2 | G102: 135.01 | H102: 193.75 | I102: 66.53 | J102: 94.57 | K102: 62.61 | L102: 48.7 | M102: 132.34 | N102: 173.85 | O102: 155.48 | P102: 134.63 | Q102: 61.92 | R102: 201.38 | S102: 139.56 | T102: 174.51 | U102: 194.17 | V102: 119.13 | W102: 167.05 | X102: 187.82 | Y102: 160.3 | Z102: 124.21 | AA102: 160.18 | AB102: 146.8 | AC102: 182.9 | AD102: 167.56 | AE102: 111.77 | AF102: 161.64 | AG102: 122.75 | AH102: 42.855 | AI102: 113.172 | AJ102: 185.118 | AK102: 172.438
A103: KKJ | B103: 2010-04-10 | C103: 136.8688824 | D103: 167.81 | E103: 71.77 | F103: 159.67 | G103: 134.15 | H103: 191.67 | I103: 66.04 | J103: 93.27 | K103: 61.74 | L103: 48.7 | M103: 131.4 | N103: 171.64 | O103: 153.62 | P103: 133.49 | Q103: 60.94 | R103: 199.57 | S103: 138.1 | T103: 172.62 | U103: 192.78 | V103: 117.8 | W103: 165.43 | X103: 185.89 | Y103: 158.41 | Z103: 122.94 | AA103: 157.87 | AB103: 146.5 | AC103: 180.87 | AD103: 166.65 | AE103: 110.39 | AF103: 161.04 | AG103: 122.13 | AH103: 42.23 | AI103: 112.52 | AJ103: 183.558 | AK103: 170.334
A104: KKJ | B104: 2010-04-11 | C104: 135.5228235 | D104: 167.16 | E104: 70.94 | F104: 159.25 | G104: 133.1 | H104: 189.74 | I104: 65.14 | J104: 91.6 | K104: 60.71 | L104: 48.66 | M104: 130.36 | N104: 169.23 | O104: 151.77 | P104: 131.97 | Q104: 59.81 | R104: 198.05 | S104: 136.65 | T104: 170.53 | U104: 191.12 | V104: 116.13 | W104: 163.71 | X104: 183.97 | Y104: 156.52 | Z104: 121.5 | AA104: 155.47 | AB104: 145.2 | AC104: 179.1 | AD104: 165.65 | AE104: 108.4 | AF104: 160.54 | AG104: 121.52 | AH104: 42.062 | AI104: 112.021 | AJ104: 182.063 | AK104: 168.13
A105: KKJ | B105: 2010-04-12 | C105: 133.9187353 | D105: 166.4 | E105: 70 | F105: 158.09 | G105: 131.96 | H105: 187.67 | I105: 64.31 | J105: 89.2 | K105: 59.64 | L105: 48.37 | M105: 128.5 | N105: 166.73 | O105: 149.72 | P105: 130.37 | Q105: 58.59 | R105: 195.55 | S105: 135.01 | T105: 168.24 | U105: 189.19 | V105: 114.39 | W105: 161.9 | X105: 182.19 | Y105: 154.65 | Z105: 120.07 | AA105: 153.09 | AB105: 142.59 | AC105: 176.18 | AD105: 164.45 | AE105: 106.55 | AF105: 160.04 | AG105: 119.83 | AH105: 42.036 | AI105: 111.445 | AJ105: 180.466 | AK105: 165.82
A106: KKJ | B106: 2010-04-13 | C106: 132.268 | D106: 165.64 | E106: 69.18 | F106: 156.94 | G106: 130.83 | H106: 185.48 | I106: 63.48 | J106: 86.56 | K106: 58.47 | L106: 48.23 | M106: 126.27 | N106: 164.04 | O106: 147.7 | P106: 128.78 | Q106: 57.27 | R106: 193.75 | S106: 133.39 | T106: 165.86 | U106: 187.4 | V106: 112.67 | W106: 160.41 | X106: 180.27 | Y106: 152.79 | Z106: 118.29 | AA106: 150.43 | AB106: 140.09 | AC106: 173.75 | AD106: 162.55 | AE106: 104.94 | AF106: 158.13 | AG106: 118.45 | AH106: 42.015 | AI106: 110.87 | AJ106: 178.665 | AK106: 163.522
A107: KKJ | B107: 2010-04-14 | C107: 130.5941471 | D107: 164.67 | E107: 68.31 | F107: 156 | G107: 129.71 | H107: 183.55 | I107: 62.61 | J107: 84.46 | K107: 57.27 | L107: 47.81 | M107: 124.35 | N107: 161.37 | O107: 145.69 | P107: 127.39 | Q107: 56.19 | R107: 192.37 | S107: 131.78 | T107: 163.82 | U107: 185.62 | V107: 111.04 | W107: 158.52 | X107: 178.31 | Y107: 150.94 | Z107: 116.36 | AA107: 147.9 | AB107: 136.58 | AC107: 171.34 | AD107: 160.44 | AE107: 103.33 | AF107: 155.93 | AG107: 117.14 | AH107: 41.919 | AI107: 109.45 | AJ107: 176.814 | AK107: 161.218
A108: KKJ | B108: 2010-04-15 | C108: 129.0312941 | D108: 163.82 | E108: 66.9 | F108: 155.69 | G108: 128.59 | H108: 181.23 | I108: 61.68 | J108: 82.26 | K108: 56.03 | L108: 47.71 | M108: 123.44 | N108: 158.73 | O108: 144.39 | P108: 126.19 | Q108: 55.5 | R108: 189.88 | S108: 130.18 | T108: 161.79 | U108: 183.83 | V108: 109.68 | W108: 157.68 | X108: 176.4 | Y108: 149.01 | Z108: 114.36 | AA108: 145.39 | AB108: 134.18 | AC108: 168.34 | AD108: 158.24 | AE108: 101.64 | AF108: 153.72 | AG108: 115.76 | AH108: 41.518 | AI108: 109.47 | AJ108: 174.922 | AK108: 158.914
A109: KKJ | B109: 2010-04-16 | C109: 127.3636471 | D109: 163.17 | E109: 65.56 | F109: 154.96 | G109: 127.47 | H109: 179.32 | I109: 60.71 | J109: 80.17 | K109: 54.7 | L109: 47.39 | M109: 121.9 | N109: 156.11 | O109: 143.1 | P109: 124.9 | Q109: 55.02 | R109: 187.68 | S109: 128.5 | T109: 160.2 | U109: 182.05 | V109: 108.34 | W109: 155.9 | X109: 174.62 | Y109: 147.49 | Z109: 112.38 | AA109: 143 | AB109: 131.58 | AC109: 166.54 | AD109: 155.94 | AE109: 99.96 | AF109: 151.62 | AG109: 114.38 | AH109: 39.751 | AI109: 106.304 | AJ109: 173.039 | AK109: 156.61
A110: KKJ | B110: 2010-04-17 | C110: 125.9138529 | D110: 162.32 | E110: 64.37 | F110: 154.03 | G110: 126.37 | H110: 177.41 | I110: 59.81 | J110: 78.59 | K110: 53.56 | L110: 47.29 | M110: 121.27 | N110: 153.62 | O110: 141.91 | P110: 123.72 | Q110: 54.76 | R110: 186.44 | S110: 126.83 | T110: 158.62 | U110: 180.27 | V110: 107 | W110: 154.14 | X110: 172.74 | Y110: 145.98 | Z110: 110.34 | AA110: 140.54 | AB110: 128.87 | AC110: 164.33 | AD110: 153.73 | AE110: 98.27 | AF110: 150.92 | AG110: 113 | AH110: 39.449 | AI110: 104.731 | AJ110: 171.536 | AK110: 154.305
A111: KKJ | B111: 2010-04-18 | C111: 124.6381471 | D111: 161.58 | E111: 63.48 | F111: 153.41 | G111: 125.36 | H111: 175.73 | I111: 59.36 | J111: 77.17 | K111: 52.54 | L111: 47.29 | M111: 120.73 | N111: 150.95 | O111: 141.03 | P111: 122.9 | Q111: 54.4 | R111: 185.62 | S111: 125.18 | T111: 157.04 | U111: 178.87 | V111: 105.67 | W111: 152.38 | X111: 171.97 | Y111: 144.68 | Z111: 108.48 | AA111: 137.92 | AB111: 125.89 | AC111: 162.43 | AD111: 151.43 | AE111: 96.58 | AF111: 150.42 | AG111: 111.7 | AH111: 39.147 | AI111: 103.925 | AJ111: 170.334 | AK111: 152.101
A112: KKJ | B112: 2010-04-19 | C112: 123.401 | D112: 160.73 | E112: 62.55 | F112: 153 | G112: 124.08 | H112: 173.95 | I112: 58.86 | J112: 75.89 | K112: 51.43 | L112: 47.11 | M112: 119.75 | N112: 148 | O112: 139.75 | P112: 122.27 | Q112: 54.03 | R112: 184.66 | S112: 123.72 | T112: 155.58 | U112: 177.19 | V112: 104.77 | W112: 150.95 | X112: 170.54 | Y112: 143.69 | Z112: 106.98 | AA112: 134.84 | AB112: 123.66 | AC112: 160.52 | AD112: 149.92 | AE112: 94.81 | AF112: 150.02 | AG112: 110.93 | AH112: 38.759 | AI112: 103.365 | AJ112: 169.232 | AK112: 150.098
A113: KKJ | B113: 2010-04-20 | C113: 122.2323235 | D113: 159.25 | E113: 61.62 | F113: 152.69 | G113: 122.53 | H113: 171.96 | I113: 58.42 | J113: 74.77 | K113: 50.59 | L113: 46.83 | M113: 118.51 | N113: 145.39 | O113: 139.36 | P113: 121.64 | Q113: 53.77 | R113: 183.97 | S113: 122.36 | T113: 154.23 | U113: 175.51 | V113: 104.36 | W113: 149.42 | X113: 169.23 | Y113: 142.7 | Z113: 105.58 | AA113: 132.18 | AB113: 122.89 | AC113: 158.72 | AD113: 148.62 | AE113: 93.43 | AF113: 148.21 | AG113: 109.55 | AH113: 38.371 | AI113: 102.813 | AJ113: 168.13 | AK113: 148.295
A114: KKJ | B114: 2010-04-21 | C114: 121.1594706 | D114: 157.99 | E114: 60.88 | F114: 151.97 | G114: 121.18 | H114: 169.99 | I114: 57.76 | J114: 73.59 | K114: 49.76 | L114: 46.56 | M114: 118.6 | N114: 142.9 | O114: 138.97 | P114: 121.1 | Q114: 53.88 | R114: 183.01 | S114: 120.92 | T114: 152.89 | U114: 173.85 | V114: 104.19 | W114: 148 | X114: 167.81 | Y114: 141.71 | Z114: 104.18 | AA114: 130.3 | AB114: 122.21 | AC114: 157.22 | AD114: 147.32 | AE114: 91.75 | AF114: 146.41 | AG114: 108.17 | AH114: 38.164 | AI114: 101.547 | AJ114: 168.15 | AK114: 146.491
A115: KKJ | B115: 2010-04-22 | C115: 120.0782941 | D115: 156.52 | E115: 60.37 | F115: 151.45 | G115: 119.75 | H115: 168.24 | I115: 57.27 | J115: 72.29 | K115: 48.8 | L115: 46.33 | M115: 117.98 | N115: 140.44 | O115: 138.58 | P115: 120.56 | Q115: 54.14 | R115: 182.05 | S115: 119.49 | T115: 151.66 | U115: 172.41 | V115: 104.03 | W115: 146.29 | X115: 166.62 | Y115: 140.73 | Z115: 102.88 | AA115: 128.44 | AB115: 121.51 | AC115: 156.22 | AD115: 146.32 | AE115: 90.13 | AF115: 144.71 | AG115: 107.63 | AH115: 38.146 | AI115: 100.012 | AJ115: 165.876 | AK115: 144.788
A116: KKJ | B116: 2010-04-23 | C116: 118.9870294 | D116: 155.06 | E116: 59.98 | F116: 150.43 | G116: 118.24 | H116: 166.72 | I116: 56.83 | J116: 71.07 | K116: 47.95 | L116: 46.24 | M116: 117.36 | N116: 137.9 | O116: 137.81 | P116: 119.76 | Q116: 54.24 | R116: 181.09 | S116: 118.25 | T116: 150.33 | U116: 171.09 | V116: 103.78 | W116: 144.49 | X116: 165.22 | Y116: 139.85 | Z116: 101.91 | AA116: 126.77 | AB116: 120.82 | AC116: 155.72 | AD116: 145.22 | AE116: 88.44 | AF116: 143.1 | AG116: 107.09 | AH116: 36.543 | AI116: 98.477 | AJ116: 164.694 | AK116: 143.085
A117: KKJ | B117: 2010-04-24 | C117: 118.0045 | D117: 153.51 | E117: 59.58 | F117: 149.72 | G117: 117.62 | H117: 165.32 | I117: 56.35 | J117: 69.81 | K117: 47.16 | L117: 46.24 | M117: 116.48 | N117: 135.49 | O117: 136.55 | P117: 118.87 | Q117: 54.24 | R117: 180.14 | S117: 117.1 | T117: 149.11 | U117: 169.88 | V117: 103.46 | W117: 142.7 | X117: 163.82 | Y117: 139.16 | Z117: 100.71 | AA117: 125.39 | AB117: 120.21 | AC117: 155.52 | AD117: 144.21 | AE117: 86.93 | AF117: 142.6 | AG117: 106.71 | AH117: 35.636 | AI117: 96.943 | AJ117: 163.602 | AK117: 141.382
A118: KKJ | B118: 2010-04-25 | C118: 117.1130588 | D118: 152.17 | E118: 59.02 | F118: 149.72 | G118: 117.09 | H118: 163.5 | I118: 56.03 | J118: 68.56 | K118: 46.42 | L118: 46.15 | M118: 115.61 | N118: 132.91 | O118: 135.3 | P118: 117.72 | Q118: 54.14 | R118: 179.1 | S118: 115.87 | T118: 147.69 | U118: 168.79 | V118: 102.81 | W118: 140.93 | X118: 162.43 | Y118: 138.48 | Z118: 99.27 | AA118: 124.03 | AB118: 119.52 | AC118: 157.52 | AD118: 143.51 | AE118: 85.5 | AF118: 142.1 | AG118: 106.25 | AH118: 35.621 | AI118: 95.984 | AJ118: 162.52 | AK118: 139.579
A119: KKJ | B119: 2010-04-26 | C119: 116.2374412 | D119: 150.74 | E119: 58.53 | F119: 149.41 | G119: 116.74 | H119: 161.79 | I119: 55.55 | J119: 67.45 | K119: 45.79 | L119: 45.88 | M119: 114.65 | N119: 131.87 | O119: 134.15 | P119: 116.66 | Q119: 54.08 | R119: 177.97 | S119: 114.48 | T119: 146.18 | U119: 167.7 | V119: 101.83 | W119: 139.36 | X119: 161.05 | Y119: 137.51 | Z119: 98.01 | AA119: 122.94 | AB119: 118.91 | AC119: 159.42 | AD119: 142.81 | AE119: 84.12 | AF119: 141.6 | AG119: 104.64 | AH119: 35.605 | AI119: 95.254 | AJ119: 161.518 | AK119: 137.876
A120: KKJ | B120: 2010-04-27 | C120: 115.2960588 | D120: 149.41 | E120: 58.09 | F120: 148.91 | G120: 116.39 | H120: 159.88 | I120: 54.81 | J120: 66.23 | K120: 44.98 | L120: 45.61 | M120: 113.61 | N120: 131.21 | O120: 133.11 | P120: 115.7 | Q120: 53.98 | R120: 176.96 | S120: 113.44 | T120: 144.58 | U120: 166.62 | V120: 100.71 | W120: 137.9 | X120: 160.84 | Y120: 136.54 | Z120: 96.84 | AA120: 121.5 | AB120: 117.14 | AC120: 161.23 | AD120: 141.21 | AE120: 82.9 | AF120: 139.7 | AG120: 103.41 | AH120: 35.48 | AI120: 94.487 | AJ120: 160.386 | AK120: 136.273
A121: KKJ | B121: 2010-04-28 | C121: 114.2915 | D121: 148.1 | E121: 57.65 | F121: 147.9 | G121: 116.13 | H121: 157.88 | I121: 54.03 | J121: 65.02 | K121: 44.14 | L121: 45.38 | M121: 112.92 | N121: 130.74 | O121: 132.06 | P121: 114.83 | Q121: 53.77 | R121: 176.07 | S121: 112.41 | T121: 142.99 | U121: 165.54 | V121: 99.91 | W121: 136.26 | X121: 159.89 | Y121: 135.58 | Z121: 95.59 | AA121: 120.07 | AB121: 115.45 | AC121: 162.03 | AD121: 139.71 | AE121: 81.42 | AF121: 137.7 | AG121: 102.49 | AH121: 35.261 | AI121: 93.106 | AJ121: 159.314 | AK121: 134.57
A122: KKJ | B122: 2010-04-29 | C122: 113.3490588 | D122: 146.79 | E122: 57.37 | F122: 146.99 | G122: 115.87 | H122: 157.04 | I122: 53.2 | J122: 63.9 | K122: 43.45 | L122: 45.07 | M122: 111.97 | N122: 130.74 | O122: 130.93 | P122: 113.87 | Q122: 53.88 | R122: 175.62 | S122: 111.04 | T122: 141.61 | U122: 164.57 | V122: 99.11 | W122: 134.44 | X122: 159.67 | Y122: 134.82 | Z122: 93.9 | AA122: 118.56 | AB122: 113.84 | AC122: 162.93 | AD122: 138.1 | AE122: 80.1 | AF122: 135.69 | AG122: 102.33 | AH122: 34.135 | AI122: 91.494 | AJ122: 158.273 | AK122: 132.566
A123: KKJ | B123: 2010-04-30 | C123: 112.5386176 | D123: 145.78 | E123: 57.43 | F123: 146.18 | G123: 115.61 | H123: 156 | I123: 52.84 | J123: 62.72 | K123: 42.77 | L123: 45.02 | M123: 111.29 | N123: 129.99 | O123: 130.09 | P123: 112.67 | Q123: 53.98 | R123: 175.07 | S123: 109.51 | T123: 141.02 | U123: 164.46 | V123: 98.16 | W123: 132.63 | X123: 160.2 | Y123: 134.34 | Z123: 94.67 | AA123: 117.06 | AB123: 112.15 | AC123: 162.93 | AD123: 136.6 | AE123: 78.78 | AF123: 133.69 | AG123: 102.18 | AH123: 31.289 | AI123: 91.51 | AJ123: 157.231 | AK123: 130.463
A124: KKJ | B124: 2010-05-01 | C124: 111.5999706 | D124: 145.68 | E124: 57.05 | F124: 145.38 | G124: 114.91 | H124: 154.13 | I124: 52.39 | J124: 61.34 | K124: 42.06 | L124: 44.98 | M124: 110.7 | N124: 129.34 | O124: 128.97 | P124: 111.55 | Q124: 54.03 | R124: 174.51 | S124: 107.92 | T124: 140.54 | U124: 163.18 | V124: 97.14 | W124: 130.74 | X124: 159.99 | Y124: 133.96 | Z124: 94.21 | AA124: 115.57 | AB124: 110.46 | AC124: 162.83 | AD124: 135.1 | AE124: 77.46 | AF124: 133.19 | AG124: 101.95 | AH124: 30.319 | AI124: 88.272 | AJ124: 156.189 | AK124: 128.359
A125: KKJ | B125: 2010-05-02 | C125: 110.7784412 | D125: 144.68 | E125: 56.72 | F125: 145.38 | G125: 114.3 | H125: 153 | I125: 51.98 | J125: 60.14 | K125: 41.19 | L125: 44.94 | M125: 110.1 | N125: 128.59 | O125: 127.94 | P125: 110.53 | Q125: 54.03 | R125: 173.51 | S125: 107.08 | T125: 139.85 | U125: 161.69 | V125: 96.05 | W125: 128.87 | X125: 159.25 | Y125: 133.58 | Z125: 94.13 | AA125: 113.93 | AB125: 108.78 | AC125: 162.63 | AD125: 133.5 | AE125: 76.14 | AF125: 132.89 | AG125: 101.64 | AH125: 30.413 | AI125: 87.429 | AJ125: 155.407 | AK125: 126.178
A126: KKJ | B126: 2010-05-03 | C126: 109.9852059 | D126: 143.99 | E126: 56.46 | F126: 145.18 | G126: 113.69 | H126: 151.56 | I126: 51.48 | J126: 59.25 | K126: 40.58 | L126: 44.89 | M126: 109.51 | N126: 127.85 | O126: 126.92 | P126: 109.85 | Q126: 54.03 | R126: 172.41 | S126: 106.42 | T126: 139.07 | U126: 160.1 | V126: 95.19 | W126: 127.2 | X126: 158.1 | Y126: 132.72 | Z126: 93.98 | AA126: 112.29 | AB126: 107.17 | AC126: 163.13 | AD126: 131.79 | AE126: 74.82 | AF126: 132.49 | AG126: 100.11 | AH126: 30.445 | AI126: 86.854 | AJ126: 155.708 | AK126: 124.26
A127: KKJ | B127: 2010-05-04 | C127: 109.2703529 | D127: 143.49 | E127: 56.13 | F127: 145.18 | G127: 113.09 | H127: 150.43 | I127: 50.99 | J127: 58.14 | K127: 40.02 | L127: 44.67 | M127: 108.92 | N127: 127.2 | O127: 125.82 | P127: 109.26 | Q127: 54.03 | R127: 171.2 | S127: 105.84 | T127: 138.1 | U127: 158.73 | V127: 95.12 | W127: 125.64 | X127: 156.63 | Y127: 131.87 | Z127: 93.98 | AA127: 110.59 | AB127: 105.55 | AC127: 166.03 | AD127: 129.99 | AE127: 73.55 | AF127: 130.78 | AG127: 98.88 | AH127: 30.429 | AI127: 86.28 | AJ127: 155.908 | AK127: 122.725
A128: KKJ | B128: 2010-05-05 | C128: 108.6734412 | D128: 142.7 | E128: 56.4 | F128: 145.18 | G128: 112.49 | H128: 149.41 | I128: 50.49 | J128: 57.32 | K128: 39.4 | L128: 44.54 | M128: 108.58 | N128: 127.2 | O128: 124.63 | P128: 108.84 | Q128: 53.77 | R128: 170.54 | S128: 105.51 | T128: 137.13 | U128: 157.36 | V128: 95.27 | W128: 123.99 | X128: 155.28 | Y128: 131.77 | Z128: 94.98 | AA128: 109.32 | AB128: 104.63 | AC128: 167.34 | AD128: 128.39 | AE128: 72.4 | AF128: 129.38 | AG128: 97.65 | AH128: 30.413 | AI128: 85.419 | AJ128: 155.908 | AK128: 121.267
A129: KKJ | B129: 2010-05-06 | C129: 108.1472941 | D129: 142.1 | E129: 56.24 | F129: 145.38 | G129: 112.23 | H129: 148.6 | I129: 50 | J129: 56.29 | K129: 38.74 | L129: 44.19 | M129: 108.83 | N129: 127.29 | O129: 123.9 | P129: 108.25 | Q129: 53.36 | R129: 169.99 | S129: 104.44 | T129: 136.74 | U129: 155.9 | V129: 95.43 | W129: 121.91 | X129: 153.83 | Y129: 132.63 | Z129: 95.83 | AA129: 108.65 | AB129: 104.02 | AC129: 166.74 | AD129: 126.91 | AE129: 71.66 | AF129: 128.68 | AG129: 97.19 | AH129: 30.398 | AI129: 84.442 | AJ129: 156.409 | AK129: 119.809
A130: KKJ | B130: 2010-05-07 | C130: 107.5575882 | D130: 141.41 | E130: 56.03 | F130: 146.38 | G130: 111.97 | H130: 147.9 | I130: 49.42 | J130: 55.13 | K130: 37.94 | L130: 44.1 | M130: 108.58 | N130: 127.11 | O130: 122.54 | P130: 107.5 | Q130: 53 | R130: 169.99 | S130: 103.37 | T130: 136.16 | U130: 154.55 | V130: 95.66 | W130: 120.02 | X130: 152.07 | Y130: 133.29 | Z130: 96.37 | AA130: 108.4 | AB130: 103.02 | AC130: 166.34 | AD130: 126.14 | AE130: 71.08 | AF130: 128.08 | AG130: 96.58 | AH130: 28.224 | AI130: 83.466 | AJ130: 156.71 | AK130: 118.428
A131: KKJ | B131: 2010-05-08 | C131: 106.9852353 | D131: 141.22 | E131: 55.65 | F131: 146.18 | G131: 111.72 | H131: 147.19 | I131: 48.66 | J131: 54.18 | K131: 37.38 | L131: 43.8 | M131: 107.74 | N131: 126.92 | O131: 121.28 | P131: 106.75 | Q131: 52.65 | R131: 169.66 | S131: 102.4 | T131: 135.11 | U131: 153.41 | V131: 95.89 | W131: 118.33 | X131: 150.34 | Y131: 134.43 | Z131: 96.92 | AA131: 108.48 | AB131: 101.79 | AC131: 165.33 | AD131: 126.14 | AE131: 70.39 | AF131: 127.58 | AG131: 96.04 | AH131: 27.442 | AI131: 82.462 | AJ131: 156.91 | AK131: 117.124
A132: KKJ | B132: 2010-05-09 | C132: =AVERAGE(D132:IV132) -> 106.5175882 | D132: 141.41 | E132: 55.34 | F132: 148.81 | G132: 111.46 | H132: 146.59 | I132: 47.81 | J132: 53.51 | K132: 36.65 | L132: 43.71 | M132: 107.24 | N132: 126.56 | O132: 120.02 | P132: 106 | Q132: 52.9 | R132: 169.34 | S132: 101.35 | T132: 133.77 | U132: 151.77 | V132: 95.81 | W132: 116.75 | X132: 148.81 | Y132: 134.91 | Z132: 96.99 | AA132: 107.9 | AB132: 100.64 | AC132: 163.93 | AD132: 126.91 | AE132: 69.7 | AF132: 127.58 | AG132: 95.43 | AH132: 27.161 | AI132: 82.008 | AJ132: 157.01 | AK132: 115.819
A133: KKJ | B133: 2010-05-10 | C133: 105.9833529 | D133: 141.71 | E133: 54.91 | F133: 148 | G133: 111.21 | H133: 147.29 | I133: 46.92 | J133: 52.69 | K133: 36.12 | L133: 44.19 | M133: 106.5 | N133: 126.46 | O133: 118.87 | P133: 105.34 | Q133: 53 | R133: 168.46 | S133: 100.55 | T133: 132.35 | U133: 150.13 | V133: 97.06 | W133: 115.26 | X133: 147.4 | Y133: 134.91 | Z133: 96.99 | AA133: 107.32 | AB133: 100.03 | AC133: 162.23 | AD133: 127.06 | AE133: 69.02 | AF133: 127.18 | AG133: 93.89 | AH133: 26.848 | AI133: 81.835 | AJ133: 157.11 | AK133: 114.591
A134: =A133 -> KKJ | B134: 2010-05-11 | C134: 105.4057647 | D134: 141.61 | E134: 54.23 | F134: 147.79 | G134: 111.12 | H134: 146.59 | I134: 46.06 | J134: 52.08 | K134: 35.59 | L134: 44.45 | M134: 106.5 | N134: 125.73 | O134: 117.72 | P134: 104.93 | Q134: 53.31 | R134: 167.38 | S134: 100.15 | T134: 130.84 | U134: 148.41 | V134: 96.44 | W134: 113.87 | X134: 146.19 | Y134: 135.1 | Z134: 96.84 | AA134: 106.57 | AB134: 99.26 | AC134: 161.13 | AD134: 127.99 | AE134: 67.92 | AF134: 126.68 | AG134: 92.59 | AH134: 26.723 | AI134: 81.629 | AJ134: 157.01 | AK134: 113.364
A135: KKJ | B135: 2010-05-12 | C135: 104.9372647 | D135: 141.71 | E135: 53.46 | F135: 147.69 | G135: 110.7 | H135: 145.88 | I135: 45.56 | J135: 51.68 | K135: 35.11 | L135: 44.98 | M135: 107.74 | N135: 124.99 | O135: 116.57 | P135: 105.34 | Q135: 53.67 | R135: 167.38 | S135: 99.83 | T135: 129.62 | U135: 146.69 | V135: 95.58 | W135: 112.15 | X135: 144.79 | Y135: 135.1 | Z135: 96.68 | AA135: 105.99 | AB135: 97.11 | AC135: 162.23 | AD135: 128.59 | AE135: 66.72 | AF135: 125.82 | AG135: 92.13 | AH135: 26.707 | AI135: 81.054 | AJ135: 156.71 | AK135: 111.906
A136: KKJ | B136: 2010-05-13 | C136: 104.3501765 | D136: 141.22 | E136: 52.95 | F136: 147.29 | G136: 110.53 | H136: 144.19 | I136: 45.07 | J136: 51.18 | K136: 34.46 | L136: 45.61 | M136: 108.58 | N136: 124.17 | O136: 115.61 | P136: 105.34 | Q136: 54.03 | R136: 166.3 | S136: 100.15 | T136: 128.78 | U136: 145.69 | V136: 94.5 | W136: 110.28 | X136: 143.2 | Y136: 135.1 | Z136: 96.53 | AA136: 105.99 | AB136: 94.81 | AC136: 161.83 | AD136: 128.79 | AE136: 65.51 | AF136: 124.59 | AG136: 91.67 | AH136: 26.691 | AI136: 80.308 | AJ136: 156.509 | AK136: 110.448
A137: KKJ | B137: 2010-05-14 | C137: 103.7695882 | D137: 140.92 | E137: 52.44 | F137: 147.09 | G137: 110.27 | H137: 142.5 | I137: 44.71 | J137: 50.44 | K137: 33.77 | L137: 46.15 | M137: 109.17 | N137: 123.35 | O137: 114.57 | P137: 105.51 | Q137: 54.45 | R137: 166.51 | S137: 100.39 | T137: 128.78 | U137: 144.89 | V137: 93.35 | W137: 108.42 | X137: 141.81 | Y137: 135.58 | Z137: 96.53 | AA137: 105.41 | AB137: 92.2 | AC137: 161.33 | AD137: 128.59 | AE137: 64.25 | AF137: 123.51 | AG137: 90.98 | AH137: 24.971 | AI137: 79.389 | AJ137: 156.409 | AK137: 109.527
A138: KKJ | B138: 2010-05-15 | C138: 103.2778529 | D138: 140.73 | E138: 51.98 | F138: 147.09 | G138: 110.1 | H138: 140.82 | I138: 44.45 | J138: 49.91 | K138: 33.16 | L138: 46.65 | M138: 109 | N138: 122.54 | O138: 113.35 | P138: 105.92 | Q138: 54.55 | R138: 165.76 | S138: 100.39 | T138: 128.69 | U138: 144.09 | V138: 92.21 | W138: 106.58 | X138: 141.71 | Y138: 135.97 | Z138: 96.45 | AA138: 105.08 | AB138: 89.59 | AC138: 161.53 | AD138: 128.09 | AE138: 63.16 | AF138: 122.44 | AG138: 90.29 | AH138: 24.956 | AI138: 78.528 | AJ138: 156.309 | AK138: 109.374
A139: KKJ | B139: 2010-05-16 | C139: 102.8856765 | D139: 140.82 | E139: 51.53 | F139: 147.9 | G139: 109.93 | H139: 140.04 | I139: 44.14 | J139: 49.33 | K139: 32.58 | L139: 47.06 | M139: 108.83 | N139: 121.64 | O139: 112.15 | P139: 106.25 | Q139: 54.5 | R139: 165.43 | S139: 100.39 | T139: 128.78 | U139: 143.4 | V139: 91.08 | W139: 104.93 | X139: 140.93 | Y139: 136.45 | Z139: 96.45 | AA139: 105.58 | AB139: 87.08 | AC139: 161.13 | AD139: 127.6 | AE139: 62.18 | AF139: 121.82 | AG139: 89.67 | AH139: 25.034 | AI139: 77.896 | AJ139: 156.209 | AK139: 109.374
A140: KKJ | B140: 2010-05-17 | C140: 102.673 | D140: 140.92 | E140: 51.04 | F140: 150.94 | G140: 109.76 | H140: 139.26 | I140: 43.88 | J140: 48.66 | K140: 32.13 | L140: 47.43 | M140: 109.68 | N140: 121.01 | O140: 111.21 | P140: 106.25 | Q140: 54.4 | R140: 165.54 | S140: 100.07 | T140: 128.97 | U140: 142.41 | V140: 90.63 | W140: 103.46 | X140: 140.05 | Y140: 136.45 | Z140: 96.84 | AA140: 106.07 | AB140: 85.13 | AC140: 161.13 | AD140: 127.29 | AE140: 61.38 | AF140: 121.59 | AG140: 88.14 | AH140: 25.128 | AI140: 78.413 | AJ140: 156.209 | AK140: 109.412
A141: KKJ | B141: 2010-05-18 | C141: 102.7674118 | D141: 140.92 | E141: 50.59 | F141: 161.36 | G141: 109.59 | H141: 139.06 | I141: 43.58 | J141: 48 | K141: 31.47 | L141: 47.71 | M141: 109.85 | N141: 120.2 | O141: 110.02 | P141: 106.33 | Q141: 54.29 | R141: 165.65 | S141: 99.51 | T141: 129.9 | U141: 141.52 | V141: 90.7 | W141: 102 | X141: 139.17 | Y141: 137.41 | Z141: 97.07 | AA141: 106.49 | AB141: 83.52 | AC141: 161.23 | AD141: 127.06 | AE141: 60.75 | AF141: 120.98 | AG141: 87.39 | AH141: 26.222 | AI141: 79.159 | AJ141: 156.209 | AK141: 109.182
A142: KKJ | B142: 2010-05-19 | C142: 102.7407059 | D142: 140.73 | E142: 50.15 | F142: 168.9 | G142: 109.42 | H142: 138.97 | I142: 42.73 | J142: 47.53 | K142: 31.06 | L142: 47.85 | M142: 109.17 | N142: 119.04 | O142: 108.84 | P142: 105.92 | Q142: 54.4 | R142: 165.54 | S142: 99.51 | T142: 131.69 | U142: 140.44 | V142: 91.08 | W142: 100.39 | X142: 138 | Y142: 138.67 | Z142: 97.23 | AA142: 106.73 | AB142: 82.09 | AC142: 161.43 | AD142: 126.83 | AE142: 60.06 | AF142: 120.52 | AG142: 86.47 | AH142: 27.473 | AI142: 79.791 | AJ142: 155.808 | AK142: 108.722
A143: KKJ | B143: 2010-05-20 | C143: 102.4975 | D143: 140.33 | E143: 49.66 | F143: 171.63 | G143: 109.34 | H143: 137.9 | I143: 41.97 | J143: 46.83 | K143: 30.46 | L143: 48.04 | M143: 108.75 | N143: 117.89 | O143: 107.75 | P143: 105.42 | Q143: 54.4 | R143: 165.54 | S143: 99.03 | T143: 133.01 | U143: 139.17 | V143: 91.6 | W143: 98.48 | X143: 137.52 | Y143: 139.26 | Z143: 97.38 | AA143: 106.73 | AB143: 81.74 | AC143: 162.03 | AD143: 126.53 | AE143: 59.37 | AF143: 119.75 | AG143: 86.36 | AH143: 27.911 | AI143: 80.48 | AJ143: 155.007 | AK143: 107.647
A144: KKJ | B144: 2010-05-21 | C144: 102.2152941 | D144: 140.24 | E144: 49.18 | F144: 172.51 | G144: 109.42 | H144: 136.54 | I144: 41.48 | J144: 46.83 | K144: 30 | L144: 48.56 | M144: 108 | N144: 116.75 | O144: 106.75 | P144: 105.18 | Q144: 54.6 | R144: 166.19 | S144: 98.48 | T144: 133.77 | U144: 138 | V144: 92.13 | W144: 96.67 | X144: 137.03 | Y144: 139.55 | Z144: 97.62 | AA144: 106.73 | AB144: 81.22 | AC144: 161.13 | AD144: 126.37 | AE144: 59.15 | AF144: 119.14 | AG144: 86.07 | AH144: 28.349 | AI144: 80.882 | AJ144: 154.265 | AK144: 106.534
A145: KKJ | B145: 2010-05-22 | C145: 101.9159118 | D145: 140.04 | E145: 48.04 | F145: 174.28 | G145: 109.42 | H145: 135.58 | I145: 40.99 | J145: 45.97 | K145: 29.55 | L145: 48.85 | M145: 107.16 | N145: 115.26 | O145: 105.59 | P145: 104.85 | Q145: 54.97 | R145: 166.19 | S145: 99.35 | T145: 134.06 | U145: 136.84 | V145: 92.82 | W145: 95.12 | X145: 136.84 | Y145: 139.36 | Z145: 97.7 | AA145: 106.57 | AB145: 80.88 | AC145: 160.02 | AD145: 126.22 | AE145: 58.85 | AF145: 118.83 | AG145: 85.84 | AH145: 28.662 | AI145: 81.112 | AJ145: 153.905 | AK145: 105.422
A146: KKJ | B146: 2010-05-23 | C146: 101.5281471 | D146: 139.85 | E146: 48.04 | F146: 174.06 | G146: 109.34 | H146: 134.72 | I146: 40.42 | J146: 45.25 | K146: 29.04 | L146: 49.47 | M146: 106.66 | N146: 113.27 | O146: 104.36 | P146: 104.52 | Q146: 55.34 | R146: 165.54 | S146: 100.31 | T146: 133.87 | U146: 135.68 | V146: 92.82 | W146: 93.73 | X146: 136.45 | Y146: 138.97 | Z146: 97.78 | AA146: 106.4 | AB146: 80.53 | AC146: 158.32 | AD146: 125.91 | AE146: 58.51 | AF146: 118.53 | AG146: 85.61 | AH146: 28.849 | AI146: 81.571 | AJ146: 154.005 | AK146: 104.232
A147: KKJ | B147: 2010-05-24 | C147: 101.1939118 | D147: 139.06 | E147: 47.85 | F147: 173.84 | G147: 109 | H147: 133.86 | I147: 40.18 | J147: 44.58 | K147: 28.64 | L147: 50.1 | M147: 106.25 | N147: 111.47 | O147: 103.13 | P147: 104.19 | Q147: 56.19 | R147: 165.22 | S147: 100.31 | T147: 133.68 | U147: 134.63 | V147: 95.04 | W147: 93.27 | X147: 136.26 | Y147: 138.29 | Z147: 97.78 | AA147: 106.24 | AB147: 80.36 | AC147: 156.52 | AD147: 125.53 | AE147: 58.33 | AF147: 118.22 | AG147: 84.41 | AH147: 28.975 | AI147: 81.686 | AJ147: 154.305 | AK147: 103.197
A148: KKJ | B148: 2010-05-25 | C148: 100.8565 | D148: 138.09 | E148: 47.76 | F148: 173.62 | G148: 108.83 | H148: 133.39 | I148: 39.87 | J148: 44.01 | K148: 28.08 | L148: 50.69 | M148: 106 | N148: 109.51 | O148: 101.91 | P148: 103.86 | Q148: 56.78 | R148: 164.68 | S148: 100.63 | T148: 133.68 | U148: 133.49 | V148: 95.5 | W148: 92.59 | X148: 136.65 | Y148: 137.51 | Z148: 97.78 | AA148: 106.07 | AB148: 80.08 | AC148: 154.61 | AD148: 125.38 | AE148: 58.55 | AF148: 117.3 | AG148: 84.41 | AH148: 29.037 | AI148: 82.031 | AJ148: 154.506 | AK148: 102.237
A149: KKJ | B149: 2010-05-26 | C149: 100.4620882 | D149: 136.83 | E149: 47.43 | F149: 173.18 | G149: 109.09 | H149: 132.44 | I149: 39.51 | J149: 43.45 | K149: 27.7 | L149: 50.84 | M149: 105.58 | N149: 109.17 | O149: 100.71 | P149: 103.37 | Q149: 57.11 | R149: 164.25 | S149: 100.63 | T149: 133.87 | U149: 132.06 | V149: 95.89 | W149: 91.68 | X149: 136.65 | Y149: 136.54 | Z149: 97.7 | AA149: 106.62 | AB149: 79.73 | AC149: 152.51 | AD149: 125.45 | AE149: 58.64 | AF149: 116.07 | AG149: 84.41 | AH149: 29.1 | AI149: 82.433 | AJ149: 153.905 | AK149: 101.163
A150: KKJ | B150: 2010-05-27 | C150: 100.1277353 | D150: 135.39 | E150: 47.06 | F150: 172.62 | G150: 109.34 | H150: 130.93 | I150: 39.2 | J150: 42.94 | K150: 27.43 | L150: 50.89 | M150: 105.17 | N150: 108.84 | O150: 99.99 | P150: 103.62 | Q150: 57.43 | R150: 164.25 | S150: 100.95 | T150: 135.3 | U150: 130.74 | V150: 95.43 | W150: 91.08 | X150: 137.03 | Y150: 136.45 | Z150: 97.7 | AA150: 105.74 | AB150: 78.52 | AC150: 151.21 | AD150: 125.53 | AE150: 58.72 | AF150: 114.84 | AG150: 84.35 | AH150: 29.131 | AI150: 83.236 | AJ150: 153.504 | AK150: 99.782
A151: KKJ | B151: 2010-05-28 | C151: 99.80767647 | D151: 133.96 | E151: 46.74 | F151: 171.96 | G151: 109.68 | H151: 130.18 | I151: 39.01 | J151: 42.1 | K151: 27.3 | L151: 51.13 | M151: 105.01 | N151: 108.5 | O151: 99.03 | P151: 104.11 | Q151: 57.6 | R151: 163.71 | S151: 101.59 | T151: 137.03 | U151: 129.25 | V151: 95.12 | W151: 90.4 | X151: 136.65 | Y151: 135.97 | Z151: 97.62 | AA151: 105.74 | AB151: 77.61 | AC151: 150.21 | AD151: 125.53 | AE151: 58.72 | AF151: 113.69 | AG151: 84.46 | AH151: 29.037 | AI151: 83.811 | AJ151: 152.602 | AK151: 98.401
A152: KKJ | B152: 2010-05-29 | C152: 99.46535294 | D152: 132.34 | E152: 46.42 | F152: 171.08 | G152: 110.36 | H152: 128.68 | I152: 38.93 | J152: 41.23 | K152: 27.93 | L152: 51.68 | M152: 104.6 | N152: 108 | O152: 98.01 | P152: 104.52 | Q152: 57.93 | R152: 163.39 | S152: 102.56 | T152: 138.39 | U152: 127.48 | V152: 95.66 | W152: 89.65 | X152: 135.97 | Y152: 134.91 | Z152: 97.38 | AA152: 105.66 | AB152: 76.74 | AC152: 149.3 | AD152: 125.45 | AE152: 58.68 | AF152: 112.39 | AG152: 84.69 | AH152: 29.037 | AI152: 84.155 | AJ152: 151.601 | AK152: 97.019
A153: KKJ | B153: 2010-05-30 | C153: 99.20729412 | D153: 131.21 | E153: 46.1 | F153: 170.32 | G153: 111.8 | H153: 127.94 | I153: 38.85 | J153: 40.34 | K153: 28.64 | L153: 54.18 | M153: 104.43 | N153: 107.83 | O153: 97.06 | P153: 104.68 | Q153: 58.31 | R153: 162.97 | S153: 102.56 | T153: 140.14 | U153: 125.45 | V153: 95.97 | W153: 87.15 | X153: 135.2 | Y153: 133.96 | Z153: 97.23 | AA153: 106.42 | AB153: 75.71 | AC153: 148.6 | AD153: 125.45 | AE153: 58.42 | AF153: 111.01 | AG153: 84.64 | AH153: 29.162 | AI153: 84.442 | AJ153: 150.699 | AK153: 96.175
A154: KKJ | B154: 2010-05-31 | C154: 99.0805 | D154: 129.8 | E154: 45.7 | F154: 169.33 | G154: 112.32 | H154: 127.38 | I154: 38.51 | J154: 39.67 | K154: 29.07 | L154: 58.25 | M154: 104.02 | N154: 106.99 | O154: 95.89 | P154: 104.85 | Q154: 58.75 | R154: 162.43 | S154: 102.24 | T154: 140.73 | U154: 127.11 | V154: 97.22 | W154: 85.76 | X154: 134.53 | Y154: 134.15 | Z154: 96.84 | AA154: 106.73 | AB154: 74.62 | AC154: 148 | AD154: 125.3 | AE154: 58.03 | AF154: 110.16 | AG154: 84.35 | AH154: 29.256 | AI154: 84.672 | AJ154: 149.597 | AK154: 96.482
A155: KKJ | B155: 2010-06-01 | C155: 98.76579412 | D155: 128.31 | E155: 45.29 | F155: 169.55 | G155: 112.83 | H155: 126.92 | I155: 38.09 | J155: 38.97 | K155: 29.12 | L155: 60.2 | M155: 103.04 | N155: 106 | O155: 94.89 | P155: 104.85 | Q155: 59.03 | R155: 162.01 | S155: 101.83 | T155: 141.12 | U155: 121.55 | V155: 98.01 | W155: 84.47 | X155: 132.25 | Y155: 134.44 | Z155: 96.6 | AA155: 109.07 | AB155: 73.7 | AC155: 149.3 | AD155: 125.07 | AE155: 57.64 | AF155: 109.47 | AG155: 83.89 | AH155: 29.538 | AI155: 85.074 | AJ155: 148.896 | AK155: 97.019
A156: KKJ | B156: 2010-06-02 | C156: 98.86297059 | D156: 127.57 | E156: 44.76 | F156: 172.18 | G156: 115.26 | H156: 129.05 | I156: 37.57 | J156: 38.43 | K156: 29.12 | L156: 61.4 | M156: 102.23 | N156: 104.85 | O156: 93.81 | P156: 104.52 | Q156: 59.25 | R156: 161.69 | S156: 102.48 | T156: 141.32 | U156: 120.74 | V156: 101.75 | W156: 83.12 | X156: 130.18 | Y156: 133.96 | Z156: 96.76 | AA156: 112.47 | AB156: 72.84 | AC156: 149.2 | AD156: 124.76 | AE156: 57.26 | AF156: 108.78 | AG156: 83.54 | AH156: 29.725 | AI156: 85.246 | AJ156: 148.194 | AK156: 97.326
A157: KKJ | B157: 2010-06-03 | C157: 99.07741176 | D157: 126.92 | E157: 44.49 | F157: 176.4 | G157: 116.74 | H157: 130.83 | I157: 37.05 | J157: 37.83 | K157: 29.09 | L157: 63.66 | M157: 101.91 | N157: 103.95 | O157: 92.89 | P157: 104.11 | Q157: 59.81 | R157: 162.43 | S157: 102.64 | T157: 141.12 | U157: 120.2 | V157: 104.68 | W157: 81.78 | X157: 127.11 | Y157: 133.49 | Z157: 97.46 | AA157: 115.31 | AB157: 72.21 | AC157: 148.7 | AD157: 124.46 | AE157: 56.82 | AF157: 108.17 | AG157: 83.43 | AH157: 32.321 | AI157: 85.648 | AJ157: 147.493 | AK157: 97.48
A158: KKJ | B158: 2010-06-04 | C158: 99.25338235 | D158: 126.64 | E158: 44.28 | F158: 180.27 | G158: 118.51 | H158: 131.96 | I158: 37.05 | J158: 37.35 | K158: 28.94 | L158: 65.32 | M158: 101.59 | N158: 102.81 | O158: 92.13 | P158: 103.86 | Q158: 60.49 | R158: 164.25 | S158: 103.13 | T158: 141.12 | U158: 119.4 | V158: 105.18 | W158: 81.36 | X158: 124.08 | Y158: 132.92 | Z158: 98.8 | AA158: 116.62 | AB158: 71.75 | AC158: 148.2 | AD158: 124.38 | AE158: 56.61 | AF158: 107.86 | AG158: 83.43 | AH158: 34.041 | AI158: 85.936 | AJ158: 146.792 | AK158: 97.556
A159: KKJ | B159: 2010-06-05 | C159: 99.49573529 | D159: 126 | E159: 43.93 | F159: 184.79 | G159: 120.11 | H159: 131.87 | I159: 37.13 | J159: 36.94 | K159: 28.61 | L159: 66.83 | M159: 101.18 | N159: 101.75 | O159: 91.23 | P159: 103.86 | Q159: 61 | R159: 165.11 | S159: 103.54 | T159: 140.93 | U159: 118.78 | V159: 105.34 | W159: 83.47 | X159: 121.01 | Y159: 133.01 | Z159: 99.91 | AA159: 116.97 | AB159: 71.35 | AC159: 147.6 | AD159: 125.45 | AE159: 56.69 | AF159: 107.86 | AG159: 83.6 | AH159: 37.294 | AI159: 86.165 | AJ159: 145.99 | AK159: 97.556
A160: KKJ | B160: 2010-06-06 | C160: 99.67655882 | D160: 125.36 | E160: 43.62 | F160: 190.29 | G160: 121.09 | H160: 131.49 | I160: 37.27 | J160: 36.58 | K160: 28.24 | L160: 68.37 | M160: 100.78 | N160: 101.43 | O160: 90.25 | P160: 103.86 | Q160: 62.44 | R160: 165.32 | S160: 103.54 | T160: 141.03 | U160: 117.89 | V160: 105.01 | W160: 84.76 | X160: 117.98 | Y160: 132.82 | Z160: 101.51 | AA160: 117.24 | AB160: 71.35 | AC160: 147.3 | AD160: 125.68 | AE160: 56.78 | AF160: 107.86 | AG160: 83.72 | AH160: 39.061 | AI160: 86.337 | AJ160: 145.189 | AK160: 97.556
A161: KKJ | B161: 2010-06-07 | C161: 100.0215294 | D161: 125.17 | E161: 43.2 | F161: 198.46 | G161: 121.72 | H161: 130.08 | I161: 37.61 | J161: 35.94 | K161: 27.88 | L161: 70.5 | M161: 100.38 | N161: 102.56 | O161: 89.28 | P161: 103.95 | Q161: 62.96 | R161: 165.32 | S161: 104.03 | T161: 142.11 | U161: 117.01 | V161: 104.68 | W161: 85.55 | X161: 114.91 | Y161: 132.73 | Z161: 105.08 | AA161: 117.59 | AB161: 71.63 | AC161: 147.3 | AD161: 125.68 | AE161: 56.91 | AF161: 107.78 | AG161: 83.77 | AH161: 40.785 | AI161: 86.395 | AJ161: 144.187 | AK161: 97.595
A162: KKJ | B162: 2010-06-08 | C162: 100.2993235 | D162: 125.17 | E162: 42.9 | F162: 202.77 | G162: 122.35 | H162: 128.96 | I162: 39.2 | J162: 35.49 | K162: 27.48 | L162: 73.46 | M162: 99.98 | N162: 105.26 | O162: 88.25 | P162: 103.95 | Q162: 63.37 | R162: 165.32 | S162: 104.27 | T162: 142.41 | U162: 115.87 | V162: 104.03 | W162: 86.56 | X162: 111.89 | Y162: 132.35 | Z162: 108.23 | AA162: 117.85 | AB162: 72.04 | AC162: 147.1 | AD162: 125.61 | AE162: 57.21 | AF162: 107.78 | AG162: 83.77 | AH162: 41.777 | AI162: 86.625 | AJ162: 143.185 | AK162: 97.71
A163: KKJ | B163: 2010-06-09 | C163: 100.2519853 | D163: 125.63 | E163: 43.02 | F163: 203.47 | G163: 122.35 | H163: 127.29 | I163: 40.66 | J163: 35.11 | K163: 27.07 | L163: 74.83 | M163: 99.51 | N163: 105.67 | O163: 87.29 | P163: 104.36 | Q163: 63.55 | R163: 165.22 | S163: 103.86 | T163: 142.8 | U163: 114.57 | V163: 103.86 | W163: 87.37 | X163: 108.76 | Y163: 131.69 | Z163: 110 | AA163: 118.03 | AB163: 71.92 | AC163: 146.4 | AD163: 126.3 | AE163: 57.47 | AF163: 107.86 | AG163: 83.26 | AH163: 42.424 | AI163: 86.969 | AJ163: 142.2845 | AK163: 97.71
A164: KKJ | B164: 2010-06-10 | C164: 100.1332353 | D164: 123.9 | E164: 43.8 | F164: 202.77 | G164: 122.53 | H164: 126.55 | I164: 42.01 | J164: 34.6 | K164: 26.54 | L164: 77.84 | M164: 99.03 | N164: 104.85 | O164: 86.34 | P164: 104.52 | Q164: 63.84 | R164: 165.11 | S164: 103.54 | T164: 143.4 | U164: 113.18 | V164: 103.62 | W164: 87.73 | X164: 106 | Y164: 130.93 | Z164: 111.1 | AA164: 118.73 | AB164: 72.04 | AC164: 145.5 | AD164: 126.76 | AE164: 57.56 | AF164: 108.09 | AG164: 82.86 | AH164: 42.984 | AI164: 87.199 | AJ164: 141.482 | AK164: 97.595
A165: KKJ | B165: 2010-06-11 | C165: 99.81679412 | D165: 122.9 | E165: 43.71 | F165: 200.82 | G165: 123.26 | H165: 125.08 | I165: 42.18 | J165: 34.29 | K165: 26.06 | L165: 79.76 | M165: 98.4 | N165: 103.62 | O165: 85.33 | P165: 104.6 | Q165: 64.25 | R165: 164.79 | S165: 103.29 | T165: 143.89 | U165: 112.15 | V165: 103.37 | W165: 86.27 | X165: 103.54 | Y165: 130.27 | Z165: 111.55 | AA165: 119.36 | AB165: 71.92 | AC165: 144.4 | AD165: 126.99 | AE165: 57.6 | AF165: 108.47 | AG165: 82.57 | AH165: 43.372 | AI165: 87.486 | AJ165: 140.781 | AK165: 97.442
A166: KKJ | B166: 2010-06-12 | C166: 99.46685294 | D166: 121.09 | E166: 43.93 | F166: 197.9 | G166: 124.81 | H166: 123.26 | I166: 42.26 | J166: 34 | K166: 25.28 | L166: 80.93 | M166: 98.24 | N166: 102.81 | O166: 84.4 | P166: 104.77 | Q166: 64.55 | R166: 164.57 | S166: 103.29 | T166: 144.19 | U166: 111.13 | V166: 103.29 | W166: 86.34 | X166: 101.11 | Y166: 128.59 | Z166: 111.98 | AA166: 119.8 | AB166: 71.4 | AC166: 143.19 | AD166: 126.99 | AE166: 58.2 | AF166: 108.63 | AG166: 82.28 | AH166: 43.717 | AI166: 87.716 | AJ166: 139.98 | AK166: 97.25
A167: KKJ | B167: 2010-06-13 | C167: 99.15347059 | D167: 120.56 | E167: 43.84 | F167: 194.85 | G167: 126.55 | H167: 121.18 | I167: 42.39 | J167: 33.62 | K167: 24.82 | L167: 81.91 | M167: 98 | N167: 102.4 | O167: 83.4 | P167: 104.93 | Q167: 65.09 | R167: 164.36 | S167: 103.05 | T167: 144.29 | U167: 109.85 | V167: 103.29 | W167: 86.71 | X167: 98.64 | Y167: 126.74 | Z167: 112.32 | AA167: 120.07 | AB167: 71.29 | AC167: 142.19 | AD167: 126.83 | AE167: 59.02 | AF167: 108.93 | AG167: 81.94 | AH167: 43.976 | AI167: 87.831 | AJ167: 139.178 | AK167: 97.173
A168: KKJ | B168: 2010-06-14 | C168: 98.87976471 | D168: 119.93 | E168: 43.62 | F168: 191.67 | G168: 128.03 | H168: 119.31 | I168: 42.47 | J168: 33.31 | K168: 24.32 | L168: 83.75 | M168: 97.84 | N168: 103.21 | O168: 82.41 | P168: 105.09 | Q168: 65.81 | R168: 164.04 | S168: 102.72 | T168: 144.49 | U168: 108.84 | V168: 102.4 | W168: 87.22 | X168: 96.52 | Y168: 124.81 | Z168: 112.58 | AA168: 120.25 | AB168: 71.52 | AC168: 141.09 | AD168: 126.6 | AE168: 59.65 | AF168: 109.09 | AG168: 81.65 | AH168: 44.234 | AI168: 87.888 | AJ168: 138.377 | AK168: 97.173
A169: KKJ | B169: 2010-06-15 | C169: 98.53702941 | D169: 118.77 | E169: 43.41 | F169: 188.09 | G169: 129.15 | H169: 117.36 | I169: 42.52 | J169: 32.96 | K169: 23.56 | L169: 84.82 | M169: 97.69 | N169: 104.68 | O169: 81.43 | P169: 104.93 | Q169: 66.47 | R169: 163.71 | S169: 102.32 | T169: 144.49 | U169: 107.58 | V169: 102.89 | W169: 87.51 | X169: 93.58 | Y169: 122.81 | Z169: 112.75 | AA169: 120.25 | AB169: 72.09 | AC169: 140.69 | AD169: 126.14 | AE169: 60.06 | AF169: 109.32 | AG169: 81.19 | AH169: 44.364 | AI169: 87.927 | AJ169: 137.575 | AK169: 97.173
A170: KKJ | B170: 2010-06-16 | C170: 98.15991176 | D170: 117.27 | E170: 43.2 | F170: 185.89 | G170: 129.89 | H170: 115.34 | I170: 42.6 | J170: 32.61 | K170: 22.83 | L170: 86.49 | M170: 97.53 | N170: 104.11 | O170: 80.52 | P170: 104.27 | Q170: 67.02 | R170: 163.39 | S170: 101.91 | T170: 144.39 | U170: 108.5 | V170: 104.44 | W170: 87.51 | X170: 90.55 | Y170: 120.56 | Z170: 112.84 | AA170: 120.07 | AB170: 72.38 | AC170: 139.89 | AD170: 125.53 | AE170: 60.34 | AF170: 109.62 | AG170: 80.04 | AH170: 44.364 | AI170: 87.888 | AJ170: 136.674 | AK170: 96.981
A171: KKJ | B171: 2010-06-17 | C171: 97.47476471 | D171: 115.87 | E171: 42.98 | F171: 183.69 | G171: 130.83 | H171: 113.09 | I171: 42.43 | J171: 32.1 | K171: 22.25 | L171: 87.43 | M171: 97.06 | N171: 101.96 | O171: 79.42 | P171: 103.54 | Q171: 67.51 | R171: 162.86 | S171: 101.43 | T171: 144.09 | U171: 105.59 | V171: 106.09 | W171: 87.81 | X171: 87.51 | Y171: 118.07 | Z171: 112.75 | AA171: 119.89 | AB171: 71.85 | AC171: 138.59 | AD171: 124.23 | AE171: 60.11 | AF171: 109.78 | AG171: 78.72 | AH171: 44.364 | AI171: 87.802 | AJ171: 135.772 | AK171: 96.674
A172: KKJ | B172: 2010-06-18 | C172: 96.86485294 | D172: 114.13 | E172: 42.43 | F172: 182.05 | G172: 131.59 | H172: 111.12 | I172: 42.31 | J172: 31.52 | K172: 21.87 | L172: 88.09 | M172: 96.43 | N172: 101.03 | O172: 78.26 | P172: 102.81 | Q172: 67.82 | R172: 162.33 | S172: 100.95 | T172: 143.79 | U172: 104.93 | V172: 106.33 | W172: 87.81 | X172: 84.76 | Y172: 115.61 | Z172: 112.41 | AA172: 120.69 | AB172: 71.4 | AC172: 136.98 | AD172: 123.07 | AE172: 59.77 | AF172: 109.78 | AG172: 78.03 | AH172: 44.364 | AI172: 87.716 | AJ172: 134.82 | AK172: 96.405
A173: KKJ | B173: 2010-06-19 | C173: 96.203 | D173: 113.18 | E173: 42.31 | F173: 179.77 | G173: 131.02 | H173: 109.26 | I173: 42.01 | J173: 30.96 | K173: 21.49 | L173: 88.46 | M173: 95.5 | N173: 99.83 | O173: 77.04 | P173: 102 | Q173: 67.94 | R173: 161.69 | S173: 100.39 | T173: 143.4 | U173: 103.86 | V173: 106.33 | W173: 87.59 | X173: 82.13 | Y173: 113.1 | Z173: 112.41 | AA173: 122.13 | AB173: 71 | AC173: 135.18 | AD173: 121.77 | AE173: 59.37 | AF173: 110.16 | AG173: 77.4 | AH173: 44.493 | AI173: 87.773 | AJ173: 133.819 | AK173: 96.137
A174: KKJ | B174: 2010-06-20 | C174: 95.51447059 | D174: 112.23 | E174: 42.06 | F174: 178.08 | G174: 130.64 | H174: 106.99 | I174: 41.68 | J174: 30.36 | K174: 20.98 | L174: 88.98 | M174: 94.86 | N174: 97.69 | O174: 75.83 | P174: 101.11 | Q174: 67.94 | R174: 160.94 | S174: 99.59 | T174: 143.4 | U174: 102.97 | V174: 105.59 | W174: 89.28 | X174: 79.9 | Y174: 110.62 | Z174: 112.32 | AA174: 122.94 | AB174: 70.49 | AC174: 133.37 | AD174: 120.54 | AE174: 58.94 | AF174: 110.16 | AG174: 75.85 | AH174: 44.666 | AI174: 87.831 | AJ174: 132.797 | AK174: 95.868
A175: KKJ | B175: 2010-06-21 | C175: 94.75973529 | D175: 110.87 | E175: 41.89 | F175: 176.29 | G175: 130.27 | H175: 105.09 | I175: 41.35 | J175: 29.85 | K175: 20.86 | L175: 89.2 | M175: 94.5 | N175: 95.97 | O175: 74.64 | P175: 100.15 | Q175: 67.76 | R175: 160.31 | S175: 98.64 | T175: 143 | U175: 102 | V175: 104.77 | W175: 89.21 | X175: 77.71 | Y175: 108.17 | Z175: 112.32 | AA175: 123.48 | AB175: 69.97 | AC175: 131.57 | AD175: 119.31 | AE175: 58.64 | AF175: 109.93 | AG175: 74.13 | AH175: 44.795 | AI175: 87.86 | AJ175: 131.765 | AK175: 95.561
A176: KKJ | B176: 2010-06-22 | C176: 94.01470588 | D176: 109.09 | E176: 41.81 | F176: 174.28 | G176: 129.89 | H176: 102.64 | I176: 41.07 | J176: 29.14 | K176: 20.86 | L176: 89.35 | M176: 94.11 | N176: 94.58 | O176: 73.4 | P176: 99.19 | Q176: 67.57 | R176: 160.84 | S176: 98.01 | T176: 142.6 | U176: 100.63 | V176: 104.03 | W176: 89.43 | X176: 75.17 | Y176: 105.67 | Z176: 112.15 | AA176: 123.75 | AB176: 69.51 | AC176: 129.67 | AD176: 118.24 | AE176: 58.25 | AF176: 109.78 | AG176: 72.63 | AH176: 45.442 | AI176: 87.831 | AJ176: 130.863 | AK176: 95.024
A177: KKJ | B177: 2010-06-23 | C177: 93.23905882 | D177: 107.24 | E177: 41.4 | F177: 172.29 | G177: 129.52 | H177: 100.06 | I177: 40.58 | J177: 28.49 | K177: 20.56 | L177: 89.43 | M177: 93.81 | N177: 93.12 | O177: 72.17 | P177: 98.16 | Q177: 67.45 | R177: 160.84 | S177: 97.06 | T177: 142.31 | U177: 99.43 | V177: 103.05 | W177: 89.88 | X177: 72.62 | Y177: 103.21 | Z177: 111.98 | AA177: 123.66 | AB177: 69.28 | AC177: 128.57 | AD177: 117.4 | AE177: 57.81 | AF177: 109.47 | AG177: 71.14 | AH177: 45.7 | AI177: 87.773 | AJ177: 130.062 | AK177: 94.603
A178: KKJ | B178: 2010-06-24 | C178: 92.54832353 | D178: 105.42 | E178: 41.03 | F178: 170.1 | G178: 129.24 | H178: 97.84 | I178: 40.26 | J178: 27.88 | K178: 20.45 | L178: 89.65 | M178: 93.5 | N178: 92.13 | O178: 71.01 | P178: 97.14 | Q178: 67.63 | R178: 160.84 | S178: 96.05 | T178: 141.91 | U178: 98.32 | V178: 102.24 | W178: 90.25 | X178: 71.4 | Y178: 100.79 | Z178: 111.72 | AA178: 123.48 | AB178: 68.99 | AC178: 127.77 | AD178: 116.63 | AE178: 57.38 | AF178: 109.09 | AG178: 70.39 | AH178: 46.045 | AI178: 87.802 | AJ178: 129.16 | AK178: 93.106
A179: KKJ | B179: 2010-06-25 | C179: 91.93835294 | D179: 104.93 | E179: 40.62 | F179: 168.13 | G179: 128.96 | H179: 97.61 | I179: 40.02 | J179: 27.33 | K179: 20.13 | L179: 89.65 | M179: 92.97 | N179: 91.07 | O179: 69.81 | P179: 96.13 | Q179: 67.76 | R179: 160.31 | S179: 95.58 | T179: 141.62 | U179: 97.14 | V179: 101.43 | W179: 90.55 | X179: 70.25 | Y179: 99.19 | Z179: 111.13 | AA179: 123.21 | AB179: 68.82 | AC179: 127.26 | AD179: 115.78 | AE179: 56.05 | AF179: 108.86 | AG179: 69.65 | AH179: 46.519 | AI179: 87.888 | AJ179: 128.359 | AK179: 91.188
A180: KKJ | B180: 2010-06-26 | C180: 91.28485294 | D180: 103.04 | E180: 40.18 | F180: 165.97 | G180: 128.5 | H180: 97.06 | I180: 39.75 | J180: 26.37 | K180: 20.15 | L180: 90.7 | M180: 92.51 | N180: 88.76 | O180: 68.56 | P180: 95.12 | Q180: 67.88 | R180: 159.89 | S180: 94.73 | T180: 141.22 | U180: 95.89 | V180: 100.79 | W180: 90.55 | X180: 69.06 | Y180: 98.56 | Z180: 110.45 | AA180: 122.85 | AB180: 68.42 | AC180: 126.86 | AD180: 114.94 | AE180: 55.27 | AF180: 108.7 | AG180: 68.9 | AH180: 46.52 | AI180: 88.272 | AJ180: 127.457 | AK180: 89.806
A181: KKJ | B181: 2010-06-27 | C181: 90.63632353 | D181: 101.1 | E181: 39.71 | F181: 163.71 | G181: 128.31 | H181: 95.97 | I181: 39.43 | J181: 25.53 | K181: 20 | L181: 91.37 | M181: 91.83 | N181: 86.56 | O181: 67.27 | P181: 94.12 | Q181: 68.19 | R181: 159.25 | S181: 93.89 | T181: 140.83 | U181: 94.5 | V181: 99.99 | W181: 90.48 | X181: 68.19 | Y181: 98.01 | Z181: 109.77 | AA181: 122.4 | AB181: 67.96 | AC181: 126.96 | AD181: 113.56 | AE181: 54.93 | AF181: 108.55 | AG181: 68.21 | AH181: 47.319 | AI181: 88.348 | AJ181: 126.656 | AK181: 88.732
A182: KKJ | B182: 2010-06-28 | C182: 90.34791176 | D182: 99.9 | E182: 39.32 | F182: 161.89 | G182: 128.5 | H182: 94.96 | I182: 39.2 | J182: 24.65 | K182: 19.97 | L182: 92.05 | M182: 91.3 | N182: 84.33 | O182: 65.93 | P182: 93.12 | Q182: 68.31 | R182: 158.83 | S182: 93.12 | T182: 140.44 | U182: 93.58 | V182: 98.64 | W182: 90.4 | X182: 67.33 | Y182: 103.95 | Z182: 109.26 | AA182: 121.95 | AB182: 67.44 | AC182: 131.47 | AD182: 112.72 | AE182: 54.5 | AF182: 108.32 | AG182: 66.6 | AH182: 47.319 | AI182: 88.31 | AJ182: 125.948 | AK182: 88.272
A183: KKJ | B183: 2010-06-29 | C183: 89.95982353 | D183: 96.67 | E183: 38.62 | F183: 160.09 | G183: 128.22 | H183: 93.19 | I183: 39.01 | J183: 23.92 | K183: 19.75 | L183: 92.51 | M183: 90.55 | N183: 82.2 | O183: 64.25 | P183: 92.44 | Q183: 68.56 | R183: 158.31 | S183: 92.28 | T183: 140.05 | U183: 92.89 | V183: 98.08 | W183: 90.25 | X183: 66.41 | Y183: 110.36 | Z183: 108.67 | AA183: 121.41 | AB183: 66.98 | AC183: 134.88 | AD183: 111.87 | AE183: 54.06 | AF183: 108.01 | AG183: 65.11 | AH183: 47.405 | AI183: 88.502 | AJ183: 125.411 | AK183: 87.716
A184: KKJ | B184: 2010-06-30 | C184: 89.45517647 | D184: 94.42 | E184: 38.32 | F184: 157.99 | G184: 128.03 | H184: 91.6 | I184: 38.74 | J184: 23.11 | K184: 19.65 | L184: 93.57 | M184: 89.88 | N184: 80.24 | O184: 63.02 | P184: 91.68 | Q184: 68.56 | R184: 157.68 | S184: 91.53 | T184: 140.63 | U184: 92.51 | V184: 97.3 | W184: 90.1 | X184: 65.69 | Y184: 110.87 | Z184: 108.08 | AA184: 120.87 | AB184: 66.41 | AC184: 136.58 | AD184: 111.03 | AE184: 53.63 | AF184: 107.55 | AG184: 63.56 | AH184: 47.534 | AI184: 89.039 | AJ184: 124.874 | AK184: 87.199
A185: KKJ | B185: 2010-07-01 | C185: 88.97358824 | D185: 92.13 | E185: 37.79 | F185: 156 | G185: 127.85 | H185: 90.92 | I185: 38.51 | J185: 22.27 | K185: 19.7 | L185: 96.2 | M185: 89.21 | N185: 77.78 | O185: 61.63 | P185: 90.93 | Q185: 68.44 | R185: 157.05 | S185: 90.93 | T185: 141.91 | U185: 92.44 | V185: 96.52 | W185: 89.95 | X185: 65.15 | Y185: 108.67 | Z185: 108.48 | AA185: 120.33 | AB185: 65.95 | AC185: 136.38 | AD185: 110.18 | AE185: 53.42 | AF185: 107.09 | AG185: 62.87 | AH185: 47.75 | AI185: 89.653 | AJ185: 124.337 | AK185: 86.682
A186: KKJ | B186: 2010-07-02 | C186: 88.41817647 | D186: 90.47 | E186: 37.5 | F186: 154.03 | G186: 127.47 | H186: 89.72 | I186: 38.24 | J186: 21.41 | K186: 19.77 | L186: 97.92 | M186: 88.25 | N186: 75.37 | O186: 60.32 | P186: 90.48 | Q186: 68.25 | R186: 156.53 | S186: 90.03 | T186: 142.8 | U186: 92.59 | V186: 95.66 | W186: 89.73 | X186: 64.73 | Y186: 106.91 | Z186: 107.73 | AA186: 119.8 | AB186: 65.78 | AC186: 135.18 | AD186: 109.26 | AE186: 53.03 | AF186: 106.94 | AG186: 62.24 | AH186: 47.77 | AI186: 89.96 | AJ186: 123.953 | AK186: 86.395
A187: KKJ | B187: 2010-07-03 | C187: 87.96361765 | D187: 89.2 | E187: 37.16 | F187: 152.69 | G187: 127.01 | H187: 89.2 | I187: 38.05 | J187: 20.76 | K187: 20.02 | L187: 99.58 | M187: 87.44 | N187: 72.88 | O187: 59.03 | P187: 90.1 | Q187: 68 | R187: 156 | S187: 89.13 | T187: 143 | U187: 92.59 | V187: 94.89 | W187: 89.51 | X187: 64.31 | Y187: 105.91 | Z187: 106.73 | AA187: 120.25 | AB187: 65.72 | AC187: 134.28 | AD187: 108.57 | AE187: 52.64 | AF187: 106.86 | AG187: 61.66 | AH187: 48.224 | AI187: 90.267 | AJ187: 122.879 | AK187: 86.223
A188: KKJ | B188: 2010-07-04 | C188: 87.42235294 | D188: 87.65 | E188: 36.8 | F188: 151.25 | G188: 126.64 | H188: 88.91 | I188: 37.76 | J188: 19.85 | K188: 19.82 | L188: 100.3 | M188: 87 | N188: 70.44 | O188: 57.87 | P188: 89.65 | Q188: 67.7 | R188: 155.8 | S188: 88.54 | T188: 143.1 | U188: 92.36 | V188: 94.12 | W188: 88.91 | X188: 63.9 | Y188: 105.17 | Z188: 105.58 | AA188: 119.89 | AB188: 65.72 | AC188: 133.58 | AD188: 107.8 | AE188: 52.21 | AF188: 106.71 | AG188: 61.09 | AH188: 48.31 | AI188: 90.42 | AJ188: 121.574 | AK188: 85.936
A189: KKJ | B189: 2010-07-05 | C189: 86.89891176 | D189: 87.65 | E189: 36.26 | F189: 149.21 | G189: 126.55 | H189: 88.24 | I189: 37.53 | J189: 19.12 | K189: 19.62 | L189: 100.7 | M189: 87 | N189: 67.94 | O189: 56.68 | P189: 89.8 | Q189: 67.39 | R189: 155.59 | S189: 87.59 | T189: 142.7 | U189: 92.13 | V189: 92.97 | W189: 88.62 | X189: 64.2 | Y189: 104.43 | Z189: 104.51 | AA189: 119.36 | AB189: 65.78 | AC189: 132.87 | AD189: 107.04 | AE189: 51.82 | AF189: 106.55 | AG189: 59.54 | AH189: 48.353 | AI189: 90.497 | AJ189: 121.191 | AK189: 85.132
A190: KKJ | B190: 2010-07-06 | C190: 86.39491176 | D190: 85.62 | E190: 35.7 | F190: 147.19 | G190: 126.27 | H190: 87.36 | I190: 37.35 | J190: 18.36 | K190: 19.54 | L190: 102.4 | M190: 86.85 | N190: 65.45 | O190: 55.55 | P190: 90.33 | Q190: 67.02 | R190: 155.59 | S190: 86.71 | T190: 142.21 | U190: 92.97 | V190: 91.68 | W190: 88.39 | X190: 64.31 | Y190: 103.86 | Z190: 103.53 | AA190: 118.82 | AB190: 65.83 | AC190: 131.97 | AD190: 106.27 | AE190: 51.52 | AF190: 106.32 | AG190: 58.03 | AH190: 48.353 | AI190: 90.574 | AJ190: 121.574 | AK190: 83.926
A191: KKJ | B191: 2010-07-07 | C191: 86.13470588 | D191: 84.46 | E191: 35.24 | F191: 145.58 | G191: 126.64 | H191: 86.78 | I191: 36.76 | J191: 17.83 | K191: 19.47 | L191: 104.02 | M191: 89.8 | N191: 62.96 | O191: 54.5 | P191: 91.45 | Q191: 66.72 | R191: 156.63 | S191: 85.84 | T191: 141.91 | U191: 93.04 | V191: 90.48 | W191: 88.25 | X191: 65.21 | Y191: 103.21 | Z191: 102.64 | AA191: 118.56 | AB191: 65.72 | AC191: 130.87 | AD191: 105.5 | AE191: 51.56 | AF191: 106.09 | AG191: 57.47 | AH191: 48.37 | AI191: 90.574 | AJ191: 121.037 | AK191: 83.409
A192: KKJ | B192: 2010-07-08 | C192: 85.88655882 | D192: 83.25 | E192: 34.63 | F192: 144.38 | G192: 127.1 | H192: 85.9 | I192: 36.19 | J192: 17.3 | K192: 19.19 | L192: 104.51 | M192: 91.38 | N192: 60.43 | O192: 53.46 | P192: 91.68 | Q192: 66.41 | R192: 156.94 | S192: 85.69 | T192: 141.91 | U192: 93.04 | V192: 89.43 | W192: 87.88 | X192: 66.53 | Y192: 102.15 | Z192: 102.48 | AA192: 120.25 | AB192: 65.95 | AC192: 129.37 | AD192: 104.97 | AE192: 51.48 | AF192: 105.79 | AG192: 56.87 | AH192: 49.043 | AI192: 90.612 | AJ192: 120.884 | AK192: 83.064
A193: KKJ | B193: 2010-07-09 | C193: 85.96708824 | D193: 81.91 | E193: 34 | F193: 143.59 | G193: 127.1 | H193: 85.04 | I193: 35.7 | J193: 16.66 | K193: 20.68 | L193: 111.21 | M193: 94.19 | N193: 58.09 | O193: 52.39 | P193: 91.45 | Q193: 66.29 | R193: 157.05 | S193: 85.69 | T193: 141.81 | U193: 92.97 | V193: 88.91 | W193: 87.51 | X193: 67.14 | Y193: 101.83 | Z193: 102.23 | AA193: 122.85 | AB193: 66.52 | AC193: 127.57 | AD193: 104.58 | AE193: 51.48 | AF193: 105.56 | AG193: 56.18 | AH193: 50.638 | AI193: 90.574 | AJ193: 120.884 | AK193: 82.605
A194: KKJ | B194: 2010-07-10 | C194: 85.79632353 | D194: 81.21 | E194: 33.49 | F194: 142.5 | G194: 127.1 | H194: 83.96 | I194: 35.14 | J194: 16.26 | K194: 21.62 | L194: 112.4 | M194: 97.69 | N194: 55.61 | O194: 51.34 | P194: 91.23 | Q194: 66.11 | R194: 156.53 | S194: 85.55 | T194: 141.52 | U194: 92.74 | V194: 88.17 | W194: 87.07 | X194: 67.57 | Y194: 101.18 | Z194: 101.91 | AA194: 123.66 | AB194: 66.52 | AC194: 126.26 | AD194: 104.58 | AE194: 51.56 | AF194: 105.48 | AG194: 55.57 | AH194: 51.716 | AI194: 90.589 | AJ194: 120.807 | AK194: 82.433
A195: KKJ | B195: 2010-07-11 | C195: 85.67911765 | D195: 80.45 | E195: 32.96 | F195: 141.22 | G195: 127.57 | H195: 82.9 | I195: 34.83 | J195: 15.81 | K195: 23.84 | L195: 113.52 | M195: 101.19 | N195: 53.21 | O195: 50.45 | P195: 90.93 | Q195: 65.75 | R195: 156 | S195: 85.69 | T195: 141.22 | U195: 92.59 | V195: 87.44 | W195: 86.64 | X195: 67.94 | Y195: 100.38 | Z195: 103.29 | AA195: 123.85 | AB195: 66.47 | AC195: 125.35 | AD195: 104.04 | AE195: 51.56 | AF195: 105.71 | AG195: 55.14 | AH195: 51.74 | AI195: 90.612 | AJ195: 120.653 | AK195: 82.145
A196: KKJ | B196: 2010-07-12 | C196: =AVERAGE(D196:IV196) -> 85.66920588 | D196: 80.8 | E196: 32.43 | F196: 140.43 | G196: 130.83 | H196: 81.91 | I196: 34.16 | J196: 15.28 | K196: 25.15 | L196: 114.13 | M196: 103.78 | N196: 50.74 | O196: 49.62 | P196: 90.63 | Q196: 65.33 | R196: 156 | S196: 85.84 | T196: 140.83 | U196: 92.51 | V196: 86.71 | W196: 86.13 | X196: 68.25 | Y196: 99.5 | Z196: 105.91 | AA196: 123.75 | AB196: 66.28 | AC196: 124.43 | AD196: 103.51 | AE196: 51.56 | AF196: 105.86 | AG196: 54.32 | AH196: 53.613 | AI196: 90.574 | AJ196: 120.5 | AK196: 81.456
A197: KKJ | B197: 2010-07-13 | C197: 85.678 | D197: 81.35 | E197: 31.95 | F197: 142.4 | G197: 134.91 | H197: 80.8 | I197: 33.36 | J197: 14.85 | K197: 25.73 | L197: 114.73 | M197: 104.77 | N197: 48.33 | O197: 48.61 | P197: 90.18 | Q197: 64.91 | R197: 156.94 | S197: 85.69 | T197: 140.44 | U197: 92.21 | V197: 87.29 | W197: 86.13 | X197: 68.5 | Y197: 98.71 | Z197: 107.15 | AA197: 123.39 | AB197: 65.95 | AC197: 123.12 | AD197: 102.89 | AE197: 51.61 | AF197: 106.79 | AG197: 53.98 | AH197: 54.174 | AI197: 90.65 | AJ197: 120.423 | AK197: 80.135
A198: =A197 -> KKJ | B198: 2010-07-14 | C198: 85.60570588 | D198: 81.14 | E198: 31.44 | F198: 143.59 | G198: 137.51 | H198: 79.76 | I198: 32.86 | J198: 14.34 | K198: 26.59 | L198: 115.34 | M198: 105.26 | N198: 47.11 | O198: 47.63 | P198: 89.51 | Q198: 64.67 | R198: 157.36 | S198: 85.55 | T198: 140.24 | U198: 91.98 | V198: 88.03 | W198: 85.84 | X198: 69.12 | Y198: 97.76 | Z198: 107.32 | AA198: 123.03 | AB198: 65.55 | AC198: 121.97 | AD198: 102.13 | AE198: 51.65 | AF198: 107.63 | AG198: 53.72 | AH198: 54.691 | AI198: 91.188 | AJ198: 120.27 | AK198: 78.815
A199: KKJ | B199: 2010-07-15 | C199: 85.60358824 | D199: 80.8 | E199: 30.91 | F199: 143.59 | G199: 138.19 | H199: 78.8 | I199: 32.23 | J199: 14.85 | K199: 28.44 | L199: 116.39 | M199: 104.36 | N199: 45.38 | O199: 46.61 | P199: 88.91 | Q199: 64.37 | R199: 157.05 | S199: 84.83 | T199: 139.85 | U199: 92.44 | V199: 89.36 | W199: 87 | X199: 69.69 | Y199: 96.82 | Z199: 107.32 | AA199: 122.85 | AB199: 65.2 | AC199: 120.82 | AD199: 101.51 | AE199: 51.56 | AF199: 111.85 | AG199: 53.42 | AH199: 55.079 | AI199: 91.801 | AJ199: 120.116 | AK199: 78.126
A200: KKJ | B200: 2010-07-16 | C200: 85.60523529 | D200: 80.1 | E200: 30.66 | F200: 143.09 | G200: 138.48 | H200: 77.84 | I200: 31.6 | J200: 17.37 | K200: 30.1 | L200: 117.8 | M200: 103.62 | N200: 43.33 | O200: 45.7 | P200: 88.39 | Q200: 64.08 | R200: 156.84 | S200: 84.61 | T200: 139.56 | U200: 92.74 | V200: 88.62 | W200: 89.28 | X200: 69.87 | Y200: 96.04 | Z200: 107.15 | AA200: 122.76 | AB200: 65.2 | AC200: 119.82 | AD200: 100.97 | AE200: 51.48 | AF200: 114.84 | AG200: 53.03 | AH200: 55.295 | AI200: 92.569 | AJ200: 119.963 | AK200: 77.781
... 169 more rows

Sheet EL_Area_Vol
A1: โค้งความจุ
A2: ระดับ..ม.รทก. | B2: พื้นที่ผิวน้ำ..ตร.กม. | C2: ความจุ...ล้าน ลบ.ม.
A3: 350 | B3: 0 | C3: 0
A4: 355 | B4: 0.75 | C4: 0
A5: 360 | B5: 1.8 | C5: 8
A6: 365 | B6: 3 | C6: 20.5
A7: 370 | B7: 4.5 | C7: 37.5
A8: 375 | B8: 6 | C8: 58.2
A9: 380 | B9: 8 | C9: 88
A10: 385 | B10: 10.25 | C10: 127
A11: 390 | B11: 13.05 | C11: 177
A12: 395 | B12: 16.4 | C12: 248
A13: 400 | B13: 19.85 | C13: 325
A14: 405 | B14: 23.5 | C14: 397.5

Sheet หา NRI
A1: Simulation Storage of Sirikit Dam | D1: 1 | E1: 2 | F1: 3 | G1: 4 | H1: 5 | I1: 6 | J1: 7 | K1: 8 | L1: 9 | M1: 10 | N1: 11 | O1: 12 | P1: 13 | Q1: 14 | R1: 15 | S1: 16 | T1: 17 | U1: 18 | V1: 19 | W1: 20 | X1: 21 | Y1: 22 | Z1: 23 | AA1: 24 | AB1: 25 | AC1: 26 | AD1: 27 | AE1: 28 | AF1: 29 | AG1: 30 | AH1: 31 | AI1: 32 | AJ1: 33 | AK1: 34 | AL1: 35 | AM1: 36 | AN1: 37 | AO1: 38 | AP1: 39 | AQ1: 40 | AR1: 41 | AS1: 42 | AT1: 43 | AU1: 44 | AV1: 45 | AW1: 46 | AX1: 47 | AY1: 48 | AZ1: 49 | BA1: 50
C2: NRI | D2: =D3+543 -> 2529 | E2: 2530 | F2: 2531 | G2: 2532 | H2: 2533 | I2: 2534 | J2: 2535 | K2: 2536 | L2: 2537 | M2: 2538 | N2: 2539 | O2: 2540 | P2: 2541 | Q2: 2542 | R2: 2543 | S2: 2544 | T2: 2545 | U2: 2546 | V2: 2547 | W2: 2548 | X2: 2549 | Y2: 2550 | Z2: 2551 | AA2: 2552 | AB2: 2553 | AC2: 2554 | AD2: 2555 | AE2: 2556 | AF2: 2557 | AG2: 2558 | AH2: 2559 | AI2: 2560 | AJ2: 2561
A3: Item | B3: เดือน | C3: Average | D3: ='Monthly Storage'!D3 -> 1986 | E3: =D3+1 -> 1987 | F3: 1988 | G3: 1989 | H3: 1990 | I3: 1991 | J3: =I3+1 -> 1992 | K3: =J3+1 -> 1993 | L3: =K3+1 -> 1994 | M3: 1995 | N3: =M3+1 -> 1996 | O3: =N3+1 -> 1997 | P3: =O3+1 -> 1998 | Q3: =P3+1 -> 1999 | R3: =Q3+1 -> 2000 | S3: =R3+1 -> 2001 | T3: =S3+1 -> 2002 | U3: =T3+1 -> 2003 | V3: =U3+1 -> 2004 | W3: =V3+1 -> 2005 | X3: =W3+1 -> 2006 | Y3: =X3+1 -> 2007 | Z3: =Y3+1 -> 2008 | AA3: =Z3+1 -> 2009 | AB3: =AA3+1 -> 2010 | AC3: =AB3+1 -> 2011 | AD3: =AC3+1 -> 2012 | AE3: =AD3+1 -> 2013 | AF3: =AE3+1 -> 2014 | AG3: =AF3+1 -> 2015 | AH3: =AG3+1 -> 2016 | AI3: =AH3+1 -> 2017 | AJ3: =AI3+1 -> 2018
A4: หา NRI | B4: ม.ค. | C4: =AVERAGE(OFFSET(D3,1,0,1,$D$58)) -> -14.03133333 | D4: =IF(D1<=$D$58,'Monthly Storage'!D35-'Monthly Storage'!D4,"") -> -7.47 | E4: =IF(E1<=$D$58,'Monthly Storage'!E35-'Monthly Storage'!E4,"") -> -4.07 | F4: =IF(F1<=$D$58,'Monthly Storage'!F35-'Monthly Storage'!F4,"") -> -21.17 | G4: =IF(G1<=$D$58,'Monthly Storage'!G35-'Monthly Storage'!G4,"") -> -19.38 | H4: =IF(H1<=$D$58,'Monthly Storage'!H35-'Monthly Storage'!H4,"") -> -30.23 | I4: =IF(I1<=$D$58,'Monthly Storage'!I35-'Monthly Storage'!I4,"") -> -23.71 | J4: =IF(J1<=$D$58,'Monthly Storage'!J35-'Monthly Storage'!J4,"") -> -17.65 | K4: =IF(K1<=$D$58,'Monthly Storage'!K35-'Monthly Storage'!K4,"") -> -2.19 | L4: =IF(L1<=$D$58,'Monthly Storage'!L35-'Monthly Storage'!L4,"") -> -18.96 | M4: =IF(M1<=$D$58,'Monthly Storage'!M35-'Monthly Storage'!M4,"") -> -21.51 | N4: =IF(N1<=$D$58,'Monthly Storage'!N35-'Monthly Storage'!N4,"") -> -16.27 | O4: =IF(O1<=$D$58,'Monthly Storage'!O35-'Monthly Storage'!O4,"") -> -4.48 | P4: =IF(P1<=$D$58,'Monthly Storage'!P35-'Monthly Storage'!P4,"") -> -16.07 | Q4: =IF(Q1<=$D$58,'Monthly Storage'!Q35-'Monthly Storage'!Q4,"") -> -7.12 | R4: =IF(R1<=$D$58,'Monthly Storage'!R35-'Monthly Storage'!R4,"") -> -6.84 | S4: =IF(S1<=$D$58,'Monthly Storage'!S35-'Monthly Storage'!S4,"") -> -15.94 | T4: =IF(T1<=$D$58,'Monthly Storage'!T35-'Monthly Storage'!T4,"") -> -17.54 | U4: =IF(U1<=$D$58,'Monthly Storage'!U35-'Monthly Storage'!U4,"") -> -22.27 | V4: =IF(V1<=$D$58,'Monthly Storage'!V35-'Monthly Storage'!V4,"") -> -21.73 | W4: =IF(W1<=$D$58,'Monthly Storage'!W35-'Monthly Storage'!W4,"") -> -15.19 | X4: =IF(X1<=$D$58,'Monthly Storage'!X35-'Monthly Storage'!X4,"") -> -14.21 | Y4: =IF(Y1<=$D$58,'Monthly Storage'!Y35-'Monthly Storage'!Y4,"") -> -11.54 | Z4: =IF(Z1<=$D$58,'Monthly Storage'!Z35-'Monthly Storage'!Z4,"") -> -19.68 | AA4: =IF(AA1<=$D$58,'Monthly Storage'!AA35-'Monthly Storage'!AA4,"") -> -13.35 | AB4: =IF(AB1<=$D$58,'Monthly Storage'!AB35-'Monthly Storage'!AB4,"") -> -7.53 | AC4: =IF(AC1<=$D$58,'Monthly Storage'!AC35-'Monthly Storage'!AC4,"") -> -11.14 | AD4: =IF(AD1<=$D$58,'Monthly Storage'!AD35-'Monthly Storage'!AD4,"") -> -16.3 | AE4: =IF(AE1<=$D$58,'Monthly Storage'!AE35-'Monthly Storage'!AE4,"") -> -17.06 | AF4: =IF(AF1<=$D$58,'Monthly Storage'!AF35-'Monthly Storage'!AF4,"") -> -15.62 | AG4: =IF(AG1<=$D$58,'Monthly Storage'!AG35-'Monthly Storage'!AG4,"") -> -7.23 | AH4: =IF(AH1<=$D$58,'Monthly Storage'!AH35-'Monthly Storage'!AH4,"") -> -9.648 | AI4: =IF(AI1<=$D$58,'Monthly Storage'!AI35-'Monthly Storage'!AI4,"") -> -2.903 | AJ4: =IF(AJ1<=$D$58,'Monthly Storage'!AJ35-'Monthly Storage'!AJ4,"") -> -7.033 | AK4: =IF(AK1<=$D$58,'Monthly Storage'!AK35-'Monthly Storage'!AK4,"") ->  | AL4: =IF(AL1<=$D$58,'Monthly Storage'!AL35-'Monthly Storage'!AL4,"") ->  | AM4: =IF(AM1<=$D$58,'Monthly Storage'!AM35-'Monthly Storage'!AM4,"") ->  | AN4: =IF(AN1<=$D$58,'Monthly Storage'!AN35-'Monthly Storage'!AN4,"") ->  | AO4: =IF(AO1<=$D$58,'Monthly Storage'!AO35-'Monthly Storage'!AO4,"") ->  | AP4: =IF(AP1<=$D$58,'Monthly Storage'!AP35-'Monthly Storage'!AP4,"") ->  | AQ4: =IF(AQ1<=$D$58,'Monthly Storage'!AQ35-'Monthly Storage'!AQ4,"") ->  | AR4: =IF(AR1<=$D$58,'Monthly Storage'!AR35-'Monthly Storage'!AR4,"") ->  | AS4: =IF(AS1<=$D$58,'Monthly Storage'!AS35-'Monthly Storage'!AS4,"") ->  | AT4: =IF(AT1<=$D$58,'Monthly Storage'!AT35-'Monthly Storage'!AT4,"") ->  | AU4: =IF(AU1<=$D$58,'Monthly Storage'!AU35-'Monthly Storage'!AU4,"") ->  | AV4: =IF(AV1<=$D$58,'Monthly Storage'!AV35-'Monthly Storage'!AV4,"") ->  | AW4: =IF(AW1<=$D$58,'Monthly Storage'!AW35-'Monthly Storage'!AW4,"") ->  | AX4: =IF(AX1<=$D$58,'Monthly Storage'!AX35-'Monthly Storage'!AX4,"") ->  | AY4: =IF(AY1<=$D$58,'Monthly Storage'!AY35-'Monthly Storage'!AY4,"") ->  | AZ4: =IF(AZ1<=$D$58,'Monthly Storage'!AZ35-'Monthly Storage'!AZ4,"") ->  | BA4: =IF(BA1<=$D$58,'Monthly Storage'!BA35-'Monthly Storage'!BA4,"") -> 
B5: ก.พ. | C5: -22.13275758 | D5: =IF(D1<=$D$58,'Monthly Storage'!D63-'Monthly Storage'!D35,"") -> -15.23 | E5: =IF(E1<=$D$58,'Monthly Storage'!E63-'Monthly Storage'!E35,"") -> -17.32 | F5: =IF(F1<=$D$58,'Monthly Storage'!F63-'Monthly Storage'!F35,"") -> -26.4 | G5: =IF(G1<=$D$58,'Monthly Storage'!G63-'Monthly Storage'!G35,"") -> -16.22 | H5: =IF(H1<=$D$58,'Monthly Storage'!H63-'Monthly Storage'!H35,"") -> -22.1 | I5: =IF(I1<=$D$58,'Monthly Storage'!I63-'Monthly Storage'!I35,"") -> -27.99 | J5: =IF(J1<=$D$58,'Monthly Storage'!J63-'Monthly Storage'!J35,"") -> -22.37 | K5: =IF(K1<=$D$58,'Monthly Storage'!K63-'Monthly Storage'!K35,"") -> -18.22 | L5: =IF(L1<=$D$58,'Monthly Storage'!L63-'Monthly Storage'!L35,"") -> -17.36 | M5: =IF(M1<=$D$58,'Monthly Storage'!M63-'Monthly Storage'!M35,"") -> -5.8 | N5: =IF(N1<=$D$58,'Monthly Storage'!N63-'Monthly Storage'!N35,"") -> -36.88 | O5: =IF(O1<=$D$58,'Monthly Storage'!O63-'Monthly Storage'!O35,"") -> -25.1 | P5: =IF(P1<=$D$58,'Monthly Storage'!P63-'Monthly Storage'!P35,"") -> -24.67 | Q5: =IF(Q1<=$D$58,'Monthly Storage'!Q63-'Monthly Storage'!Q35,"") -> -14.93 | R5: =IF(R1<=$D$58,'Monthly Storage'!R63-'Monthly Storage'!R35,"") -> -14.13 | S5: =IF(S1<=$D$58,'Monthly Storage'!S63-'Monthly Storage'!S35,"") -> -18.2 | T5: =IF(T1<=$D$58,'Monthly Storage'!T63-'Monthly Storage'!T35,"") -> -17.87 | U5: =IF(U1<=$D$58,'Monthly Storage'!U63-'Monthly Storage'!U35,"") -> -22.75 | V5: =IF(V1<=$D$58,'Monthly Storage'!V63-'Monthly Storage'!V35,"") -> -30.33 | W5: =IF(W1<=$D$58,'Monthly Storage'!W63-'Monthly Storage'!W35,"") -> -40.36 | X5: =IF(X1<=$D$58,'Monthly Storage'!X63-'Monthly Storage'!X35,"") -> -28.13 | Y5: =IF(Y1<=$D$58,'Monthly Storage'!Y63-'Monthly Storage'!Y35,"") -> -22.88 | Z5: =IF(Z1<=$D$58,'Monthly Storage'!Z63-'Monthly Storage'!Z35,"") -> -23.74 | AA5: =IF(AA1<=$D$58,'Monthly Storage'!AA63-'Monthly Storage'!AA35,"") -> -26.44 | AB5: =IF(AB1<=$D$58,'Monthly Storage'!AB63-'Monthly Storage'!AB35,"") -> -22.15 | AC5: =IF(AC1<=$D$58,'Monthly Storage'!AC63-'Monthly Storage'!AC35,"") -> -20.36 | AD5: =IF(AD1<=$D$58,'Monthly Storage'!AD63-'Monthly Storage'!AD35,"") -> -39.89 | AE5: =IF(AE1<=$D$58,'Monthly Storage'!AE63-'Monthly Storage'!AE35,"") -> -16.23 | AF5: =IF(AF1<=$D$58,'Monthly Storage'!AF63-'Monthly Storage'!AF35,"") -> -29.16 | AG5: =IF(AG1<=$D$58,'Monthly Storage'!AG63-'Monthly Storage'!AG35,"") -> -20.15 | AH5: =IF(AH1<=$D$58,'Monthly Storage'!AH63-'Monthly Storage'!AH35,"") -> -7.153 | AI5: =IF(AI1<=$D$58,'Monthly Storage'!AI63-'Monthly Storage'!AI35,"") -> -18.392 | AJ5: =IF(AJ1<=$D$58,'Monthly Storage'!AJ63-'Monthly Storage'!AJ35,"") -> -21.476 | AK5: =IF(AK1<=$D$58,'Monthly Storage'!AK63-'Monthly Storage'!AK35,"") ->  | AL5: =IF(AL1<=$D$58,'Monthly Storage'!AL63-'Monthly Storage'!AL35,"") ->  | AM5: =IF(AM1<=$D$58,'Monthly Storage'!AM63-'Monthly Storage'!AM35,"") ->  | AN5: =IF(AN1<=$D$58,'Monthly Storage'!AN63-'Monthly Storage'!AN35,"") ->  | AO5: =IF(AO1<=$D$58,'Monthly Storage'!AO63-'Monthly Storage'!AO35,"") ->  | AP5: =IF(AP1<=$D$58,'Monthly Storage'!AP63-'Monthly Storage'!AP35,"") ->  | AQ5: =IF(AQ1<=$D$58,'Monthly Storage'!AQ63-'Monthly Storage'!AQ35,"") ->  | AR5: =IF(AR1<=$D$58,'Monthly Storage'!AR63-'Monthly Storage'!AR35,"") ->  | AS5: =IF(AS1<=$D$58,'Monthly Storage'!AS63-'Monthly Storage'!AS35,"") ->  | AT5: =IF(AT1<=$D$58,'Monthly Storage'!AT63-'Monthly Storage'!AT35,"") ->  | AU5: =IF(AU1<=$D$58,'Monthly Storage'!AU63-'Monthly Storage'!AU35,"") ->  | AV5: =IF(AV1<=$D$58,'Monthly Storage'!AV63-'Monthly Storage'!AV35,"") ->  | AW5: =IF(AW1<=$D$58,'Monthly Storage'!AW63-'Monthly Storage'!AW35,"") ->  | AX5: =IF(AX1<=$D$58,'Monthly Storage'!AX63-'Monthly Storage'!AX35,"") ->  | AY5: =IF(AY1<=$D$58,'Monthly Storage'!AY63-'Monthly Storage'!AY35,"") ->  | AZ5: =IF(AZ1<=$D$58,'Monthly Storage'!AZ63-'Monthly Storage'!AZ35,"") ->  | BA5: =IF(BA1<=$D$58,'Monthly Storage'!BA63-'Monthly Storage'!BA35,"") -> 
B6: มี.ค. | C6: -33.24260606 | D6: =IF(D1<=$D$58,'Monthly Storage'!D94-'Monthly Storage'!D63,"") -> -45.24 | E6: =IF(E1<=$D$58,'Monthly Storage'!E94-'Monthly Storage'!E63,"") -> -32.4 | F6: =IF(F1<=$D$58,'Monthly Storage'!F94-'Monthly Storage'!F63,"") -> -38.9 | G6: =IF(G1<=$D$58,'Monthly Storage'!G94-'Monthly Storage'!G63,"") -> -26.47 | H6: =IF(H1<=$D$58,'Monthly Storage'!H94-'Monthly Storage'!H63,"") -> -27.75 | I6: =IF(I1<=$D$58,'Monthly Storage'!I94-'Monthly Storage'!I63,"") -> -35.66 | J6: =IF(J1<=$D$58,'Monthly Storage'!J94-'Monthly Storage'!J63,"") -> -37.29 | K6: =IF(K1<=$D$58,'Monthly Storage'!K94-'Monthly Storage'!K63,"") -> -27.09 | L6: =IF(L1<=$D$58,'Monthly Storage'!L94-'Monthly Storage'!L63,"") -> -1.43 | M6: =IF(M1<=$D$58,'Monthly Storage'!M94-'Monthly Storage'!M63,"") -> -18.14 | N6: =IF(N1<=$D$58,'Monthly Storage'!N94-'Monthly Storage'!N63,"") -> -33.45 | O6: =IF(O1<=$D$58,'Monthly Storage'!O94-'Monthly Storage'!O63,"") -> -19.46 | P6: =IF(P1<=$D$58,'Monthly Storage'!P94-'Monthly Storage'!P63,"") -> -40.12 | Q6: =IF(Q1<=$D$58,'Monthly Storage'!Q94-'Monthly Storage'!Q63,"") -> -19.02 | R6: =IF(R1<=$D$58,'Monthly Storage'!R94-'Monthly Storage'!R63,"") -> -23.44 | S6: =IF(S1<=$D$58,'Monthly Storage'!S94-'Monthly Storage'!S63,"") -> -17.4 | T6: =IF(T1<=$D$58,'Monthly Storage'!T94-'Monthly Storage'!T63,"") -> -37.02 | U6: =IF(U1<=$D$58,'Monthly Storage'!U94-'Monthly Storage'!U63,"") -> -32.73 | V6: =IF(V1<=$D$58,'Monthly Storage'!V94-'Monthly Storage'!V63,"") -> -32.11 | W6: =IF(W1<=$D$58,'Monthly Storage'!W94-'Monthly Storage'!W63,"") -> -56.91 | X6: =IF(X1<=$D$58,'Monthly Storage'!X94-'Monthly Storage'!X63,"") -> -53.59 | Y6: =IF(Y1<=$D$58,'Monthly Storage'!Y94-'Monthly Storage'!Y63,"") -> -42.08 | Z6: =IF(Z1<=$D$58,'Monthly Storage'!Z94-'Monthly Storage'!Z63,"") -> -42.58 | AA6: =IF(AA1<=$D$58,'Monthly Storage'!AA94-'Monthly Storage'!AA63,"") -> -55.93 | AB6: =IF(AB1<=$D$58,'Monthly Storage'!AB94-'Monthly Storage'!AB63,"") -> -42.11 | AC6: =IF(AC1<=$D$58,'Monthly Storage'!AC94-'Monthly Storage'!AC63,"") -> -39.17 | AD6: =IF(AD1<=$D$58,'Monthly Storage'!AD94-'Monthly Storage'!AD63,"") -> -45.72 | AE6: =IF(AE1<=$D$58,'Monthly Storage'!AE94-'Monthly Storage'!AE63,"") -> -25.69 | AF6: =IF(AF1<=$D$58,'Monthly Storage'!AF94-'Monthly Storage'!AF63,"") -> -37.14 | AG6: =IF(AG1<=$D$58,'Monthly Storage'!AG94-'Monthly Storage'!AG63,"") -> -27.75 | AH6: =IF(AH1<=$D$58,'Monthly Storage'!AH94-'Monthly Storage'!AH63,"") -> -9.14 | AI6: =IF(AI1<=$D$58,'Monthly Storage'!AI94-'Monthly Storage'!AI63,"") -> -36.954 | AJ6: =IF(AJ1<=$D$58,'Monthly Storage'!AJ94-'Monthly Storage'!AJ63,"") -> -37.122 | AK6: =IF(AK1<=$D$58,'Monthly Storage'!AK94-'Monthly Storage'!AK63,"") ->  | AL6: =IF(AL1<=$D$58,'Monthly Storage'!AL94-'Monthly Storage'!AL63,"") ->  | AM6: =IF(AM1<=$D$58,'Monthly Storage'!AM94-'Monthly Storage'!AM63,"") ->  | AN6: =IF(AN1<=$D$58,'Monthly Storage'!AN94-'Monthly Storage'!AN63,"") ->  | AO6: =IF(AO1<=$D$58,'Monthly Storage'!AO94-'Monthly Storage'!AO63,"") ->  | AP6: =IF(AP1<=$D$58,'Monthly Storage'!AP94-'Monthly Storage'!AP63,"") ->  | AQ6: =IF(AQ1<=$D$58,'Monthly Storage'!AQ94-'Monthly Storage'!AQ63,"") ->  | AR6: =IF(AR1<=$D$58,'Monthly Storage'!AR94-'Monthly Storage'!AR63,"") ->  | AS6: =IF(AS1<=$D$58,'Monthly Storage'!AS94-'Monthly Storage'!AS63,"") ->  | AT6: =IF(AT1<=$D$58,'Monthly Storage'!AT94-'Monthly Storage'!AT63,"") ->  | AU6: =IF(AU1<=$D$58,'Monthly Storage'!AU94-'Monthly Storage'!AU63,"") ->  | AV6: =IF(AV1<=$D$58,'Monthly Storage'!AV94-'Monthly Storage'!AV63,"") ->  | AW6: =IF(AW1<=$D$58,'Monthly Storage'!AW94-'Monthly Storage'!AW63,"") ->  | AX6: =IF(AX1<=$D$58,'Monthly Storage'!AX94-'Monthly Storage'!AX63,"") ->  | AY6: =IF(AY1<=$D$58,'Monthly Storage'!AY94-'Monthly Storage'!AY63,"") ->  | AZ6: =IF(AZ1<=$D$58,'Monthly Storage'!AZ94-'Monthly Storage'!AZ63,"") ->  | BA6: =IF(BA1<=$D$58,'Monthly Storage'!BA94-'Monthly Storage'!BA63,"") -> 
B7: เม.ย. | C7: -35.16612121 | D7: =IF(D1<=$D$58,'Monthly Storage'!D124-'Monthly Storage'!D94,"") -> -29.27 | E7: =IF(E1<=$D$58,'Monthly Storage'!E124-'Monthly Storage'!E94,"") -> -23.12 | F7: =IF(F1<=$D$58,'Monthly Storage'!F124-'Monthly Storage'!F94,"") -> -20.59 | G7: =IF(G1<=$D$58,'Monthly Storage'!G124-'Monthly Storage'!G94,"") -> -27.19 | H7: =IF(H1<=$D$58,'Monthly Storage'!H124-'Monthly Storage'!H94,"") -> -52.97 | I7: =IF(I1<=$D$58,'Monthly Storage'!I124-'Monthly Storage'!I94,"") -> -15.73 | J7: =IF(J1<=$D$58,'Monthly Storage'!J124-'Monthly Storage'!J94,"") -> -43.67 | K7: =IF(K1<=$D$58,'Monthly Storage'!K124-'Monthly Storage'!K94,"") -> -28.06 | L7: =IF(L1<=$D$58,'Monthly Storage'!L124-'Monthly Storage'!L94,"") -> -3.25 | M7: =IF(M1<=$D$58,'Monthly Storage'!M124-'Monthly Storage'!M94,"") -> -27.68 | N7: =IF(N1<=$D$58,'Monthly Storage'!N124-'Monthly Storage'!N94,"") -> -56.41 | O7: =IF(O1<=$D$58,'Monthly Storage'!O124-'Monthly Storage'!O94,"") -> -31.34 | P7: =IF(P1<=$D$58,'Monthly Storage'!P124-'Monthly Storage'!P94,"") -> -31.75 | Q7: =IF(Q1<=$D$58,'Monthly Storage'!Q124-'Monthly Storage'!Q94,"") -> -12.57 | R7: =IF(R1<=$D$58,'Monthly Storage'!R124-'Monthly Storage'!R94,"") -> -38.77 | S7: =IF(S1<=$D$58,'Monthly Storage'!S124-'Monthly Storage'!S94,"") -> -36.37 | T7: =IF(T1<=$D$58,'Monthly Storage'!T124-'Monthly Storage'!T94,"") -> -46.03 | U7: =IF(U1<=$D$58,'Monthly Storage'!U124-'Monthly Storage'!U94,"") -> -42.53 | V7: =IF(V1<=$D$58,'Monthly Storage'!V124-'Monthly Storage'!V94,"") -> -31.27 | W7: =IF(W1<=$D$58,'Monthly Storage'!W124-'Monthly Storage'!W94,"") -> -48.92 | X7: =IF(X1<=$D$58,'Monthly Storage'!X124-'Monthly Storage'!X94,"") -> -42.65 | Y7: =IF(Y1<=$D$58,'Monthly Storage'!Y124-'Monthly Storage'!Y94,"") -> -38.22 | Z7: =IF(Z1<=$D$58,'Monthly Storage'!Z124-'Monthly Storage'!Z94,"") -> -42.93 | AA7: =IF(AA1<=$D$58,'Monthly Storage'!AA124-'Monthly Storage'!AA94,"") -> -61.46 | AB7: =IF(AB1<=$D$58,'Monthly Storage'!AB124-'Monthly Storage'!AB94,"") -> -47.57 | AC7: =IF(AC1<=$D$58,'Monthly Storage'!AC124-'Monthly Storage'!AC94,"") -> -35.54 | AD7: =IF(AD1<=$D$58,'Monthly Storage'!AD124-'Monthly Storage'!AD94,"") -> -40.87 | AE7: =IF(AE1<=$D$58,'Monthly Storage'!AE124-'Monthly Storage'!AE94,"") -> -44.36 | AF7: =IF(AF1<=$D$58,'Monthly Storage'!AF124-'Monthly Storage'!AF94,"") -> -40.27 | AG7: =IF(AG1<=$D$58,'Monthly Storage'!AG124-'Monthly Storage'!AG94,"") -> -27.53 | AH7: =IF(AH1<=$D$58,'Monthly Storage'!AH124-'Monthly Storage'!AH94,"") -> -16.89 | AI7: =IF(AI1<=$D$58,'Monthly Storage'!AI124-'Monthly Storage'!AI94,"") -> -34.008 | AJ7: =IF(AJ1<=$D$58,'Monthly Storage'!AJ124-'Monthly Storage'!AJ94,"") -> -40.694 | AK7: =IF(AK1<=$D$58,'Monthly Storage'!AK124-'Monthly Storage'!AK94,"") ->  | AL7: =IF(AL1<=$D$58,'Monthly Storage'!AL124-'Monthly Storage'!AL94,"") ->  | AM7: =IF(AM1<=$D$58,'Monthly Storage'!AM124-'Monthly Storage'!AM94,"") ->  | AN7: =IF(AN1<=$D$58,'Monthly Storage'!AN124-'Monthly Storage'!AN94,"") ->  | AO7: =IF(AO1<=$D$58,'Monthly Storage'!AO124-'Monthly Storage'!AO94,"") ->  | AP7: =IF(AP1<=$D$58,'Monthly Storage'!AP124-'Monthly Storage'!AP94,"") ->  | AQ7: =IF(AQ1<=$D$58,'Monthly Storage'!AQ124-'Monthly Storage'!AQ94,"") ->  | AR7: =IF(AR1<=$D$58,'Monthly Storage'!AR124-'Monthly Storage'!AR94,"") ->  | AS7: =IF(AS1<=$D$58,'Monthly Storage'!AS124-'Monthly Storage'!AS94,"") ->  | AT7: =IF(AT1<=$D$58,'Monthly Storage'!AT124-'Monthly Storage'!AT94,"") ->  | AU7: =IF(AU1<=$D$58,'Monthly Storage'!AU124-'Monthly Storage'!AU94,"") ->  | AV7: =IF(AV1<=$D$58,'Monthly Storage'!AV124-'Monthly Storage'!AV94,"") ->  | AW7: =IF(AW1<=$D$58,'Monthly Storage'!AW124-'Monthly Storage'!AW94,"") ->  | AX7: =IF(AX1<=$D$58,'Monthly Storage'!AX124-'Monthly Storage'!AX94,"") ->  | AY7: =IF(AY1<=$D$58,'Monthly Storage'!AY124-'Monthly Storage'!AY94,"") ->  | AZ7: =IF(AZ1<=$D$58,'Monthly Storage'!AZ124-'Monthly Storage'!AZ94,"") ->  | BA7: =IF(BA1<=$D$58,'Monthly Storage'!BA124-'Monthly Storage'!BA94,"") -> 
B8: พ.ค. | C8: -12.27339394 | D8: =IF(D1<=$D$58,'Monthly Storage'!D155-'Monthly Storage'!D124,"") -> -17.37 | E8: =IF(E1<=$D$58,'Monthly Storage'!E155-'Monthly Storage'!E124,"") -> -11.76 | F8: =IF(F1<=$D$58,'Monthly Storage'!F155-'Monthly Storage'!F124,"") -> 24.17 | G8: =IF(G1<=$D$58,'Monthly Storage'!G155-'Monthly Storage'!G124,"") -> -2.08 | H8: =IF(H1<=$D$58,'Monthly Storage'!H155-'Monthly Storage'!H124,"") -> -27.21 | I8: =IF(I1<=$D$58,'Monthly Storage'!I155-'Monthly Storage'!I124,"") -> -14.3 | J8: =IF(J1<=$D$58,'Monthly Storage'!J155-'Monthly Storage'!J124,"") -> -22.37 | K8: =IF(K1<=$D$58,'Monthly Storage'!K155-'Monthly Storage'!K124,"") -> -12.94 | L8: =IF(L1<=$D$58,'Monthly Storage'!L155-'Monthly Storage'!L124,"") -> 15.22 | M8: =IF(M1<=$D$58,'Monthly Storage'!M155-'Monthly Storage'!M124,"") -> -7.66 | N8: =IF(N1<=$D$58,'Monthly Storage'!N155-'Monthly Storage'!N124,"") -> -23.34 | O8: =IF(O1<=$D$58,'Monthly Storage'!O155-'Monthly Storage'!O124,"") -> -34.08 | P8: =IF(P1<=$D$58,'Monthly Storage'!P155-'Monthly Storage'!P124,"") -> -6.7 | Q8: =IF(Q1<=$D$58,'Monthly Storage'!Q155-'Monthly Storage'!Q124,"") -> 5 | R8: =IF(R1<=$D$58,'Monthly Storage'!R155-'Monthly Storage'!R124,"") -> -12.5 | S8: =IF(S1<=$D$58,'Monthly Storage'!S155-'Monthly Storage'!S124,"") -> -6.09 | T8: =IF(T1<=$D$58,'Monthly Storage'!T155-'Monthly Storage'!T124,"") -> 0.58 | U8: =IF(U1<=$D$58,'Monthly Storage'!U155-'Monthly Storage'!U124,"") -> -41.63 | V8: =IF(V1<=$D$58,'Monthly Storage'!V155-'Monthly Storage'!V124,"") -> 0.87 | W8: =IF(W1<=$D$58,'Monthly Storage'!W155-'Monthly Storage'!W124,"") -> -46.27 | X8: =IF(X1<=$D$58,'Monthly Storage'!X155-'Monthly Storage'!X124,"") -> -27.74 | Y8: =IF(Y1<=$D$58,'Monthly Storage'!Y155-'Monthly Storage'!Y124,"") -> 0.48 | Z8: =IF(Z1<=$D$58,'Monthly Storage'!Z155-'Monthly Storage'!Z124,"") -> 2.39 | AA8: =IF(AA1<=$D$58,'Monthly Storage'!AA155-'Monthly Storage'!AA124,"") -> -6.5 | AB8: =IF(AB1<=$D$58,'Monthly Storage'!AB155-'Monthly Storage'!AB124,"") -> -36.76 | AC8: =IF(AC1<=$D$58,'Monthly Storage'!AC155-'Monthly Storage'!AC124,"") -> -13.53 | AD8: =IF(AD1<=$D$58,'Monthly Storage'!AD155-'Monthly Storage'!AD124,"") -> -10.03 | AE8: =IF(AE1<=$D$58,'Monthly Storage'!AE155-'Monthly Storage'!AE124,"") -> -19.82 | AF8: =IF(AF1<=$D$58,'Monthly Storage'!AF155-'Monthly Storage'!AF124,"") -> -23.72 | AG8: =IF(AG1<=$D$58,'Monthly Storage'!AG155-'Monthly Storage'!AG124,"") -> -18.06 | AH8: =IF(AH1<=$D$58,'Monthly Storage'!AH155-'Monthly Storage'!AH124,"") -> -0.781 | AI8: =IF(AI1<=$D$58,'Monthly Storage'!AI155-'Monthly Storage'!AI124,"") -> -3.198 | AJ8: =IF(AJ1<=$D$58,'Monthly Storage'!AJ155-'Monthly Storage'!AJ124,"") -> -7.293 | AK8: =IF(AK1<=$D$58,'Monthly Storage'!AK155-'Monthly Storage'!AK124,"") ->  | AL8: =IF(AL1<=$D$58,'Monthly Storage'!AL155-'Monthly Storage'!AL124,"") ->  | AM8: =IF(AM1<=$D$58,'Monthly Storage'!AM155-'Monthly Storage'!AM124,"") ->  | AN8: =IF(AN1<=$D$58,'Monthly Storage'!AN155-'Monthly Storage'!AN124,"") ->  | AO8: =IF(AO1<=$D$58,'Monthly Storage'!AO155-'Monthly Storage'!AO124,"") ->  | AP8: =IF(AP1<=$D$58,'Monthly Storage'!AP155-'Monthly Storage'!AP124,"") ->  | AQ8: =IF(AQ1<=$D$58,'Monthly Storage'!AQ155-'Monthly Storage'!AQ124,"") ->  | AR8: =IF(AR1<=$D$58,'Monthly Storage'!AR155-'Monthly Storage'!AR124,"") ->  | AS8: =IF(AS1<=$D$58,'Monthly Storage'!AS155-'Monthly Storage'!AS124,"") ->  | AT8: =IF(AT1<=$D$58,'Monthly Storage'!AT155-'Monthly Storage'!AT124,"") ->  | AU8: =IF(AU1<=$D$58,'Monthly Storage'!AU155-'Monthly Storage'!AU124,"") ->  | AV8: =IF(AV1<=$D$58,'Monthly Storage'!AV155-'Monthly Storage'!AV124,"") ->  | AW8: =IF(AW1<=$D$58,'Monthly Storage'!AW155-'Monthly Storage'!AW124,"") ->  | AX8: =IF(AX1<=$D$58,'Monthly Storage'!AX155-'Monthly Storage'!AX124,"") ->  | AY8: =IF(AY1<=$D$58,'Monthly Storage'!AY155-'Monthly Storage'!AY124,"") ->  | AZ8: =IF(AZ1<=$D$58,'Monthly Storage'!AZ155-'Monthly Storage'!AZ124,"") ->  | BA8: =IF(BA1<=$D$58,'Monthly Storage'!BA155-'Monthly Storage'!BA124,"") -> 
B9: มิ.ย. | C9: -9.77569697 | D9: =IF(D1<=$D$58,'Monthly Storage'!D185-'Monthly Storage'!D155,"") -> -36.18 | E9: =IF(E1<=$D$58,'Monthly Storage'!E185-'Monthly Storage'!E155,"") -> -7.5 | F9: =IF(F1<=$D$58,'Monthly Storage'!F185-'Monthly Storage'!F155,"") -> -13.55 | G9: =IF(G1<=$D$58,'Monthly Storage'!G185-'Monthly Storage'!G155,"") -> 15.02 | H9: =IF(H1<=$D$58,'Monthly Storage'!H185-'Monthly Storage'!H155,"") -> -36 | I9: =IF(I1<=$D$58,'Monthly Storage'!I185-'Monthly Storage'!I155,"") -> 0.42 | J9: =IF(J1<=$D$58,'Monthly Storage'!J185-'Monthly Storage'!J155,"") -> -16.7 | K9: =IF(K1<=$D$58,'Monthly Storage'!K185-'Monthly Storage'!K155,"") -> -9.42 | L9: =IF(L1<=$D$58,'Monthly Storage'!L185-'Monthly Storage'!L155,"") -> 36 | M9: =IF(M1<=$D$58,'Monthly Storage'!M185-'Monthly Storage'!M155,"") -> -13.83 | N9: =IF(N1<=$D$58,'Monthly Storage'!N185-'Monthly Storage'!N155,"") -> -28.22 | O9: =IF(O1<=$D$58,'Monthly Storage'!O185-'Monthly Storage'!O155,"") -> -33.26 | P9: =IF(P1<=$D$58,'Monthly Storage'!P185-'Monthly Storage'!P155,"") -> -13.92 | Q9: =IF(Q1<=$D$58,'Monthly Storage'!Q185-'Monthly Storage'!Q155,"") -> 9.41 | R9: =IF(R1<=$D$58,'Monthly Storage'!R185-'Monthly Storage'!R155,"") -> -4.96 | S9: =IF(S1<=$D$58,'Monthly Storage'!S185-'Monthly Storage'!S155,"") -> -10.9 | T9: =IF(T1<=$D$58,'Monthly Storage'!T185-'Monthly Storage'!T155,"") -> 0.79 | U9: =IF(U1<=$D$58,'Monthly Storage'!U185-'Monthly Storage'!U155,"") -> -29.11 | V9: =IF(V1<=$D$58,'Monthly Storage'!V185-'Monthly Storage'!V155,"") -> -1.49 | W9: =IF(W1<=$D$58,'Monthly Storage'!W185-'Monthly Storage'!W155,"") -> 5.48 | X9: =IF(X1<=$D$58,'Monthly Storage'!X185-'Monthly Storage'!X155,"") -> -67.1 | Y9: =IF(Y1<=$D$58,'Monthly Storage'!Y185-'Monthly Storage'!Y155,"") -> -25.77 | Z9: =IF(Z1<=$D$58,'Monthly Storage'!Z185-'Monthly Storage'!Z155,"") -> 11.88 | AA9: =IF(AA1<=$D$58,'Monthly Storage'!AA185-'Monthly Storage'!AA155,"") -> 11.26 | AB9: =IF(AB1<=$D$58,'Monthly Storage'!AB185-'Monthly Storage'!AB155,"") -> -7.75 | AC9: =IF(AC1<=$D$58,'Monthly Storage'!AC185-'Monthly Storage'!AC155,"") -> -12.92 | AD9: =IF(AD1<=$D$58,'Monthly Storage'!AD185-'Monthly Storage'!AD155,"") -> -14.89 | AE9: =IF(AE1<=$D$58,'Monthly Storage'!AE185-'Monthly Storage'!AE155,"") -> -4.22 | AF9: =IF(AF1<=$D$58,'Monthly Storage'!AF185-'Monthly Storage'!AF155,"") -> -2.38 | AG9: =IF(AG1<=$D$58,'Monthly Storage'!AG185-'Monthly Storage'!AG155,"") -> -21.02 | AH9: =IF(AH1<=$D$58,'Monthly Storage'!AH185-'Monthly Storage'!AH155,"") -> 18.212 | AI9: =IF(AI1<=$D$58,'Monthly Storage'!AI185-'Monthly Storage'!AI155,"") -> 4.579 | AJ9: =IF(AJ1<=$D$58,'Monthly Storage'!AJ185-'Monthly Storage'!AJ155,"") -> -24.559 | AK9: =IF(AK1<=$D$58,'Monthly Storage'!AK185-'Monthly Storage'!AK155,"") ->  | AL9: =IF(AL1<=$D$58,'Monthly Storage'!AL185-'Monthly Storage'!AL155,"") ->  | AM9: =IF(AM1<=$D$58,'Monthly Storage'!AM185-'Monthly Storage'!AM155,"") ->  | AN9: =IF(AN1<=$D$58,'Monthly Storage'!AN185-'Monthly Storage'!AN155,"") ->  | AO9: =IF(AO1<=$D$58,'Monthly Storage'!AO185-'Monthly Storage'!AO155,"") ->  | AP9: =IF(AP1<=$D$58,'Monthly Storage'!AP185-'Monthly Storage'!AP155,"") ->  | AQ9: =IF(AQ1<=$D$58,'Monthly Storage'!AQ185-'Monthly Storage'!AQ155,"") ->  | AR9: =IF(AR1<=$D$58,'Monthly Storage'!AR185-'Monthly Storage'!AR155,"") ->  | AS9: =IF(AS1<=$D$58,'Monthly Storage'!AS185-'Monthly Storage'!AS155,"") ->  | AT9: =IF(AT1<=$D$58,'Monthly Storage'!AT185-'Monthly Storage'!AT155,"") ->  | AU9: =IF(AU1<=$D$58,'Monthly Storage'!AU185-'Monthly Storage'!AU155,"") ->  | AV9: =IF(AV1<=$D$58,'Monthly Storage'!AV185-'Monthly Storage'!AV155,"") ->  | AW9: =IF(AW1<=$D$58,'Monthly Storage'!AW185-'Monthly Storage'!AW155,"") ->  | AX9: =IF(AX1<=$D$58,'Monthly Storage'!AX185-'Monthly Storage'!AX155,"") ->  | AY9: =IF(AY1<=$D$58,'Monthly Storage'!AY185-'Monthly Storage'!AY155,"") ->  | AZ9: =IF(AZ1<=$D$58,'Monthly Storage'!AZ185-'Monthly Storage'!AZ155,"") ->  | BA9: =IF(BA1<=$D$58,'Monthly Storage'!BA185-'Monthly Storage'!BA155,"") -> 
B10: ก.ค. | C10: 3.441727273 | D10: =IF(D1<=$D$58,'Monthly Storage'!D216-'Monthly Storage'!D185,"") -> 1.83 | E10: =IF(E1<=$D$58,'Monthly Storage'!E216-'Monthly Storage'!E185,"") -> -8.65 | F10: =IF(F1<=$D$58,'Monthly Storage'!F216-'Monthly Storage'!F185,"") -> -10.22 | G10: =IF(G1<=$D$58,'Monthly Storage'!G216-'Monthly Storage'!G185,"") -> 30.35 | H10: =IF(H1<=$D$58,'Monthly Storage'!H216-'Monthly Storage'!H185,"") -> -16.88 | I10: =IF(I1<=$D$58,'Monthly Storage'!I216-'Monthly Storage'!I185,"") -> -16.44 | J10: =IF(J1<=$D$58,'Monthly Storage'!J216-'Monthly Storage'!J185,"") -> 2.13 | K10: =IF(K1<=$D$58,'Monthly Storage'!K216-'Monthly Storage'!K185,"") -> 16.14 | L10: =IF(L1<=$D$58,'Monthly Storage'!L216-'Monthly Storage'!L185,"") -> 47.99 | M10: =IF(M1<=$D$58,'Monthly Storage'!M216-'Monthly Storage'!M185,"") -> 10.69 | N10: =IF(N1<=$D$58,'Monthly Storage'!N216-'Monthly Storage'!N185,"") -> -38.15 | O10: =IF(O1<=$D$58,'Monthly Storage'!O216-'Monthly Storage'!O185,"") -> -1.82 | P10: =IF(P1<=$D$58,'Monthly Storage'!P216-'Monthly Storage'!P185,"") -> -14.36 | Q10: =IF(Q1<=$D$58,'Monthly Storage'!Q216-'Monthly Storage'!Q185,"") -> -6.12 | R10: =IF(R1<=$D$58,'Monthly Storage'!R216-'Monthly Storage'!R185,"") -> -3.33 | S10: =IF(S1<=$D$58,'Monthly Storage'!S216-'Monthly Storage'!S185,"") -> 11.23 | T10: =IF(T1<=$D$58,'Monthly Storage'!T216-'Monthly Storage'!T185,"") -> -5.84 | U10: =IF(U1<=$D$58,'Monthly Storage'!U216-'Monthly Storage'!U185,"") -> -5.59 | V10: =IF(V1<=$D$58,'Monthly Storage'!V216-'Monthly Storage'!V185,"") -> 21.73 | W10: =IF(W1<=$D$58,'Monthly Storage'!W216-'Monthly Storage'!W185,"") -> 50.29 | X10: =IF(X1<=$D$58,'Monthly Storage'!X216-'Monthly Storage'!X185,"") -> 29.27 | Y10: =IF(Y1<=$D$58,'Monthly Storage'!Y216-'Monthly Storage'!Y185,"") -> -10.59 | Z10: =IF(Z1<=$D$58,'Monthly Storage'!Z216-'Monthly Storage'!Z185,"") -> 10.34 | AA10: =IF(AA1<=$D$58,'Monthly Storage'!AA216-'Monthly Storage'!AA185,"") -> -0.71 | AB10: =IF(AB1<=$D$58,'Monthly Storage'!AB216-'Monthly Storage'!AB185,"") -> 2.47 | AC10: =IF(AC1<=$D$58,'Monthly Storage'!AC216-'Monthly Storage'!AC185,"") -> -25.46 | AD10: =IF(AD1<=$D$58,'Monthly Storage'!AD216-'Monthly Storage'!AD185,"") -> -9.74 | AE10: =IF(AE1<=$D$58,'Monthly Storage'!AE216-'Monthly Storage'!AE185,"") -> -0.91 | AF10: =IF(AF1<=$D$58,'Monthly Storage'!AF216-'Monthly Storage'!AF185,"") -> 10.21 | AG10: =IF(AG1<=$D$58,'Monthly Storage'!AG216-'Monthly Storage'!AG185,"") -> -9.71 | AH10: =IF(AH1<=$D$58,'Monthly Storage'!AH216-'Monthly Storage'!AH185,"") -> 12.803 | AI10: =IF(AI1<=$D$58,'Monthly Storage'!AI216-'Monthly Storage'!AI185,"") -> 37.103 | AJ10: =IF(AJ1<=$D$58,'Monthly Storage'!AJ216-'Monthly Storage'!AJ185,"") -> 3.521 | AK10: =IF(AK1<=$D$58,'Monthly Storage'!AK216-'Monthly Storage'!AK185,"") ->  | AL10: =IF(AL1<=$D$58,'Monthly Storage'!AL216-'Monthly Storage'!AL185,"") ->  | AM10: =IF(AM1<=$D$58,'Monthly Storage'!AM216-'Monthly Storage'!AM185,"") ->  | AN10: =IF(AN1<=$D$58,'Monthly Storage'!AN216-'Monthly Storage'!AN185,"") ->  | AO10: =IF(AO1<=$D$58,'Monthly Storage'!AO216-'Monthly Storage'!AO185,"") ->  | AP10: =IF(AP1<=$D$58,'Monthly Storage'!AP216-'Monthly Storage'!AP185,"") ->  | AQ10: =IF(AQ1<=$D$58,'Monthly Storage'!AQ216-'Monthly Storage'!AQ185,"") ->  | AR10: =IF(AR1<=$D$58,'Monthly Storage'!AR216-'Monthly Storage'!AR185,"") ->  | AS10: =IF(AS1<=$D$58,'Monthly Storage'!AS216-'Monthly Storage'!AS185,"") ->  | AT10: =IF(AT1<=$D$58,'Monthly Storage'!AT216-'Monthly Storage'!AT185,"") ->  | AU10: =IF(AU1<=$D$58,'Monthly Storage'!AU216-'Monthly Storage'!AU185,"") ->  | AV10: =IF(AV1<=$D$58,'Monthly Storage'!AV216-'Monthly Storage'!AV185,"") ->  | AW10: =IF(AW1<=$D$58,'Monthly Storage'!AW216-'Monthly Storage'!AW185,"") ->  | AX10: =IF(AX1<=$D$58,'Monthly Storage'!AX216-'Monthly Storage'!AX185,"") ->  | AY10: =IF(AY1<=$D$58,'Monthly Storage'!AY216-'Monthly Storage'!AY185,"") ->  | AZ10: =IF(AZ1<=$D$58,'Monthly Storage'!AZ216-'Monthly Storage'!AZ185,"") ->  | BA10: =IF(BA1<=$D$58,'Monthly Storage'!BA216-'Monthly Storage'!BA185,"") -> 
B11: ส.ค. | C11: 44.44012121 | D11: =IF(D1<=$D$58,'Monthly Storage'!D247-'Monthly Storage'!D216,"") -> 22.17 | E11: =IF(E1<=$D$58,'Monthly Storage'!E247-'Monthly Storage'!E216,"") -> 123.55 | F11: =IF(F1<=$D$58,'Monthly Storage'!F247-'Monthly Storage'!F216,"") -> 22.57 | G11: =IF(G1<=$D$58,'Monthly Storage'!G247-'Monthly Storage'!G216,"") -> 26.86 | H11: =IF(H1<=$D$58,'Monthly Storage'!H247-'Monthly Storage'!H216,"") -> 27.79 | I11: =IF(I1<=$D$58,'Monthly Storage'!I247-'Monthly Storage'!I216,"") -> 54.22 | J11: =IF(J1<=$D$58,'Monthly Storage'!J247-'Monthly Storage'!J216,"") -> 6.11 | K11: =IF(K1<=$D$58,'Monthly Storage'!K247-'Monthly Storage'!K216,"") -> 2.97 | L11: =IF(L1<=$D$58,'Monthly Storage'!L247-'Monthly Storage'!L216,"") -> 154.98 | M11: =IF(M1<=$D$58,'Monthly Storage'!M247-'Monthly Storage'!M216,"") -> 119.3 | N11: =IF(N1<=$D$58,'Monthly Storage'!N247-'Monthly Storage'!N216,"") -> 75.72 | O11: =IF(O1<=$D$58,'Monthly Storage'!O247-'Monthly Storage'!O216,"") -> 29.7 | P11: =IF(P1<=$D$58,'Monthly Storage'!P247-'Monthly Storage'!P216,"") -> -2.39 | Q11: =IF(Q1<=$D$58,'Monthly Storage'!Q247-'Monthly Storage'!Q216,"") -> 52.85 | R11: =IF(R1<=$D$58,'Monthly Storage'!R247-'Monthly Storage'!R216,"") -> -8.43 | S11: =IF(S1<=$D$58,'Monthly Storage'!S247-'Monthly Storage'!S216,"") -> 96.86 | T11: =IF(T1<=$D$58,'Monthly Storage'!T247-'Monthly Storage'!T216,"") -> 24.56 | U11: =IF(U1<=$D$58,'Monthly Storage'!U247-'Monthly Storage'!U216,"") -> 31.84 | V11: =IF(V1<=$D$58,'Monthly Storage'!V247-'Monthly Storage'!V216,"") -> 45.68 | W11: =IF(W1<=$D$58,'Monthly Storage'!W247-'Monthly Storage'!W216,"") -> 72.34 | X11: =IF(X1<=$D$58,'Monthly Storage'!X247-'Monthly Storage'!X216,"") -> 40.49 | Y11: =IF(Y1<=$D$58,'Monthly Storage'!Y247-'Monthly Storage'!Y216,"") -> 41.77 | Z11: =IF(Z1<=$D$58,'Monthly Storage'!Z247-'Monthly Storage'!Z216,"") -> 21.04 | AA11: =IF(AA1<=$D$58,'Monthly Storage'!AA247-'Monthly Storage'!AA216,"") -> 16.37 | AB11: =IF(AB1<=$D$58,'Monthly Storage'!AB247-'Monthly Storage'!AB216,"") -> 109.41 | AC11: =IF(AC1<=$D$58,'Monthly Storage'!AC247-'Monthly Storage'!AC216,"") -> 106.27 | AD11: =IF(AD1<=$D$58,'Monthly Storage'!AD247-'Monthly Storage'!AD216,"") -> 4.76 | AE11: =IF(AE1<=$D$58,'Monthly Storage'!AE247-'Monthly Storage'!AE216,"") -> 40.39 | AF11: =IF(AF1<=$D$58,'Monthly Storage'!AF247-'Monthly Storage'!AF216,"") -> 18.89 | AG11: =IF(AG1<=$D$58,'Monthly Storage'!AG247-'Monthly Storage'!AG216,"") -> 9.08 | AH11: =IF(AH1<=$D$58,'Monthly Storage'!AH247-'Monthly Storage'!AH216,"") -> 31.018 | AI11: =IF(AI1<=$D$58,'Monthly Storage'!AI247-'Monthly Storage'!AI216,"") -> 27.95 | AJ11: =IF(AJ1<=$D$58,'Monthly Storage'!AJ247-'Monthly Storage'!AJ216,"") -> 19.836 | AK11: =IF(AK1<=$D$58,'Monthly Storage'!AK247-'Monthly Storage'!AK216,"") ->  | AL11: =IF(AL1<=$D$58,'Monthly Storage'!AL247-'Monthly Storage'!AL216,"") ->  | AM11: =IF(AM1<=$D$58,'Monthly Storage'!AM247-'Monthly Storage'!AM216,"") ->  | AN11: =IF(AN1<=$D$58,'Monthly Storage'!AN247-'Monthly Storage'!AN216,"") ->  | AO11: =IF(AO1<=$D$58,'Monthly Storage'!AO247-'Monthly Storage'!AO216,"") ->  | AP11: =IF(AP1<=$D$58,'Monthly Storage'!AP247-'Monthly Storage'!AP216,"") ->  | AQ11: =IF(AQ1<=$D$58,'Monthly Storage'!AQ247-'Monthly Storage'!AQ216,"") ->  | AR11: =IF(AR1<=$D$58,'Monthly Storage'!AR247-'Monthly Storage'!AR216,"") ->  | AS11: =IF(AS1<=$D$58,'Monthly Storage'!AS247-'Monthly Storage'!AS216,"") ->  | AT11: =IF(AT1<=$D$58,'Monthly Storage'!AT247-'Monthly Storage'!AT216,"") ->  | AU11: =IF(AU1<=$D$58,'Monthly Storage'!AU247-'Monthly Storage'!AU216,"") ->  | AV11: =IF(AV1<=$D$58,'Monthly Storage'!AV247-'Monthly Storage'!AV216,"") ->  | AW11: =IF(AW1<=$D$58,'Monthly Storage'!AW247-'Monthly Storage'!AW216,"") ->  | AX11: =IF(AX1<=$D$58,'Monthly Storage'!AX247-'Monthly Storage'!AX216,"") ->  | AY11: =IF(AY1<=$D$58,'Monthly Storage'!AY247-'Monthly Storage'!AY216,"") ->  | AZ11: =IF(AZ1<=$D$58,'Monthly Storage'!AZ247-'Monthly Storage'!AZ216,"") ->  | BA11: =IF(BA1<=$D$58,'Monthly Storage'!BA247-'Monthly Storage'!BA216,"") -> 
B12: ก.ย. | C12: 55.41915152 | D12: =IF(D1<=$D$58,'Monthly Storage'!D277-'Monthly Storage'!D247,"") -> 30.56 | E12: =IF(E1<=$D$58,'Monthly Storage'!E277-'Monthly Storage'!E247,"") -> 58.62 | F12: =IF(F1<=$D$58,'Monthly Storage'!F277-'Monthly Storage'!F247,"") -> 15.75 | G12: =IF(G1<=$D$58,'Monthly Storage'!G277-'Monthly Storage'!G247,"") -> 87.14 | H12: =IF(H1<=$D$58,'Monthly Storage'!H277-'Monthly Storage'!H247,"") -> 25.74 | I12: =IF(I1<=$D$58,'Monthly Storage'!I277-'Monthly Storage'!I247,"") -> 69.09 | J12: =IF(J1<=$D$58,'Monthly Storage'!J277-'Monthly Storage'!J247,"") -> 57.88 | K12: =IF(K1<=$D$58,'Monthly Storage'!K277-'Monthly Storage'!K247,"") -> 23.51 | L12: =IF(L1<=$D$58,'Monthly Storage'!L277-'Monthly Storage'!L247,"") -> -12.29 | M12: =IF(M1<=$D$58,'Monthly Storage'!M277-'Monthly Storage'!M247,"") -> 47.71 | N12: =IF(N1<=$D$58,'Monthly Storage'!N277-'Monthly Storage'!N247,"") -> 48.58 | O12: =IF(O1<=$D$58,'Monthly Storage'!O277-'Monthly Storage'!O247,"") -> 92.68 | P12: =IF(P1<=$D$58,'Monthly Storage'!P277-'Monthly Storage'!P247,"") -> 44.51 | Q12: =IF(Q1<=$D$58,'Monthly Storage'!Q277-'Monthly Storage'!Q247,"") -> 92.64 | R12: =IF(R1<=$D$58,'Monthly Storage'!R277-'Monthly Storage'!R247,"") -> 38.68 | S12: =IF(S1<=$D$58,'Monthly Storage'!S277-'Monthly Storage'!S247,"") -> 51.54 | T12: =IF(T1<=$D$58,'Monthly Storage'!T277-'Monthly Storage'!T247,"") -> 86.89 | U12: =IF(U1<=$D$58,'Monthly Storage'!U277-'Monthly Storage'!U247,"") -> 98.25 | V12: =IF(V1<=$D$58,'Monthly Storage'!V277-'Monthly Storage'!V247,"") -> 119.24 | W12: =IF(W1<=$D$58,'Monthly Storage'!W277-'Monthly Storage'!W247,"") -> 92.48 | X12: =IF(X1<=$D$58,'Monthly Storage'!X277-'Monthly Storage'!X247,"") -> 63.97 | Y12: =IF(Y1<=$D$58,'Monthly Storage'!Y277-'Monthly Storage'!Y247,"") -> 42.61 | Z12: =IF(Z1<=$D$58,'Monthly Storage'!Z277-'Monthly Storage'!Z247,"") -> 90.11 | AA12: =IF(AA1<=$D$58,'Monthly Storage'!AA277-'Monthly Storage'!AA247,"") -> 54.71 | AB12: =IF(AB1<=$D$58,'Monthly Storage'!AB277-'Monthly Storage'!AB247,"") -> 65.11 | AC12: =IF(AC1<=$D$58,'Monthly Storage'!AC277-'Monthly Storage'!AC247,"") -> 59.05 | AD12: =IF(AD1<=$D$58,'Monthly Storage'!AD277-'Monthly Storage'!AD247,"") -> 53.54 | AE12: =IF(AE1<=$D$58,'Monthly Storage'!AE277-'Monthly Storage'!AE247,"") -> 75.85 | AF12: =IF(AF1<=$D$58,'Monthly Storage'!AF277-'Monthly Storage'!AF247,"") -> 31.36 | AG12: =IF(AG1<=$D$58,'Monthly Storage'!AG277-'Monthly Storage'!AG247,"") -> 2.81 | AH12: =IF(AH1<=$D$58,'Monthly Storage'!AH277-'Monthly Storage'!AH247,"") -> 41.697 | AI12: =IF(AI1<=$D$58,'Monthly Storage'!AI277-'Monthly Storage'!AI247,"") -> 39.261 | AJ12: =IF(AJ1<=$D$58,'Monthly Storage'!AJ277-'Monthly Storage'!AJ247,"") -> 39.554 | AK12: =IF(AK1<=$D$58,'Monthly Storage'!AK277-'Monthly Storage'!AK247,"") ->  | AL12: =IF(AL1<=$D$58,'Monthly Storage'!AL277-'Monthly Storage'!AL247,"") ->  | AM12: =IF(AM1<=$D$58,'Monthly Storage'!AM277-'Monthly Storage'!AM247,"") ->  | AN12: =IF(AN1<=$D$58,'Monthly Storage'!AN277-'Monthly Storage'!AN247,"") ->  | AO12: =IF(AO1<=$D$58,'Monthly Storage'!AO277-'Monthly Storage'!AO247,"") ->  | AP12: =IF(AP1<=$D$58,'Monthly Storage'!AP277-'Monthly Storage'!AP247,"") ->  | AQ12: =IF(AQ1<=$D$58,'Monthly Storage'!AQ277-'Monthly Storage'!AQ247,"") ->  | AR12: =IF(AR1<=$D$58,'Monthly Storage'!AR277-'Monthly Storage'!AR247,"") ->  | AS12: =IF(AS1<=$D$58,'Monthly Storage'!AS277-'Monthly Storage'!AS247,"") ->  | AT12: =IF(AT1<=$D$58,'Monthly Storage'!AT277-'Monthly Storage'!AT247,"") ->  | AU12: =IF(AU1<=$D$58,'Monthly Storage'!AU277-'Monthly Storage'!AU247,"") ->  | AV12: =IF(AV1<=$D$58,'Monthly Storage'!AV277-'Monthly Storage'!AV247,"") ->  | AW12: =IF(AW1<=$D$58,'Monthly Storage'!AW277-'Monthly Storage'!AW247,"") ->  | AX12: =IF(AX1<=$D$58,'Monthly Storage'!AX277-'Monthly Storage'!AX247,"") ->  | AY12: =IF(AY1<=$D$58,'Monthly Storage'!AY277-'Monthly Storage'!AY247,"") ->  | AZ12: =IF(AZ1<=$D$58,'Monthly Storage'!AZ277-'Monthly Storage'!AZ247,"") ->  | BA12: =IF(BA1<=$D$58,'Monthly Storage'!BA277-'Monthly Storage'!BA247,"") -> 
B13: ต.ค. | C13: 21.04833333 | D13: =IF(D1<=$D$58,'Monthly Storage'!D308-'Monthly Storage'!D277,"") -> -12.07 | E13: =IF(E1<=$D$58,'Monthly Storage'!E308-'Monthly Storage'!E277,"") -> 15.4 | F13: =IF(F1<=$D$58,'Monthly Storage'!F308-'Monthly Storage'!F277,"") -> 25.38 | G13: =IF(G1<=$D$58,'Monthly Storage'!G308-'Monthly Storage'!G277,"") -> 28.02 | H13: =IF(H1<=$D$58,'Monthly Storage'!H308-'Monthly Storage'!H277,"") -> 17.81 | I13: =IF(I1<=$D$58,'Monthly Storage'!I308-'Monthly Storage'!I277,"") -> 23.52 | J13: =IF(J1<=$D$58,'Monthly Storage'!J308-'Monthly Storage'!J277,"") -> 16.37 | K13: =IF(K1<=$D$58,'Monthly Storage'!K308-'Monthly Storage'!K277,"") -> 22.22 | L13: =IF(L1<=$D$58,'Monthly Storage'!L308-'Monthly Storage'!L277,"") -> -19.24 | M13: =IF(M1<=$D$58,'Monthly Storage'!M308-'Monthly Storage'!M277,"") -> -2.64 | N13: =IF(N1<=$D$58,'Monthly Storage'!N308-'Monthly Storage'!N277,"") -> 22.37 | O13: =IF(O1<=$D$58,'Monthly Storage'!O308-'Monthly Storage'!O277,"") -> 40.69 | P13: =IF(P1<=$D$58,'Monthly Storage'!P308-'Monthly Storage'!P277,"") -> -7.39 | Q13: =IF(Q1<=$D$58,'Monthly Storage'!Q308-'Monthly Storage'!Q277,"") -> 36.82 | R13: =IF(R1<=$D$58,'Monthly Storage'!R308-'Monthly Storage'!R277,"") -> 13.52 | S13: =IF(S1<=$D$58,'Monthly Storage'!S308-'Monthly Storage'!S277,"") -> 21.06 | T13: =IF(T1<=$D$58,'Monthly Storage'!T308-'Monthly Storage'!T277,"") -> 19.68 | U13: =IF(U1<=$D$58,'Monthly Storage'!U308-'Monthly Storage'!U277,"") -> 6.94 | V13: =IF(V1<=$D$58,'Monthly Storage'!V308-'Monthly Storage'!V277,"") -> 10.6 | W13: =IF(W1<=$D$58,'Monthly Storage'!W308-'Monthly Storage'!W277,"") -> -2.72 | X13: =IF(X1<=$D$58,'Monthly Storage'!X308-'Monthly Storage'!X277,"") -> 53.13 | Y13: =IF(Y1<=$D$58,'Monthly Storage'!Y308-'Monthly Storage'!Y277,"") -> 34.91 | Z13: =IF(Z1<=$D$58,'Monthly Storage'!Z308-'Monthly Storage'!Z277,"") -> 38.95 | AA13: =IF(AA1<=$D$58,'Monthly Storage'!AA308-'Monthly Storage'!AA277,"") -> 37.56 | AB13: =IF(AB1<=$D$58,'Monthly Storage'!AB308-'Monthly Storage'!AB277,"") -> 36.91 | AC13: =IF(AC1<=$D$58,'Monthly Storage'!AC308-'Monthly Storage'!AC277,"") -> 0.16 | AD13: =IF(AD1<=$D$58,'Monthly Storage'!AD308-'Monthly Storage'!AD277,"") -> 10.01 | AE13: =IF(AE1<=$D$58,'Monthly Storage'!AE308-'Monthly Storage'!AE277,"") -> 52.12 | AF13: =IF(AF1<=$D$58,'Monthly Storage'!AF308-'Monthly Storage'!AF277,"") -> 9.45 | AG13: =IF(AG1<=$D$58,'Monthly Storage'!AG308-'Monthly Storage'!AG277,"") -> 4.83 | AH13: =IF(AH1<=$D$58,'Monthly Storage'!AH308-'Monthly Storage'!AH277,"") -> 24.844 | AI13: =IF(AI1<=$D$58,'Monthly Storage'!AI308-'Monthly Storage'!AI277,"") -> 58.238 | AJ13: =IF(AJ1<=$D$58,'Monthly Storage'!AJ308-'Monthly Storage'!AJ277,"") -> 57.143 | AK13: =IF(AK1<=$D$58,'Monthly Storage'!AK308-'Monthly Storage'!AK277,"") ->  | AL13: =IF(AL1<=$D$58,'Monthly Storage'!AL308-'Monthly Storage'!AL277,"") ->  | AM13: =IF(AM1<=$D$58,'Monthly Storage'!AM308-'Monthly Storage'!AM277,"") ->  | AN13: =IF(AN1<=$D$58,'Monthly Storage'!AN308-'Monthly Storage'!AN277,"") ->  | AO13: =IF(AO1<=$D$58,'Monthly Storage'!AO308-'Monthly Storage'!AO277,"") ->  | AP13: =IF(AP1<=$D$58,'Monthly Storage'!AP308-'Monthly Storage'!AP277,"") ->  | AQ13: =IF(AQ1<=$D$58,'Monthly Storage'!AQ308-'Monthly Storage'!AQ277,"") ->  | AR13: =IF(AR1<=$D$58,'Monthly Storage'!AR308-'Monthly Storage'!AR277,"") ->  | AS13: =IF(AS1<=$D$58,'Monthly Storage'!AS308-'Monthly Storage'!AS277,"") ->  | AT13: =IF(AT1<=$D$58,'Monthly Storage'!AT308-'Monthly Storage'!AT277,"") ->  | AU13: =IF(AU1<=$D$58,'Monthly Storage'!AU308-'Monthly Storage'!AU277,"") ->  | AV13: =IF(AV1<=$D$58,'Monthly Storage'!AV308-'Monthly Storage'!AV277,"") ->  | AW13: =IF(AW1<=$D$58,'Monthly Storage'!AW308-'Monthly Storage'!AW277,"") ->  | AX13: =IF(AX1<=$D$58,'Monthly Storage'!AX308-'Monthly Storage'!AX277,"") ->  | AY13: =IF(AY1<=$D$58,'Monthly Storage'!AY308-'Monthly Storage'!AY277,"") ->  | AZ13: =IF(AZ1<=$D$58,'Monthly Storage'!AZ308-'Monthly Storage'!AZ277,"") ->  | BA13: =IF(BA1<=$D$58,'Monthly Storage'!BA308-'Monthly Storage'!BA277,"") -> 
B14: พ.ย. | C14: 6.359333333 | D14: =IF(D1<=$D$58,'Monthly Storage'!D338-'Monthly Storage'!D308,"") -> 3.28 | E14: =IF(E1<=$D$58,'Monthly Storage'!E338-'Monthly Storage'!E308,"") -> 22.25 | F14: =IF(F1<=$D$58,'Monthly Storage'!F338-'Monthly Storage'!F308,"") -> 1.41 | G14: =IF(G1<=$D$58,'Monthly Storage'!G338-'Monthly Storage'!G308,"") -> -7.81 | H14: =IF(H1<=$D$58,'Monthly Storage'!H338-'Monthly Storage'!H308,"") -> 9.58 | I14: =IF(I1<=$D$58,'Monthly Storage'!I338-'Monthly Storage'!I308,"") -> 13.28 | J14: =IF(J1<=$D$58,'Monthly Storage'!J338-'Monthly Storage'!J308,"") -> 4.41 | K14: =IF(K1<=$D$58,'Monthly Storage'!K338-'Monthly Storage'!K308,"") -> 2.97 | L14: =IF(L1<=$D$58,'Monthly Storage'!L338-'Monthly Storage'!L308,"") -> -46.6 | M14: =IF(M1<=$D$58,'Monthly Storage'!M338-'Monthly Storage'!M308,"") -> 10.15 | N14: =IF(N1<=$D$58,'Monthly Storage'!N338-'Monthly Storage'!N308,"") -> 18.01 | O14: =IF(O1<=$D$58,'Monthly Storage'!O338-'Monthly Storage'!O308,"") -> 2.27 | P14: =IF(P1<=$D$58,'Monthly Storage'!P338-'Monthly Storage'!P308,"") -> 0.34 | Q14: =IF(Q1<=$D$58,'Monthly Storage'!Q338-'Monthly Storage'!Q308,"") -> 12.47 | R14: =IF(R1<=$D$58,'Monthly Storage'!R338-'Monthly Storage'!R308,"") -> 1.25 | S14: =IF(S1<=$D$58,'Monthly Storage'!S338-'Monthly Storage'!S308,"") -> -1.33 | T14: =IF(T1<=$D$58,'Monthly Storage'!T338-'Monthly Storage'!T308,"") -> 32.58 | U14: =IF(U1<=$D$58,'Monthly Storage'!U338-'Monthly Storage'!U308,"") -> -4.68 | V14: =IF(V1<=$D$58,'Monthly Storage'!V338-'Monthly Storage'!V308,"") -> 3 | W14: =IF(W1<=$D$58,'Monthly Storage'!W338-'Monthly Storage'!W308,"") -> -0.15 | X14: =IF(X1<=$D$58,'Monthly Storage'!X338-'Monthly Storage'!X308,"") -> 2.91 | Y14: =IF(Y1<=$D$58,'Monthly Storage'!Y338-'Monthly Storage'!Y308,"") -> 18.06 | Z14: =IF(Z1<=$D$58,'Monthly Storage'!Z338-'Monthly Storage'!Z308,"") -> 7.87 | AA14: =IF(AA1<=$D$58,'Monthly Storage'!AA338-'Monthly Storage'!AA308,"") -> 4.56 | AB14: =IF(AB1<=$D$58,'Monthly Storage'!AB338-'Monthly Storage'!AB308,"") -> -7.82 | AC14: =IF(AC1<=$D$58,'Monthly Storage'!AC338-'Monthly Storage'!AC308,"") -> 4.49 | AD14: =IF(AD1<=$D$58,'Monthly Storage'!AD338-'Monthly Storage'!AD308,"") -> 10.66 | AE14: =IF(AE1<=$D$58,'Monthly Storage'!AE338-'Monthly Storage'!AE308,"") -> 23.71 | AF14: =IF(AF1<=$D$58,'Monthly Storage'!AF338-'Monthly Storage'!AF308,"") -> 12.42 | AG14: =IF(AG1<=$D$58,'Monthly Storage'!AG338-'Monthly Storage'!AG308,"") -> 4.42 | AH14: =IF(AH1<=$D$58,'Monthly Storage'!AH338-'Monthly Storage'!AH308,"") -> 21.529 | AI14: =IF(AI1<=$D$58,'Monthly Storage'!AI338-'Monthly Storage'!AI308,"") -> 9.835 | AJ14: =IF(AJ1<=$D$58,'Monthly Storage'!AJ338-'Monthly Storage'!AJ308,"") -> 20.534 | AK14: =IF(AK1<=$D$58,'Monthly Storage'!AK338-'Monthly Storage'!AK308,"") ->  | AL14: =IF(AL1<=$D$58,'Monthly Storage'!AL338-'Monthly Storage'!AL308,"") ->  | AM14: =IF(AM1<=$D$58,'Monthly Storage'!AM338-'Monthly Storage'!AM308,"") ->  | AN14: =IF(AN1<=$D$58,'Monthly Storage'!AN338-'Monthly Storage'!AN308,"") ->  | AO14: =IF(AO1<=$D$58,'Monthly Storage'!AO338-'Monthly Storage'!AO308,"") ->  | AP14: =IF(AP1<=$D$58,'Monthly Storage'!AP338-'Monthly Storage'!AP308,"") ->  | AQ14: =IF(AQ1<=$D$58,'Monthly Storage'!AQ338-'Monthly Storage'!AQ308,"") ->  | AR14: =IF(AR1<=$D$58,'Monthly Storage'!AR338-'Monthly Storage'!AR308,"") ->  | AS14: =IF(AS1<=$D$58,'Monthly Storage'!AS338-'Monthly Storage'!AS308,"") ->  | AT14: =IF(AT1<=$D$58,'Monthly Storage'!AT338-'Monthly Storage'!AT308,"") ->  | AU14: =IF(AU1<=$D$58,'Monthly Storage'!AU338-'Monthly Storage'!AU308,"") ->  | AV14: =IF(AV1<=$D$58,'Monthly Storage'!AV338-'Monthly Storage'!AV308,"") ->  | AW14: =IF(AW1<=$D$58,'Monthly Storage'!AW338-'Monthly Storage'!AW308,"") ->  | AX14: =IF(AX1<=$D$58,'Monthly Storage'!AX338-'Monthly Storage'!AX308,"") ->  | AY14: =IF(AY1<=$D$58,'Monthly Storage'!AY338-'Monthly Storage'!AY308,"") ->  | AZ14: =IF(AZ1<=$D$58,'Monthly Storage'!AZ338-'Monthly Storage'!AZ308,"") ->  | BA14: =IF(BA1<=$D$58,'Monthly Storage'!BA338-'Monthly Storage'!BA308,"") -> 
B15: ธ.ค. | C15: -3.386272727 | D15: =IF(D1<=$D$58,'Monthly Storage'!E4-'Monthly Storage'!D338,"") -> -3.94 | E15: =IF(E1<=$D$58,'Monthly Storage'!F4-'Monthly Storage'!E338,"") -> 3.48 | F15: =IF(F1<=$D$58,'Monthly Storage'!G4-'Monthly Storage'!F338,"") -> -6.72 | G15: =IF(G1<=$D$58,'Monthly Storage'!H4-'Monthly Storage'!G338,"") -> -5.23 | H15: =IF(H1<=$D$58,'Monthly Storage'!I4-'Monthly Storage'!H338,"") -> 0.52 | I15: =IF(I1<=$D$58,'Monthly Storage'!J4-'Monthly Storage'!I338,"") -> 0.14 | J15: =IF(J1<=$D$58,'Monthly Storage'!K4-'Monthly Storage'!J338,"") -> 8.45 | K15: =IF(K1<=$D$58,'Monthly Storage'!L4-'Monthly Storage'!K338,"") -> -1.53 | L15: =IF(L1<=$D$58,'Monthly Storage'!M4-'Monthly Storage'!L338,"") -> -37.21 | M15: =IF(M1<=$D$58,'Monthly Storage'!N4-'Monthly Storage'!M338,"") -> -2.07 | N15: =IF(N1<=$D$58,'Monthly Storage'!O4-'Monthly Storage'!N338,"") -> 5.04 | O15: =IF(O1<=$D$58,'Monthly Storage'!P4-'Monthly Storage'!O338,"") -> -0.99 | P15: =IF(P1<=$D$58,'Monthly Storage'!Q4-'Monthly Storage'!P338,"") -> -3.97 | Q15: =IF(Q1<=$D$58,'Monthly Storage'!R4-'Monthly Storage'!Q338,"") -> 0.59 | R15: =IF(R1<=$D$58,'Monthly Storage'!S4-'Monthly Storage'!R338,"") -> -2.91 | S15: =IF(S1<=$D$58,'Monthly Storage'!T4-'Monthly Storage'!S338,"") -> -11.29 | T15: =IF(T1<=$D$58,'Monthly Storage'!U4-'Monthly Storage'!T338,"") -> -16.32 | U15: =IF(U1<=$D$58,'Monthly Storage'!V4-'Monthly Storage'!U338,"") -> -6.62 | V15: =IF(V1<=$D$58,'Monthly Storage'!W4-'Monthly Storage'!V338,"") -> -4.65 | W15: =IF(W1<=$D$58,'Monthly Storage'!X4-'Monthly Storage'!W338,"") -> -3.62 | X15: =IF(X1<=$D$58,'Monthly Storage'!Y4-'Monthly Storage'!X338,"") -> -6.24 | Y15: =IF(Y1<=$D$58,'Monthly Storage'!Z4-'Monthly Storage'!Y338,"") -> -12.29 | Z15: =IF(Z1<=$D$58,'Monthly Storage'!AA4-'Monthly Storage'!Z338,"") -> -4.04 | AA15: =IF(AA1<=$D$58,'Monthly Storage'!AB4-'Monthly Storage'!AA338,"") -> -3 | AB15: =IF(AB1<=$D$58,'Monthly Storage'!AC4-'Monthly Storage'!AB338,"") -> -2.99 | AC15: =IF(AC1<=$D$58,'Monthly Storage'!AD4-'Monthly Storage'!AC338,"") -> -3.01 | AD15: =IF(AD1<=$D$58,'Monthly Storage'!AE4-'Monthly Storage'!AD338,"") -> 1.39 | AE15: =IF(AE1<=$D$58,'Monthly Storage'!AF4-'Monthly Storage'!AE338,"") -> 10.8 | AF15: =IF(AF1<=$D$58,'Monthly Storage'!AG4-'Monthly Storage'!AF338,"") -> -4.81 | AG15: =IF(AG1<=$D$58,'Monthly Storage'!AH4-'Monthly Storage'!AG338,"") -> -1.15 | AH15: =IF(AH1<=$D$58,'Monthly Storage'!AI4-'Monthly Storage'!AH338,"") -> 0.888 | AI15: =IF(AI1<=$D$58,'Monthly Storage'!AJ4-'Monthly Storage'!AI338,"") -> 0.474 | AJ15: =IF(AJ1<=$D$58,'Monthly Storage'!AK4-'Monthly Storage'!AJ338,"") -> 1.081 | AK15: =IF(AK1<=$D$58,'Monthly Storage'!AL4-'Monthly Storage'!AK338,"") ->  | AL15: =IF(AL1<=$D$58,'Monthly Storage'!AM4-'Monthly Storage'!AL338,"") ->  | AM15: =IF(AM1<=$D$58,'Monthly Storage'!AN4-'Monthly Storage'!AM338,"") ->  | AN15: =IF(AN1<=$D$58,'Monthly Storage'!AO4-'Monthly Storage'!AN338,"") ->  | AO15: =IF(AO1<=$D$58,'Monthly Storage'!AP4-'Monthly Storage'!AO338,"") ->  | AP15: =IF(AP1<=$D$58,'Monthly Storage'!AQ4-'Monthly Storage'!AP338,"") ->  | AQ15: =IF(AQ1<=$D$58,'Monthly Storage'!AR4-'Monthly Storage'!AQ338,"") ->  | AR15: =IF(AR1<=$D$58,'Monthly Storage'!AS4-'Monthly Storage'!AR338,"") ->  | AS15: =IF(AS1<=$D$58,'Monthly Storage'!AT4-'Monthly Storage'!AS338,"") ->  | AT15: =IF(AT1<=$D$58,'Monthly Storage'!AU4-'Monthly Storage'!AT338,"") ->  | AU15: =IF(AU1<=$D$58,'Monthly Storage'!AV4-'Monthly Storage'!AU338,"") ->  | AV15: =IF(AV1<=$D$58,'Monthly Storage'!AW4-'Monthly Storage'!AV338,"") ->  | AW15: =IF(AW1<=$D$58,'Monthly Storage'!AX4-'Monthly Storage'!AW338,"") ->  | AX15: =IF(AX1<=$D$58,'Monthly Storage'!AY4-'Monthly Storage'!AX338,"") ->  | AY15: =IF(AY1<=$D$58,'Monthly Storage'!AZ4-'Monthly Storage'!AY338,"") ->  | AZ15: =IF(AZ1<=$D$58,'Monthly Storage'!BA4-'Monthly Storage'!AZ338,"") ->  | BA15: =IF(BA1<=$D$58,'Monthly Storage'!BB4-'Monthly Storage'!BA338,"") -> 
A17: Item | B17: เดือน | C17: Average | D17: =IF(D3+543>543,D3+543,"") -> 2529 | E17: =IF(E3+543>543,E3+543,"") -> 2530 | F17: 2531 | G17: 2532 | H17: 2533 | I17: 2534 | J17: 2535 | K17: 2536 | L17: 2537 | M17: 2538 | N17: 2539 | O17: 2540 | P17: 2541 | Q17: 2542 | R17: 2543 | S17: 2544 | T17: 2545 | U17: 2546 | V17: 2547 | W17: 2548 | X17: 2549 | Y17: 2550 | Z17: 2551 | AA17: 2552 | AB17: 2553 | AC17: 2554 | AD17: 2555 | AE17: 2556 | AF17: 2557 | AG17: 2558 | AH17: 2559 | AI17: 2560 | AJ17: 2561
A18: Monthly Storage AVG ทั้งเดือน | B18: ม.ค. | C18: =AVERAGE(OFFSET(D17,1,0,1,$D$58)) -> 209.9308446 | D18: =AVERAGE('Monthly Storage'!D4:D34) -> 239.5758065 | E18: =AVERAGE('Monthly Storage'!E4:E34) -> 135.1587097 | F18: =AVERAGE('Monthly Storage'!F4:F34) -> 243.6964516 | G18: =AVERAGE('Monthly Storage'!G4:G34) -> 195.6174194 | H18: =AVERAGE('Monthly Storage'!H4:H34) -> 272.9303226 | I18: =AVERAGE('Monthly Storage'!I4:I34) -> 145.7348387 | J18: =AVERAGE('Monthly Storage'!J4:J34) -> 174.0045161 | K18: =AVERAGE('Monthly Storage'!K4:K34) -> 117.2206452 | L18: =AVERAGE('Monthly Storage'!L4:L34) -> 77.26258065 | M18: =AVERAGE('Monthly Storage'!M4:M34) -> 168.2422581 | N18: =AVERAGE('Monthly Storage'!N4:N34) -> 267.3832258 | O18: =AVERAGE('Monthly Storage'!O4:O34) -> 208.2932258 | P18: =AVERAGE('Monthly Storage'!P4:P34) -> 218.1419355 | Q18: =AVERAGE('Monthly Storage'!Q4:Q34) -> 103.9290323 | R18: =AVERAGE('Monthly Storage'!R4:R34) -> 255.1983871 | S18: =AVERAGE('Monthly Storage'!S4:S34) -> 189.5867742 | T18: =AVERAGE('Monthly Storage'!T4:T34) -> 251.1803226 | U18: =AVERAGE('Monthly Storage'!U4:U34) -> 274.9641935 | V18: =AVERAGE('Monthly Storage'!V4:V34) -> 203.2245161 | W18: =AVERAGE('Monthly Storage'!W4:W34) -> 285.4154839 | X18: =AVERAGE('Monthly Storage'!X4:X34) -> 293.8087097 | Y18: =AVERAGE('Monthly Storage'!Y4:Y34) -> 243.9454839 | Z18: =AVERAGE('Monthly Storage'!Z4:Z34) -> 216.1916129 | AA18: =AVERAGE('Monthly Storage'!AA4:AA34) -> 268.0567742 | AB18: =AVERAGE('Monthly Storage'!AB4:AB34) -> 226.3296774 | AC18: =AVERAGE('Monthly Storage'!AC4:AC34) -> 264.2464516 | AD18: =AVERAGE('Monthly Storage'!AD4:AD34) -> 270.9980645 | AE18: =AVERAGE('Monthly Storage'!AE4:AE34) -> 172.9616129 | AF18: =AVERAGE('Monthly Storage'!AF4:AF34) -> 251.0819355 | AG18: =AVERAGE('Monthly Storage'!AG4:AG34) -> 183.1422581 | AH18: =AVERAGE('Monthly Storage'!AH4:AH34) -> 68.35309677 | AI18: =AVERAGE('Monthly Storage'!AI4:AI34) -> 180.7392258 | AJ18: =AVERAGE('Monthly Storage'!AJ4:AJ34) -> 261.1023226 | AK18: =AVERAGE('Monthly Storage'!AK4:AK34) -> 265.9997742 | AL18: =AVERAGE('Monthly Storage'!AL4:AL34) ->  | AM18: =AVERAGE('Monthly Storage'!AM4:AM34) ->  | AN18: =AVERAGE('Monthly Storage'!AN4:AN34) ->  | AO18: =AVERAGE('Monthly Storage'!AO4:AO34) ->  | AP18: =AVERAGE('Monthly Storage'!AP4:AP34) ->  | AQ18: =AVERAGE('Monthly Storage'!AQ4:AQ34) ->  | AR18: =AVERAGE('Monthly Storage'!AR4:AR34) ->  | AS18: =AVERAGE('Monthly Storage'!AS4:AS34) ->  | AT18: =AVERAGE('Monthly Storage'!AT4:AT34) ->  | AU18: =AVERAGE('Monthly Storage'!AU4:AU34) ->  | AV18: =AVERAGE('Monthly Storage'!AV4:AV34) ->  | AW18: =AVERAGE('Monthly Storage'!AW4:AW34) ->  | AX18: =AVERAGE('Monthly Storage'!AX4:AX34) ->  | AY18: =AVERAGE('Monthly Storage'!AY4:AY34) ->  | AZ18: =AVERAGE('Monthly Storage'!AZ4:AZ34) ->  | BA18: =AVERAGE('Monthly Storage'!BA4:BA34) -> 
B19: ก.พ. | C19: 191.4972381 | D19: =AVERAGE('Monthly Storage'!D35:D62) -> 229.71 | E19: =AVERAGE('Monthly Storage'!E35:E62) -> 123.755 | F19: =AVERAGE('Monthly Storage'!F35:F62) -> 218.9321429 | G19: =AVERAGE('Monthly Storage'!G35:G62) -> 176.9910714 | H19: =AVERAGE('Monthly Storage'!H35:H62) -> 245.6 | I19: =AVERAGE('Monthly Storage'!I35:I62) -> 118.8432143 | J19: =AVERAGE('Monthly Storage'!J35:J62) -> 154.89 | K19: =AVERAGE('Monthly Storage'!K35:K62) -> 108.6014286 | L19: =AVERAGE('Monthly Storage'!L35:L62) -> 58.11357143 | M19: =AVERAGE('Monthly Storage'!M35:M62) -> 159.9339286 | N19: =AVERAGE('Monthly Storage'!N35:N62) -> 236.7092857 | O19: =AVERAGE('Monthly Storage'!O35:O62) -> 192.9742857 | P19: =AVERAGE('Monthly Storage'!P35:P62) -> 196.0803571 | Q19: =AVERAGE('Monthly Storage'!Q35:Q62) -> 93.735 | R19: =AVERAGE('Monthly Storage'!R35:R62) -> 243.5192857 | S19: =AVERAGE('Monthly Storage'!S35:S62) -> 170.6414286 | T19: =AVERAGE('Monthly Storage'!T35:T62) -> 232.9464286 | U19: =AVERAGE('Monthly Storage'!U35:U62) -> 250.4589286 | V19: =AVERAGE('Monthly Storage'!V35:V62) -> 176.5489286 | W19: =AVERAGE('Monthly Storage'!W35:W62) -> 258.4814286 | X19: =AVERAGE('Monthly Storage'!X35:X62) -> 272.2735714 | Y19: =AVERAGE('Monthly Storage'!Y35:Y62) -> 226.3142857 | Z19: =AVERAGE('Monthly Storage'!Z35:Z62) -> 193.7878571 | AA19: =AVERAGE('Monthly Storage'!AA35:AA62) -> 248.4485714 | AB19: =AVERAGE('Monthly Storage'!AB35:AB62) -> 213.1060714 | AC19: =AVERAGE('Monthly Storage'!AC35:AC62) -> 248.8378571 | AD19: =AVERAGE('Monthly Storage'!AD35:AD62) -> 243.075 | AE19: =AVERAGE('Monthly Storage'!AE35:AE62) -> 157.9925 | AF19: =AVERAGE('Monthly Storage'!AF35:AF62) -> 224.9025 | AG19: =AVERAGE('Monthly Storage'!AG35:AG62) -> 168.3007857 | AH19: =AVERAGE('Monthly Storage'!AH35:AH62) -> 60.60407143 | AI19: =AVERAGE('Monthly Storage'!AI35:AI62) -> 168.0106071 | AJ19: =AVERAGE('Monthly Storage'!AJ35:AJ62) -> 246.2894643 | AK19: =AVERAGE('Monthly Storage'!AK35:AK62) -> 247.3960714 | AL19: =AVERAGE('Monthly Storage'!AL35:AL62) ->  | AM19: =AVERAGE('Monthly Storage'!AM35:AM62) ->  | AN19: =AVERAGE('Monthly Storage'!AN35:AN62) ->  | AO19: =AVERAGE('Monthly Storage'!AO35:AO62) ->  | AP19: =AVERAGE('Monthly Storage'!AP35:AP62) ->  | AQ19: =AVERAGE('Monthly Storage'!AQ35:AQ62) ->  | AR19: =AVERAGE('Monthly Storage'!AR35:AR62) ->  | AS19: =AVERAGE('Monthly Storage'!AS35:AS62) ->  | AT19: =AVERAGE('Monthly Storage'!AT35:AT62) ->  | AU19: =AVERAGE('Monthly Storage'!AU35:AU62) ->  | AV19: =AVERAGE('Monthly Storage'!AV35:AV62) ->  | AW19: =AVERAGE('Monthly Storage'!AW35:AW62) ->  | AX19: =AVERAGE('Monthly Storage'!AX35:AX62) ->  | AY19: =AVERAGE('Monthly Storage'!AY35:AY62) ->  | AZ19: =AVERAGE('Monthly Storage'!AZ35:AZ62) ->  | BA19: =AVERAGE('Monthly Storage'!BA35:BA62) -> 
B20: มี.ค. | C20: 163.8677224 | D20: =AVERAGE('Monthly Storage'!D63:D93) -> 197.8596774 | E20: =AVERAGE('Monthly Storage'!E63:E93) -> 97.76483871 | F20: =AVERAGE('Monthly Storage'!F63:F93) -> 185.5932258 | G20: =AVERAGE('Monthly Storage'!G63:G93) -> 157.7529032 | H20: =AVERAGE('Monthly Storage'!H63:H93) -> 221.9354839 | I20: =AVERAGE('Monthly Storage'!I63:I93) -> 86.04387097 | J20: =AVERAGE('Monthly Storage'!J63:J93) -> 125.1816129 | K20: =AVERAGE('Monthly Storage'!K63:K93) -> 84.34451613 | L20: =AVERAGE('Monthly Storage'!L63:L93) -> 42.54580645 | M20: =AVERAGE('Monthly Storage'!M63:M93) -> 147.7303226 | N20: =AVERAGE('Monthly Storage'!N63:N93) -> 203.6154839 | O20: =AVERAGE('Monthly Storage'!O63:O93) -> 169.6393548 | P20: =AVERAGE('Monthly Storage'!P63:P93) -> 161.8045161 | Q20: =AVERAGE('Monthly Storage'!Q63:Q93) -> 76.68290323 | R20: =AVERAGE('Monthly Storage'!R63:R93) -> 227.4332258 | S20: =AVERAGE('Monthly Storage'!S63:S93) -> 151.5606452 | T20: =AVERAGE('Monthly Storage'!T63:T93) -> 208.0483871 | U20: =AVERAGE('Monthly Storage'!U63:U93) -> 224.6393548 | V20: =AVERAGE('Monthly Storage'!V63:V93) -> 145.0490323 | W20: =AVERAGE('Monthly Storage'!W63:W93) -> 208.8741935 | X20: =AVERAGE('Monthly Storage'!X63:X93) -> 231.7196774 | Y20: =AVERAGE('Monthly Storage'!Y63:Y93) -> 194.9103226 | Z20: =AVERAGE('Monthly Storage'!Z63:Z93) -> 159.5548387 | AA20: =AVERAGE('Monthly Storage'!AA63:AA93) -> 208.1003226 | AB20: =AVERAGE('Monthly Storage'!AB63:AB93) -> 180.6748387 | AC20: =AVERAGE('Monthly Storage'!AC63:AC93) -> 220.4851613 | AD20: =AVERAGE('Monthly Storage'!AD63:AD93) -> 203.1803226 | AE20: =AVERAGE('Monthly Storage'!AE63:AE93) -> 136.0090323 | AF20: =AVERAGE('Monthly Storage'!AF63:AF93) -> 193.1090323 | AG20: =AVERAGE('Monthly Storage'!AG63:AG93) -> 143.8451613 | AH20: =AVERAGE('Monthly Storage'!AH63:AH93) -> 52.4583871 | AI20: =AVERAGE('Monthly Storage'!AI63:AI93) -> 142.4412258 | AJ20: =AVERAGE('Monthly Storage'!AJ63:AJ93) -> 217.0471613 | AK20: =AVERAGE('Monthly Storage'!AK63:AK93) -> 214.433 | AL20: =AVERAGE('Monthly Storage'!AL63:AL93) ->  | AM20: =AVERAGE('Monthly Storage'!AM63:AM93) ->  | AN20: =AVERAGE('Monthly Storage'!AN63:AN93) ->  | AO20: =AVERAGE('Monthly Storage'!AO63:AO93) ->  | AP20: =AVERAGE('Monthly Storage'!AP63:AP93) ->  | AQ20: =AVERAGE('Monthly Storage'!AQ63:AQ93) ->  | AR20: =AVERAGE('Monthly Storage'!AR63:AR93) ->  | AS20: =AVERAGE('Monthly Storage'!AS63:AS93) ->  | AT20: =AVERAGE('Monthly Storage'!AT63:AT93) ->  | AU20: =AVERAGE('Monthly Storage'!AU63:AU93) ->  | AV20: =AVERAGE('Monthly Storage'!AV63:AV93) ->  | AW20: =AVERAGE('Monthly Storage'!AW63:AW93) ->  | AX20: =AVERAGE('Monthly Storage'!AX63:AX93) ->  | AY20: =AVERAGE('Monthly Storage'!AY63:AY93) ->  | AZ20: =AVERAGE('Monthly Storage'!AZ63:AZ93) ->  | BA20: =AVERAGE('Monthly Storage'!BA63:BA93) -> 
B21: เม.ย. | C21: 128.2488586 | D21: =AVERAGE('Monthly Storage'!D94:D123) -> 162.1196667 | E21: =AVERAGE('Monthly Storage'!E94:E123) -> 67.02666667 | F21: =AVERAGE('Monthly Storage'!F94:F123) -> 155.6886667 | G21: =AVERAGE('Monthly Storage'!G94:G123) -> 127.856 | H21: =AVERAGE('Monthly Storage'!H94:H123) -> 181.1443333 | I21: =AVERAGE('Monthly Storage'!I94:I123) -> 61.336 | J21: =AVERAGE('Monthly Storage'!J94:J123) -> 83.13733333 | K21: =AVERAGE('Monthly Storage'!K94:K123) -> 55.76033333 | L21: =AVERAGE('Monthly Storage'!L94:L123) -> 47.43733333 | M21: =AVERAGE('Monthly Storage'!M94:M123) -> 124.2376667 | N21: =AVERAGE('Monthly Storage'!N94:N123) -> 156.5933333 | O21: =AVERAGE('Monthly Storage'!O94:O123) -> 145.76 | P21: =AVERAGE('Monthly Storage'!P94:P123) -> 127.1276667 | Q21: =AVERAGE('Monthly Storage'!Q94:Q123) -> 58.053 | R21: =AVERAGE('Monthly Storage'!R94:R123) -> 191.9666667 | S21: =AVERAGE('Monthly Storage'!S94:S123) -> 128.7416667 | T21: =AVERAGE('Monthly Storage'!T94:T123) -> 162.8593333 | U21: =AVERAGE('Monthly Storage'!U94:U123) -> 183.6986667 | V21: =AVERAGE('Monthly Storage'!V94:V123) -> 111.4683333 | W21: =AVERAGE('Monthly Storage'!W94:W123) -> 156.4246667 | X21: =AVERAGE('Monthly Storage'!X94:X123) -> 177.662 | Y21: =AVERAGE('Monthly Storage'!Y94:Y123) -> 150.776 | Z21: =AVERAGE('Monthly Storage'!Z94:Z123) -> 113.8963333 | AA21: =AVERAGE('Monthly Storage'!AA94:AA123) -> 145.058 | AB21: =AVERAGE('Monthly Storage'!AB94:AB123) -> 134.315 | AC21: =AVERAGE('Monthly Storage'!AC94:AC123) -> 172.3146667 | AD21: =AVERAGE('Monthly Storage'!AD94:AD123) -> 156.8903333 | AE21: =AVERAGE('Monthly Storage'!AE94:AE123) -> 100.617 | AF21: =AVERAGE('Monthly Storage'!AF94:AF123) -> 153.9383333 | AG21: =AVERAGE('Monthly Storage'!AG94:AG123) -> 115.3833333 | AH21: =AVERAGE('Monthly Storage'!AH94:AH123) -> 40.3607 | AI21: =AVERAGE('Monthly Storage'!AI94:AI123) -> 106.8885333 | AJ21: =AVERAGE('Monthly Storage'!AJ94:AJ123) -> 175.6747667 | AK21: =AVERAGE('Monthly Storage'!AK94:AK123) -> 158.8242 | AL21: =AVERAGE('Monthly Storage'!AL94:AL123) ->  | AM21: =AVERAGE('Monthly Storage'!AM94:AM123) ->  | AN21: =AVERAGE('Monthly Storage'!AN94:AN123) ->  | AO21: =AVERAGE('Monthly Storage'!AO94:AO123) ->  | AP21: =AVERAGE('Monthly Storage'!AP94:AP123) ->  | AQ21: =AVERAGE('Monthly Storage'!AQ94:AQ123) ->  | AR21: =AVERAGE('Monthly Storage'!AR94:AR123) ->  | AS21: =AVERAGE('Monthly Storage'!AS94:AS123) ->  | AT21: =AVERAGE('Monthly Storage'!AT94:AT123) ->  | AU21: =AVERAGE('Monthly Storage'!AU94:AU123) ->  | AV21: =AVERAGE('Monthly Storage'!AV94:AV123) ->  | AW21: =AVERAGE('Monthly Storage'!AW94:AW123) ->  | AX21: =AVERAGE('Monthly Storage'!AX94:AX123) ->  | AY21: =AVERAGE('Monthly Storage'!AY94:AY123) ->  | AZ21: =AVERAGE('Monthly Storage'!AZ94:AZ123) ->  | BA21: =AVERAGE('Monthly Storage'!BA94:BA123) -> 
B22: พ.ค. | C22: 103.898739 | D22: =AVERAGE('Monthly Storage'!D124:D154) -> 139.8422581 | E22: =AVERAGE('Monthly Storage'!E124:E154) -> 51.58967742 | F22: =AVERAGE('Monthly Storage'!F124:F154) -> 157.9203226 | G22: =AVERAGE('Monthly Storage'!G124:G154) -> 110.8525806 | H22: =AVERAGE('Monthly Storage'!H124:H154) -> 140.7403226 | I22: =AVERAGE('Monthly Storage'!I124:I154) -> 44.4916129 | J22: =AVERAGE('Monthly Storage'!J124:J154) -> 49.67741935 | K22: =AVERAGE('Monthly Storage'!K124:K154) -> 33.33064516 | L22: =AVERAGE('Monthly Storage'!L124:L154) -> 47.56709677 | M22: =AVERAGE('Monthly Storage'!M124:M154) -> 107.6403226 | N22: =AVERAGE('Monthly Storage'!N124:N154) -> 119.6990323 | O22: =AVERAGE('Monthly Storage'!O124:O154) -> 112.293871 | P22: =AVERAGE('Monthly Storage'!P124:P154) -> 106.0912903 | Q22: =AVERAGE('Monthly Storage'!Q124:Q154) -> 54.89709677 | R22: =AVERAGE('Monthly Storage'!R124:R154) -> 167.0793548 | S22: =AVERAGE('Monthly Storage'!S124:S154) -> 101.7390323 | T22: =AVERAGE('Monthly Storage'!T124:T154) -> 134.2709677 | U22: =AVERAGE('Monthly Storage'!U124:U154) -> 143.6858065 | V22: =AVERAGE('Monthly Storage'!V124:V154) -> 94.49645161 | W22: =AVERAGE('Monthly Storage'!W124:W154) -> 106.3345161 | X22: =AVERAGE('Monthly Storage'!X124:X154) -> 143.6880645 | Y22: =AVERAGE('Monthly Storage'!Y124:Y154) -> 135.6393548 | Z22: =AVERAGE('Monthly Storage'!Z124:Z154) -> 96.62935484 | AA22: =AVERAGE('Monthly Storage'!AA124:AA154) -> 107.4841935 | AB22: =AVERAGE('Monthly Storage'!AB124:AB154) -> 90.4716129 | AC22: =AVERAGE('Monthly Storage'!AC124:AC154) -> 159.7406452 | AD22: =AVERAGE('Monthly Storage'!AD124:AD154) -> 127.4648387 | AE22: =AVERAGE('Monthly Storage'!AE124:AE154) -> 64.58451613 | AF22: =AVERAGE('Monthly Storage'!AF124:AF154) -> 122.4422581 | AG22: =AVERAGE('Monthly Storage'!AG124:AG154) -> 90.59 | AH22: =AVERAGE('Monthly Storage'!AH124:AH154) -> 28.14525806 | AI22: =AVERAGE('Monthly Storage'!AI124:AI154) -> 82.42403226 | AJ22: =AVERAGE('Monthly Storage'!AJ124:AJ154) -> 155.1145806 | AK22: =AVERAGE('Monthly Storage'!AK124:AK154) -> 110.2632258 | AL22: =AVERAGE('Monthly Storage'!AL124:AL154) ->  | AM22: =AVERAGE('Monthly Storage'!AM124:AM154) ->  | AN22: =AVERAGE('Monthly Storage'!AN124:AN154) ->  | AO22: =AVERAGE('Monthly Storage'!AO124:AO154) ->  | AP22: =AVERAGE('Monthly Storage'!AP124:AP154) ->  | AQ22: =AVERAGE('Monthly Storage'!AQ124:AQ154) ->  | AR22: =AVERAGE('Monthly Storage'!AR124:AR154) ->  | AS22: =AVERAGE('Monthly Storage'!AS124:AS154) ->  | AT22: =AVERAGE('Monthly Storage'!AT124:AT154) ->  | AU22: =AVERAGE('Monthly Storage'!AU124:AU154) ->  | AV22: =AVERAGE('Monthly Storage'!AV124:AV154) ->  | AW22: =AVERAGE('Monthly Storage'!AW124:AW154) ->  | AX22: =AVERAGE('Monthly Storage'!AX124:AX154) ->  | AY22: =AVERAGE('Monthly Storage'!AY124:AY154) ->  | AZ22: =AVERAGE('Monthly Storage'!AZ124:AZ154) ->  | BA22: =AVERAGE('Monthly Storage'!BA124:BA154) -> 
B23: มิ.ย. | C23: 96.50967626 | D23: =AVERAGE('Monthly Storage'!D155:D184) -> 115.6426667 | E23: =AVERAGE('Monthly Storage'!E155:E184) -> 42.456 | F23: =AVERAGE('Monthly Storage'!F155:F184) -> 181.15 | G23: =AVERAGE('Monthly Storage'!G155:G184) -> 125.6233333 | H23: =AVERAGE('Monthly Storage'!H155:H184) -> 114.4336667 | I23: =AVERAGE('Monthly Storage'!I155:I184) -> 40.19666667 | J23: =AVERAGE('Monthly Storage'!J155:J184) -> 31.97466667 | K23: =AVERAGE('Monthly Storage'!K155:K184) -> 23.931 | L23: =AVERAGE('Monthly Storage'!L155:L184) -> 81.35033333 | M23: =AVERAGE('Monthly Storage'!M155:M184) -> 96.87133333 | N23: =AVERAGE('Monthly Storage'!N155:N184) -> 98.31433333 | O23: =AVERAGE('Monthly Storage'!O155:O184) -> 80.14866667 | P23: =AVERAGE('Monthly Storage'!P155:P184) -> 101.238 | Q23: =AVERAGE('Monthly Storage'!Q155:Q184) -> 65.327 | R23: =AVERAGE('Monthly Storage'!R155:R184) -> 162.3853333 | S23: =AVERAGE('Monthly Storage'!S155:S184) -> 100.0896667 | T23: =AVERAGE('Monthly Storage'!T155:T184) -> 142.413 | U23: =AVERAGE('Monthly Storage'!U155:U184) -> 107.3826667 | V23: =AVERAGE('Monthly Storage'!V155:V184) -> 103.0166667 | W23: =AVERAGE('Monthly Storage'!W155:W184) -> 87.37733333 | X23: =AVERAGE('Monthly Storage'!X155:X184) -> 93.87466667 | Y23: =AVERAGE('Monthly Storage'!Y155:Y184) -> 119.2766667 | Z23: =AVERAGE('Monthly Storage'!Z155:Z184) -> 108.4963333 | AA23: =AVERAGE('Monthly Storage'!AA155:AA184) -> 119.7463333 | AB23: =AVERAGE('Monthly Storage'!AB155:AB184) -> 70.665 | AC23: =AVERAGE('Monthly Storage'!AC155:AC184) -> 139.1253333 | AD23: =AVERAGE('Monthly Storage'!AD155:AD184) -> 121.8106667 | AE23: =AVERAGE('Monthly Storage'!AE155:AE184) -> 57.48433333 | AF23: =AVERAGE('Monthly Storage'!AF155:AF184) -> 108.7903333 | AG23: =AVERAGE('Monthly Storage'!AG155:AG184) -> 77.50866667 | AH23: =AVERAGE('Monthly Storage'!AH155:AH184) -> 42.54873333 | AI23: =AVERAGE('Monthly Storage'!AI155:AI184) -> 87.36923333 | AJ23: =AVERAGE('Monthly Storage'!AJ155:AJ184) -> 136.8006833 | AK23: =AVERAGE('Monthly Storage'!AK155:AK184) -> 95.15286667 | AL23: =AVERAGE('Monthly Storage'!AL155:AL184) ->  | AM23: =AVERAGE('Monthly Storage'!AM155:AM184) ->  | AN23: =AVERAGE('Monthly Storage'!AN155:AN184) ->  | AO23: =AVERAGE('Monthly Storage'!AO155:AO184) ->  | AP23: =AVERAGE('Monthly Storage'!AP155:AP184) ->  | AQ23: =AVERAGE('Monthly Storage'!AQ155:AQ184) ->  | AR23: =AVERAGE('Monthly Storage'!AR155:AR184) ->  | AS23: =AVERAGE('Monthly Storage'!AS155:AS184) ->  | AT23: =AVERAGE('Monthly Storage'!AT155:AT184) ->  | AU23: =AVERAGE('Monthly Storage'!AU155:AU184) ->  | AV23: =AVERAGE('Monthly Storage'!AV155:AV184) ->  | AW23: =AVERAGE('Monthly Storage'!AW155:AW184) ->  | AX23: =AVERAGE('Monthly Storage'!AX155:AX184) ->  | AY23: =AVERAGE('Monthly Storage'!AY155:AY184) ->  | AZ23: =AVERAGE('Monthly Storage'!AZ155:AZ184) ->  | BA23: =AVERAGE('Monthly Storage'!BA155:BA184) -> 
B24: ก.ค. | C24: 87.13531476 | D24: =AVERAGE('Monthly Storage'!D185:D215) -> 84.40612903 | E24: =AVERAGE('Monthly Storage'!E185:E215) -> 31.54290323 | F24: =AVERAGE('Monthly Storage'!F185:F215) -> 146.6119355 | G24: =AVERAGE('Monthly Storage'!G185:G215) -> 138.36 | H24: =AVERAGE('Monthly Storage'!H185:H215) -> 78.37870968 | I24: =AVERAGE('Monthly Storage'!I185:I215) -> 31.37870968 | J24: =AVERAGE('Monthly Storage'!J185:J215) -> 18.22870968 | K24: =AVERAGE('Monthly Storage'!K185:K215) -> 28.20193548 | L24: =AVERAGE('Monthly Storage'!L185:L215) -> 115.6458065 | M24: =AVERAGE('Monthly Storage'!M185:M215) -> 95.76806452 | N24: =AVERAGE('Monthly Storage'!N185:N215) -> 47.59129032 | O24: =AVERAGE('Monthly Storage'!O185:O215) -> 51.08709677 | P24: =AVERAGE('Monthly Storage'!P185:P215) -> 86.57612903 | Q24: =AVERAGE('Monthly Storage'!Q185:Q215) -> 64.24451613 | R24: =AVERAGE('Monthly Storage'!R185:R215) -> 155.4667742 | S24: =AVERAGE('Monthly Storage'!S185:S215) -> 89.46129032 | T24: =AVERAGE('Monthly Storage'!T185:T215) -> 139.6358065 | U24: =AVERAGE('Monthly Storage'!U185:U215) -> 91.20419355 | V24: =AVERAGE('Monthly Storage'!V185:V215) -> 91.61193548 | W24: =AVERAGE('Monthly Storage'!W185:W215) -> 101.6403226 | X24: =AVERAGE('Monthly Storage'!X185:X215) -> 70.54387097 | Y24: =AVERAGE('Monthly Storage'!Y185:Y215) -> 98.00483871 | Z24: =AVERAGE('Monthly Storage'!Z185:Z215) -> 108.7819355 | AA24: =AVERAGE('Monthly Storage'!AA185:AA215) -> 122.2141935 | AB24: =AVERAGE('Monthly Storage'!AB185:AB215) -> 65.60741935 | AC24: =AVERAGE('Monthly Storage'!AC185:AC215) -> 125.1990323 | AD24: =AVERAGE('Monthly Storage'!AD185:AD215) -> 101.9125806 | AE24: =AVERAGE('Monthly Storage'!AE185:AE215) -> 51.69870968 | AF24: =AVERAGE('Monthly Storage'!AF185:AF215) -> 111.7648387 | AG24: =AVERAGE('Monthly Storage'!AG185:AG215) -> 54.78903226 | AH24: =AVERAGE('Monthly Storage'!AH185:AH215) -> 53.78712903 | AI24: =AVERAGE('Monthly Storage'!AI185:AI215) -> 101.8927097 | AJ24: =AVERAGE('Monthly Storage'!AJ185:AJ215) -> 122.2268387 | AK24: =AVERAGE('Monthly Storage'!AK185:AK215) -> 79.68732258 | AL24: =AVERAGE('Monthly Storage'!AL185:AL215) ->  | AM24: =AVERAGE('Monthly Storage'!AM185:AM215) ->  | AN24: =AVERAGE('Monthly Storage'!AN185:AN215) ->  | AO24: =AVERAGE('Monthly Storage'!AO185:AO215) ->  | AP24: =AVERAGE('Monthly Storage'!AP185:AP215) ->  | AQ24: =AVERAGE('Monthly Storage'!AQ185:AQ215) ->  | AR24: =AVERAGE('Monthly Storage'!AR185:AR215) ->  | AS24: =AVERAGE('Monthly Storage'!AS185:AS215) ->  | AT24: =AVERAGE('Monthly Storage'!AT185:AT215) ->  | AU24: =AVERAGE('Monthly Storage'!AU185:AU215) ->  | AV24: =AVERAGE('Monthly Storage'!AV185:AV215) ->  | AW24: =AVERAGE('Monthly Storage'!AW185:AW215) ->  | AX24: =AVERAGE('Monthly Storage'!AX185:AX215) ->  | AY24: =AVERAGE('Monthly Storage'!AY185:AY215) ->  | AZ24: =AVERAGE('Monthly Storage'!AZ185:AZ215) ->  | BA24: =AVERAGE('Monthly Storage'!BA185:BA215) -> 
B25: ส.ค. | C25: 111.6944409 | D25: =AVERAGE('Monthly Storage'!D216:D246) -> 111.226129 | E25: =AVERAGE('Monthly Storage'!E216:E246) -> 59.96096774 | F25: =AVERAGE('Monthly Storage'!F216:F246) -> 155.443871 | G25: =AVERAGE('Monthly Storage'!G216:G246) -> 172.1609677 | H25: =AVERAGE('Monthly Storage'!H216:H246) -> 89.05516129 | I25: =AVERAGE('Monthly Storage'!I216:I246) -> 35.64741935 | J25: =AVERAGE('Monthly Storage'!J216:J246) -> 28.64709677 | K25: =AVERAGE('Monthly Storage'!K216:K246) -> 35.04225806 | L25: =AVERAGE('Monthly Storage'!L216:L246) -> 229.9429032 | M25: =AVERAGE('Monthly Storage'!M216:M246) -> 151.706129 | N25: =AVERAGE('Monthly Storage'!N216:N246) -> 67.06935484 | O25: =AVERAGE('Monthly Storage'!O216:O246) -> 67.59193548 | P25: =AVERAGE('Monthly Storage'!P216:P246) -> 72.17580645 | Q25: =AVERAGE('Monthly Storage'!Q216:Q246) -> 83.69741935 | R25: =AVERAGE('Monthly Storage'!R216:R246) -> 150.8041935 | S25: =AVERAGE('Monthly Storage'!S216:S246) -> 162.7922581 | T25: =AVERAGE('Monthly Storage'!T216:T246) -> 140.48 | U25: =AVERAGE('Monthly Storage'!U216:U246) -> 100.41 | V25: =AVERAGE('Monthly Storage'!V216:V246) -> 147.1967742 | W25: =AVERAGE('Monthly Storage'!W216:W246) -> 178.2132258 | X25: =AVERAGE('Monthly Storage'!X216:X246) -> 98.60612903 | Y25: =AVERAGE('Monthly Storage'!Y216:Y246) -> 112.7951613 | Z25: =AVERAGE('Monthly Storage'!Z216:Z246) -> 131.6212903 | AA25: =AVERAGE('Monthly Storage'!AA216:AA246) -> 125.0116129 | AB25: =AVERAGE('Monthly Storage'!AB216:AB246) -> 117.9451613 | AC25: =AVERAGE('Monthly Storage'!AC216:AC246) -> 170.2996774 | AD25: =AVERAGE('Monthly Storage'!AD216:AD246) -> 99.82225806 | AE25: =AVERAGE('Monthly Storage'!AE216:AE246) -> 73.72548387 | AF25: =AVERAGE('Monthly Storage'!AF216:AF246) -> 124.86 | AG25: =AVERAGE('Monthly Storage'!AG216:AG246) -> 58.50387097 | AH25: =AVERAGE('Monthly Storage'!AH216:AH246) -> 70.51429032 | AI25: =AVERAGE('Monthly Storage'!AI216:AI246) -> 136.5543548 | AJ25: =AVERAGE('Monthly Storage'!AJ216:AJ246) -> 126.3933871 | AK25: =AVERAGE('Monthly Storage'!AK216:AK246) -> 97.28083871 | AL25: =AVERAGE('Monthly Storage'!AL216:AL246) ->  | AM25: =AVERAGE('Monthly Storage'!AM216:AM246) ->  | AN25: =AVERAGE('Monthly Storage'!AN216:AN246) ->  | AO25: =AVERAGE('Monthly Storage'!AO216:AO246) ->  | AP25: =AVERAGE('Monthly Storage'!AP216:AP246) ->  | AQ25: =AVERAGE('Monthly Storage'!AQ216:AQ246) ->  | AR25: =AVERAGE('Monthly Storage'!AR216:AR246) ->  | AS25: =AVERAGE('Monthly Storage'!AS216:AS246) ->  | AT25: =AVERAGE('Monthly Storage'!AT216:AT246) ->  | AU25: =AVERAGE('Monthly Storage'!AU216:AU246) ->  | AV25: =AVERAGE('Monthly Storage'!AV216:AV246) ->  | AW25: =AVERAGE('Monthly Storage'!AW216:AW246) ->  | AX25: =AVERAGE('Monthly Storage'!AX216:AX246) ->  | AY25: =AVERAGE('Monthly Storage'!AY216:AY246) ->  | AZ25: =AVERAGE('Monthly Storage'!AZ216:AZ246) ->  | BA25: =AVERAGE('Monthly Storage'!BA216:BA246) -> 
B26: ก.ย. | C26: 164.634301 | D26: =AVERAGE('Monthly Storage'!D247:D276) -> 138.3356667 | E26: =AVERAGE('Monthly Storage'!E247:E276) -> 171.4393333 | F26: =AVERAGE('Monthly Storage'!F247:F276) -> 176.641 | G26: =AVERAGE('Monthly Storage'!G247:G276) -> 218.8503333 | H26: =AVERAGE('Monthly Storage'!H247:H276) -> 116.6076667 | I26: =AVERAGE('Monthly Storage'!I247:I276) -> 116.6433333 | J26: =AVERAGE('Monthly Storage'!J247:J276) -> 51.51433333 | K26: =AVERAGE('Monthly Storage'!K247:K276) -> 51.82033333 | L26: =AVERAGE('Monthly Storage'!L247:L276) -> 289.4726667 | M26: =AVERAGE('Monthly Storage'!M247:M276) -> 272.65 | N26: =AVERAGE('Monthly Storage'!N247:N276) -> 148.5196667 | O26: =AVERAGE('Monthly Storage'!O247:O276) -> 115.9796667 | P26: =AVERAGE('Monthly Storage'!P247:P276) -> 107.0303333 | Q26: =AVERAGE('Monthly Storage'!Q247:Q276) -> 149.4933333 | R26: =AVERAGE('Monthly Storage'!R247:R276) -> 166.6373333 | S26: =AVERAGE('Monthly Storage'!S247:S276) -> 226.084 | T26: =AVERAGE('Monthly Storage'!T247:T276) -> 204.5346667 | U26: =AVERAGE('Monthly Storage'!U247:U276) -> 173.3943333 | V26: =AVERAGE('Monthly Storage'!V247:V276) -> 225.0533333 | W26: =AVERAGE('Monthly Storage'!W247:W276) -> 250.4516667 | X26: =AVERAGE('Monthly Storage'!X247:X276) -> 166.8393333 | Y26: =AVERAGE('Monthly Storage'!Y247:Y276) -> 159.335 | Z26: =AVERAGE('Monthly Storage'!Z247:Z276) -> 187.275 | AA26: =AVERAGE('Monthly Storage'!AA247:AA276) -> 156.677 | AB26: =AVERAGE('Monthly Storage'!AB247:AB276) -> 215.1696667 | AC26: =AVERAGE('Monthly Storage'!AC247:AC276) -> 228.5436667 | AD26: =AVERAGE('Monthly Storage'!AD247:AD276) -> 138.385 | AE26: =AVERAGE('Monthly Storage'!AE247:AE276) -> 135.6606667 | AF26: =AVERAGE('Monthly Storage'!AF247:AF276) -> 158.7236667 | AG26: =AVERAGE('Monthly Storage'!AG247:AG276) -> 63.28366667 | AH26: =AVERAGE('Monthly Storage'!AH247:AH276) -> 111.2234 | AI26: =AVERAGE('Monthly Storage'!AI247:AI276) -> 173.2116 | AJ26: =AVERAGE('Monthly Storage'!AJ247:AJ276) -> 167.4512667 | AK26: =AVERAGE('Monthly Storage'!AK247:AK276) -> 112.1273333 | AL26: =AVERAGE('Monthly Storage'!AL247:AL276) ->  | AM26: =AVERAGE('Monthly Storage'!AM247:AM276) ->  | AN26: =AVERAGE('Monthly Storage'!AN247:AN276) ->  | AO26: =AVERAGE('Monthly Storage'!AO247:AO276) ->  | AP26: =AVERAGE('Monthly Storage'!AP247:AP276) ->  | AQ26: =AVERAGE('Monthly Storage'!AQ247:AQ276) ->  | AR26: =AVERAGE('Monthly Storage'!AR247:AR276) ->  | AS26: =AVERAGE('Monthly Storage'!AS247:AS276) ->  | AT26: =AVERAGE('Monthly Storage'!AT247:AT276) ->  | AU26: =AVERAGE('Monthly Storage'!AU247:AU276) ->  | AV26: =AVERAGE('Monthly Storage'!AV247:AV276) ->  | AW26: =AVERAGE('Monthly Storage'!AW247:AW276) ->  | AX26: =AVERAGE('Monthly Storage'!AX247:AX276) ->  | AY26: =AVERAGE('Monthly Storage'!AY247:AY276) ->  | AZ26: =AVERAGE('Monthly Storage'!AZ247:AZ276) ->  | BA26: =AVERAGE('Monthly Storage'!BA247:BA276) -> 
B27: ต.ค. | C27: 203.6990458 | D27: =AVERAGE('Monthly Storage'!D277:D307) -> 139.4035484 | E27: =AVERAGE('Monthly Storage'!E277:E307) -> 222.4225806 | F27: =AVERAGE('Monthly Storage'!F277:F307) -> 198.0590323 | G27: =AVERAGE('Monthly Storage'!G277:G307) -> 294.6180645 | H27: =AVERAGE('Monthly Storage'!H277:H307) -> 134.2080645 | I27: =AVERAGE('Monthly Storage'!I277:I307) -> 158.1045161 | J27: =AVERAGE('Monthly Storage'!J277:J307) -> 99.42451613 | K27: =AVERAGE('Monthly Storage'!K277:K307) -> 78.70709677 | L27: =AVERAGE('Monthly Storage'!L277:L307) -> 282.1858065 | M27: =AVERAGE('Monthly Storage'!M277:M307) -> 266.3832258 | N27: =AVERAGE('Monthly Storage'!N277:N307) -> 177.593871 | O27: =AVERAGE('Monthly Storage'!O277:O307) -> 210.683871 | P27: =AVERAGE('Monthly Storage'!P277:P307) -> 114.8006452 | Q27: =AVERAGE('Monthly Storage'!Q277:Q307) -> 228.7525806 | R27: =AVERAGE('Monthly Storage'!R277:R307) -> 189.4683871 | S27: =AVERAGE('Monthly Storage'!S277:S307) -> 261.0996774 | T27: =AVERAGE('Monthly Storage'!T277:T307) -> 258.3648387 | U27: =AVERAGE('Monthly Storage'!U277:U307) -> 220.4070968 | V27: =AVERAGE('Monthly Storage'!V277:V307) -> 284.1322581 | W27: =AVERAGE('Monthly Storage'!W277:W307) -> 293.9445161 | X27: =AVERAGE('Monthly Storage'!X277:X307) -> 234.9877419 | Y27: =AVERAGE('Monthly Storage'!Y277:Y307) -> 206.0483871 | Z27: =AVERAGE('Monthly Storage'!Z277:Z307) -> 251.7135484 | AA27: =AVERAGE('Monthly Storage'!AA277:AA307) -> 209.5619355 | AB27: =AVERAGE('Monthly Storage'!AB277:AB307) -> 256.0816129 | AC27: =AVERAGE('Monthly Storage'!AC277:AC307) -> 269.9787097 | AD27: =AVERAGE('Monthly Storage'!AD277:AD307) -> 165.6348387 | AE27: =AVERAGE('Monthly Storage'!AE277:AE307) -> 186.6616129 | AF27: =AVERAGE('Monthly Storage'!AF277:AF307) -> 170.3403226 | AG27: =AVERAGE('Monthly Storage'!AG277:AG307) -> 67.60225806 | AH27: =AVERAGE('Monthly Storage'!AH277:AH307) -> 147.0596968 | AI27: =AVERAGE('Monthly Storage'!AI277:AI307) -> 226.7548065 | AJ27: =AVERAGE('Monthly Storage'!AJ277:AJ307) -> 216.8788484 | AK27: =AVERAGE('Monthly Storage'!AK277:AK307) -> 0 | AL27: =AVERAGE('Monthly Storage'!AL277:AL307) ->  | AM27: =AVERAGE('Monthly Storage'!AM277:AM307) ->  | AN27: =AVERAGE('Monthly Storage'!AN277:AN307) ->  | AO27: =AVERAGE('Monthly Storage'!AO277:AO307) ->  | AP27: =AVERAGE('Monthly Storage'!AP277:AP307) ->  | AQ27: =AVERAGE('Monthly Storage'!AQ277:AQ307) ->  | AR27: =AVERAGE('Monthly Storage'!AR277:AR307) ->  | AS27: =AVERAGE('Monthly Storage'!AS277:AS307) ->  | AT27: =AVERAGE('Monthly Storage'!AT277:AT307) ->  | AU27: =AVERAGE('Monthly Storage'!AU277:AU307) ->  | AV27: =AVERAGE('Monthly Storage'!AV277:AV307) ->  | AW27: =AVERAGE('Monthly Storage'!AW277:AW307) ->  | AX27: =AVERAGE('Monthly Storage'!AX277:AX307) ->  | AY27: =AVERAGE('Monthly Storage'!AY277:AY307) ->  | AZ27: =AVERAGE('Monthly Storage'!AZ277:AZ307) ->  | BA27: =AVERAGE('Monthly Storage'!BA277:BA307) -> 
B28: พ.ย. | C28: 217.3470556 | D28: =AVERAGE('Monthly Storage'!D308:D337) -> 134.557 | E28: =AVERAGE('Monthly Storage'!E308:E337) -> 237.8896667 | F28: =AVERAGE('Monthly Storage'!F308:F337) -> 209.3523333 | G28: =AVERAGE('Monthly Storage'!G308:G337) -> 294.1046667 | H28: =AVERAGE('Monthly Storage'!H308:H337) -> 150.2943333 | I28: =AVERAGE('Monthly Storage'!I308:I337) -> 177.9853333 | J28: =AVERAGE('Monthly Storage'!J308:J337) -> 106.6566667 | K28: =AVERAGE('Monthly Storage'!K308:K337) -> 85.79466667 | L28: =AVERAGE('Monthly Storage'!L308:L337) -> 243.9783333 | M28: =AVERAGE('Monthly Storage'!M308:M337) -> 265.812 | N28: =AVERAGE('Monthly Storage'!N308:N337) -> 196.9423333 | O28: =AVERAGE('Monthly Storage'!O308:O337) -> 222.668 | P28: =AVERAGE('Monthly Storage'!P308:P337) -> 110.346 | Q28: =AVERAGE('Monthly Storage'!Q308:Q337) -> 254.2213333 | R28: =AVERAGE('Monthly Storage'!R308:R337) -> 197.3436667 | S28: =AVERAGE('Monthly Storage'!S308:S337) -> 272.9496667 | T28: =AVERAGE('Monthly Storage'!T308:T337) -> 295.65 | U28: =AVERAGE('Monthly Storage'!U308:U337) -> 220.1673333 | V28: =AVERAGE('Monthly Storage'!V308:V337) -> 296.68 | W28: =AVERAGE('Monthly Storage'!W308:W337) -> 302.1986667 | X28: =AVERAGE('Monthly Storage'!X308:X337) -> 253.5153333 | Y28: =AVERAGE('Monthly Storage'!Y308:Y337) -> 233.483 | Z28: =AVERAGE('Monthly Storage'!Z308:Z337) -> 275.8463333 | AA28: =AVERAGE('Monthly Storage'!AA308:AA337) -> 229.65 | AB28: =AVERAGE('Monthly Storage'!AB308:AB337) -> 277.3376667 | AC28: =AVERAGE('Monthly Storage'!AC308:AC337) -> 280.0123333 | AD28: =AVERAGE('Monthly Storage'!AD308:AD337) -> 173.9823333 | AE28: =AVERAGE('Monthly Storage'!AE308:AE337) -> 232.2633333 | AF28: =AVERAGE('Monthly Storage'!AF308:AF337) -> 185.3333333 | AG28: =AVERAGE('Monthly Storage'!AG308:AG337) -> 72.05666667 | AH28: =AVERAGE('Monthly Storage'!AH308:AH337) -> 169.5489 | AI28: =AVERAGE('Monthly Storage'!AI308:AI337) -> 257.5000667 | AJ28: =AVERAGE('Monthly Storage'!AJ308:AJ337) -> 256.3315333 | AK28: =AVERAGE('Monthly Storage'!AK308:AK337) -> 0 | AL28: =AVERAGE('Monthly Storage'!AL308:AL337) ->  | AM28: =AVERAGE('Monthly Storage'!AM308:AM337) ->  | AN28: =AVERAGE('Monthly Storage'!AN308:AN337) ->  | AO28: =AVERAGE('Monthly Storage'!AO308:AO337) ->  | AP28: =AVERAGE('Monthly Storage'!AP308:AP337) ->  | AQ28: =AVERAGE('Monthly Storage'!AQ308:AQ337) ->  | AR28: =AVERAGE('Monthly Storage'!AR308:AR337) ->  | AS28: =AVERAGE('Monthly Storage'!AS308:AS337) ->  | AT28: =AVERAGE('Monthly Storage'!AT308:AT337) ->  | AU28: =AVERAGE('Monthly Storage'!AU308:AU337) ->  | AV28: =AVERAGE('Monthly Storage'!AV308:AV337) ->  | AW28: =AVERAGE('Monthly Storage'!AW308:AW337) ->  | AX28: =AVERAGE('Monthly Storage'!AX308:AX337) ->  | AY28: =AVERAGE('Monthly Storage'!AY308:AY337) ->  | AZ28: =AVERAGE('Monthly Storage'!AZ308:AZ337) ->  | BA28: =AVERAGE('Monthly Storage'!BA308:BA337) -> 
B29: ธ.ค. | C29: 218.9058053 | D29: =AVERAGE('Monthly Storage'!D338:D368) -> 136.3493548 | E29: =AVERAGE('Monthly Storage'!E338:E368) -> 251.7867742 | F29: =AVERAGE('Monthly Storage'!F338:F368) -> 208.9012903 | G29: =AVERAGE('Monthly Storage'!G338:G368) -> 290.6477419 | H29: =AVERAGE('Monthly Storage'!H338:H368) -> 156.0022581 | I29: =AVERAGE('Monthly Storage'!I338:I368) -> 183.1241935 | J29: =AVERAGE('Monthly Storage'!J338:J368) -> 111.5219355 | K29: =AVERAGE('Monthly Storage'!K338:K368) -> 87.75741935 | L29: =AVERAGE('Monthly Storage'!L338:L368) -> 205.2474194 | M29: =AVERAGE('Monthly Storage'!M338:M368) -> 274.4709677 | N29: =AVERAGE('Monthly Storage'!N338:N368) -> 208.2119355 | O29: =AVERAGE('Monthly Storage'!O338:O368) -> 226.1416129 | P29: =AVERAGE('Monthly Storage'!P338:P368) -> 110.3570968 | Q29: =AVERAGE('Monthly Storage'!Q338:Q368) -> 258.7174194 | R29: =AVERAGE('Monthly Storage'!R338:R368) -> 198.9606452 | S29: =AVERAGE('Monthly Storage'!S338:S368) -> 265.873871 | T29: =AVERAGE('Monthly Storage'!T338:T368) -> 290.8919355 | U29: =AVERAGE('Monthly Storage'!U338:U368) -> 216.9983871 | V29: =AVERAGE('Monthly Storage'!V338:V368) -> 295.4248387 | W29: =AVERAGE('Monthly Storage'!W338:W368) -> 300.3558065 | X29: =AVERAGE('Monthly Storage'!X338:X368) -> 253.0632258 | Y29: =AVERAGE('Monthly Storage'!Y338:Y368) -> 230.9125806 | Z29: =AVERAGE('Monthly Storage'!Z338:Z368) -> 275.0409677 | AA29: =AVERAGE('Monthly Storage'!AA338:AA368) -> 232.0658065 | AB29: =AVERAGE('Monthly Storage'!AB338:AB368) -> 271.6193548 | AC29: =AVERAGE('Monthly Storage'!AC338:AC368) -> 280.136129 | AD29: =AVERAGE('Monthly Storage'!AD338:AD368) -> 181.7274194 | AE29: =AVERAGE('Monthly Storage'!AE338:AE368) -> 250.9006452 | AF29: =AVERAGE('Monthly Storage'!AF338:AF368) -> 187.8477419 | AG29: =AVERAGE('Monthly Storage'!AG338:AG368) -> 74.28322581 | AH29: =AVERAGE('Monthly Storage'!AH338:AH368) -> 180.6656452 | AI29: =AVERAGE('Monthly Storage'!AI338:AI368) -> 261.9327742 | AJ29: =AVERAGE('Monthly Storage'!AJ338:AJ368) -> 265.9531548 | AK29: =AVERAGE('Monthly Storage'!AK338:AK368) -> 0 | AL29: =AVERAGE('Monthly Storage'!AL338:AL368) ->  | AM29: =AVERAGE('Monthly Storage'!AM338:AM368) ->  | AN29: =AVERAGE('Monthly Storage'!AN338:AN368) ->  | AO29: =AVERAGE('Monthly Storage'!AO338:AO368) ->  | AP29: =AVERAGE('Monthly Storage'!AP338:AP368) ->  | AQ29: =AVERAGE('Monthly Storage'!AQ338:AQ368) ->  | AR29: =AVERAGE('Monthly Storage'!AR338:AR368) ->  | AS29: =AVERAGE('Monthly Storage'!AS338:AS368) ->  | AT29: =AVERAGE('Monthly Storage'!AT338:AT368) ->  | AU29: =AVERAGE('Monthly Storage'!AU338:AU368) ->  | AV29: =AVERAGE('Monthly Storage'!AV338:AV368) ->  | AW29: =AVERAGE('Monthly Storage'!AW338:AW368) ->  | AX29: =AVERAGE('Monthly Storage'!AX338:AX368) ->  | AY29: =AVERAGE('Monthly Storage'!AY338:AY368) ->  | AZ29: =AVERAGE('Monthly Storage'!AZ338:AZ368) ->  | BA29: =AVERAGE('Monthly Storage'!BA338:BA368) -> 
B30: เฉลี่ยรายปี | D30: =AVERAGE(D18:D29) -> 152.4189919 | E30: 124.3994265 | F30: 186.4991893 | G30: 191.9529235 | H30: 158.4441935 | I30: 99.96080908 | J30: 86.23823387 | K30: 65.87602317 | L30: 143.3958048 | M30: 177.6205182 | N30: 160.6869288 | O30: 150.2717989 | P30: 125.9808147 | Q30: 124.3125529 | R30: 192.1886045 | S30: 176.7183314 | T30: 205.1063072 | U30: 183.9509134 | V30: 181.158589 | W30: 210.8093189 | X30: 190.8818603 | Y30: 175.9534235 | Z30: 176.5696171 | AA30: 181.0062286 | AB30: 176.6102568 | AC30: 213.2433053 | AD30: 165.4069713 | AE30: 135.0466205 | AF30: 166.0945246 | AG30: 97.44074379 | AH30: 85.439109 | AI30: 160.4765975 | AJ30: =AVERAGE(AJ18:AJ29) -> 195.605334 | AK30: 115.0970527
C34: N | D34: α
D35: 0.2 | E35: 0.1 | F35: 0.05 | G35: 0.01
C36: 5 | D36: 0.45 | E36: 0.51 | F36: 0.56 | G36: 0.67
C37: 10 | D37: 0.32 | E37: 0.37 | F37: 0.41 | G37: 0.49
C38: 15 | D38: 0.27 | E38: 0.3 | F38: 0.34 | G38: 0.4
C39: 20 | D39: 0.23 | E39: 0.26 | F39: 0.29 | G39: 0.36
C40: 25 | D40: 0.21 | E40: 0.24 | F40: 0.27 | G40: 0.32
C41: 30 | D41: 0.19 | E41: 0.22 | F41: 0.24 | G41: 0.29
C42: 35 | D42: 0.18 | E42: 0.2 | F42: 0.23 | G42: 0.27
C43: 40 | D43: 0.17 | E43: 0.19 | F43: 0.21 | G43: 0.25
C44: 45 | D44: 0.16 | E44: 0.18 | F44: 0.2 | G44: 0.24
C45: 50 | D45: 0.15 | E45: 0.17 | F45: 0.19 | G45: 0.23
C46: 51 | D46: =IF($G$48>50,1.07/($G$48^0.5),"1.07/√N") -> 1.07/√N | E46: =IF($G$48>50,1.22/($G$48^0.5),"1.22/√N") -> 1.22/√N | F46: =IF($G$48>50,1.36/($G$48^0.5),"1.36/√N") -> 1.36/√N | G46: =IF($G$48>50,1.63/($G$48^0.5),"1.63/√N") -> 1.63/√N
B48: X1 | C48: =OFFSET(C35,MATCH(G48,C36:C45,1),0,1,1) -> 30 | D48: X2 | E48: =OFFSET(C35,MATCH(G48,C36:C45,1)+1,0,1,1) -> 35 | F48: X | G48: =COUNT(D3:IV3) -> 33 | H48: X > 50
A49: 0.01 | B49: Y1 0.01 | C49: =OFFSET(C35,MATCH(G48,C36:C45,1),4,1,1) -> 0.29 | D49: Y2 0.01 | E49: =OFFSET(C35,MATCH(G48,C36:C45,1)+1,4,1,1) -> 0.27 | F49: Y 0.01 | G49: =C49+((E49-C49)*(G48-C48)/(E48-C48)) -> 0.278 | H49: =IF(G48>50,D46,"") -> 
A50: 0.05 | B50: Y1 0.05 | C50: =OFFSET(C35,MATCH(G48,C36:C45,1),3,1,1) -> 0.24 | D50: Y2 0.05 | E50: =OFFSET(C35,MATCH(G48,C36:C45,1)+1,3,1,1) -> 0.23 | F50: Y 0.05 | G50: =C50+((E50-C50)*(G48-C48)/(E48-C48)) -> 0.234 | H50: =IF(G48>50,E46,"") -> 
A51: 0.1 | B51: Y1 0.10 | C51: =OFFSET(C35,MATCH(G48,C36:C45,1),2,1,1) -> 0.22 | D51: Y2 0.10 | E51: =OFFSET(C35,MATCH(G48,C36:C45,1)+1,2,1,1) -> 0.2 | F51: Y 0.10 | G51: =C51+((E51-C51)*(G48-C48)/(E48-C48)) -> 0.208 | H51: =IF(G48>50,F46,"") -> 
A52: 0.2 | B52: Y1 0.20 | C52: =OFFSET(C35,MATCH(G48,C36:C45,1),1,1,1) -> 0.19 | D52: Y2 0.20 | E52: =OFFSET(C35,MATCH(G48,C36:C45,1)+1,1,1,1) -> 0.18 | F52: Y 0.20 | G52: =C52+((E52-C52)*(G48-C48)/(E48-C48)) -> 0.184 | H52: =IF(G48>50,G46,"") -> 
C58: จำนวนปี | D58: =COUNT(D3:IV3) -> 33 | E58: =ROUND(($D$58)*0.2,0) -> 7 | F58: =ROUND(($D$58)*0.8,0) -> 26
B59: เดือน | C59: ปีน้ำแล้ว 20% | D59: ปีน้ำมาก 80% | E59: น้ำแล้ง 20% | F59: น้ำมาก 80% | H59: น้ำแล้ง | K59: น้ำมาก
C60: =OFFSET(C3,0,MATCH(C73,D30:AP30,0),1,1)+543 -> 2530 | D60: =OFFSET(C3,0,MATCH(D73,D30:AP30,0),1,1)+543 -> 2531 | E60: ประจำเดือน | F60: ประจำเดือน | H60: ระดับ | I60: ปี พ.ศ. | J60: ค่าเฉลี่ยนรายปี | K60: ระดับ | L60: ปี พ.ศ. | M60: ค่าเฉลี่ยนรายปี
A61: ค่าปริมาณน้ำเฉลี่ยรายเดือน | B61: ม.ค. | C61: =OFFSET(C18,0,MATCH($C$73,$D$30:$AP$30,0),1,1) -> 135.1587097 | D61: =OFFSET(C18,0,MATCH($D$73,$D$30:$AP$30,0),1,1) -> 243.6964516 | E61: =SMALL(OFFSET(D18,0,0,1,$D$58),ROUND(($D$58)*0.2,0)) -> 168.2422581 | F61: =SMALL(OFFSET(D18,0,0,1,$D$58),ROUND(($D$58)*0.8,0)) -> 264.2464516 | G61: 1 | H61: =IF(G61<=$E$58,G61/$E$58*0.2,"") -> 0.02857142857 | I61: =IF(H61<>"",OFFSET($C$3,0,MATCH(J61,$D$30:$AP$30,0),1,1)+543,"") -> 2536 | J61: =IF(H61<>"",SMALL(OFFSET($D$30,0,0,1,$D$58),ROUND(($D$58)*H61,0)),"") -> 65.87602317 | K61: =IF(G71<=$D$58,ROUND((G71/$D$58*100),1)/100,"") -> 0.788 | L61: =IF(K61<>"",OFFSET($C$3,0,MATCH(M61,$D$30:$AP$30,0),1,1)+543,"") -> 2531 | M61: =IF(K61<>"",SMALL(OFFSET($D$30,0,0,1,$D$58),ROUND(($D$58)*K61,0)),"") -> 186.4991893
B62: ก.พ. | C62: 123.755 | D62: 218.9321429 | E62: 154.89 | F62: 243.5192857 | G62: 2 | H62: 0.05714285714 | I62: =IF(H62<>"",OFFSET($C$3,0,MATCH(J62,$D$30:$AP$30,0),1,1)+543,"") -> 2559 | J62: 85.439109 | K62: 0.818 | L62: =IF(K62<>"",OFFSET($C$3,0,MATCH(M62,$D$30:$AP$30,0),1,1)+543,"") -> 2549 | M62: 190.8818603
B63: มี.ค. | C63: 97.76483871 | D63: 185.5932258 | E63: 125.1816129 | F63: 208.1003226 | G63: 3 | H63: 0.08571428571 | I63: 2535 | J63: 86.23823387 | K63: 0.848 | L63: 2532 | M63: 191.9529235
B64: เม.ย. | C64: 67.02666667 | D64: 155.6886667 | E64: 83.13733333 | F64: 162.1196667 | G64: 4 | H64: 0.1142857143 | I64: 2558 | J64: 97.44074379 | K64: 0.879 | L64: 2543 | M64: 192.1886045
B65: พ.ค. | C65: 51.58967742 | D65: 157.9203226 | E65: 54.89709677 | F65: 139.8422581 | G65: 5 | H65: 0.1428571429 | I65: 2534 | J65: 99.96080908 | K65: 0.909 | L65: 2561 | M65: 195.605334
B66: มิ.ย. | C66: 42.456 | D66: 181.15 | E66: 65.327 | F66: 119.7463333 | G66: 6 | H66: 0.1714285714 | I66: 2542 | J66: 124.3125529 | K66: 0.939 | L66: 2545 | M66: 205.1063072
B67: ก.ค. | C67: 31.54290323 | D67: 146.6119355 | E67: 51.69870968 | F67: 115.6458065 | G67: 7 | H67: 0.2 | I67: 2530 | J67: 124.3994265 | K67: 0.97 | L67: 2548 | M67: 210.8093189
B68: ส.ค. | C68: 59.96096774 | D68: 155.443871 | E68: 67.59193548 | F68: 150.8041935 | G68: 8 | K68: 1 | L68: 2554 | M68: 213.2433053
B69: ก.ย. | C69: 171.4393333 | D69: 176.641 | E69: 116.6076667 | F69: 215.1696667 | G69: 9
B70: ต.ค. | C70: 222.4225806 | D70: 198.0590323 | E70: 147.0596968 | F70: 258.3648387 | G70: 10
B71: พ.ย. | C71: 237.8896667 | D71: 209.3523333 | E71: 169.5489 | F71: 272.9496667 | G71: =F58 -> 26
B72: ธ.ค. | C72: 251.7867742 | D72: 208.9012903 | E72: 180.6656452 | F72: 271.6193548 | G72: =G71+1 -> 27
B73: ค่าเฉลี่ยรายปี | C73: =SMALL(OFFSET(D30,0,0,1,$D$58),ROUND((D58)*0.2,0)) -> 124.3994265 | D73: =SMALL(OFFSET(D30,0,0,1,$D$58),ROUND((D58)*0.8,0)) -> 186.4991893 | G73: 28
G74: 29
G75: 30
G76: 31
G77: 32
G78: 33
G79: 34
G80: 35

Sheet NRI
B1: 1 | C1: Copy ค่า NRI และใส่ข้อมูลอ่างเก็บน้ำ | O1: อ่างเก็บน้ำแม่งัด
A2: Monthly NRI | B2: ม.ค. | C2: ก.พ. | D2: มี.ค. | E2: เม.ย. | F2: พ.ค. | G2: มิ.ย. | H2: ก.ค. | I2: ส.ค. | J2: ก.ย. | K2: ต.ค. | L2: พ.ย. | M2: ธ.ค. | O2: เก็บกักปกติ | P2: 265
A3: Year/Month | B3: Jan | C3: Feb | D3: Mar | E3: Apr | F3: May | G3: Jun | H3: Jul | I3: Aug | J3: Sep | K3: Oct | L3: Nov | M3: Dec | O3: เก็บกักต่ำสุด | P3: 12
A4: 1986 | B4: -7.47 | C4: -15.23 | D4: -45.24 | E4: -29.27 | F4: -17.37 | G4: -36.18 | H4: 1.83 | I4: 22.17 | J4: 30.56 | K4: -12.07 | L4: 3.28 | M4: -3.94
A5: 1987 | B5: -4.07 | C5: -17.32 | D5: -32.4 | E5: -23.12 | F5: -11.76 | G5: -7.5 | H5: -8.65 | I5: 123.55 | J5: 58.62 | K5: 15.4 | L5: 22.25 | M5: 3.48
A6: 1988 | B6: -21.17 | C6: -26.4 | D6: -38.9 | E6: -20.59 | F6: 24.17 | G6: -13.55 | H6: -10.22 | I6: 22.57 | J6: 15.75 | K6: 25.38 | L6: 1.41 | M6: -6.72
A7: 1989 | B7: -19.38 | C7: -16.22 | D7: -26.47 | E7: -27.19 | F7: -2.08 | G7: 15.02 | H7: 30.35 | I7: 26.86 | J7: 87.14 | K7: 28.02 | L7: -7.81 | M7: -5.23
A8: 1990 | B8: -30.23 | C8: -22.1 | D8: -27.75 | E8: -52.97 | F8: -27.21 | G8: -36 | H8: -16.88 | I8: 27.79 | J8: 25.74 | K8: 17.81 | L8: 9.58 | M8: 0.52
A9: 1991 | B9: -23.71 | C9: -27.99 | D9: -35.66 | E9: -15.73 | F9: -14.3 | G9: 0.42 | H9: -16.44 | I9: 54.22 | J9: 69.09 | K9: 23.52 | L9: 13.28 | M9: 0.14
A10: 1992 | B10: -17.65 | C10: -22.37 | D10: -37.29 | E10: -43.67 | F10: -22.37 | G10: -16.7 | H10: 2.13 | I10: 6.11 | J10: 57.88 | K10: 16.37 | L10: 4.41 | M10: 8.45
A11: 1993 | B11: -2.19 | C11: -18.22 | D11: -27.09 | E11: -28.06 | F11: -12.94 | G11: -9.42 | H11: 16.14 | I11: 2.97 | J11: 23.51 | K11: 22.22 | L11: 2.97 | M11: -1.53
A12: 1994 | B12: -18.96 | C12: -17.36 | D12: -1.43 | E12: -3.25 | F12: 15.22 | G12: 36 | H12: 47.99 | I12: 154.98 | J12: -12.29 | K12: -19.24 | L12: -46.6 | M12: -37.21
A13: 1995 | B13: -21.51 | C13: -5.8 | D13: -18.14 | E13: -27.68 | F13: -7.66 | G13: -13.83 | H13: 10.69 | I13: 119.3 | J13: 47.71 | K13: -2.64 | L13: 10.15 | M13: -2.07
A14: 1996 | B14: -16.27 | C14: -36.88 | D14: -33.45 | E14: -56.41 | F14: -23.34 | G14: -28.22 | H14: -38.15 | I14: 75.72 | J14: 48.58 | K14: 22.37 | L14: 18.01 | M14: 5.04
A15: 1997 | B15: -4.48 | C15: -25.1 | D15: -19.46 | E15: -31.34 | F15: -34.08 | G15: -33.26 | H15: -1.82 | I15: 29.7 | J15: 92.68 | K15: 40.69 | L15: 2.27 | M15: -0.99
A16: 1998 | B16: -16.07 | C16: -24.67 | D16: -40.12 | E16: -31.75 | F16: -6.7 | G16: -13.92 | H16: -14.36 | I16: -2.39 | J16: 44.51 | K16: -7.39 | L16: 0.34 | M16: -3.97
A17: 1999 | B17: -7.12 | C17: -14.93 | D17: -19.02 | E17: -12.57 | F17: 5 | G17: 9.41 | H17: -6.12 | I17: 52.85 | J17: 92.64 | K17: 36.82 | L17: 12.47 | M17: 0.59
A18: 2000 | B18: -6.84 | C18: -14.13 | D18: -23.44 | E18: -38.77 | F18: -12.5 | G18: -4.96 | H18: -3.33 | I18: -8.43 | J18: 38.68 | K18: 13.52 | L18: 1.25 | M18: -2.91
A19: 2001 | B19: -15.94 | C19: -18.2 | D19: -17.4 | E19: -36.37 | F19: -6.09 | G19: -10.9 | H19: 11.23 | I19: 96.86 | J19: 51.54 | K19: 21.06 | L19: -1.33 | M19: -11.29
A20: 2002 | B20: -17.54 | C20: -17.87 | D20: -37.02 | E20: -46.03 | F20: 0.58 | G20: 0.79 | H20: -5.84 | I20: 24.56 | J20: 86.89 | K20: 19.68 | L20: 32.58 | M20: -16.32
A21: 2003 | B21: -22.27 | C21: -22.75 | D21: -32.73 | E21: -42.53 | F21: -41.63 | G21: -29.11 | H21: -5.59 | I21: 31.84 | J21: 98.25 | K21: 6.94 | L21: -4.68 | M21: -6.62
A22: 2004 | B22: -21.73 | C22: -30.33 | D22: -32.11 | E22: -31.27 | F22: 0.87 | G22: -1.49 | H22: 21.73 | I22: 45.68 | J22: 119.24 | K22: 10.6 | L22: 3 | M22: -4.65
A23: 2005 | B23: -15.19 | C23: -40.36 | D23: -56.91 | E23: -48.92 | F23: -46.27 | G23: 5.48 | H23: 50.29 | I23: 72.34 | J23: 92.48 | K23: -2.72 | L23: -0.15 | M23: -3.62
A24: 2006 | B24: -14.21 | C24: -28.13 | D24: -53.59 | E24: -42.65 | F24: -27.74 | G24: -67.1 | H24: 29.27 | I24: 40.49 | J24: 63.97 | K24: 53.13 | L24: 2.91 | M24: -6.24
A25: 2007 | B25: -11.54 | C25: -22.88 | D25: -42.08 | E25: -38.22 | F25: 0.48 | G25: -25.77 | H25: -10.59 | I25: 41.77 | J25: 42.61 | K25: 34.91 | L25: 18.06 | M25: -12.29
A26: 2008 | B26: -19.68 | C26: -23.74 | D26: -42.58 | E26: -42.93 | F26: 2.39 | G26: 11.88 | H26: 10.34 | I26: 21.04 | J26: 90.11 | K26: 38.95 | L26: 7.87 | M26: -4.04
A27: 2009 | B27: -13.35 | C27: -26.44 | D27: -55.93 | E27: -61.46 | F27: -6.5 | G27: 11.26 | H27: -0.71 | I27: 16.37 | J27: 54.71 | K27: 37.56 | L27: 4.56 | M27: -3
A28: 2010 | B28: -7.53 | C28: -22.15 | D28: -42.11 | E28: -47.57 | F28: -36.76 | G28: -7.75 | H28: 2.47 | I28: 109.41 | J28: 65.11 | K28: 36.91 | L28: -7.82 | M28: -2.99
A29: 2011 | B29: -11.14 | C29: -20.36 | D29: -39.17 | E29: -35.54 | F29: -13.53 | G29: -12.92 | H29: -25.46 | I29: 106.27 | J29: 59.05 | K29: 0.16 | L29: 4.49 | M29: -3.01
A30: 2012 | B30: -16.3 | C30: -39.89 | D30: -45.72 | E30: -40.87 | F30: -10.03 | G30: -14.89 | H30: -9.74 | I30: 4.76 | J30: 53.54 | K30: 10.01 | L30: 10.66 | M30: 1.39
A31: 2013 | B31: -17.06 | C31: -16.23 | D31: -25.69 | E31: -44.36 | F31: -19.82 | G31: -4.22 | H31: -0.91 | I31: 40.39 | J31: 75.85 | K31: 52.12 | L31: 23.71 | M31: 10.8
A32: 2014 | B32: -15.62 | C32: -29.16 | D32: -37.14 | E32: -40.27 | F32: -23.72 | G32: -2.38 | H32: 10.21 | I32: 18.89 | J32: 31.36 | K32: 9.45 | L32: 12.42 | M32: -4.81
A33: 2015 | B33: -7.23 | C33: -20.15 | D33: -27.75 | E33: -27.53 | F33: -18.06 | G33: -21.02 | H33: -9.71 | I33: 9.08 | J33: 2.81 | K33: 4.83 | L33: 4.42 | M33: -1.15
A34: 2016 | B34: -9.648 | C34: -7.153 | D34: -9.14 | E34: -16.89 | F34: -0.781 | G34: 18.212 | H34: 12.803 | I34: 31.018 | J34: 41.697 | K34: 24.844 | L34: 21.529 | M34: 0.888
A35: 2017 | B35: -2.903 | C35: -18.392 | D35: -36.954 | E35: -34.008 | F35: -3.198 | G35: 4.579 | H35: 37.103 | I35: 27.95 | J35: 39.261 | K35: 58.238 | L35: 9.835 | M35: 0.474
A36: 2018 | B36: -7.033 | C36: -21.476 | D36: -37.122 | E36: -40.694 | F36: -7.293 | G36: -24.559 | H36: 3.521 | I36: 19.836 | J36: 39.554 | K36: 57.143 | L36: 20.534 | M36: 1.081
A54: Mean | B54: =AVERAGE(B4:B42) -> -14.03133333 | C54: =AVERAGE(C4:C42) -> -22.13275758 | D54: -33.24260606 | E54: -35.16612121 | F54: -12.27339394 | G54: -9.77569697 | H54: 3.441727273 | I54: 44.44012121 | J54: 55.41915152 | K54: 21.04833333 | L54: 6.359333333 | M54: -3.386272727
A58: 2 | B58: กราฟแบ่งฤดู
K59: =SUM(OFFSET('NRI (Auto)'!A133,0,MATCH(1,'NRI (Auto)'!B136:Y136,1),1,12)) -> -23 | L59: =((MIN('NRI (Auto)'!B133:Y133)*(MIN('NRI (Auto)'!B133:Y133)*-1+1))/2)+12+MIN('NRI (Auto)'!B133:Y133) -> -23
L60: =L59+2 -> -21
A80: 3 | B80: ใส่ NRI รายเดือน
A81: ปี ค.ศ. | B81: ปี พ.ศ. | C81: ม.ค. | D81: ก.พ. | E81: มี.ค. | F81: เม.ย. | G81: พ.ค. | H81: มิ.ย. | I81: ก.ค. | J81: ส.ค. | K81: ก.ย. | L81: ต.ค. | M81: พ.ย. | N81: ธ.ค.
A82: =A4 -> 1986 | B82: =A82+543 -> 2529 | C82: 150.76 | D82: 143.29 | E82: 128.06 | F82: 82.82 | G82: 53.55 | H82: 36.18 | I82: -1.83 | J82: -22.17 | K82: -30.56 | L82: 12.07 | M82: -3.28 | N82: 100.11
A83: =A82+1 -> 1987 | B83: =A83+543 -> 2530 | C83: 96.17 | D83: 92.1 | E83: 74.78 | F83: 42.38 | G83: 19.26 | H83: 7.5 | I83: 8.65 | J83: -123.55 | K83: -58.62 | L83: -15.4 | M83: -22.25 | N83: 92.96
A84: =A83+1 -> 1988 | B84: 2531 | C84: 96.44 | D84: 75.27 | E84: 48.87 | F84: 9.97 | G84: -10.62 | H84: 13.55 | I84: 10.22 | J84: -22.57 | K84: -15.75 | L84: -25.38 | M84: -1.41 | N84: 83.04
A85: 1989 | B85: 2532 | C85: 76.32 | D85: 56.94 | E85: 40.72 | F85: 14.25 | G85: -12.94 | H85: -15.02 | I85: -30.35 | J85: -26.86 | K85: -87.14 | L85: -28.02 | M85: 7.81 | N85: 201.49
A86: 1990 | B86: 2533 | C86: 196.26 | D86: 166.03 | E86: 143.93 | F86: 116.18 | G86: 63.21 | H86: 36 | I86: 16.88 | J86: -27.79 | K86: -25.74 | L86: -17.81 | M86: -9.58 | N86: 116.45
A87: 1991 | B87: 2534 | C87: 116.97 | D87: 93.26 | E87: 65.27 | F87: 29.61 | G87: 13.88 | H87: -0.42 | I87: 16.44 | J87: -54.22 | K87: -69.09 | L87: -23.52 | M87: -13.28 | N87: 159.91
A88: 1992 | B88: 2535 | C88: 160.05 | D88: 142.4 | E88: 120.03 | F88: 82.74 | G88: 39.07 | H88: 16.7 | I88: -2.13 | J88: -6.11 | K88: -57.88 | L88: -16.37 | M88: -4.41 | N88: 89.47
A89: 1993 | B89: 2536 | C89: 97.92 | D89: 95.73 | E89: 77.51 | F89: 50.42 | G89: 22.36 | H89: 9.42 | I89: -16.14 | J89: -2.97 | K89: -23.51 | L89: -22.22 | M89: -2.97 | N89: -8.69
A90: 1994 | B90: 2537 | C90: -10.22 | D90: -29.18 | E90: -46.54 | F90: -47.97 | G90: -51.22 | H90: -36 | I90: -47.99 | J90: -154.98 | K90: 12.29 | L90: 19.24 | M90: 46.6 | N90: 131.83
A91: 1995 | B91: 2538 | C91: 94.62 | D91: 73.11 | E91: 67.31 | F91: 49.17 | G91: 21.49 | H91: 13.83 | I91: -10.69 | J91: -119.3 | K91: -47.71 | L91: 2.64 | M91: -10.15 | N91: 196.64
A92: 1996 | B92: 2539 | C92: 194.57 | D92: 178.3 | E92: 141.42 | F92: 107.97 | G92: 51.56 | H92: 28.22 | I92: 38.15 | J92: -75.72 | K92: -48.58 | L92: -22.37 | M92: -18.01 | N92: 142.68
A93: 1997 | B93: 2540 | C93: 147.72 | D93: 143.24 | E93: 118.14 | F93: 98.68 | G93: 67.34 | H93: 33.26 | I93: 1.82 | J93: -29.7 | K93: -92.68 | L93: -40.69 | M93: -2.27 | N93: 134.22
A94: 1998 | B94: 2541 | C94: 133.23 | D94: 117.16 | E94: 92.49 | F94: 52.37 | G94: 20.62 | H94: 13.92 | I94: 14.36 | J94: 2.39 | K94: -44.51 | L94: 7.39 | M94: -0.34 | N94: 43.2
A95: 1999 | B95: 2542 | C95: 39.23 | D95: 32.11 | E95: 17.18 | F95: -1.84 | G95: -14.41 | H95: -9.41 | I95: 6.12 | J95: -52.85 | K95: -92.64 | L95: -36.82 | M95: -12.47 | N95: 100.05
A96: 2000 | B96: 2543 | C96: 100.64 | D96: 93.8 | E96: 79.67 | F96: 56.23 | G96: 17.46 | H96: 4.96 | I96: 3.33 | J96: 8.43 | K96: -38.68 | L96: -13.52 | M96: -1.25 | N96: 107.81
A97: 2001 | B97: 2544 | C97: 104.9 | D97: 88.96 | E97: 70.76 | F97: 53.36 | G97: 16.99 | H97: 10.9 | I97: -11.23 | J97: -96.86 | K97: -51.54 | L97: -21.06 | M97: 1.33 | N97: 128.38
A98: 2002 | B98: 2545 | C98: 117.09 | D98: 99.55 | E98: 81.68 | F98: 44.66 | G98: -1.37 | H98: -0.79 | I98: 5.84 | J98: -24.56 | K98: -86.89 | L98: -19.68 | M98: -32.58 | N98: 207.34
A99: 2003 | B99: 2546 | C99: 191.02 | D99: 168.75 | E99: 146 | F99: 113.27 | G99: 70.74 | H99: 29.11 | I99: 5.59 | J99: -31.84 | K99: -98.25 | L99: -6.94 | M99: 4.68 | N99: 122.68
A100: 2004 | B100: 2547 | C100: 116.06 | D100: 94.33 | E100: 64 | F100: 31.89 | G100: 0.62 | H100: 1.49 | I100: -21.73 | J100: -45.68 | K100: -119.24 | L100: -10.6 | M100: -3 | N100: 206.82
A101: 2005 | B101: 2548 | C101: 202.17 | D101: 186.98 | E101: 146.62 | F101: 89.71 | G101: 40.79 | H101: -5.48 | I101: -50.29 | J101: -72.34 | K101: -92.48 | L101: 2.72 | M101: 0.15 | N101: 237.04
A102: 2006 | B102: 2549 | C102: 233.42 | D102: 219.21 | E102: 191.08 | F102: 137.49 | G102: 94.84 | H102: 67.1 | I102: -29.27 | J102: -40.49 | K102: -63.97 | L102: -53.13 | M102: -2.91 | N102: 236.99
A103: 2007 | B103: 2550 | C103: 140.01 | D103: 128.47 | E103: 105.59 | F103: 63.51 | G103: 25.29 | H103: 25.77 | I103: 10.59 | J103: -41.77 | K103: -42.61 | L103: -34.91 | M103: -18.06 | N103: 152.3
A104: 2008 | B104: 2551 | C104: 114.66 | D104: 94.98 | E104: 71.24 | F104: 28.66 | G104: -14.27 | H104: -11.88 | I104: -10.34 | J104: -21.04 | K104: -90.11 | L104: -38.95 | M104: -7.87 | N104: 118.7
A105: 2009 | B105: 2552 | C105: 152.42 | D105: 139.07 | E105: 112.63 | F105: 56.7 | G105: -4.76 | H105: -11.26 | I105: 0.71 | J105: -16.37 | K105: -54.71 | L105: -37.56 | M105: -4.56 | N105: 155.42
A106: 2010 | B106: 2553 | C106: 163.87 | D106: 156.34 | E106: 134.19 | F106: 92.08 | G106: 44.51 | H106: 7.75 | I106: -2.47 | J106: -109.41 | K106: -65.11 | L106: -36.91 | M106: 7.82 | N106: 166.86
A107: 2011 | B107: 2554 | C107: 132.66 | D107: 121.52 | E107: 101.16 | F107: 61.99 | G107: 26.45 | H107: 12.92 | I107: 25.46 | J107: -106.27 | K107: -59.05 | L107: -0.16 | M107: -4.49 | N107: 135.67
A108: 2012 | B108: 2555 | C108: 167.7 | D108: 151.4 | E108: 111.51 | F108: 65.79 | G108: 24.92 | H108: 14.89 | I108: 9.74 | J108: -4.76 | K108: -53.54 | L108: -10.01 | M108: -10.66 | N108: 166.31
A109: 2013 | B109: 2556 | C109: 127.38 | D109: 110.32 | E109: 94.09 | F109: 68.4 | G109: 24.04 | H109: 4.22 | I109: 0.91 | J109: -40.39 | K109: -75.85 | L109: -52.12 | M109: -23.71 | N109: 116.58
A110: 2014 | B110: 2557 | C110: 148.29 | D110: 132.67 | E110: 103.51 | F110: 66.37 | G110: 26.1 | H110: 2.38 | I110: -10.21 | J110: -18.89 | K110: -31.36 | L110: -9.45 | M110: -12.42 | N110: 153.1
A111: 2015 | B111: 2558 | C111: 121.74 | D111: 114.51 | E111: 94.36 | F111: 66.61 | G111: 39.08 | H111: 21.02 | I111: 9.71 | J111: -9.08 | K111: -2.81 | L111: -4.83 | M111: -4.42 | N111: 122.89
A112: 2016 | B112: 2559 | C112: 25.4 | D112: 15.752 | E112: 8.599 | F112: -0.541 | G112: -17.431 | H112: -18.212 | I112: -12.803 | J112: -31.018 | K112: -41.697 | L112: -24.844 | M112: -21.529 | N112: 24.512
A113: 2017 | B113: 2560 | C113: 90.876 | D113: 87.973 | E113: 69.581 | F113: 32.627 | G113: -1.381 | H113: -4.579 | I113: -37.103 | J113: -27.95 | K113: -39.261 | L113: -58.238 | M113: -9.835 | N113: 90.402
A114: 2018 | B114: 2561 | C114: 138.177 | D114: 131.144 | E114: 109.668 | F114: 72.546 | G114: 31.852 | H114: 24.559 | I114: -3.521 | J114: -19.836 | K114: -39.554 | L114: -57.143 | M114: -20.534 | N114: 137.096
A115: 2019 | B115: 2562
A116: 2020 | B116: 2563
A117: 2021 | B117: 2564
A118: 2022 | B118: 2565
A119: 2023 | B119: 2566
A120: 2024 | B120: 2567
A121: =A120+1 -> 2025 | B121: 2568
A122: 2026 | B122: 2569
A123: 2027 | B123: 2570
A124: 2028 | B124: 2571
A125: 2029 | B125: 2572
A126: 2030 | B126: 2573
A127: 2031 | B127: 2574
A128: 2032 | B128: 2575
A129: 2033 | B129: 2576
A130: 2034 | B130: 2577
A131: 2035 | B131: 2578

Sheet NRI (Auto) (hidden)
B1: 1
A2: Monthly NRI | B2: ม.ค. | C2: ก.พ. | D2: มี.ค. | E2: เม.ย. | F2: พ.ค. | G2: มิ.ย. | H2: ก.ค. | I2: ส.ค. | J2: ก.ย. | K2: ต.ค. | L2: พ.ย. | M2: ธ.ค.
A3: Year/Month | B3: Jan | C3: Feb | D3: Mar | E3: Apr | F3: May | G3: Jun | H3: Jul | I3: Aug | J3: Sep | K3: Oct | L3: Nov | M3: Dec
A4: ='หา NRI'!D3 -> 1986 | B4: =IF(NRI!B4<>"",NRI!B4,"") -> -7.47 | C4: =IF(NRI!C4<>"",NRI!C4,"") -> -15.23 | D4: =IF(NRI!D4<>"",NRI!D4,"") -> -45.24 | E4: =IF(NRI!E4<>"",NRI!E4,"") -> -29.27 | F4: =IF(NRI!F4<>"",NRI!F4,"") -> -17.37 | G4: =IF(NRI!G4<>"",NRI!G4,"") -> -36.18 | H4: =IF(NRI!H4<>"",NRI!H4,"") -> 1.83 | I4: =IF(NRI!I4<>"",NRI!I4,"") -> 22.17 | J4: =IF(NRI!J4<>"",NRI!J4,"") -> 30.56 | K4: =IF(NRI!K4<>"",NRI!K4,"") -> -12.07 | L4: =IF(NRI!L4<>"",NRI!L4,"") -> 3.28 | M4: =IF(NRI!M4<>"",NRI!M4,"") -> -3.94 | Q4: URC VAR | T4: LRC VAR
A5: =A4+1 -> 1987 | B5: =IF(NRI!B5<>"",NRI!B5,"") -> -4.07 | C5: =IF(NRI!C5<>"",NRI!C5,"") -> -17.32 | D5: =IF(NRI!D5<>"",NRI!D5,"") -> -32.4 | E5: =IF(NRI!E5<>"",NRI!E5,"") -> -23.12 | F5: =IF(NRI!F5<>"",NRI!F5,"") -> -11.76 | G5: =IF(NRI!G5<>"",NRI!G5,"") -> -7.5 | H5: =IF(NRI!H5<>"",NRI!H5,"") -> -8.65 | I5: =IF(NRI!I5<>"",NRI!I5,"") -> 123.55 | J5: =IF(NRI!J5<>"",NRI!J5,"") -> 58.62 | K5: =IF(NRI!K5<>"",NRI!K5,"") -> 15.4 | L5: =IF(NRI!L5<>"",NRI!L5,"") -> 22.25 | M5: =IF(NRI!M5<>"",NRI!M5,"") -> 3.48 | O5: เดือน | P5: check URC | Q5: 0 ต้นฤดูแล้ง | R5: เดือน | S5: check LRC | T5: 0 ต้นฤดูฝน
A6: 1988 | B6: =IF(NRI!B6<>"",NRI!B6,"") -> -21.17 | C6: =IF(NRI!C6<>"",NRI!C6,"") -> -26.4 | D6: =IF(NRI!D6<>"",NRI!D6,"") -> -38.9 | E6: =IF(NRI!E6<>"",NRI!E6,"") -> -20.59 | F6: =IF(NRI!F6<>"",NRI!F6,"") -> 24.17 | G6: =IF(NRI!G6<>"",NRI!G6,"") -> -13.55 | H6: =IF(NRI!H6<>"",NRI!H6,"") -> -10.22 | I6: =IF(NRI!I6<>"",NRI!I6,"") -> 22.57 | J6: =IF(NRI!J6<>"",NRI!J6,"") -> 15.75 | K6: =IF(NRI!K6<>"",NRI!K6,"") -> 25.38 | L6: =IF(NRI!L6<>"",NRI!L6,"") -> 1.41 | M6: =IF(NRI!M6<>"",NRI!M6,"") -> -6.72 | O6: 1 | P6: =B135 -> 0 | Q6: =IF(P6=0,1,0) -> 1 | R6: 1 | S6: =IF(B54>0,1+S17,0) -> 0 | T6: =IF(S6=1,0,1) -> 1
A7: 1989 | B7: =IF(NRI!B7<>"",NRI!B7,"") -> -19.38 | C7: =IF(NRI!C7<>"",NRI!C7,"") -> -16.22 | D7: =IF(NRI!D7<>"",NRI!D7,"") -> -26.47 | E7: =IF(NRI!E7<>"",NRI!E7,"") -> -27.19 | F7: =IF(NRI!F7<>"",NRI!F7,"") -> -2.08 | G7: =IF(NRI!G7<>"",NRI!G7,"") -> 15.02 | H7: =IF(NRI!H7<>"",NRI!H7,"") -> 30.35 | I7: =IF(NRI!I7<>"",NRI!I7,"") -> 26.86 | J7: =IF(NRI!J7<>"",NRI!J7,"") -> 87.14 | K7: =IF(NRI!K7<>"",NRI!K7,"") -> 28.02 | L7: =IF(NRI!L7<>"",NRI!L7,"") -> -7.81 | M7: =IF(NRI!M7<>"",NRI!M7,"") -> -5.23 | O7: 2 | P7: =C135 -> 0 | Q7: =IF(P7=0,1,IF(P6=P7,1,0)) -> 1 | R7: 2 | S7: =IF(C54>0,1+S6,0) -> 0 | T7: =IF(S7=1,0,1) -> 1
A8: 1990 | B8: =IF(NRI!B8<>"",NRI!B8,"") -> -30.23 | C8: =IF(NRI!C8<>"",NRI!C8,"") -> -22.1 | D8: =IF(NRI!D8<>"",NRI!D8,"") -> -27.75 | E8: =IF(NRI!E8<>"",NRI!E8,"") -> -52.97 | F8: =IF(NRI!F8<>"",NRI!F8,"") -> -27.21 | G8: =IF(NRI!G8<>"",NRI!G8,"") -> -36 | H8: =IF(NRI!H8<>"",NRI!H8,"") -> -16.88 | I8: =IF(NRI!I8<>"",NRI!I8,"") -> 27.79 | J8: =IF(NRI!J8<>"",NRI!J8,"") -> 25.74 | K8: =IF(NRI!K8<>"",NRI!K8,"") -> 17.81 | L8: =IF(NRI!L8<>"",NRI!L8,"") -> 9.58 | M8: =IF(NRI!M8<>"",NRI!M8,"") -> 0.52 | O8: 3 | P8: =D135 -> 0 | Q8: 1 | R8: 3 | S8: =IF(D54>0,1+S7,0) -> 0 | T8: 1
A9: 1991 | B9: =IF(NRI!B9<>"",NRI!B9,"") -> -23.71 | C9: =IF(NRI!C9<>"",NRI!C9,"") -> -27.99 | D9: =IF(NRI!D9<>"",NRI!D9,"") -> -35.66 | E9: =IF(NRI!E9<>"",NRI!E9,"") -> -15.73 | F9: =IF(NRI!F9<>"",NRI!F9,"") -> -14.3 | G9: =IF(NRI!G9<>"",NRI!G9,"") -> 0.42 | H9: =IF(NRI!H9<>"",NRI!H9,"") -> -16.44 | I9: =IF(NRI!I9<>"",NRI!I9,"") -> 54.22 | J9: =IF(NRI!J9<>"",NRI!J9,"") -> 69.09 | K9: =IF(NRI!K9<>"",NRI!K9,"") -> 23.52 | L9: =IF(NRI!L9<>"",NRI!L9,"") -> 13.28 | M9: =IF(NRI!M9<>"",NRI!M9,"") -> 0.14 | O9: 4 | P9: =E135 -> 0 | Q9: 1 | R9: 4 | S9: =IF(E54>0,1+S8,0) -> 0 | T9: 1
A10: 1992 | B10: =IF(NRI!B10<>"",NRI!B10,"") -> -17.65 | C10: =IF(NRI!C10<>"",NRI!C10,"") -> -22.37 | D10: =IF(NRI!D10<>"",NRI!D10,"") -> -37.29 | E10: =IF(NRI!E10<>"",NRI!E10,"") -> -43.67 | F10: =IF(NRI!F10<>"",NRI!F10,"") -> -22.37 | G10: =IF(NRI!G10<>"",NRI!G10,"") -> -16.7 | H10: =IF(NRI!H10<>"",NRI!H10,"") -> 2.13 | I10: =IF(NRI!I10<>"",NRI!I10,"") -> 6.11 | J10: =IF(NRI!J10<>"",NRI!J10,"") -> 57.88 | K10: =IF(NRI!K10<>"",NRI!K10,"") -> 16.37 | L10: =IF(NRI!L10<>"",NRI!L10,"") -> 4.41 | M10: =IF(NRI!M10<>"",NRI!M10,"") -> 8.45 | O10: 5 | P10: =F135 -> 0 | Q10: 1 | R10: 5 | S10: =IF(F54>0,1+S9,0) -> 0 | T10: 1
A11: 1993 | B11: =IF(NRI!B11<>"",NRI!B11,"") -> -2.19 | C11: =IF(NRI!C11<>"",NRI!C11,"") -> -18.22 | D11: =IF(NRI!D11<>"",NRI!D11,"") -> -27.09 | E11: =IF(NRI!E11<>"",NRI!E11,"") -> -28.06 | F11: =IF(NRI!F11<>"",NRI!F11,"") -> -12.94 | G11: =IF(NRI!G11<>"",NRI!G11,"") -> -9.42 | H11: =IF(NRI!H11<>"",NRI!H11,"") -> 16.14 | I11: =IF(NRI!I11<>"",NRI!I11,"") -> 2.97 | J11: =IF(NRI!J11<>"",NRI!J11,"") -> 23.51 | K11: =IF(NRI!K11<>"",NRI!K11,"") -> 22.22 | L11: =IF(NRI!L11<>"",NRI!L11,"") -> 2.97 | M11: =IF(NRI!M11<>"",NRI!M11,"") -> -1.53 | O11: 6 | P11: =G135 -> 0 | Q11: 1 | R11: 6 | S11: =IF(G54>0,1+S10,0) -> 0 | T11: 1
A12: 1994 | B12: =IF(NRI!B12<>"",NRI!B12,"") -> -18.96 | C12: =IF(NRI!C12<>"",NRI!C12,"") -> -17.36 | D12: =IF(NRI!D12<>"",NRI!D12,"") -> -1.43 | E12: =IF(NRI!E12<>"",NRI!E12,"") -> -3.25 | F12: =IF(NRI!F12<>"",NRI!F12,"") -> 15.22 | G12: =IF(NRI!G12<>"",NRI!G12,"") -> 36 | H12: =IF(NRI!H12<>"",NRI!H12,"") -> 47.99 | I12: =IF(NRI!I12<>"",NRI!I12,"") -> 154.98 | J12: =IF(NRI!J12<>"",NRI!J12,"") -> -12.29 | K12: =IF(NRI!K12<>"",NRI!K12,"") -> -19.24 | L12: =IF(NRI!L12<>"",NRI!L12,"") -> -46.6 | M12: =IF(NRI!M12<>"",NRI!M12,"") -> -37.21 | O12: 7 | P12: =H135 -> 0 | Q12: 1 | R12: 7 | S12: =IF(H54>0,1+S11,0) -> 1 | T12: 0
A13: 1995 | B13: =IF(NRI!B13<>"",NRI!B13,"") -> -21.51 | C13: =IF(NRI!C13<>"",NRI!C13,"") -> -5.8 | D13: =IF(NRI!D13<>"",NRI!D13,"") -> -18.14 | E13: =IF(NRI!E13<>"",NRI!E13,"") -> -27.68 | F13: =IF(NRI!F13<>"",NRI!F13,"") -> -7.66 | G13: =IF(NRI!G13<>"",NRI!G13,"") -> -13.83 | H13: =IF(NRI!H13<>"",NRI!H13,"") -> 10.69 | I13: =IF(NRI!I13<>"",NRI!I13,"") -> 119.3 | J13: =IF(NRI!J13<>"",NRI!J13,"") -> 47.71 | K13: =IF(NRI!K13<>"",NRI!K13,"") -> -2.64 | L13: =IF(NRI!L13<>"",NRI!L13,"") -> 10.15 | M13: =IF(NRI!M13<>"",NRI!M13,"") -> -2.07 | O13: 8 | P13: =I135 -> 0 | Q13: 1 | R13: 8 | S13: =IF(I54>0,1+S12,0) -> 2 | T13: 1
A14: 1996 | B14: =IF(NRI!B14<>"",NRI!B14,"") -> -16.27 | C14: =IF(NRI!C14<>"",NRI!C14,"") -> -36.88 | D14: =IF(NRI!D14<>"",NRI!D14,"") -> -33.45 | E14: =IF(NRI!E14<>"",NRI!E14,"") -> -56.41 | F14: =IF(NRI!F14<>"",NRI!F14,"") -> -23.34 | G14: =IF(NRI!G14<>"",NRI!G14,"") -> -28.22 | H14: =IF(NRI!H14<>"",NRI!H14,"") -> -38.15 | I14: =IF(NRI!I14<>"",NRI!I14,"") -> 75.72 | J14: =IF(NRI!J14<>"",NRI!J14,"") -> 48.58 | K14: =IF(NRI!K14<>"",NRI!K14,"") -> 22.37 | L14: =IF(NRI!L14<>"",NRI!L14,"") -> 18.01 | M14: =IF(NRI!M14<>"",NRI!M14,"") -> 5.04 | O14: 9 | P14: =J135 -> 0 | Q14: 1 | R14: 9 | S14: =IF(J54>0,1+S13,0) -> 3 | T14: 1
A15: 1997 | B15: =IF(NRI!B15<>"",NRI!B15,"") -> -4.48 | C15: =IF(NRI!C15<>"",NRI!C15,"") -> -25.1 | D15: =IF(NRI!D15<>"",NRI!D15,"") -> -19.46 | E15: =IF(NRI!E15<>"",NRI!E15,"") -> -31.34 | F15: =IF(NRI!F15<>"",NRI!F15,"") -> -34.08 | G15: =IF(NRI!G15<>"",NRI!G15,"") -> -33.26 | H15: =IF(NRI!H15<>"",NRI!H15,"") -> -1.82 | I15: =IF(NRI!I15<>"",NRI!I15,"") -> 29.7 | J15: =IF(NRI!J15<>"",NRI!J15,"") -> 92.68 | K15: =IF(NRI!K15<>"",NRI!K15,"") -> 40.69 | L15: =IF(NRI!L15<>"",NRI!L15,"") -> 2.27 | M15: =IF(NRI!M15<>"",NRI!M15,"") -> -0.99 | O15: 10 | P15: =K135 -> 0 | Q15: 1 | R15: 10 | S15: =IF(K54>0,1+S14,0) -> 4 | T15: 1
A16: 1998 | B16: =IF(NRI!B16<>"",NRI!B16,"") -> -16.07 | C16: =IF(NRI!C16<>"",NRI!C16,"") -> -24.67 | D16: =IF(NRI!D16<>"",NRI!D16,"") -> -40.12 | E16: =IF(NRI!E16<>"",NRI!E16,"") -> -31.75 | F16: =IF(NRI!F16<>"",NRI!F16,"") -> -6.7 | G16: =IF(NRI!G16<>"",NRI!G16,"") -> -13.92 | H16: =IF(NRI!H16<>"",NRI!H16,"") -> -14.36 | I16: =IF(NRI!I16<>"",NRI!I16,"") -> -2.39 | J16: =IF(NRI!J16<>"",NRI!J16,"") -> 44.51 | K16: =IF(NRI!K16<>"",NRI!K16,"") -> -7.39 | L16: =IF(NRI!L16<>"",NRI!L16,"") -> 0.34 | M16: =IF(NRI!M16<>"",NRI!M16,"") -> -3.97 | O16: 11 | P16: =L135 -> 0 | Q16: =IF(P16=0,1,IF(P15=P16,1,0)) -> 1 | R16: 11 | S16: =IF(L54>0,1+S15,0) -> 5 | T16: 1
A17: 1999 | B17: =IF(NRI!B17<>"",NRI!B17,"") -> -7.12 | C17: =IF(NRI!C17<>"",NRI!C17,"") -> -14.93 | D17: =IF(NRI!D17<>"",NRI!D17,"") -> -19.02 | E17: =IF(NRI!E17<>"",NRI!E17,"") -> -12.57 | F17: =IF(NRI!F17<>"",NRI!F17,"") -> 5 | G17: =IF(NRI!G17<>"",NRI!G17,"") -> 9.41 | H17: =IF(NRI!H17<>"",NRI!H17,"") -> -6.12 | I17: =IF(NRI!I17<>"",NRI!I17,"") -> 52.85 | J17: =IF(NRI!J17<>"",NRI!J17,"") -> 92.64 | K17: =IF(NRI!K17<>"",NRI!K17,"") -> 36.82 | L17: =IF(NRI!L17<>"",NRI!L17,"") -> 12.47 | M17: =IF(NRI!M17<>"",NRI!M17,"") -> 0.59 | O17: 12 | P17: =M135 -> 7 | Q17: =IF(P17=0,1,IF(P16=P17,1,0)) -> 0 | R17: 12 | S17: =IF(M54>0,1+Y55,0) -> 0 | T17: 1
A18: 2000 | B18: =IF(NRI!B18<>"",NRI!B18,"") -> -6.84 | C18: =IF(NRI!C18<>"",NRI!C18,"") -> -14.13 | D18: =IF(NRI!D18<>"",NRI!D18,"") -> -23.44 | E18: =IF(NRI!E18<>"",NRI!E18,"") -> -38.77 | F18: =IF(NRI!F18<>"",NRI!F18,"") -> -12.5 | G18: =IF(NRI!G18<>"",NRI!G18,"") -> -4.96 | H18: =IF(NRI!H18<>"",NRI!H18,"") -> -3.33 | I18: =IF(NRI!I18<>"",NRI!I18,"") -> -8.43 | J18: =IF(NRI!J18<>"",NRI!J18,"") -> 38.68 | K18: =IF(NRI!K18<>"",NRI!K18,"") -> 13.52 | L18: =IF(NRI!L18<>"",NRI!L18,"") -> 1.25 | M18: =IF(NRI!M18<>"",NRI!M18,"") -> -2.91
A19: 2001 | B19: =IF(NRI!B19<>"",NRI!B19,"") -> -15.94 | C19: =IF(NRI!C19<>"",NRI!C19,"") -> -18.2 | D19: =IF(NRI!D19<>"",NRI!D19,"") -> -17.4 | E19: =IF(NRI!E19<>"",NRI!E19,"") -> -36.37 | F19: =IF(NRI!F19<>"",NRI!F19,"") -> -6.09 | G19: =IF(NRI!G19<>"",NRI!G19,"") -> -10.9 | H19: =IF(NRI!H19<>"",NRI!H19,"") -> 11.23 | I19: =IF(NRI!I19<>"",NRI!I19,"") -> 96.86 | J19: =IF(NRI!J19<>"",NRI!J19,"") -> 51.54 | K19: =IF(NRI!K19<>"",NRI!K19,"") -> 21.06 | L19: =IF(NRI!L19<>"",NRI!L19,"") -> -1.33 | M19: =IF(NRI!M19<>"",NRI!M19,"") -> -11.29
A20: 2002 | B20: =IF(NRI!B20<>"",NRI!B20,"") -> -17.54 | C20: =IF(NRI!C20<>"",NRI!C20,"") -> -17.87 | D20: =IF(NRI!D20<>"",NRI!D20,"") -> -37.02 | E20: =IF(NRI!E20<>"",NRI!E20,"") -> -46.03 | F20: =IF(NRI!F20<>"",NRI!F20,"") -> 0.58 | G20: =IF(NRI!G20<>"",NRI!G20,"") -> 0.79 | H20: =IF(NRI!H20<>"",NRI!H20,"") -> -5.84 | I20: =IF(NRI!I20<>"",NRI!I20,"") -> 24.56 | J20: =IF(NRI!J20<>"",NRI!J20,"") -> 86.89 | K20: =IF(NRI!K20<>"",NRI!K20,"") -> 19.68 | L20: =IF(NRI!L20<>"",NRI!L20,"") -> 32.58 | M20: =IF(NRI!M20<>"",NRI!M20,"") -> -16.32
A21: 2003 | B21: =IF(NRI!B21<>"",NRI!B21,"") -> -22.27 | C21: =IF(NRI!C21<>"",NRI!C21,"") -> -22.75 | D21: =IF(NRI!D21<>"",NRI!D21,"") -> -32.73 | E21: =IF(NRI!E21<>"",NRI!E21,"") -> -42.53 | F21: =IF(NRI!F21<>"",NRI!F21,"") -> -41.63 | G21: =IF(NRI!G21<>"",NRI!G21,"") -> -29.11 | H21: =IF(NRI!H21<>"",NRI!H21,"") -> -5.59 | I21: =IF(NRI!I21<>"",NRI!I21,"") -> 31.84 | J21: =IF(NRI!J21<>"",NRI!J21,"") -> 98.25 | K21: =IF(NRI!K21<>"",NRI!K21,"") -> 6.94 | L21: =IF(NRI!L21<>"",NRI!L21,"") -> -4.68 | M21: =IF(NRI!M21<>"",NRI!M21,"") -> -6.62
A22: 2004 | B22: =IF(NRI!B22<>"",NRI!B22,"") -> -21.73 | C22: =IF(NRI!C22<>"",NRI!C22,"") -> -30.33 | D22: =IF(NRI!D22<>"",NRI!D22,"") -> -32.11 | E22: =IF(NRI!E22<>"",NRI!E22,"") -> -31.27 | F22: =IF(NRI!F22<>"",NRI!F22,"") -> 0.87 | G22: =IF(NRI!G22<>"",NRI!G22,"") -> -1.49 | H22: =IF(NRI!H22<>"",NRI!H22,"") -> 21.73 | I22: =IF(NRI!I22<>"",NRI!I22,"") -> 45.68 | J22: =IF(NRI!J22<>"",NRI!J22,"") -> 119.24 | K22: =IF(NRI!K22<>"",NRI!K22,"") -> 10.6 | L22: =IF(NRI!L22<>"",NRI!L22,"") -> 3 | M22: =IF(NRI!M22<>"",NRI!M22,"") -> -4.65
A23: 2005 | B23: =IF(NRI!B23<>"",NRI!B23,"") -> -15.19 | C23: =IF(NRI!C23<>"",NRI!C23,"") -> -40.36 | D23: =IF(NRI!D23<>"",NRI!D23,"") -> -56.91 | E23: =IF(NRI!E23<>"",NRI!E23,"") -> -48.92 | F23: =IF(NRI!F23<>"",NRI!F23,"") -> -46.27 | G23: =IF(NRI!G23<>"",NRI!G23,"") -> 5.48 | H23: =IF(NRI!H23<>"",NRI!H23,"") -> 50.29 | I23: =IF(NRI!I23<>"",NRI!I23,"") -> 72.34 | J23: =IF(NRI!J23<>"",NRI!J23,"") -> 92.48 | K23: =IF(NRI!K23<>"",NRI!K23,"") -> -2.72 | L23: =IF(NRI!L23<>"",NRI!L23,"") -> -0.15 | M23: =IF(NRI!M23<>"",NRI!M23,"") -> -3.62
A24: 2006 | B24: =IF(NRI!B24<>"",NRI!B24,"") -> -14.21 | C24: =IF(NRI!C24<>"",NRI!C24,"") -> -28.13 | D24: =IF(NRI!D24<>"",NRI!D24,"") -> -53.59 | E24: =IF(NRI!E24<>"",NRI!E24,"") -> -42.65 | F24: =IF(NRI!F24<>"",NRI!F24,"") -> -27.74 | G24: =IF(NRI!G24<>"",NRI!G24,"") -> -67.1 | H24: =IF(NRI!H24<>"",NRI!H24,"") -> 29.27 | I24: =IF(NRI!I24<>"",NRI!I24,"") -> 40.49 | J24: =IF(NRI!J24<>"",NRI!J24,"") -> 63.97 | K24: =IF(NRI!K24<>"",NRI!K24,"") -> 53.13 | L24: =IF(NRI!L24<>"",NRI!L24,"") -> 2.91 | M24: =IF(NRI!M24<>"",NRI!M24,"") -> -6.24
A25: 2007 | B25: =IF(NRI!B25<>"",NRI!B25,"") -> -11.54 | C25: =IF(NRI!C25<>"",NRI!C25,"") -> -22.88 | D25: =IF(NRI!D25<>"",NRI!D25,"") -> -42.08 | E25: =IF(NRI!E25<>"",NRI!E25,"") -> -38.22 | F25: =IF(NRI!F25<>"",NRI!F25,"") -> 0.48 | G25: =IF(NRI!G25<>"",NRI!G25,"") -> -25.77 | H25: =IF(NRI!H25<>"",NRI!H25,"") -> -10.59 | I25: =IF(NRI!I25<>"",NRI!I25,"") -> 41.77 | J25: =IF(NRI!J25<>"",NRI!J25,"") -> 42.61 | K25: =IF(NRI!K25<>"",NRI!K25,"") -> 34.91 | L25: =IF(NRI!L25<>"",NRI!L25,"") -> 18.06 | M25: =IF(NRI!M25<>"",NRI!M25,"") -> -12.29
A26: 2008 | B26: =IF(NRI!B26<>"",NRI!B26,"") -> -19.68 | C26: =IF(NRI!C26<>"",NRI!C26,"") -> -23.74 | D26: =IF(NRI!D26<>"",NRI!D26,"") -> -42.58 | E26: =IF(NRI!E26<>"",NRI!E26,"") -> -42.93 | F26: =IF(NRI!F26<>"",NRI!F26,"") -> 2.39 | G26: =IF(NRI!G26<>"",NRI!G26,"") -> 11.88 | H26: =IF(NRI!H26<>"",NRI!H26,"") -> 10.34 | I26: =IF(NRI!I26<>"",NRI!I26,"") -> 21.04 | J26: =IF(NRI!J26<>"",NRI!J26,"") -> 90.11 | K26: =IF(NRI!K26<>"",NRI!K26,"") -> 38.95 | L26: =IF(NRI!L26<>"",NRI!L26,"") -> 7.87 | M26: =IF(NRI!M26<>"",NRI!M26,"") -> -4.04
A27: 2009 | B27: =IF(NRI!B27<>"",NRI!B27,"") -> -13.35 | C27: =IF(NRI!C27<>"",NRI!C27,"") -> -26.44 | D27: =IF(NRI!D27<>"",NRI!D27,"") -> -55.93 | E27: =IF(NRI!E27<>"",NRI!E27,"") -> -61.46 | F27: =IF(NRI!F27<>"",NRI!F27,"") -> -6.5 | G27: =IF(NRI!G27<>"",NRI!G27,"") -> 11.26 | H27: =IF(NRI!H27<>"",NRI!H27,"") -> -0.71 | I27: =IF(NRI!I27<>"",NRI!I27,"") -> 16.37 | J27: =IF(NRI!J27<>"",NRI!J27,"") -> 54.71 | K27: =IF(NRI!K27<>"",NRI!K27,"") -> 37.56 | L27: =IF(NRI!L27<>"",NRI!L27,"") -> 4.56 | M27: =IF(NRI!M27<>"",NRI!M27,"") -> -3
A28: 2010 | B28: =IF(NRI!B28<>"",NRI!B28,"") -> -7.53 | C28: =IF(NRI!C28<>"",NRI!C28,"") -> -22.15 | D28: =IF(NRI!D28<>"",NRI!D28,"") -> -42.11 | E28: =IF(NRI!E28<>"",NRI!E28,"") -> -47.57 | F28: =IF(NRI!F28<>"",NRI!F28,"") -> -36.76 | G28: =IF(NRI!G28<>"",NRI!G28,"") -> -7.75 | H28: =IF(NRI!H28<>"",NRI!H28,"") -> 2.47 | I28: =IF(NRI!I28<>"",NRI!I28,"") -> 109.41 | J28: =IF(NRI!J28<>"",NRI!J28,"") -> 65.11 | K28: =IF(NRI!K28<>"",NRI!K28,"") -> 36.91 | L28: =IF(NRI!L28<>"",NRI!L28,"") -> -7.82 | M28: =IF(NRI!M28<>"",NRI!M28,"") -> -2.99
A29: 2011 | B29: =IF(NRI!B29<>"",NRI!B29,"") -> -11.14 | C29: =IF(NRI!C29<>"",NRI!C29,"") -> -20.36 | D29: =IF(NRI!D29<>"",NRI!D29,"") -> -39.17 | E29: =IF(NRI!E29<>"",NRI!E29,"") -> -35.54 | F29: =IF(NRI!F29<>"",NRI!F29,"") -> -13.53 | G29: =IF(NRI!G29<>"",NRI!G29,"") -> -12.92 | H29: =IF(NRI!H29<>"",NRI!H29,"") -> -25.46 | I29: =IF(NRI!I29<>"",NRI!I29,"") -> 106.27 | J29: =IF(NRI!J29<>"",NRI!J29,"") -> 59.05 | K29: =IF(NRI!K29<>"",NRI!K29,"") -> 0.16 | L29: =IF(NRI!L29<>"",NRI!L29,"") -> 4.49 | M29: =IF(NRI!M29<>"",NRI!M29,"") -> -3.01
A30: 2012 | B30: =IF(NRI!B30<>"",NRI!B30,"") -> -16.3 | C30: =IF(NRI!C30<>"",NRI!C30,"") -> -39.89 | D30: =IF(NRI!D30<>"",NRI!D30,"") -> -45.72 | E30: =IF(NRI!E30<>"",NRI!E30,"") -> -40.87 | F30: =IF(NRI!F30<>"",NRI!F30,"") -> -10.03 | G30: =IF(NRI!G30<>"",NRI!G30,"") -> -14.89 | H30: =IF(NRI!H30<>"",NRI!H30,"") -> -9.74 | I30: =IF(NRI!I30<>"",NRI!I30,"") -> 4.76 | J30: =IF(NRI!J30<>"",NRI!J30,"") -> 53.54 | K30: =IF(NRI!K30<>"",NRI!K30,"") -> 10.01 | L30: =IF(NRI!L30<>"",NRI!L30,"") -> 10.66 | M30: =IF(NRI!M30<>"",NRI!M30,"") -> 1.39
A31: 2013 | B31: =IF(NRI!B31<>"",NRI!B31,"") -> -17.06 | C31: =IF(NRI!C31<>"",NRI!C31,"") -> -16.23 | D31: =IF(NRI!D31<>"",NRI!D31,"") -> -25.69 | E31: =IF(NRI!E31<>"",NRI!E31,"") -> -44.36 | F31: =IF(NRI!F31<>"",NRI!F31,"") -> -19.82 | G31: =IF(NRI!G31<>"",NRI!G31,"") -> -4.22 | H31: =IF(NRI!H31<>"",NRI!H31,"") -> -0.91 | I31: =IF(NRI!I31<>"",NRI!I31,"") -> 40.39 | J31: =IF(NRI!J31<>"",NRI!J31,"") -> 75.85 | K31: =IF(NRI!K31<>"",NRI!K31,"") -> 52.12 | L31: =IF(NRI!L31<>"",NRI!L31,"") -> 23.71 | M31: =IF(NRI!M31<>"",NRI!M31,"") -> 10.8
A32: 2014 | B32: =IF(NRI!B32<>"",NRI!B32,"") -> -15.62 | C32: =IF(NRI!C32<>"",NRI!C32,"") -> -29.16 | D32: =IF(NRI!D32<>"",NRI!D32,"") -> -37.14 | E32: =IF(NRI!E32<>"",NRI!E32,"") -> -40.27 | F32: =IF(NRI!F32<>"",NRI!F32,"") -> -23.72 | G32: =IF(NRI!G32<>"",NRI!G32,"") -> -2.38 | H32: =IF(NRI!H32<>"",NRI!H32,"") -> 10.21 | I32: =IF(NRI!I32<>"",NRI!I32,"") -> 18.89 | J32: =IF(NRI!J32<>"",NRI!J32,"") -> 31.36 | K32: =IF(NRI!K32<>"",NRI!K32,"") -> 9.45 | L32: =IF(NRI!L32<>"",NRI!L32,"") -> 12.42 | M32: =IF(NRI!M32<>"",NRI!M32,"") -> -4.81
A33: 2015 | B33: =IF(NRI!B33<>"",NRI!B33,"") -> -7.23 | C33: =IF(NRI!C33<>"",NRI!C33,"") -> -20.15 | D33: =IF(NRI!D33<>"",NRI!D33,"") -> -27.75 | E33: =IF(NRI!E33<>"",NRI!E33,"") -> -27.53 | F33: =IF(NRI!F33<>"",NRI!F33,"") -> -18.06 | G33: =IF(NRI!G33<>"",NRI!G33,"") -> -21.02 | H33: =IF(NRI!H33<>"",NRI!H33,"") -> -9.71 | I33: =IF(NRI!I33<>"",NRI!I33,"") -> 9.08 | J33: =IF(NRI!J33<>"",NRI!J33,"") -> 2.81 | K33: =IF(NRI!K33<>"",NRI!K33,"") -> 4.83 | L33: =IF(NRI!L33<>"",NRI!L33,"") -> 4.42 | M33: =IF(NRI!M33<>"",NRI!M33,"") -> -1.15
A34: 2016 | B34: =IF(NRI!B34<>"",NRI!B34,"") -> -9.648 | C34: =IF(NRI!C34<>"",NRI!C34,"") -> -7.153 | D34: =IF(NRI!D34<>"",NRI!D34,"") -> -9.14 | E34: =IF(NRI!E34<>"",NRI!E34,"") -> -16.89 | F34: =IF(NRI!F34<>"",NRI!F34,"") -> -0.781 | G34: =IF(NRI!G34<>"",NRI!G34,"") -> 18.212 | H34: =IF(NRI!H34<>"",NRI!H34,"") -> 12.803 | I34: =IF(NRI!I34<>"",NRI!I34,"") -> 31.018 | J34: =IF(NRI!J34<>"",NRI!J34,"") -> 41.697 | K34: =IF(NRI!K34<>"",NRI!K34,"") -> 24.844 | L34: =IF(NRI!L34<>"",NRI!L34,"") -> 21.529 | M34: =IF(NRI!M34<>"",NRI!M34,"") -> 0.888
A35: 2017 | B35: =IF(NRI!B35<>"",NRI!B35,"") -> -2.903 | C35: =IF(NRI!C35<>"",NRI!C35,"") -> -18.392 | D35: =IF(NRI!D35<>"",NRI!D35,"") -> -36.954 | E35: =IF(NRI!E35<>"",NRI!E35,"") -> -34.008 | F35: =IF(NRI!F35<>"",NRI!F35,"") -> -3.198 | G35: =IF(NRI!G35<>"",NRI!G35,"") -> 4.579 | H35: =IF(NRI!H35<>"",NRI!H35,"") -> 37.103 | I35: =IF(NRI!I35<>"",NRI!I35,"") -> 27.95 | J35: =IF(NRI!J35<>"",NRI!J35,"") -> 39.261 | K35: =IF(NRI!K35<>"",NRI!K35,"") -> 58.238 | L35: =IF(NRI!L35<>"",NRI!L35,"") -> 9.835 | M35: =IF(NRI!M35<>"",NRI!M35,"") -> 0.474
A36: 2018 | B36: =IF(NRI!B36<>"",NRI!B36,"") -> -7.033 | C36: =IF(NRI!C36<>"",NRI!C36,"") -> -21.476 | D36: =IF(NRI!D36<>"",NRI!D36,"") -> -37.122 | E36: =IF(NRI!E36<>"",NRI!E36,"") -> -40.694 | F36: =IF(NRI!F36<>"",NRI!F36,"") -> -7.293 | G36: =IF(NRI!G36<>"",NRI!G36,"") -> -24.559 | H36: =IF(NRI!H36<>"",NRI!H36,"") -> 3.521 | I36: =IF(NRI!I36<>"",NRI!I36,"") -> 19.836 | J36: =IF(NRI!J36<>"",NRI!J36,"") -> 39.554 | K36: =IF(NRI!K36<>"",NRI!K36,"") -> 57.143 | L36: =IF(NRI!L36<>"",NRI!L36,"") -> 20.534 | M36: =IF(NRI!M36<>"",NRI!M36,"") -> 1.081
A37: =A36+1 -> 2019 | B37: =IF(NRI!B37<>"",NRI!B37,"") ->  | C37: =IF(NRI!C37<>"",NRI!C37,"") ->  | D37: =IF(NRI!D37<>"",NRI!D37,"") ->  | E37: =IF(NRI!E37<>"",NRI!E37,"") ->  | F37: =IF(NRI!F37<>"",NRI!F37,"") ->  | G37: =IF(NRI!G37<>"",NRI!G37,"") ->  | H37: =IF(NRI!H37<>"",NRI!H37,"") ->  | I37: =IF(NRI!I37<>"",NRI!I37,"") ->  | J37: =IF(NRI!J37<>"",NRI!J37,"") ->  | K37: =IF(NRI!K37<>"",NRI!K37,"") ->  | L37: =IF(NRI!L37<>"",NRI!L37,"") ->  | M37: =IF(NRI!M37<>"",NRI!M37,"") -> 
A38: 2020 | B38: =IF(NRI!B38<>"",NRI!B38,"") ->  | C38: =IF(NRI!C38<>"",NRI!C38,"") ->  | D38: =IF(NRI!D38<>"",NRI!D38,"") ->  | E38: =IF(NRI!E38<>"",NRI!E38,"") ->  | F38: =IF(NRI!F38<>"",NRI!F38,"") ->  | G38: =IF(NRI!G38<>"",NRI!G38,"") ->  | H38: =IF(NRI!H38<>"",NRI!H38,"") ->  | I38: =IF(NRI!I38<>"",NRI!I38,"") ->  | J38: =IF(NRI!J38<>"",NRI!J38,"") ->  | K38: =IF(NRI!K38<>"",NRI!K38,"") ->  | L38: =IF(NRI!L38<>"",NRI!L38,"") ->  | M38: =IF(NRI!M38<>"",NRI!M38,"") -> 
A39: 2021 | B39: =IF(NRI!B39<>"",NRI!B39,"") ->  | C39: =IF(NRI!C39<>"",NRI!C39,"") ->  | D39: =IF(NRI!D39<>"",NRI!D39,"") ->  | E39: =IF(NRI!E39<>"",NRI!E39,"") ->  | F39: =IF(NRI!F39<>"",NRI!F39,"") ->  | G39: =IF(NRI!G39<>"",NRI!G39,"") ->  | H39: =IF(NRI!H39<>"",NRI!H39,"") ->  | I39: =IF(NRI!I39<>"",NRI!I39,"") ->  | J39: =IF(NRI!J39<>"",NRI!J39,"") ->  | K39: =IF(NRI!K39<>"",NRI!K39,"") ->  | L39: =IF(NRI!L39<>"",NRI!L39,"") ->  | M39: =IF(NRI!M39<>"",NRI!M39,"") -> 
A40: 2022 | B40: =IF(NRI!B40<>"",NRI!B40,"") ->  | C40: =IF(NRI!C40<>"",NRI!C40,"") ->  | D40: =IF(NRI!D40<>"",NRI!D40,"") ->  | E40: =IF(NRI!E40<>"",NRI!E40,"") ->  | F40: =IF(NRI!F40<>"",NRI!F40,"") ->  | G40: =IF(NRI!G40<>"",NRI!G40,"") ->  | H40: =IF(NRI!H40<>"",NRI!H40,"") ->  | I40: =IF(NRI!I40<>"",NRI!I40,"") ->  | J40: =IF(NRI!J40<>"",NRI!J40,"") ->  | K40: =IF(NRI!K40<>"",NRI!K40,"") ->  | L40: =IF(NRI!L40<>"",NRI!L40,"") ->  | M40: =IF(NRI!M40<>"",NRI!M40,"") -> 
A41: 2023 | B41: =IF(NRI!B41<>"",NRI!B41,"") ->  | C41: =IF(NRI!C41<>"",NRI!C41,"") ->  | D41: =IF(NRI!D41<>"",NRI!D41,"") ->  | E41: =IF(NRI!E41<>"",NRI!E41,"") ->  | F41: =IF(NRI!F41<>"",NRI!F41,"") ->  | G41: =IF(NRI!G41<>"",NRI!G41,"") ->  | H41: =IF(NRI!H41<>"",NRI!H41,"") ->  | I41: =IF(NRI!I41<>"",NRI!I41,"") ->  | J41: =IF(NRI!J41<>"",NRI!J41,"") ->  | K41: =IF(NRI!K41<>"",NRI!K41,"") ->  | L41: =IF(NRI!L41<>"",NRI!L41,"") ->  | M41: =IF(NRI!M41<>"",NRI!M41,"") -> 
A42: 2024 | B42: =IF(NRI!B42<>"",NRI!B42,"") ->  | C42: =IF(NRI!C42<>"",NRI!C42,"") ->  | D42: =IF(NRI!D42<>"",NRI!D42,"") ->  | E42: =IF(NRI!E42<>"",NRI!E42,"") ->  | F42: =IF(NRI!F42<>"",NRI!F42,"") ->  | G42: =IF(NRI!G42<>"",NRI!G42,"") ->  | H42: =IF(NRI!H42<>"",NRI!H42,"") ->  | I42: =IF(NRI!I42<>"",NRI!I42,"") ->  | J42: =IF(NRI!J42<>"",NRI!J42,"") ->  | K42: =IF(NRI!K42<>"",NRI!K42,"") ->  | L42: =IF(NRI!L42<>"",NRI!L42,"") ->  | M42: =IF(NRI!M42<>"",NRI!M42,"") -> 
A43: 2025 | B43: =IF(NRI!B43<>"",NRI!B43,"") ->  | C43: =IF(NRI!C43<>"",NRI!C43,"") ->  | D43: =IF(NRI!D43<>"",NRI!D43,"") ->  | E43: =IF(NRI!E43<>"",NRI!E43,"") ->  | F43: =IF(NRI!F43<>"",NRI!F43,"") ->  | G43: =IF(NRI!G43<>"",NRI!G43,"") ->  | H43: =IF(NRI!H43<>"",NRI!H43,"") ->  | I43: =IF(NRI!I43<>"",NRI!I43,"") ->  | J43: =IF(NRI!J43<>"",NRI!J43,"") ->  | K43: =IF(NRI!K43<>"",NRI!K43,"") ->  | L43: =IF(NRI!L43<>"",NRI!L43,"") ->  | M43: =IF(NRI!M43<>"",NRI!M43,"") -> 
A44: 2026 | B44: =IF(NRI!B44<>"",NRI!B44,"") ->  | C44: =IF(NRI!C44<>"",NRI!C44,"") ->  | D44: =IF(NRI!D44<>"",NRI!D44,"") ->  | E44: =IF(NRI!E44<>"",NRI!E44,"") ->  | F44: =IF(NRI!F44<>"",NRI!F44,"") ->  | G44: =IF(NRI!G44<>"",NRI!G44,"") ->  | H44: =IF(NRI!H44<>"",NRI!H44,"") ->  | I44: =IF(NRI!I44<>"",NRI!I44,"") ->  | J44: =IF(NRI!J44<>"",NRI!J44,"") ->  | K44: =IF(NRI!K44<>"",NRI!K44,"") ->  | L44: =IF(NRI!L44<>"",NRI!L44,"") ->  | M44: =IF(NRI!M44<>"",NRI!M44,"") -> 
A45: 2027 | B45: =IF(NRI!B45<>"",NRI!B45,"") ->  | C45: =IF(NRI!C45<>"",NRI!C45,"") ->  | D45: =IF(NRI!D45<>"",NRI!D45,"") ->  | E45: =IF(NRI!E45<>"",NRI!E45,"") ->  | F45: =IF(NRI!F45<>"",NRI!F45,"") ->  | G45: =IF(NRI!G45<>"",NRI!G45,"") ->  | H45: =IF(NRI!H45<>"",NRI!H45,"") ->  | I45: =IF(NRI!I45<>"",NRI!I45,"") ->  | J45: =IF(NRI!J45<>"",NRI!J45,"") ->  | K45: =IF(NRI!K45<>"",NRI!K45,"") ->  | L45: =IF(NRI!L45<>"",NRI!L45,"") ->  | M45: =IF(NRI!M45<>"",NRI!M45,"") -> 
A46: 2028 | B46: =IF(NRI!B46<>"",NRI!B46,"") ->  | C46: =IF(NRI!C46<>"",NRI!C46,"") ->  | D46: =IF(NRI!D46<>"",NRI!D46,"") ->  | E46: =IF(NRI!E46<>"",NRI!E46,"") ->  | F46: =IF(NRI!F46<>"",NRI!F46,"") ->  | G46: =IF(NRI!G46<>"",NRI!G46,"") ->  | H46: =IF(NRI!H46<>"",NRI!H46,"") ->  | I46: =IF(NRI!I46<>"",NRI!I46,"") ->  | J46: =IF(NRI!J46<>"",NRI!J46,"") ->  | K46: =IF(NRI!K46<>"",NRI!K46,"") ->  | L46: =IF(NRI!L46<>"",NRI!L46,"") ->  | M46: =IF(NRI!M46<>"",NRI!M46,"") -> 
A47: 2029 | B47: =IF(NRI!B47<>"",NRI!B47,"") ->  | C47: =IF(NRI!C47<>"",NRI!C47,"") ->  | D47: =IF(NRI!D47<>"",NRI!D47,"") ->  | E47: =IF(NRI!E47<>"",NRI!E47,"") ->  | F47: =IF(NRI!F47<>"",NRI!F47,"") ->  | G47: =IF(NRI!G47<>"",NRI!G47,"") ->  | H47: =IF(NRI!H47<>"",NRI!H47,"") ->  | I47: =IF(NRI!I47<>"",NRI!I47,"") ->  | J47: =IF(NRI!J47<>"",NRI!J47,"") ->  | K47: =IF(NRI!K47<>"",NRI!K47,"") ->  | L47: =IF(NRI!L47<>"",NRI!L47,"") ->  | M47: =IF(NRI!M47<>"",NRI!M47,"") -> 
A48: 2030 | B48: =IF(NRI!B48<>"",NRI!B48,"") ->  | C48: =IF(NRI!C48<>"",NRI!C48,"") ->  | D48: =IF(NRI!D48<>"",NRI!D48,"") ->  | E48: =IF(NRI!E48<>"",NRI!E48,"") ->  | F48: =IF(NRI!F48<>"",NRI!F48,"") ->  | G48: =IF(NRI!G48<>"",NRI!G48,"") ->  | H48: =IF(NRI!H48<>"",NRI!H48,"") ->  | I48: =IF(NRI!I48<>"",NRI!I48,"") ->  | J48: =IF(NRI!J48<>"",NRI!J48,"") ->  | K48: =IF(NRI!K48<>"",NRI!K48,"") ->  | L48: =IF(NRI!L48<>"",NRI!L48,"") ->  | M48: =IF(NRI!M48<>"",NRI!M48,"") -> 
A49: 2031 | B49: =IF(NRI!B49<>"",NRI!B49,"") ->  | C49: =IF(NRI!C49<>"",NRI!C49,"") ->  | D49: =IF(NRI!D49<>"",NRI!D49,"") ->  | E49: =IF(NRI!E49<>"",NRI!E49,"") ->  | F49: =IF(NRI!F49<>"",NRI!F49,"") ->  | G49: =IF(NRI!G49<>"",NRI!G49,"") ->  | H49: =IF(NRI!H49<>"",NRI!H49,"") ->  | I49: =IF(NRI!I49<>"",NRI!I49,"") ->  | J49: =IF(NRI!J49<>"",NRI!J49,"") ->  | K49: =IF(NRI!K49<>"",NRI!K49,"") ->  | L49: =IF(NRI!L49<>"",NRI!L49,"") ->  | M49: =IF(NRI!M49<>"",NRI!M49,"") -> 
A50: 2032 | B50: =IF(NRI!B50<>"",NRI!B50,"") ->  | C50: =IF(NRI!C50<>"",NRI!C50,"") ->  | D50: =IF(NRI!D50<>"",NRI!D50,"") ->  | E50: =IF(NRI!E50<>"",NRI!E50,"") ->  | F50: =IF(NRI!F50<>"",NRI!F50,"") ->  | G50: =IF(NRI!G50<>"",NRI!G50,"") ->  | H50: =IF(NRI!H50<>"",NRI!H50,"") ->  | I50: =IF(NRI!I50<>"",NRI!I50,"") ->  | J50: =IF(NRI!J50<>"",NRI!J50,"") ->  | K50: =IF(NRI!K50<>"",NRI!K50,"") ->  | L50: =IF(NRI!L50<>"",NRI!L50,"") ->  | M50: =IF(NRI!M50<>"",NRI!M50,"") -> 
A51: 2033 | B51: =IF(NRI!B51<>"",NRI!B51,"") ->  | C51: =IF(NRI!C51<>"",NRI!C51,"") ->  | D51: =IF(NRI!D51<>"",NRI!D51,"") ->  | E51: =IF(NRI!E51<>"",NRI!E51,"") ->  | F51: =IF(NRI!F51<>"",NRI!F51,"") ->  | G51: =IF(NRI!G51<>"",NRI!G51,"") ->  | H51: =IF(NRI!H51<>"",NRI!H51,"") ->  | I51: =IF(NRI!I51<>"",NRI!I51,"") ->  | J51: =IF(NRI!J51<>"",NRI!J51,"") ->  | K51: =IF(NRI!K51<>"",NRI!K51,"") ->  | L51: =IF(NRI!L51<>"",NRI!L51,"") ->  | M51: =IF(NRI!M51<>"",NRI!M51,"") -> 
A52: 2034 | B52: =IF(NRI!B52<>"",NRI!B52,"") ->  | C52: =IF(NRI!C52<>"",NRI!C52,"") ->  | D52: =IF(NRI!D52<>"",NRI!D52,"") ->  | E52: =IF(NRI!E52<>"",NRI!E52,"") ->  | F52: =IF(NRI!F52<>"",NRI!F52,"") ->  | G52: =IF(NRI!G52<>"",NRI!G52,"") ->  | H52: =IF(NRI!H52<>"",NRI!H52,"") ->  | I52: =IF(NRI!I52<>"",NRI!I52,"") ->  | J52: =IF(NRI!J52<>"",NRI!J52,"") ->  | K52: =IF(NRI!K52<>"",NRI!K52,"") ->  | L52: =IF(NRI!L52<>"",NRI!L52,"") ->  | M52: =IF(NRI!M52<>"",NRI!M52,"") -> 
A53: 2035 | B53: =IF(NRI!B53<>"",NRI!B53,"") ->  | C53: =IF(NRI!C53<>"",NRI!C53,"") ->  | D53: =IF(NRI!D53<>"",NRI!D53,"") ->  | E53: =IF(NRI!E53<>"",NRI!E53,"") ->  | F53: =IF(NRI!F53<>"",NRI!F53,"") ->  | G53: =IF(NRI!G53<>"",NRI!G53,"") ->  | H53: =IF(NRI!H53<>"",NRI!H53,"") ->  | I53: =IF(NRI!I53<>"",NRI!I53,"") ->  | J53: =IF(NRI!J53<>"",NRI!J53,"") ->  | K53: =IF(NRI!K53<>"",NRI!K53,"") ->  | L53: =IF(NRI!L53<>"",NRI!L53,"") ->  | M53: =IF(NRI!M53<>"",NRI!M53,"") -> 
A54: Mean | B54: =AVERAGE(B4:B53) -> -14.03133333 | C54: =AVERAGE(C4:C42) -> -22.13275758 | D54: -33.24260606 | E54: -35.16612121 | F54: -12.27339394 | G54: -9.77569697 | H54: 3.441727273 | I54: 44.44012121 | J54: 55.41915152 | K54: 21.04833333 | L54: 6.359333333 | M54: -3.386272727
A58: 2 | B58: กราฟแบ่งฤดู
B80: ม.ค. | C80: ก.พ. | D80: มี.ค. | E80: เม.ย. | F80: พ.ค. | G80: มิ.ย. | H80: ก.ค. | I80: ส.ค. | J80: ก.ย. | K80: ต.ค. | L80: พ.ย. | M80: ธ.ค. | N80: ม.ค. | O80: ก.พ. | P80: มี.ค. | Q80: เม.ย. | R80: พ.ค. | S80: มิ.ย. | T80: ก.ค. | U80: ส.ค. | V80: ก.ย. | W80: ต.ค. | X80: พ.ย. | Y80: ธ.ค.
A81: Year/Month | B81: Jan | C81: Feb | D81: Mar | E81: Apr | F81: May | G81: Jun | H81: Jul | I81: Aug | J81: Sep | K81: Oct | L81: Nov | M81: Dec | N81: Jan | O81: Feb | P81: Mar | Q81: Apr | R81: May | S81: Jun | T81: Jul | U81: Aug | V81: Sep | W81: Oct | X81: Nov | Y81: Dec
A82: =A4 -> 1986 | B82: =B4 -> -7.47 | C82: =C4 -> -15.23 | D82: -45.24 | E82: -29.27 | F82: -17.37 | G82: -36.18 | H82: 1.83 | I82: 22.17 | J82: 30.56 | K82: -12.07 | L82: 3.28 | M82: -3.94 | N82: =IF(B5<>"",B5,B4) -> -4.07 | O82: =IF(C5<>"",C5,C4) -> -17.32 | P82: -32.4 | Q82: -23.12 | R82: -11.76 | S82: -7.5 | T82: =IF(H5<>"",H5,H4) -> -8.65 | U82: =IF(I5<>"",I5,I4) -> 123.55 | V82: =IF(J5<>"",J5,J4) -> 58.62 | W82: =IF(K5<>"",K5,K4) -> 15.4 | X82: =IF(L5<>"",L5,L4) -> 22.25 | Y82: =IF(M5<>"",M5,M4) -> 3.48
A83: 1987 | B83: -4.07 | C83: =C5 -> -17.32 | D83: -32.4 | E83: -23.12 | F83: -11.76 | G83: -7.5 | H83: -8.65 | I83: 123.55 | J83: 58.62 | K83: 15.4 | L83: 22.25 | M83: 3.48 | N83: =IF(B6<>"",B6,B5) -> -21.17 | O83: -26.4 | P83: -38.9 | Q83: -20.59 | R83: 24.17 | S83: -13.55 | T83: -10.22 | U83: 22.57 | V83: 15.75 | W83: 25.38 | X83: 1.41 | Y83: -6.72
A84: 1988 | B84: -21.17 | C84: =C6 -> -26.4 | D84: -38.9 | E84: -20.59 | F84: 24.17 | G84: -13.55 | H84: -10.22 | I84: 22.57 | J84: 15.75 | K84: 25.38 | L84: 1.41 | M84: -6.72 | N84: -19.38 | O84: -16.22 | P84: -26.47 | Q84: -27.19 | R84: -2.08 | S84: 15.02 | T84: 30.35 | U84: 26.86 | V84: 87.14 | W84: 28.02 | X84: -7.81 | Y84: -5.23
A85: 1989 | B85: -19.38 | C85: =C7 -> -16.22 | D85: -26.47 | E85: -27.19 | F85: -2.08 | G85: 15.02 | H85: 30.35 | I85: 26.86 | J85: 87.14 | K85: 28.02 | L85: -7.81 | M85: -5.23 | N85: -30.23 | O85: -22.1 | P85: -27.75 | Q85: -52.97 | R85: -27.21 | S85: -36 | T85: -16.88 | U85: 27.79 | V85: 25.74 | W85: 17.81 | X85: 9.58 | Y85: 0.52
A86: 1990 | B86: -30.23 | C86: =C8 -> -22.1 | D86: -27.75 | E86: -52.97 | F86: -27.21 | G86: -36 | H86: -16.88 | I86: 27.79 | J86: 25.74 | K86: 17.81 | L86: 9.58 | M86: 0.52 | N86: -23.71 | O86: -27.99 | P86: -35.66 | Q86: -15.73 | R86: -14.3 | S86: 0.42 | T86: -16.44 | U86: 54.22 | V86: 69.09 | W86: 23.52 | X86: 13.28 | Y86: 0.14
A87: 1991 | B87: -23.71 | C87: =C9 -> -27.99 | D87: -35.66 | E87: -15.73 | F87: -14.3 | G87: 0.42 | H87: -16.44 | I87: 54.22 | J87: 69.09 | K87: 23.52 | L87: 13.28 | M87: 0.14 | N87: -17.65 | O87: -22.37 | P87: -37.29 | Q87: -43.67 | R87: -22.37 | S87: -16.7 | T87: 2.13 | U87: 6.11 | V87: 57.88 | W87: 16.37 | X87: 4.41 | Y87: 8.45
A88: 1992 | B88: -17.65 | C88: =C10 -> -22.37 | D88: -37.29 | E88: -43.67 | F88: -22.37 | G88: -16.7 | H88: 2.13 | I88: 6.11 | J88: 57.88 | K88: 16.37 | L88: 4.41 | M88: 8.45 | N88: -2.19 | O88: -18.22 | P88: -27.09 | Q88: -28.06 | R88: -12.94 | S88: -9.42 | T88: 16.14 | U88: 2.97 | V88: 23.51 | W88: 22.22 | X88: 2.97 | Y88: -1.53
A89: 1993 | B89: -2.19 | C89: =C11 -> -18.22 | D89: -27.09 | E89: -28.06 | F89: -12.94 | G89: -9.42 | H89: 16.14 | I89: 2.97 | J89: 23.51 | K89: 22.22 | L89: 2.97 | M89: -1.53 | N89: -18.96 | O89: -17.36 | P89: -1.43 | Q89: -3.25 | R89: 15.22 | S89: 36 | T89: 47.99 | U89: 154.98 | V89: -12.29 | W89: -19.24 | X89: -46.6 | Y89: -37.21
A90: 1994 | B90: -18.96 | C90: =C12 -> -17.36 | D90: -1.43 | E90: -3.25 | F90: 15.22 | G90: 36 | H90: 47.99 | I90: 154.98 | J90: -12.29 | K90: -19.24 | L90: -46.6 | M90: -37.21 | N90: -21.51 | O90: -5.8 | P90: -18.14 | Q90: -27.68 | R90: -7.66 | S90: -13.83 | T90: 10.69 | U90: 119.3 | V90: 47.71 | W90: -2.64 | X90: 10.15 | Y90: -2.07
A91: 1995 | B91: -21.51 | C91: =C13 -> -5.8 | D91: -18.14 | E91: -27.68 | F91: -7.66 | G91: -13.83 | H91: 10.69 | I91: 119.3 | J91: 47.71 | K91: -2.64 | L91: 10.15 | M91: -2.07 | N91: -16.27 | O91: -36.88 | P91: -33.45 | Q91: -56.41 | R91: -23.34 | S91: -28.22 | T91: -38.15 | U91: 75.72 | V91: 48.58 | W91: 22.37 | X91: 18.01 | Y91: 5.04
A92: 1996 | B92: -16.27 | C92: =C14 -> -36.88 | D92: -33.45 | E92: -56.41 | F92: -23.34 | G92: -28.22 | H92: -38.15 | I92: 75.72 | J92: 48.58 | K92: 22.37 | L92: 18.01 | M92: 5.04 | N92: -4.48 | O92: -25.1 | P92: -19.46 | Q92: -31.34 | R92: -34.08 | S92: -33.26 | T92: -1.82 | U92: 29.7 | V92: 92.68 | W92: 40.69 | X92: 2.27 | Y92: -0.99
A93: 1997 | B93: -4.48 | C93: =C15 -> -25.1 | D93: -19.46 | E93: -31.34 | F93: -34.08 | G93: -33.26 | H93: -1.82 | I93: 29.7 | J93: 92.68 | K93: 40.69 | L93: 2.27 | M93: -0.99 | N93: -16.07 | O93: -24.67 | P93: -40.12 | Q93: -31.75 | R93: -6.7 | S93: -13.92 | T93: -14.36 | U93: -2.39 | V93: 44.51 | W93: -7.39 | X93: 0.34 | Y93: -3.97
A94: 1998 | B94: -16.07 | C94: =C16 -> -24.67 | D94: -40.12 | E94: -31.75 | F94: -6.7 | G94: -13.92 | H94: -14.36 | I94: -2.39 | J94: 44.51 | K94: -7.39 | L94: 0.34 | M94: -3.97 | N94: -7.12 | O94: -14.93 | P94: -19.02 | Q94: -12.57 | R94: 5 | S94: 9.41 | T94: -6.12 | U94: 52.85 | V94: 92.64 | W94: 36.82 | X94: 12.47 | Y94: 0.59
A95: 1999 | B95: -7.12 | C95: =C17 -> -14.93 | D95: -19.02 | E95: -12.57 | F95: 5 | G95: 9.41 | H95: -6.12 | I95: 52.85 | J95: 92.64 | K95: 36.82 | L95: 12.47 | M95: 0.59 | N95: -6.84 | O95: -14.13 | P95: -23.44 | Q95: -38.77 | R95: -12.5 | S95: -4.96 | T95: -3.33 | U95: -8.43 | V95: 38.68 | W95: 13.52 | X95: 1.25 | Y95: -2.91
A96: 2000 | B96: -6.84 | C96: =C18 -> -14.13 | D96: -23.44 | E96: -38.77 | F96: -12.5 | G96: -4.96 | H96: -3.33 | I96: -8.43 | J96: 38.68 | K96: 13.52 | L96: 1.25 | M96: -2.91 | N96: -15.94 | O96: -18.2 | P96: -17.4 | Q96: -36.37 | R96: -6.09 | S96: -10.9 | T96: 11.23 | U96: 96.86 | V96: 51.54 | W96: 21.06 | X96: -1.33 | Y96: -11.29
A97: 2001 | B97: -15.94 | C97: =C19 -> -18.2 | D97: -17.4 | E97: -36.37 | F97: -6.09 | G97: -10.9 | H97: 11.23 | I97: 96.86 | J97: 51.54 | K97: 21.06 | L97: -1.33 | M97: -11.29 | N97: -17.54 | O97: -17.87 | P97: -37.02 | Q97: -46.03 | R97: 0.58 | S97: 0.79 | T97: -5.84 | U97: 24.56 | V97: 86.89 | W97: 19.68 | X97: 32.58 | Y97: -16.32
A98: 2002 | B98: -17.54 | C98: =C20 -> -17.87 | D98: -37.02 | E98: -46.03 | F98: 0.58 | G98: 0.79 | H98: -5.84 | I98: 24.56 | J98: 86.89 | K98: 19.68 | L98: 32.58 | M98: -16.32 | N98: -22.27 | O98: =IF(C21<>"",C21,C20) -> -22.75 | P98: =IF(D21<>"",D21,D20) -> -32.73 | Q98: =IF(E21<>"",E21,E20) -> -42.53 | R98: =IF(F21<>"",F21,F20) -> -41.63 | S98: =IF(G21<>"",G21,G20) -> -29.11 | T98: -5.59 | U98: 31.84 | V98: 98.25 | W98: 6.94 | X98: -4.68 | Y98: -6.62
A99: 2003 | B99: -22.27 | C99: =C21 -> -22.75 | D99: -32.73 | E99: -42.53 | F99: -41.63 | G99: -29.11 | H99: -5.59 | I99: 31.84 | J99: 98.25 | K99: 6.94 | L99: -4.68 | M99: -6.62 | N99: -21.73 | O99: -30.33 | P99: -32.11 | Q99: -31.27 | R99: 0.87 | S99: -1.49 | T99: 21.73 | U99: 45.68 | V99: 119.24 | W99: 10.6 | X99: 3 | Y99: -4.65
A100: 2004 | B100: -21.73 | C100: =C22 -> -30.33 | D100: -32.11 | E100: -31.27 | F100: 0.87 | G100: -1.49 | H100: 21.73 | I100: 45.68 | J100: 119.24 | K100: 10.6 | L100: 3 | M100: -4.65 | N100: -15.19 | O100: -40.36 | P100: -56.91 | Q100: -48.92 | R100: -46.27 | S100: 5.48 | T100: 50.29 | U100: 72.34 | V100: 92.48 | W100: -2.72 | X100: -0.15 | Y100: -3.62
A101: 2005 | B101: -15.19 | C101: =C23 -> -40.36 | D101: -56.91 | E101: -48.92 | F101: -46.27 | G101: 5.48 | H101: 50.29 | I101: 72.34 | J101: 92.48 | K101: -2.72 | L101: -0.15 | M101: -3.62 | N101: -14.21 | O101: -28.13 | P101: -53.59 | Q101: -42.65 | R101: -27.74 | S101: -67.1 | T101: 29.27 | U101: 40.49 | V101: 63.97 | W101: 53.13 | X101: 2.91 | Y101: -6.24
A102: 2006 | B102: -14.21 | C102: =C24 -> -28.13 | D102: -53.59 | E102: -42.65 | F102: -27.74 | G102: -67.1 | H102: 29.27 | I102: 40.49 | J102: 63.97 | K102: 53.13 | L102: 2.91 | M102: -6.24 | N102: =IF(B25<>"",B25,B24) -> -11.54 | O102: =C24 -> -28.13 | P102: =D24 -> -53.59 | Q102: =E24 -> -42.65 | R102: =F24 -> -27.74 | S102: =G24 -> -67.1 | T102: =H24 -> 29.27 | U102: =I24 -> 40.49 | V102: =J24 -> 63.97 | W102: =K24 -> 53.13 | X102: =L24 -> 2.91 | Y102: =M24 -> -6.24
A103: 2007 | B103: -11.54 | C103: =C25 -> -22.88 | D103: -42.08 | E103: -38.22 | F103: 0.48 | G103: -25.77 | H103: -10.59 | I103: 41.77 | J103: 42.61 | K103: 34.91 | L103: 18.06 | M103: -12.29 | N103: =B25 -> -11.54 | O103: -22.88 | P103: -42.08 | Q103: -38.22 | R103: 0.48 | S103: -25.77 | T103: -10.59 | U103: 41.77 | V103: 42.61 | W103: 34.91 | X103: 18.06 | Y103: -12.29
A104: 2008 | B104: -19.68 | C104: =C26 -> -23.74 | D104: -42.58 | E104: -42.93 | F104: 2.39 | G104: 11.88 | H104: 10.34 | I104: 21.04 | J104: 90.11 | K104: 38.95 | L104: 7.87 | M104: -4.04 | N104: -19.68 | O104: -23.74 | P104: -42.58 | Q104: -42.93 | R104: 2.39 | S104: 11.88 | T104: 10.34 | U104: 21.04 | V104: 90.11 | W104: 38.95 | X104: 7.87 | Y104: -4.04
A105: 2009 | B105: -13.35 | C105: =C27 -> -26.44 | D105: -55.93 | E105: -61.46 | F105: -6.5 | G105: 11.26 | H105: -0.71 | I105: 16.37 | J105: 54.71 | K105: 37.56 | L105: 4.56 | M105: -3 | N105: -13.35 | O105: -26.44 | P105: -55.93 | Q105: -61.46 | R105: -6.5 | S105: 11.26 | T105: -0.71 | U105: 16.37 | V105: 54.71 | W105: 37.56 | X105: 4.56 | Y105: -3
A106: 2010 | B106: -7.53 | C106: =C28 -> -22.15 | D106: -42.11 | E106: -47.57 | F106: -36.76 | G106: -7.75 | H106: 2.47 | I106: 109.41 | J106: 65.11 | K106: 36.91 | L106: -7.82 | M106: -2.99 | N106: -7.53 | O106: -22.15 | P106: -42.11 | Q106: -47.57 | R106: -36.76 | S106: -7.75 | T106: 2.47 | U106: 109.41 | V106: 65.11 | W106: 36.91 | X106: -7.82 | Y106: -2.99
A107: 2011 | B107: -11.14 | C107: =C29 -> -20.36 | D107: -39.17 | E107: -35.54 | F107: -13.53 | G107: -12.92 | H107: -25.46 | I107: 106.27 | J107: 59.05 | K107: 0.16 | L107: 4.49 | M107: -3.01 | N107: -11.14 | O107: -20.36 | P107: -39.17 | Q107: -35.54 | R107: -13.53 | S107: -12.92 | T107: -25.46 | U107: 106.27 | V107: 59.05 | W107: 0.16 | X107: 4.49 | Y107: -3.01
A108: 2012 | B108: -16.3 | C108: =C30 -> -39.89 | D108: -45.72 | E108: -40.87 | F108: -10.03 | G108: -14.89 | H108: -9.74 | I108: 4.76 | J108: 53.54 | K108: 10.01 | L108: 10.66 | M108: 1.39 | N108: -16.3 | O108: -39.89 | P108: -45.72 | Q108: -40.87 | R108: -10.03 | S108: -14.89 | T108: -9.74 | U108: 4.76 | V108: 53.54 | W108: 10.01 | X108: 10.66 | Y108: 1.39
A109: 2013 | B109: -17.06 | C109: =C31 -> -16.23 | D109: -25.69 | E109: -44.36 | F109: -19.82 | G109: -4.22 | H109: -0.91 | I109: 40.39 | J109: 75.85 | K109: 52.12 | L109: 23.71 | M109: 10.8 | N109: -17.06 | O109: -16.23 | P109: -25.69 | Q109: -44.36 | R109: -19.82 | S109: -4.22 | T109: -0.91 | U109: 40.39 | V109: 75.85 | W109: 52.12 | X109: 23.71 | Y109: 10.8
A110: 2014 | B110: -15.62 | C110: =C32 -> -29.16 | D110: -37.14 | E110: -40.27 | F110: -23.72 | G110: -2.38 | H110: 10.21 | I110: 18.89 | J110: 31.36 | K110: 9.45 | L110: 12.42 | M110: -4.81 | N110: -15.62 | O110: -29.16 | P110: -37.14 | Q110: -40.27 | R110: -23.72 | S110: -2.38 | T110: 10.21 | U110: 18.89 | V110: 31.36 | W110: 9.45 | X110: 12.42 | Y110: -4.81
A111: 2015 | B111: -7.23 | C111: =C33 -> -20.15 | D111: -27.75 | E111: -27.53 | F111: -18.06 | G111: -21.02 | H111: -9.71 | I111: 9.08 | J111: 2.81 | K111: 4.83 | L111: 4.42 | M111: -1.15 | N111: -7.23 | O111: -20.15 | P111: -27.75 | Q111: -27.53 | R111: -18.06 | S111: -21.02 | T111: -9.71 | U111: 9.08 | V111: 2.81 | W111: 4.83 | X111: 4.42 | Y111: -1.15
A112: 2016 | B112: -9.648 | C112: =C34 -> -7.153 | D112: -9.14 | E112: -16.89 | F112: -0.781 | G112: 18.212 | H112: 12.803 | I112: 31.018 | J112: 41.697 | K112: 24.844 | L112: 21.529 | M112: 0.888 | N112: -9.648 | O112: -7.153 | P112: -9.14 | Q112: -16.89 | R112: -0.781 | S112: 18.212 | T112: 12.803 | U112: 31.018 | V112: 41.697 | W112: 24.844 | X112: 21.529 | Y112: 0.888
A113: 2017 | B113: -2.903 | C113: =C35 -> -18.392 | D113: -36.954 | E113: -34.008 | F113: -3.198 | G113: 4.579 | H113: 37.103 | I113: 27.95 | J113: 39.261 | K113: 58.238 | L113: 9.835 | M113: 0.474 | N113: -2.903 | O113: -18.392 | P113: -36.954 | Q113: -34.008 | R113: -3.198 | S113: 4.579 | T113: 37.103 | U113: 27.95 | V113: 39.261 | W113: 58.238 | X113: 9.835 | Y113: 0.474
A114: =A36 -> 2018 | B114: -7.033 | C114: =C36 -> -21.476 | D114: -37.122 | E114: -40.694 | F114: -7.293 | G114: -24.559 | H114: 3.521 | I114: 19.836 | J114: 39.554 | K114: 57.143 | L114: 20.534 | M114: 1.081 | N114: =B36 -> -7.033 | O114: =C36 -> -21.476 | P114: =D36 -> -37.122 | Q114: =E36 -> -40.694 | R114: =F36 -> -7.293 | S114: =G36 -> -24.559 | T114: 3.521 | U114: 19.836 | V114: 39.554 | W114: 57.143 | X114: 20.534 | Y114: 1.081
A115: 2019 | C115: =C37 -> 
A116: 2020 | C116: =C38 -> 
A117: 2021 | C117: =C39 -> 
A118: 2022 | C118: =C40 -> 
A119: 2023 | C119: =C41 -> 
A120: 2024 | C120: =C42 -> 
A121: 2025 | C121: =C43 -> 
A122: 2026 | C122: =C44 -> 
A123: 2027 | C123: =C45 -> 
A124: 2028 | C124: =C46 -> 
A125: 2029 | C125: =C47 -> 
A126: 2030 | C126: =C48 -> 
A127: 2031 | C127: =C49 -> 
A128: 2032 | C128: =C50 -> 
A129: 2033 | C129: =C51 -> 
A130: 2034 | C130: =C52 -> 
A131: 2035 | C131: =C53 -> 
A132: Mean | B132: =AVERAGE(B82:B120) -> -14.03133333 | C132: -22.13275758 | D132: -33.24260606 | E132: -35.16612121 | F132: -12.27339394 | G132: -9.77569697 | H132: 3.441727273 | I132: 44.44012121 | J132: 55.41915152 | K132: 21.04833333 | L132: 6.359333333 | M132: =AVERAGE(M82:M131) -> -3.386272727 | N132: -14.15466667 | O132: -22.52366667 | P132: -33.49563636 | Q132: -35.57157576 | R132: -12.58763636 | S132: -10.71266667 | T132: 4.273242424 | U132: 44.99527273 | V132: 56.43157576 | W132: 23.02409091 | X132: 6.348121212 | Y132: -3.455969697
B133: =IF(AND(B132<0,C132<0),"",-1) ->  | C133: =IF(AND(B133="",C132<0),"",IF(AND(B133>0,C132<0),B133*-1,IF(AND(B133<0,C132<0),B133-1,1))) ->  | H133: 1 | I133: 1 | J133: 1 | K133: 1 | L133: 1 | M133: -1 | N133: -2 | O133: -3 | P133: -4 | Q133: -5 | R133: -6 | S133: -7 | T133: =IF(AND(S133="",T132<0),"",IF(AND(S133>0,T132<0),S133*-1,IF(AND(S133<0,T132<0),S133-1,1))) -> 1 | U133: 1 | V133: 1 | W133: 1 | X133: 1 | Y133: -1
B134: =IF(B133<0,B133*-1,0) -> 0 | C134: 0 | D134: 0 | E134: 0 | F134: 0 | G134: =IF(G133<0,G133*-1,0) -> 0 | H134: =IF(H133<0,H133*-1,0) -> 0 | I134: =IF(I133<0,I133*-1,0) -> 0 | J134: =IF(J133<0,J133*-1,0) -> 0 | K134: =IF(K133<0,K133*-1,0) -> 0 | L134: =IF(L133<0,L133*-1,0) -> 0 | M134: 1 | N134: =IF(N133<0,N133*-1,0) -> 2 | O134: =IF(O133<0,O133*-1,0) -> 3 | P134: =IF(P133<0,P133*-1,0) -> 4 | Q134: =IF(Q133<0,Q133*-1,0) -> 5 | R134: =IF(R133<0,R133*-1,0) -> 6 | S134: 7 | T134: =IF(T133<0,T133*-1,0) -> 0 | U134: =IF(U133<0,U133*-1,0) -> 0 | V134: =IF(V133<0,V133*-1,0) -> 0 | W134: =IF(W133<0,W133*-1,0) -> 0 | X134: =IF(X133<0,X133*-1,0) -> 0 | Y134: 1
B135: =IF(B134=0,0,IF(IF(C134>B134,C134,B134)<C135,C135,IF(C134>B134,C134,B134))) -> 0 | C135: 0 | D135: 0 | E135: 0 | F135: 0 | G135: 0 | H135: 0 | I135: =IF(I134=0,0,IF(IF(J134>I134,J134,I134)<J135,J135,IF(J134>I134,J134,I134))) -> 0 | J135: =IF(J134=0,0,IF(IF(K134>J134,K134,J134)<K135,K135,IF(K134>J134,K134,J134))) -> 0 | K135: 0 | L135: 0 | M135: 7 | N135: 7 | O135: 7 | P135: 7 | Q135: 7 | R135: 7 | S135: =IF(S134=0,0,IF(IF(T134>S134,T134,S134)<T135,T135,IF(T134>S134,T134,S134))) -> 7 | T135: 0 | U135: 0 | V135: 0 | W135: 0 | X135: 0 | Y135: 1
B136: =IF(B133="",0,1) -> 0 | C136: =IF(C133="",0,IF(B136<>"",B136+1,1)) -> 0 | D136: 0 | E136: 0 | F136: 0 | G136: 0 | H136: 1 | I136: 2 | J136: 3 | K136: 4 | L136: 5 | M136: 6 | N136: 7 | O136: 8 | P136: 9 | Q136: 10 | R136: 11 | S136: 12 | T136: =IF(T133="",0,IF(S136<>"",S136+1,1)) -> 13 | U136: 14 | V136: 15 | W136: 16 | X136: 17 | Y136: 18
A137: Year/Month | B137: Jan | C137: Feb | D137: Mar | E137: Apr | F137: May | G137: Jun | H137: Jul | I137: Aug | J137: Sep | K137: Oct | L137: Nov | M137: Dec | N137: Jan | O137: Feb | P137: Mar | Q137: Apr | R137: May | S137: Jun | T137: Jul | U137: Aug | V137: Sep | W137: Oct | X137: Nov | Y137: Dec | AB137: 3 | AC137: ใส่ NRI รายเดือน
A138: =A4 -> 1986 | B138: =IF(OR(B$136=0,B$136>12),"",IF(B$133<0,-1*SUM(OFFSET(B82,0,0,1,IF(AND(A$133>0,C$133>0),1,(B$135)+1+B$133))),B82*-1)) ->  | C138: =IF(OR(C$136=0,C$136>12),"",IF(C$133<0,-1*SUM(OFFSET(C82,0,0,1,IF(AND(B$133>0,D$133>0),1,(C$135)+1+C$133))),C82*-1)) ->  | H138: -1.83 | I138: -22.17 | J138: -30.56 | K138: 12.07 | L138: -3.28 | M138: 100.11 | N138: =IF(OR(N$136=0,N$136>12),"",IF(N$133<0,-1*SUM(OFFSET(B82,0,0,1,IF(AND(M$133>0,O$133>0),1,(N$135)+1+N$133))),B82*-1)) -> 150.76 | O138: =IF(OR(O$136=0,O$136>12),"",IF(O$133<0,-1*SUM(OFFSET(C82,0,0,1,IF(AND(N$133>0,P$133>0),1,(O$135)+1+O$133))),C82*-1)) -> 143.29 | P138: 128.06 | Q138: 82.82 | R138: 53.55 | S138: 36.18 | T138: =IF(OR(T$136=0,T$136>12),"",IF(T$133<0,-1*SUM(OFFSET(H82,0,0,1,IF(AND(S$133>0,U$133>0),1,T$135+1+T$133))),H82)) ->  | U138: =IF(OR(U$136=0,U$136>12),"",IF(U$133<0,-1*SUM(OFFSET(I82,0,0,1,IF(AND(T$133>0,V$133>0),1,U$135+1+U$133))),I82)) ->  | V138: =IF(OR(V$136=0,V$136>12),"",IF(V$133<0,-1*SUM(OFFSET(J82,0,0,1,IF(AND(U$133>0,W$133>0),1,V$135+1+V$133))),J82)) ->  | W138: =IF(OR(W$136=0,W$136>12),"",IF(W$133<0,-1*SUM(OFFSET(K82,0,0,1,IF(AND(V$133>0,X$133>0),1,W$135+1+W$133))),K82)) ->  | X138: =IF(OR(X$136=0,X$136>12),"",IF(X$133<0,-1*SUM(OFFSET(L82,0,0,1,IF(AND(W$133>0,Y$133>0),1,X$135+1+X$133))),L82)) ->  | Y138: =IF(OR(Y$136=0,Y$136>12),"",IF(Y$133<0,-1*SUM(OFFSET(M82,0,0,1,IF(AND(X$133>0,Z$133>0),1,Y$135+1+Y$133))),M82)) ->  | AD138: ม.ค. | AE138: ก.พ. | AF138: มี.ค. | AG138: เม.ย. | AH138: พ.ค. | AI138: มิ.ย. | AJ138: ก.ค. | AK138: ส.ค. | AL138: ก.ย. | AM138: ต.ค. | AN138: พ.ย. | AO138: ธ.ค.
A139: =A5 -> 1987 | B139: =IF(OR(B$136=0,B$136>12),"",IF(B$133<0,-1*SUM(OFFSET(B83,0,0,1,IF(AND(A$133>0,C$133>0),1,(B$135)+1+B$133))),B83*-1)) ->  | H139: 8.65 | I139: -123.55 | J139: -58.62 | K139: -15.4 | L139: -22.25 | M139: 92.96 | N139: =IF(OR(N$136=0,N$136>12),"",IF(N$133<0,-1*SUM(OFFSET(B83,0,0,1,IF(AND(M$133>0,O$133>0),1,(N$135)+1+N$133))),B83*-1)) -> 96.17 | O139: 92.1 | P139: 74.78 | Q139: 42.38 | R139: 19.26 | S139: 7.5 | AB139: ปี ค.ศ. | AC139: ปี พ.ศ. | AD139: Jan | AE139: Feb | AF139: Mar | AG139: Apr | AH139: May | AI139: Jun | AJ139: Jul | AK139: Aug | AL139: Sep | AM139: Oct | AN139: Nov | AO139: Dec
A140: 1988 | B140: =IF(OR(B$136=0,B$136>12),"",IF(B$133<0,-1*SUM(OFFSET(B84,0,0,1,IF(AND(A$133>0,C$133>0),1,(B$135)+1+B$133))),B84*-1)) ->  | H140: 10.22 | I140: -22.57 | J140: -15.75 | K140: -25.38 | L140: -1.41 | M140: 83.04 | N140: =IF(OR(N$136=0,N$136>12),"",IF(N$133<0,-1*SUM(OFFSET(B84,0,0,1,IF(AND(M$133>0,O$133>0),1,(N$135)+1+N$133))),B84*-1)) -> 96.44 | O140: 75.27 | P140: 48.87 | Q140: 9.97 | R140: -10.62 | S140: 13.55 | AB140: =A4 -> 1986 | AC140: =A195+543 -> 2529 | AD140: =IF(B138<>"",IF(B138=0,"",B138),IF(N138=0,"",N138)) -> 150.76 | AE140: =IF(C138<>"",IF(C138=0,"",C138),IF(O138=0,"",O138)) -> 143.29 | AF140: =IF(D138<>"",IF(D138=0,"",D138),IF(P138=0,"",P138)) -> 128.06 | AG140: =IF(E138<>"",IF(E138=0,"",E138),IF(Q138=0,"",Q138)) -> 82.82 | AH140: =IF(F138<>"",IF(F138=0,"",F138),IF(R138=0,"",R138)) -> 53.55 | AI140: =IF(G138<>"",IF(G138=0,"",G138),IF(S138=0,"",S138)) -> 36.18 | AJ140: =IF(H138<>"",IF(H138=0,"",H138),IF(T138=0,"",T138)) -> -1.83 | AK140: =IF(I138<>"",IF(I138=0,"",I138),IF(U138=0,"",U138)) -> -22.17 | AL140: =IF(J138<>"",IF(J138=0,"",J138),IF(V138=0,"",V138)) -> -30.56 | AM140: =IF(K138<>"",IF(K138=0,"",K138),IF(W138=0,"",W138)) -> 12.07 | AN140: =IF(L138<>"",IF(L138=0,"",L138),IF(X138=0,"",X138)) -> -3.28 | AO140: =IF(M138<>"",IF(M138=0,"",M138),IF(Y138=0,"",Y138)) -> 100.11
A141: 1989 | H141: -30.35 | I141: -26.86 | J141: -87.14 | K141: -28.02 | L141: 7.81 | M141: 201.49 | N141: 76.32 | O141: 56.94 | P141: 40.72 | Q141: 14.25 | R141: -12.94 | S141: -15.02 | AB141: =A195+1 -> 1987 | AC141: 2530 | AD141: 96.17 | AE141: 92.1 | AF141: 74.78 | AG141: 42.38 | AH141: 19.26 | AI141: 7.5 | AJ141: 8.65 | AK141: -123.55 | AL141: -58.62 | AM141: -15.4 | AN141: -22.25 | AO141: 92.96
A142: 1990 | H142: 16.88 | I142: -27.79 | J142: -25.74 | K142: -17.81 | L142: -9.58 | M142: 116.45 | N142: 196.26 | O142: 166.03 | P142: 143.93 | Q142: 116.18 | R142: 63.21 | S142: 36 | AB142: 1988 | AC142: 2531 | AD142: 96.44 | AE142: 75.27 | AF142: 48.87 | AG142: 9.97 | AH142: -10.62 | AI142: 13.55 | AJ142: 10.22 | AK142: -22.57 | AL142: -15.75 | AM142: -25.38 | AN142: -1.41 | AO142: 83.04
A143: 1991 | H143: 16.44 | I143: -54.22 | J143: -69.09 | K143: -23.52 | L143: -13.28 | M143: 159.91 | N143: 116.97 | O143: 93.26 | P143: 65.27 | Q143: 29.61 | R143: 13.88 | S143: -0.42 | AB143: 1989 | AC143: 2532 | AD143: 76.32 | AE143: 56.94 | AF143: 40.72 | AG143: 14.25 | AH143: -12.94 | AI143: -15.02 | AJ143: -30.35 | AK143: -26.86 | AL143: -87.14 | AM143: -28.02 | AN143: 7.81 | AO143: 201.49
A144: 1992 | H144: -2.13 | I144: -6.11 | J144: -57.88 | K144: -16.37 | L144: -4.41 | M144: 89.47 | N144: 160.05 | O144: 142.4 | P144: 120.03 | Q144: 82.74 | R144: 39.07 | S144: 16.7 | AB144: 1990 | AC144: 2533 | AD144: 196.26 | AE144: 166.03 | AF144: 143.93 | AG144: 116.18 | AH144: 63.21 | AI144: 36 | AJ144: 16.88 | AK144: -27.79 | AL144: -25.74 | AM144: -17.81 | AN144: -9.58 | AO144: 116.45
A145: 1993 | H145: -16.14 | I145: -2.97 | J145: -23.51 | K145: -22.22 | L145: -2.97 | M145: -8.69 | N145: 97.92 | O145: 95.73 | P145: 77.51 | Q145: 50.42 | R145: 22.36 | S145: 9.42 | AB145: 1991 | AC145: 2534 | AD145: 116.97 | AE145: 93.26 | AF145: 65.27 | AG145: 29.61 | AH145: 13.88 | AI145: -0.42 | AJ145: 16.44 | AK145: -54.22 | AL145: -69.09 | AM145: -23.52 | AN145: -13.28 | AO145: 159.91
A146: 1994 | H146: -47.99 | I146: -154.98 | J146: 12.29 | K146: 19.24 | L146: 46.6 | M146: 131.83 | N146: -10.22 | O146: -29.18 | P146: -46.54 | Q146: -47.97 | R146: -51.22 | S146: -36 | AB146: 1992 | AC146: 2535 | AD146: 160.05 | AE146: 142.4 | AF146: 120.03 | AG146: 82.74 | AH146: 39.07 | AI146: 16.7 | AJ146: -2.13 | AK146: -6.11 | AL146: -57.88 | AM146: -16.37 | AN146: -4.41 | AO146: 89.47
A147: 1995 | H147: -10.69 | I147: -119.3 | J147: -47.71 | K147: 2.64 | L147: -10.15 | M147: 196.64 | N147: 94.62 | O147: 73.11 | P147: 67.31 | Q147: 49.17 | R147: 21.49 | S147: 13.83 | AB147: 1993 | AC147: 2536 | AD147: 97.92 | AE147: 95.73 | AF147: 77.51 | AG147: 50.42 | AH147: 22.36 | AI147: 9.42 | AJ147: -16.14 | AK147: -2.97 | AL147: -23.51 | AM147: -22.22 | AN147: -2.97 | AO147: -8.69
A148: 1996 | H148: 38.15 | I148: -75.72 | J148: -48.58 | K148: -22.37 | L148: -18.01 | M148: 142.68 | N148: 194.57 | O148: 178.3 | P148: 141.42 | Q148: 107.97 | R148: 51.56 | S148: 28.22 | AB148: 1994 | AC148: 2537 | AD148: -10.22 | AE148: -29.18 | AF148: -46.54 | AG148: -47.97 | AH148: -51.22 | AI148: -36 | AJ148: -47.99 | AK148: -154.98 | AL148: 12.29 | AM148: 19.24 | AN148: 46.6 | AO148: 131.83
A149: 1997 | H149: 1.82 | I149: -29.7 | J149: -92.68 | K149: -40.69 | L149: -2.27 | M149: 134.22 | N149: 147.72 | O149: 143.24 | P149: 118.14 | Q149: 98.68 | R149: 67.34 | S149: 33.26 | AB149: 1995 | AC149: 2538 | AD149: 94.62 | AE149: 73.11 | AF149: 67.31 | AG149: 49.17 | AH149: 21.49 | AI149: 13.83 | AJ149: -10.69 | AK149: -119.3 | AL149: -47.71 | AM149: 2.64 | AN149: -10.15 | AO149: 196.64
A150: 1998 | H150: 14.36 | I150: 2.39 | J150: -44.51 | K150: 7.39 | L150: -0.34 | M150: 43.2 | N150: 133.23 | O150: 117.16 | P150: 92.49 | Q150: 52.37 | R150: 20.62 | S150: 13.92 | AB150: 1996 | AC150: 2539 | AD150: 194.57 | AE150: 178.3 | AF150: 141.42 | AG150: 107.97 | AH150: 51.56 | AI150: 28.22 | AJ150: 38.15 | AK150: -75.72 | AL150: -48.58 | AM150: -22.37 | AN150: -18.01 | AO150: 142.68
A151: 1999 | H151: 6.12 | I151: -52.85 | J151: -92.64 | K151: -36.82 | L151: -12.47 | M151: 100.05 | N151: 39.23 | O151: 32.11 | P151: 17.18 | Q151: -1.84 | R151: -14.41 | S151: -9.41 | AB151: 1997 | AC151: 2540 | AD151: 147.72 | AE151: 143.24 | AF151: 118.14 | AG151: 98.68 | AH151: 67.34 | AI151: 33.26 | AJ151: 1.82 | AK151: -29.7 | AL151: -92.68 | AM151: -40.69 | AN151: -2.27 | AO151: 134.22
A152: 2000 | H152: 3.33 | I152: 8.43 | J152: -38.68 | K152: -13.52 | L152: -1.25 | M152: 107.81 | N152: 100.64 | O152: 93.8 | P152: 79.67 | Q152: 56.23 | R152: 17.46 | S152: 4.96 | AB152: 1998 | AC152: 2541 | AD152: 133.23 | AE152: 117.16 | AF152: 92.49 | AG152: 52.37 | AH152: 20.62 | AI152: 13.92 | AJ152: 14.36 | AK152: 2.39 | AL152: -44.51 | AM152: 7.39 | AN152: -0.34 | AO152: 43.2
A153: 2001 | H153: -11.23 | I153: -96.86 | J153: -51.54 | K153: -21.06 | L153: 1.33 | M153: 128.38 | N153: 104.9 | O153: 88.96 | P153: 70.76 | Q153: 53.36 | R153: 16.99 | S153: 10.9 | AB153: 1999 | AC153: 2542 | AD153: 39.23 | AE153: 32.11 | AF153: 17.18 | AG153: -1.84 | AH153: -14.41 | AI153: -9.41 | AJ153: 6.12 | AK153: -52.85 | AL153: -92.64 | AM153: -36.82 | AN153: -12.47 | AO153: 100.05
A154: 2002 | H154: 5.84 | I154: -24.56 | J154: -86.89 | K154: -19.68 | L154: -32.58 | M154: 207.34 | N154: 117.09 | O154: 99.55 | P154: 81.68 | Q154: 44.66 | R154: -1.37 | S154: -0.79 | AB154: 2000 | AC154: 2543 | AD154: 100.64 | AE154: 93.8 | AF154: 79.67 | AG154: 56.23 | AH154: 17.46 | AI154: 4.96 | AJ154: 3.33 | AK154: 8.43 | AL154: -38.68 | AM154: -13.52 | AN154: -1.25 | AO154: 107.81
A155: 2003 | H155: 5.59 | I155: -31.84 | J155: -98.25 | K155: -6.94 | L155: 4.68 | M155: 122.68 | N155: 191.02 | O155: 168.75 | P155: 146 | Q155: 113.27 | R155: 70.74 | S155: 29.11 | AB155: 2001 | AC155: 2544 | AD155: 104.9 | AE155: 88.96 | AF155: 70.76 | AG155: 53.36 | AH155: 16.99 | AI155: 10.9 | AJ155: -11.23 | AK155: -96.86 | AL155: -51.54 | AM155: -21.06 | AN155: 1.33 | AO155: 128.38
A156: 2004 | B156: =IF(OR(B$136=0,B$136>12),"",IF(B$133<0,-1*SUM(OFFSET(B100,0,0,1,IF(AND(A$133>0,C$133>0),1,(B$135)+1+B$133))),B100*-1)) ->  | H156: -21.73 | I156: -45.68 | J156: -119.24 | K156: -10.6 | L156: -3 | M156: 206.82 | N156: =IF(OR(N$136=0,N$136>12),"",IF(N$133<0,-1*SUM(OFFSET(B100,0,0,1,IF(AND(M$133>0,O$133>0),1,(N$135)+1+N$133))),B100*-1)) -> 116.06 | O156: 94.33 | P156: 64 | Q156: 31.89 | R156: 0.62 | S156: 1.49 | AB156: 2002 | AC156: 2545 | AD156: 117.09 | AE156: 99.55 | AF156: 81.68 | AG156: 44.66 | AH156: -1.37 | AI156: -0.79 | AJ156: 5.84 | AK156: -24.56 | AL156: -86.89 | AM156: -19.68 | AN156: -32.58 | AO156: 207.34
A157: 2005 | H157: -50.29 | I157: -72.34 | J157: -92.48 | K157: 2.72 | L157: 0.15 | M157: 237.04 | N157: 202.17 | O157: 186.98 | P157: 146.62 | Q157: 89.71 | R157: 40.79 | S157: -5.48 | AB157: 2003 | AC157: 2546 | AD157: 191.02 | AE157: 168.75 | AF157: 146 | AG157: 113.27 | AH157: 70.74 | AI157: 29.11 | AJ157: 5.59 | AK157: -31.84 | AL157: -98.25 | AM157: -6.94 | AN157: 4.68 | AO157: 122.68
A158: 2006 | H158: -29.27 | I158: -40.49 | J158: -63.97 | K158: -53.13 | L158: -2.91 | M158: 236.99 | N158: 233.42 | O158: 219.21 | P158: 191.08 | Q158: 137.49 | R158: 94.84 | S158: 67.1 | AB158: 2004 | AC158: 2547 | AD158: 116.06 | AE158: 94.33 | AF158: 64 | AG158: 31.89 | AH158: 0.62 | AI158: 1.49 | AJ158: -21.73 | AK158: -45.68 | AL158: -119.24 | AM158: -10.6 | AN158: -3 | AO158: 206.82
A159: 2007 | H159: 10.59 | I159: -41.77 | J159: -42.61 | K159: -34.91 | L159: -18.06 | M159: 152.3 | N159: 140.01 | O159: 128.47 | P159: 105.59 | Q159: 63.51 | R159: 25.29 | S159: 25.77 | AB159: 2005 | AC159: 2548 | AD159: 202.17 | AE159: 186.98 | AF159: 146.62 | AG159: 89.71 | AH159: 40.79 | AI159: -5.48 | AJ159: -50.29 | AK159: -72.34 | AL159: -92.48 | AM159: 2.72 | AN159: 0.15 | AO159: 237.04
A160: 2008 | H160: -10.34 | I160: -21.04 | J160: -90.11 | K160: -38.95 | L160: -7.87 | M160: 118.7 | N160: 114.66 | O160: 94.98 | P160: 71.24 | Q160: 28.66 | R160: -14.27 | S160: -11.88 | AB160: 2006 | AC160: 2549 | AD160: 233.42 | AE160: 219.21 | AF160: 191.08 | AG160: 137.49 | AH160: 94.84 | AI160: 67.1 | AJ160: -29.27 | AK160: -40.49 | AL160: -63.97 | AM160: -53.13 | AN160: -2.91 | AO160: 236.99
A161: 2009 | H161: 0.71 | I161: -16.37 | J161: -54.71 | K161: -37.56 | L161: -4.56 | M161: 155.42 | N161: 152.42 | O161: 139.07 | P161: 112.63 | Q161: 56.7 | R161: -4.76 | S161: -11.26 | AB161: 2007 | AC161: 2550 | AD161: 140.01 | AE161: 128.47 | AF161: 105.59 | AG161: 63.51 | AH161: 25.29 | AI161: 25.77 | AJ161: 10.59 | AK161: -41.77 | AL161: -42.61 | AM161: -34.91 | AN161: -18.06 | AO161: 152.3
A162: 2010 | H162: -2.47 | I162: -109.41 | J162: -65.11 | K162: -36.91 | L162: 7.82 | M162: 166.86 | N162: 163.87 | O162: 156.34 | P162: 134.19 | Q162: 92.08 | R162: 44.51 | S162: 7.75 | AB162: 2008 | AC162: 2551 | AD162: 114.66 | AE162: 94.98 | AF162: 71.24 | AG162: 28.66 | AH162: -14.27 | AI162: -11.88 | AJ162: -10.34 | AK162: -21.04 | AL162: -90.11 | AM162: -38.95 | AN162: -7.87 | AO162: 118.7
A163: 2011 | H163: 25.46 | I163: -106.27 | J163: -59.05 | K163: -0.16 | L163: -4.49 | M163: 135.67 | N163: 132.66 | O163: 121.52 | P163: 101.16 | Q163: 61.99 | R163: 26.45 | S163: 12.92 | AB163: 2009 | AC163: 2552 | AD163: 152.42 | AE163: 139.07 | AF163: 112.63 | AG163: 56.7 | AH163: -4.76 | AI163: -11.26 | AJ163: 0.71 | AK163: -16.37 | AL163: -54.71 | AM163: -37.56 | AN163: -4.56 | AO163: 155.42
A164: 2012 | H164: 9.74 | I164: -4.76 | J164: -53.54 | K164: -10.01 | L164: -10.66 | M164: 166.31 | N164: 167.7 | O164: 151.4 | P164: 111.51 | Q164: 65.79 | R164: 24.92 | S164: 14.89 | AB164: 2010 | AC164: 2553 | AD164: 163.87 | AE164: 156.34 | AF164: 134.19 | AG164: 92.08 | AH164: 44.51 | AI164: 7.75 | AJ164: -2.47 | AK164: -109.41 | AL164: -65.11 | AM164: -36.91 | AN164: 7.82 | AO164: 166.86
A165: 2013 | H165: 0.91 | I165: -40.39 | J165: -75.85 | K165: -52.12 | L165: -23.71 | M165: 116.58 | N165: 127.38 | O165: 110.32 | P165: 94.09 | Q165: 68.4 | R165: 24.04 | S165: 4.22 | AB165: 2011 | AC165: 2554 | AD165: 132.66 | AE165: 121.52 | AF165: 101.16 | AG165: 61.99 | AH165: 26.45 | AI165: 12.92 | AJ165: 25.46 | AK165: -106.27 | AL165: -59.05 | AM165: -0.16 | AN165: -4.49 | AO165: 135.67
A166: 2014 | H166: -10.21 | I166: -18.89 | J166: -31.36 | K166: -9.45 | L166: -12.42 | M166: 153.1 | N166: 148.29 | O166: 132.67 | P166: 103.51 | Q166: 66.37 | R166: 26.1 | S166: 2.38 | AB166: 2012 | AC166: 2555 | AD166: 167.7 | AE166: 151.4 | AF166: 111.51 | AG166: 65.79 | AH166: 24.92 | AI166: 14.89 | AJ166: 9.74 | AK166: -4.76 | AL166: -53.54 | AM166: -10.01 | AN166: -10.66 | AO166: 166.31
A167: 2015 | H167: 9.71 | I167: -9.08 | J167: -2.81 | K167: -4.83 | L167: -4.42 | M167: 122.89 | N167: 121.74 | O167: 114.51 | P167: 94.36 | Q167: 66.61 | R167: 39.08 | S167: 21.02 | AB167: 2013 | AC167: 2556 | AD167: 127.38 | AE167: 110.32 | AF167: 94.09 | AG167: 68.4 | AH167: 24.04 | AI167: 4.22 | AJ167: 0.91 | AK167: -40.39 | AL167: -75.85 | AM167: -52.12 | AN167: -23.71 | AO167: 116.58
A168: 2016 | H168: -12.803 | I168: -31.018 | J168: -41.697 | K168: -24.844 | L168: -21.529 | M168: 24.512 | N168: 25.4 | O168: 15.752 | P168: 8.599 | Q168: -0.541 | R168: -17.431 | S168: -18.212 | AB168: 2014 | AC168: 2557 | AD168: 148.29 | AE168: 132.67 | AF168: 103.51 | AG168: 66.37 | AH168: 26.1 | AI168: 2.38 | AJ168: -10.21 | AK168: -18.89 | AL168: -31.36 | AM168: -9.45 | AN168: -12.42 | AO168: 153.1
A169: 2017 | H169: -37.103 | I169: -27.95 | J169: -39.261 | K169: -58.238 | L169: -9.835 | M169: 90.402 | N169: 90.876 | O169: 87.973 | P169: 69.581 | Q169: 32.627 | R169: -1.381 | S169: -4.579 | AB169: 2015 | AC169: 2558 | AD169: 121.74 | AE169: 114.51 | AF169: 94.36 | AG169: 66.61 | AH169: 39.08 | AI169: 21.02 | AJ169: 9.71 | AK169: -9.08 | AL169: -2.81 | AM169: -4.83 | AN169: -4.42 | AO169: 122.89
A170: 2018 | H170: -3.521 | I170: -19.836 | J170: -39.554 | K170: -57.143 | L170: -20.534 | M170: 137.096 | N170: 138.177 | O170: 131.144 | P170: 109.668 | Q170: 72.546 | R170: 31.852 | S170: 24.559 | T170: =IF(OR(T$136=0,T$136>12),"",IF(T$133<0,-1*SUM(OFFSET(H114,0,0,1,IF(AND(S$133>0,U$133>0),1,T$135+1+T$133))),H114)) ->  | U170: =IF(OR(U$136=0,U$136>12),"",IF(U$133<0,-1*SUM(OFFSET(I114,0,0,1,IF(AND(T$133>0,V$133>0),1,U$135+1+U$133))),I114)) ->  | V170: =IF(OR(V$136=0,V$136>12),"",IF(V$133<0,-1*SUM(OFFSET(J114,0,0,1,IF(AND(U$133>0,W$133>0),1,V$135+1+V$133))),J114)) ->  | W170: =IF(OR(W$136=0,W$136>12),"",IF(W$133<0,-1*SUM(OFFSET(K114,0,0,1,IF(AND(V$133>0,X$133>0),1,W$135+1+W$133))),K114)) ->  | X170: =IF(OR(X$136=0,X$136>12),"",IF(X$133<0,-1*SUM(OFFSET(L114,0,0,1,IF(AND(W$133>0,Y$133>0),1,X$135+1+X$133))),L114)) ->  | Y170: =IF(OR(Y$136=0,Y$136>12),"",IF(Y$133<0,-1*SUM(OFFSET(M114,0,0,1,IF(AND(X$133>0,Z$133>0),1,Y$135+1+Y$133))),M114)) ->  | AB170: 2016 | AC170: 2559 | AD170: 25.4 | AE170: 15.752 | AF170: 8.599 | AG170: -0.541 | AH170: -17.431 | AI170: -18.212 | AJ170: -12.803 | AK170: -31.018 | AL170: -41.697 | AM170: -24.844 | AN170: -21.529 | AO170: 24.512
A171: 2019 | M171: 0 | N171: 0 | O171: 0 | P171: 0 | Q171: 0 | R171: 0 | S171: 0 | AB171: 2017 | AC171: 2560 | AD171: 90.876 | AE171: 87.973 | AF171: 69.581 | AG171: 32.627 | AH171: -1.381 | AI171: -4.579 | AJ171: -37.103 | AK171: -27.95 | AL171: -39.261 | AM171: -58.238 | AN171: -9.835 | AO171: 90.402
A172: 2020 | B172: =IF(OR(B$136=0,B$136>12),"",IF(B$133<0,-1*SUM(OFFSET(B116,0,0,1,IF(AND(A$133>0,C$133>0),1,(B$135)+1+B$133))),B116*-1)) ->  | M172: 0 | N172: =IF(OR(N$136=0,N$136>12),"",IF(N$133<0,-1*SUM(OFFSET(B116,0,0,1,IF(AND(M$133>0,O$133>0),1,(N$135)+1+N$133))),B116*-1)) -> 0 | O172: 0 | P172: 0 | Q172: 0 | R172: 0 | S172: 0 | AB172: 2018 | AC172: =A227+543 -> 2561 | AD172: =IF(B170<>"",IF(B170=0,"",B170),IF(N170=0,"",N170)) -> 138.177 | AE172: =IF(C170<>"",IF(C170=0,"",C170),IF(O170=0,"",O170)) -> 131.144 | AF172: =IF(D170<>"",IF(D170=0,"",D170),IF(P170=0,"",P170)) -> 109.668 | AG172: =IF(E170<>"",IF(E170=0,"",E170),IF(Q170=0,"",Q170)) -> 72.546 | AH172: =IF(F170<>"",IF(F170=0,"",F170),IF(R170=0,"",R170)) -> 31.852 | AI172: =IF(G170<>"",IF(G170=0,"",G170),IF(S170=0,"",S170)) -> 24.559 | AJ172: =IF(H170<>"",IF(H170=0,"",H170),IF(T170=0,"",T170)) -> -3.521 | AK172: =IF(I170<>"",IF(I170=0,"",I170),IF(U170=0,"",U170)) -> -19.836 | AL172: =IF(J170<>"",IF(J170=0,"",J170),IF(V170=0,"",V170)) -> -39.554 | AM172: =IF(K170<>"",IF(K170=0,"",K170),IF(W170=0,"",W170)) -> -57.143 | AN172: =IF(L170<>"",IF(L170=0,"",L170),IF(X170=0,"",X170)) -> -20.534 | AO172: =IF(M170<>"",IF(M170=0,"",M170),IF(Y170=0,"",Y170)) -> 137.096
A173: 2021 | M173: 0 | N173: 0 | O173: 0 | P173: 0 | Q173: 0 | R173: 0 | S173: 0 | AB173: =A227+1 -> 2019 | AC173: 2562
A174: 2022 | M174: 0 | N174: 0 | O174: 0 | P174: 0 | Q174: 0 | R174: 0 | S174: 0 | AB174: 2020 | AC174: 2563
A175: 2023 | M175: 0 | N175: 0 | O175: 0 | P175: 0 | Q175: 0 | R175: 0 | S175: 0 | AB175: 2021 | AC175: 2564
A176: 2024 | M176: 0 | N176: 0 | O176: 0 | P176: 0 | Q176: 0 | R176: 0 | S176: 0 | AB176: 2022 | AC176: 2565
A177: 2025 | M177: 0 | N177: 0 | O177: 0 | P177: 0 | Q177: 0 | R177: 0 | S177: 0 | AB177: 2023 | AC177: 2566
A178: 2026 | M178: 0 | N178: 0 | O178: 0 | P178: 0 | Q178: 0 | R178: 0 | S178: 0 | AB178: 2024 | AC178: 2567
A179: 2027 | M179: 0 | N179: 0 | O179: 0 | P179: 0 | Q179: 0 | R179: 0 | S179: 0 | AB179: 2025 | AC179: 2568
A180: 2028 | M180: 0 | N180: 0 | O180: 0 | P180: 0 | Q180: 0 | R180: 0 | S180: 0 | AB180: 2026 | AC180: 2569
A181: 2029 | M181: 0 | N181: 0 | O181: 0 | P181: 0 | Q181: 0 | R181: 0 | S181: 0 | AB181: 2027 | AC181: 2570
A182: 2030 | M182: 0 | N182: 0 | O182: 0 | P182: 0 | Q182: 0 | R182: 0 | S182: 0 | AB182: 2028 | AC182: 2571
A183: 2031 | M183: 0 | N183: 0 | O183: 0 | P183: 0 | Q183: 0 | R183: 0 | S183: 0 | AB183: 2029 | AC183: 2572
A184: 2032 | M184: 0 | N184: 0 | O184: 0 | P184: 0 | Q184: 0 | R184: 0 | S184: 0 | AB184: 2030 | AC184: 2573
A185: 2033 | M185: 0 | N185: 0 | O185: 0 | P185: 0 | Q185: 0 | R185: 0 | S185: 0 | AB185: 2031 | AC185: 2574
A186: 2034 | B186: =IF(OR(B$136=0,B$136>12),"",IF(B$133<0,-1*SUM(OFFSET(B130,0,0,1,IF(AND(A$133>0,C$133>0),1,(B$135)+1+B$133))),B130*-1)) ->  | C186: =IF(OR(C$136=0,C$136>12),"",IF(C$133<0,-1*SUM(OFFSET(C130,0,0,1,IF(AND(B$133>0,D$133>0),1,(C$135)+1+C$133))),C130*-1)) ->  | M186: 0 | N186: 0 | O186: 0 | P186: 0 | Q186: 0 | R186: 0 | S186: =IF(OR(S$136=0,S$136>12),"",IF(S$133<0,-1*SUM(OFFSET(S130,0,0,1,IF(AND(R$133>0,T$133>0),1,(S$135)+1+S$133))),S130*-1)) -> 0 | AB186: 2032 | AC186: 2575
A187: 2035 | B187: =IF(OR(B$136=0,B$136>12),"",IF(B$133<0,-1*SUM(OFFSET(B131,0,0,1,IF(AND(A$133>0,C$133>0),1,(B$135)+1+B$133))),B131*-1)) ->  | C187: =IF(OR(C$136=0,C$136>12),"",IF(C$133<0,-1*SUM(OFFSET(C131,0,0,1,IF(AND(B$133>0,D$133>0),1,(C$135)+1+C$133))),C131*-1)) ->  | M187: 0 | N187: 0 | O187: 0 | P187: 0 | Q187: 0 | R187: 0 | S187: =IF(OR(S$136=0,S$136>12),"",IF(S$133<0,-1*SUM(OFFSET(S131,0,0,1,IF(AND(R$133>0,T$133>0),1,(S$135)+1+S$133))),S131*-1)) -> 0 | AB187: 2033 | AC187: 2576
AB188: 2034 | AC188: 2577
AB189: 2035 | AC189: 2578
P191: =MIN(R195:AC244) -> 0.15 | Q191: 1 | R191: =IF(QUOTIENT(P191,1)>0,1,IF(QUOTIENT(P191,0.1)>0,10,IF(QUOTIENT(P191,0.01)>0,100,IF(QUOTIENT(P191,0.001)>0,1000,10000)))) -> 10
A192: 5 | B192: ใส่ NRI รายเดือน | P192: 4 | Q192: ปรับขยาย Scal
C193: ม.ค. | D193: ก.พ. | E193: มี.ค. | F193: เม.ย. | G193: พ.ค. | H193: มิ.ย. | I193: ก.ค. | J193: ส.ค. | K193: ก.ย. | L193: ต.ค. | M193: พ.ย. | N193: ธ.ค. | R193: ม.ค. | S193: ก.พ. | T193: มี.ค. | U193: เม.ย. | V193: พ.ค. | W193: มิ.ย. | X193: ก.ค. | Y193: ส.ค. | Z193: ก.ย. | AA193: ต.ค. | AB193: พ.ย. | AC193: ธ.ค.
A194: ปี ค.ศ. | B194: ปี พ.ศ. | C194: Jan | D194: Feb | E194: Mar | F194: Apr | G194: May | H194: Jun | I194: Jul | J194: Aug | K194: Sep | L194: Oct | M194: Nov | N194: Dec | P194: ปี ค.ศ. | Q194: ปี พ.ศ. | R194: Jan | S194: Feb | T194: Mar | U194: Apr | V194: May | W194: Jun | X194: Jul | Y194: Aug | Z194: Sep | AA194: Oct | AB194: Nov | AC194: Dec
A195: =A4 -> 1986 | B195: =A195+543 -> 2529 | C195: =IFERROR(AD140*$Q$191,"") -> 150.76 | D195: =IFERROR(AE140*$Q$191,IF($C195="","",0)) -> 143.29 | E195: =IFERROR(AF140*$Q$191,IF($C195="","",0)) -> 128.06 | F195: =IFERROR(AG140*$Q$191,IF($C195="","",0)) -> 82.82 | G195: =IFERROR(AH140*$Q$191,IF($C195="","",0)) -> 53.55 | H195: =IFERROR(AI140*$Q$191,IF($C195="","",0)) -> 36.18 | I195: =IFERROR(AJ140*$Q$191,IF($C195="","",0)) -> -1.83 | J195: =IFERROR(AK140*$Q$191,IF($C195="","",0)) -> -22.17 | K195: =IFERROR(AL140*$Q$191,IF($C195="","",0)) -> -30.56 | L195: =IFERROR(AM140*$Q$191,IF($C195="","",0)) -> 12.07 | M195: =IFERROR(AN140*$Q$191,IF($C195="","",0)) -> -3.28 | N195: =IFERROR(AO140*$Q$191,IF($C195="","",0)) -> 100.11 | P195: =A4 -> 1986 | Q195: =A195+543 -> 2529 | R195: =IFERROR(ABS(AD140),"") -> 150.76 | S195: =IFERROR(ABS(AE140),"") -> 143.29 | T195: =IFERROR(ABS(AF140),"") -> 128.06 | U195: 82.82 | V195: 53.55 | W195: 36.18 | X195: 1.83 | Y195: 22.17 | Z195: 30.56 | AA195: 12.07 | AB195: 3.28 | AC195: 100.11
A196: =A195+1 -> 1987 | B196: 2530 | C196: 96.17 | D196: 92.1 | E196: 74.78 | F196: 42.38 | G196: 19.26 | H196: 7.5 | I196: 8.65 | J196: -123.55 | K196: -58.62 | L196: -15.4 | M196: -22.25 | N196: 92.96 | P196: =A195+1 -> 1987 | Q196: 2530 | R196: =IFERROR(ABS(AD141),"") -> 96.17 | S196: =IFERROR(ABS(AE141),"") -> 92.1 | T196: =IFERROR(ABS(AF141),"") -> 74.78 | U196: =IFERROR(ABS(AG141),"") -> 42.38 | V196: =IFERROR(ABS(AH141),"") -> 19.26 | W196: =IFERROR(ABS(AI141),"") -> 7.5 | X196: =IFERROR(ABS(AJ141),"") -> 8.65 | Y196: =IFERROR(ABS(AK141),"") -> 123.55 | Z196: =IFERROR(ABS(AL141),"") -> 58.62 | AA196: =IFERROR(ABS(AM141),"") -> 15.4 | AB196: =IFERROR(ABS(AN141),"") -> 22.25 | AC196: =IFERROR(ABS(AO141),"") -> 92.96
A197: 1988 | B197: 2531 | C197: 96.44 | D197: 75.27 | E197: 48.87 | F197: 9.97 | G197: -10.62 | H197: 13.55 | I197: 10.22 | J197: -22.57 | K197: -15.75 | L197: -25.38 | M197: -1.41 | N197: 83.04 | P197: 1988 | Q197: 2531 | R197: 96.44 | S197: 75.27 | T197: 48.87 | U197: 9.97 | V197: 10.62 | W197: 13.55 | X197: 10.22 | Y197: 22.57 | Z197: 15.75 | AA197: 25.38 | AB197: 1.41 | AC197: 83.04
A198: 1989 | B198: 2532 | C198: 76.32 | D198: 56.94 | E198: 40.72 | F198: 14.25 | G198: -12.94 | H198: -15.02 | I198: -30.35 | J198: -26.86 | K198: -87.14 | L198: -28.02 | M198: 7.81 | N198: 201.49 | P198: 1989 | Q198: 2532 | R198: 76.32 | S198: 56.94 | T198: 40.72 | U198: 14.25 | V198: 12.94 | W198: 15.02 | X198: 30.35 | Y198: 26.86 | Z198: 87.14 | AA198: 28.02 | AB198: 7.81 | AC198: 201.49
A199: 1990 | B199: 2533 | C199: 196.26 | D199: 166.03 | E199: 143.93 | F199: 116.18 | G199: 63.21 | H199: 36 | I199: 16.88 | J199: -27.79 | K199: -25.74 | L199: -17.81 | M199: -9.58 | N199: 116.45 | P199: 1990 | Q199: 2533 | R199: 196.26 | S199: 166.03 | T199: 143.93 | U199: 116.18 | V199: 63.21 | W199: 36 | X199: 16.88 | Y199: 27.79 | Z199: 25.74 | AA199: 17.81 | AB199: 9.58 | AC199: 116.45
A200: 1991 | B200: 2534 | C200: 116.97 | D200: 93.26 | E200: 65.27 | F200: 29.61 | G200: 13.88 | H200: -0.42 | I200: 16.44 | J200: -54.22 | K200: -69.09 | L200: -23.52 | M200: -13.28 | N200: 159.91 | P200: 1991 | Q200: 2534 | R200: 116.97 | S200: 93.26 | T200: 65.27 | U200: 29.61 | V200: 13.88 | W200: 0.42 | X200: 16.44 | Y200: 54.22 | Z200: 69.09 | AA200: 23.52 | AB200: 13.28 | AC200: 159.91
A201: 1992 | B201: 2535 | C201: 160.05 | D201: 142.4 | E201: 120.03 | F201: 82.74 | G201: 39.07 | H201: 16.7 | I201: -2.13 | J201: -6.11 | K201: -57.88 | L201: -16.37 | M201: -4.41 | N201: 89.47 | P201: 1992 | Q201: 2535 | R201: 160.05 | S201: 142.4 | T201: 120.03 | U201: 82.74 | V201: 39.07 | W201: 16.7 | X201: 2.13 | Y201: 6.11 | Z201: 57.88 | AA201: 16.37 | AB201: 4.41 | AC201: 89.47
A202: 1993 | B202: 2536 | C202: 97.92 | D202: 95.73 | E202: 77.51 | F202: 50.42 | G202: 22.36 | H202: 9.42 | I202: -16.14 | J202: -2.97 | K202: -23.51 | L202: -22.22 | M202: -2.97 | N202: -8.69 | P202: 1993 | Q202: 2536 | R202: 97.92 | S202: 95.73 | T202: 77.51 | U202: 50.42 | V202: 22.36 | W202: 9.42 | X202: 16.14 | Y202: 2.97 | Z202: 23.51 | AA202: 22.22 | AB202: 2.97 | AC202: 8.69
A203: 1994 | B203: 2537 | C203: -10.22 | D203: -29.18 | E203: -46.54 | F203: -47.97 | G203: -51.22 | H203: -36 | I203: -47.99 | J203: -154.98 | K203: 12.29 | L203: 19.24 | M203: 46.6 | N203: 131.83 | P203: 1994 | Q203: 2537 | R203: 10.22 | S203: 29.18 | T203: 46.54 | U203: 47.97 | V203: 51.22 | W203: 36 | X203: 47.99 | Y203: 154.98 | Z203: 12.29 | AA203: 19.24 | AB203: 46.6 | AC203: 131.83
A204: 1995 | B204: 2538 | C204: 94.62 | D204: 73.11 | E204: 67.31 | F204: 49.17 | G204: 21.49 | H204: 13.83 | I204: -10.69 | J204: -119.3 | K204: -47.71 | L204: 2.64 | M204: -10.15 | N204: 196.64 | P204: 1995 | Q204: 2538 | R204: 94.62 | S204: 73.11 | T204: 67.31 | U204: 49.17 | V204: 21.49 | W204: 13.83 | X204: 10.69 | Y204: 119.3 | Z204: 47.71 | AA204: 2.64 | AB204: 10.15 | AC204: 196.64
A205: 1996 | B205: 2539 | C205: 194.57 | D205: 178.3 | E205: 141.42 | F205: 107.97 | G205: 51.56 | H205: 28.22 | I205: 38.15 | J205: -75.72 | K205: -48.58 | L205: -22.37 | M205: -18.01 | N205: 142.68 | P205: 1996 | Q205: 2539 | R205: 194.57 | S205: 178.3 | T205: 141.42 | U205: 107.97 | V205: 51.56 | W205: 28.22 | X205: 38.15 | Y205: 75.72 | Z205: 48.58 | AA205: 22.37 | AB205: 18.01 | AC205: 142.68
A206: 1997 | B206: 2540 | C206: 147.72 | D206: 143.24 | E206: 118.14 | F206: 98.68 | G206: 67.34 | H206: 33.26 | I206: 1.82 | J206: -29.7 | K206: -92.68 | L206: -40.69 | M206: -2.27 | N206: 134.22 | P206: 1997 | Q206: 2540 | R206: 147.72 | S206: 143.24 | T206: 118.14 | U206: 98.68 | V206: 67.34 | W206: 33.26 | X206: 1.82 | Y206: 29.7 | Z206: 92.68 | AA206: 40.69 | AB206: 2.27 | AC206: 134.22
A207: 1998 | B207: 2541 | C207: 133.23 | D207: 117.16 | E207: 92.49 | F207: 52.37 | G207: 20.62 | H207: 13.92 | I207: 14.36 | J207: 2.39 | K207: -44.51 | L207: 7.39 | M207: -0.34 | N207: 43.2 | P207: 1998 | Q207: 2541 | R207: 133.23 | S207: 117.16 | T207: 92.49 | U207: 52.37 | V207: 20.62 | W207: 13.92 | X207: 14.36 | Y207: 2.39 | Z207: 44.51 | AA207: 7.39 | AB207: 0.34 | AC207: 43.2
A208: 1999 | B208: 2542 | C208: 39.23 | D208: 32.11 | E208: 17.18 | F208: -1.84 | G208: -14.41 | H208: -9.41 | I208: 6.12 | J208: -52.85 | K208: -92.64 | L208: -36.82 | M208: -12.47 | N208: 100.05 | P208: 1999 | Q208: 2542 | R208: 39.23 | S208: 32.11 | T208: 17.18 | U208: 1.84 | V208: 14.41 | W208: 9.41 | X208: 6.12 | Y208: 52.85 | Z208: 92.64 | AA208: 36.82 | AB208: 12.47 | AC208: 100.05
A209: 2000 | B209: 2543 | C209: 100.64 | D209: 93.8 | E209: 79.67 | F209: 56.23 | G209: 17.46 | H209: 4.96 | I209: 3.33 | J209: 8.43 | K209: -38.68 | L209: -13.52 | M209: -1.25 | N209: 107.81 | P209: 2000 | Q209: 2543 | R209: 100.64 | S209: 93.8 | T209: 79.67 | U209: 56.23 | V209: 17.46 | W209: 4.96 | X209: 3.33 | Y209: 8.43 | Z209: 38.68 | AA209: 13.52 | AB209: 1.25 | AC209: 107.81
A210: 2001 | B210: 2544 | C210: 104.9 | D210: 88.96 | E210: 70.76 | F210: 53.36 | G210: 16.99 | H210: 10.9 | I210: -11.23 | J210: -96.86 | K210: -51.54 | L210: -21.06 | M210: 1.33 | N210: 128.38 | P210: 2001 | Q210: 2544 | R210: 104.9 | S210: 88.96 | T210: 70.76 | U210: 53.36 | V210: 16.99 | W210: 10.9 | X210: 11.23 | Y210: 96.86 | Z210: 51.54 | AA210: 21.06 | AB210: 1.33 | AC210: 128.38
A211: 2002 | B211: 2545 | C211: 117.09 | D211: 99.55 | E211: 81.68 | F211: 44.66 | G211: -1.37 | H211: -0.79 | I211: 5.84 | J211: -24.56 | K211: -86.89 | L211: -19.68 | M211: -32.58 | N211: 207.34 | P211: 2002 | Q211: 2545 | R211: 117.09 | S211: 99.55 | T211: 81.68 | U211: 44.66 | V211: 1.37 | W211: 0.79 | X211: 5.84 | Y211: 24.56 | Z211: 86.89 | AA211: 19.68 | AB211: 32.58 | AC211: 207.34
A212: 2003 | B212: 2546 | C212: 191.02 | D212: 168.75 | E212: 146 | F212: 113.27 | G212: 70.74 | H212: 29.11 | I212: 5.59 | J212: -31.84 | K212: -98.25 | L212: -6.94 | M212: 4.68 | N212: 122.68 | P212: 2003 | Q212: 2546 | R212: 191.02 | S212: 168.75 | T212: 146 | U212: 113.27 | V212: 70.74 | W212: 29.11 | X212: 5.59 | Y212: 31.84 | Z212: 98.25 | AA212: 6.94 | AB212: 4.68 | AC212: 122.68
A213: 2004 | B213: 2547 | C213: 116.06 | D213: 94.33 | E213: 64 | F213: 31.89 | G213: 0.62 | H213: 1.49 | I213: -21.73 | J213: -45.68 | K213: -119.24 | L213: -10.6 | M213: -3 | N213: 206.82 | P213: 2004 | Q213: 2547 | R213: 116.06 | S213: 94.33 | T213: 64 | U213: 31.89 | V213: 0.62 | W213: 1.49 | X213: 21.73 | Y213: 45.68 | Z213: 119.24 | AA213: 10.6 | AB213: 3 | AC213: 206.82
A214: 2005 | B214: 2548 | C214: 202.17 | D214: 186.98 | E214: 146.62 | F214: 89.71 | G214: 40.79 | H214: -5.48 | I214: -50.29 | J214: -72.34 | K214: -92.48 | L214: 2.72 | M214: 0.15 | N214: 237.04 | P214: 2005 | Q214: 2548 | R214: 202.17 | S214: 186.98 | T214: 146.62 | U214: 89.71 | V214: 40.79 | W214: 5.48 | X214: 50.29 | Y214: 72.34 | Z214: 92.48 | AA214: 2.72 | AB214: 0.15 | AC214: 237.04
A215: 2006 | B215: 2549 | C215: 233.42 | D215: 219.21 | E215: 191.08 | F215: 137.49 | G215: 94.84 | H215: 67.1 | I215: -29.27 | J215: -40.49 | K215: -63.97 | L215: -53.13 | M215: -2.91 | N215: 236.99 | P215: 2006 | Q215: 2549 | R215: 233.42 | S215: 219.21 | T215: 191.08 | U215: 137.49 | V215: 94.84 | W215: 67.1 | X215: 29.27 | Y215: 40.49 | Z215: 63.97 | AA215: 53.13 | AB215: 2.91 | AC215: 236.99
A216: 2007 | B216: 2550 | C216: 140.01 | D216: 128.47 | E216: 105.59 | F216: 63.51 | G216: 25.29 | H216: 25.77 | I216: 10.59 | J216: -41.77 | K216: -42.61 | L216: -34.91 | M216: -18.06 | N216: 152.3 | P216: 2007 | Q216: 2550 | R216: 140.01 | S216: 128.47 | T216: 105.59 | U216: 63.51 | V216: 25.29 | W216: 25.77 | X216: 10.59 | Y216: 41.77 | Z216: 42.61 | AA216: 34.91 | AB216: 18.06 | AC216: 152.3
A217: 2008 | B217: 2551 | C217: 114.66 | D217: 94.98 | E217: 71.24 | F217: 28.66 | G217: -14.27 | H217: -11.88 | I217: -10.34 | J217: -21.04 | K217: -90.11 | L217: -38.95 | M217: -7.87 | N217: 118.7 | P217: 2008 | Q217: 2551 | R217: 114.66 | S217: 94.98 | T217: 71.24 | U217: 28.66 | V217: 14.27 | W217: 11.88 | X217: 10.34 | Y217: 21.04 | Z217: 90.11 | AA217: 38.95 | AB217: 7.87 | AC217: 118.7
A218: 2009 | B218: 2552 | C218: 152.42 | D218: 139.07 | E218: 112.63 | F218: 56.7 | G218: -4.76 | H218: -11.26 | I218: 0.71 | J218: -16.37 | K218: -54.71 | L218: -37.56 | M218: -4.56 | N218: 155.42 | P218: 2009 | Q218: 2552 | R218: 152.42 | S218: 139.07 | T218: 112.63 | U218: 56.7 | V218: 4.76 | W218: 11.26 | X218: 0.71 | Y218: 16.37 | Z218: 54.71 | AA218: 37.56 | AB218: 4.56 | AC218: 155.42
A219: 2010 | B219: 2553 | C219: 163.87 | D219: 156.34 | E219: 134.19 | F219: 92.08 | G219: 44.51 | H219: 7.75 | I219: -2.47 | J219: -109.41 | K219: -65.11 | L219: -36.91 | M219: 7.82 | N219: 166.86 | P219: 2010 | Q219: 2553 | R219: 163.87 | S219: 156.34 | T219: 134.19 | U219: 92.08 | V219: 44.51 | W219: 7.75 | X219: 2.47 | Y219: 109.41 | Z219: 65.11 | AA219: 36.91 | AB219: 7.82 | AC219: 166.86
A220: 2011 | B220: 2554 | C220: 132.66 | D220: 121.52 | E220: 101.16 | F220: 61.99 | G220: 26.45 | H220: 12.92 | I220: 25.46 | J220: -106.27 | K220: -59.05 | L220: -0.16 | M220: -4.49 | N220: 135.67 | P220: 2011 | Q220: 2554 | R220: 132.66 | S220: 121.52 | T220: 101.16 | U220: 61.99 | V220: 26.45 | W220: 12.92 | X220: 25.46 | Y220: 106.27 | Z220: 59.05 | AA220: 0.16 | AB220: 4.49 | AC220: 135.67
A221: 2012 | B221: 2555 | C221: 167.7 | D221: 151.4 | E221: 111.51 | F221: 65.79 | G221: 24.92 | H221: 14.89 | I221: 9.74 | J221: -4.76 | K221: -53.54 | L221: -10.01 | M221: -10.66 | N221: 166.31 | P221: 2012 | Q221: 2555 | R221: 167.7 | S221: 151.4 | T221: 111.51 | U221: 65.79 | V221: 24.92 | W221: 14.89 | X221: 9.74 | Y221: 4.76 | Z221: 53.54 | AA221: 10.01 | AB221: 10.66 | AC221: 166.31
A222: 2013 | B222: 2556 | C222: 127.38 | D222: 110.32 | E222: 94.09 | F222: 68.4 | G222: 24.04 | H222: 4.22 | I222: 0.91 | J222: -40.39 | K222: -75.85 | L222: -52.12 | M222: -23.71 | N222: 116.58 | P222: 2013 | Q222: 2556 | R222: 127.38 | S222: 110.32 | T222: 94.09 | U222: 68.4 | V222: 24.04 | W222: 4.22 | X222: 0.91 | Y222: 40.39 | Z222: 75.85 | AA222: 52.12 | AB222: 23.71 | AC222: 116.58
A223: 2014 | B223: 2557 | C223: 148.29 | D223: 132.67 | E223: 103.51 | F223: 66.37 | G223: 26.1 | H223: 2.38 | I223: -10.21 | J223: -18.89 | K223: -31.36 | L223: -9.45 | M223: -12.42 | N223: 153.1 | P223: 2014 | Q223: 2557 | R223: 148.29 | S223: 132.67 | T223: 103.51 | U223: 66.37 | V223: 26.1 | W223: 2.38 | X223: 10.21 | Y223: 18.89 | Z223: 31.36 | AA223: 9.45 | AB223: 12.42 | AC223: 153.1
A224: 2015 | B224: 2558 | C224: 121.74 | D224: 114.51 | E224: 94.36 | F224: 66.61 | G224: 39.08 | H224: 21.02 | I224: 9.71 | J224: -9.08 | K224: -2.81 | L224: -4.83 | M224: -4.42 | N224: 122.89 | P224: 2015 | Q224: 2558 | R224: 121.74 | S224: 114.51 | T224: 94.36 | U224: 66.61 | V224: 39.08 | W224: 21.02 | X224: 9.71 | Y224: 9.08 | Z224: 2.81 | AA224: 4.83 | AB224: 4.42 | AC224: 122.89
A225: 2016 | B225: 2559 | C225: 25.4 | D225: 15.752 | E225: 8.599 | F225: -0.541 | G225: -17.431 | H225: -18.212 | I225: -12.803 | J225: -31.018 | K225: -41.697 | L225: -24.844 | M225: -21.529 | N225: 24.512 | P225: 2016 | Q225: 2559 | R225: 25.4 | S225: 15.752 | T225: 8.599 | U225: 0.541 | V225: 17.431 | W225: 18.212 | X225: 12.803 | Y225: 31.018 | Z225: 41.697 | AA225: 24.844 | AB225: 21.529 | AC225: 24.512
... 19 more rows

Sheet URC POP
A1: Step 3. Tranforming data for distribution fitting test
A2: Year | B2: Jan | C2: Transform | D2: Feb | E2: Transform | F2: Mar | G2: Transform | H2: Apr | I2: Transform | J2: May | K2: Transform | L2: Jun | M2: Transform | N2: Jul | O2: Transform | P2: Aug | Q2: Transform | R2: Sep | S2: Transform | T2: Oct | U2: Transform | V2: Nov | W2: Transform | X2: Dec | Y2: Transform
B3: Xt | C3: Yt | D3: Xt | E3: Yt | F3: Xt | G3: Yt | H3: Xt | I3: Yt | J3: Xt | K3: Yt | L3: Xt | M3: Yt | N3: Xt | O3: Yt | P3: Xt | Q3: Yt | R3: Xt | S3: Yt | T3: Xt | U3: Yt | V3: Xt | W3: Yt | X3: Xt | Y3: Yt
A4: 1 | B4: =IF(NRI!B4<>"",NRI!B4,"") -> -7.47 | C4: =IFERROR(B4-(1.01*B$57),"") -> 23.0623 | D4: =IF(NRI!C4<>"",NRI!C4,"") -> -15.23 | E4: =IFERROR(D4-(1.01*D$57),"") -> 25.5336 | F4: =IF(NRI!D4<>"",NRI!D4,"") -> -45.24 | G4: =IFERROR(F4-(1.01*F$57),"") -> 12.2391 | H4: =IF(NRI!E4<>"",NRI!E4,"") -> -29.27 | I4: =IFERROR(H4-(1.01*H$57),"") -> 32.8046 | J4: =IF(NRI!F4<>"",NRI!F4,"") -> -17.37 | K4: =IFERROR(J4-(1.01*J$57),"") -> 29.3627 | L4: =IF(NRI!G4<>"",NRI!G4,"") -> -36.18 | M4: =IFERROR(L4-(1.01*L$57),"") -> 31.591 | N4: =IF(NRI!H4<>"",NRI!H4,"") -> 1.83 | O4: =IFERROR(N4-(1.01*N$57),"") -> 40.3615 | P4: =IF(NRI!I4<>"",NRI!I4,"") -> 22.17 | Q4: =IFERROR(P4-(1.01*P$57),"") -> 30.6843 | R4: =IF(NRI!J4<>"",NRI!J4,"") -> 30.56 | S4: =IFERROR(R4-(1.01*R$57),"") -> 42.9729 | T4: =IF(NRI!K4<>"",NRI!K4,"") -> -12.07 | U4: =IFERROR(T4-(1.01*T$57),"") -> 7.3624 | V4: =IF(NRI!L4<>"",NRI!L4,"") -> 3.28 | W4: =IFERROR(V4-(1.01*V$57),"") -> 50.346 | X4: =IF(NRI!M4<>"",NRI!M4,"") -> -3.94 | Y4: =IFERROR(X4-(1.01*X$57),"") -> 33.6421
A5: 2 | B5: =IF(NRI!B5<>"",NRI!B5,"") -> -4.07 | C5: =IFERROR(B5-(1.01*B$57),"") -> 26.4623 | D5: =IF(NRI!C5<>"",NRI!C5,"") -> -17.32 | E5: 23.4436 | F5: =IF(NRI!D5<>"",NRI!D5,"") -> -32.4 | G5: =IFERROR(F5-(1.01*F$57),"") -> 25.0791 | H5: =IF(NRI!E5<>"",NRI!E5,"") -> -23.12 | I5: =IFERROR(H5-(1.01*H$57),"") -> 38.9546 | J5: =IF(NRI!F5<>"",NRI!F5,"") -> -11.76 | K5: =IFERROR(J5-(1.01*J$57),"") -> 34.9727 | L5: =IF(NRI!G5<>"",NRI!G5,"") -> -7.5 | M5: =IFERROR(L5-(1.01*L$57),"") -> 60.271 | N5: =IF(NRI!H5<>"",NRI!H5,"") -> -8.65 | O5: =IFERROR(N5-(1.01*N$57),"") -> 29.8815 | P5: =IF(NRI!I5<>"",NRI!I5,"") -> 123.55 | Q5: =IFERROR(P5-(1.01*P$57),"") -> 132.0643 | R5: =IF(NRI!J5<>"",NRI!J5,"") -> 58.62 | S5: =IFERROR(R5-(1.01*R$57),"") -> 71.0329 | T5: =IF(NRI!K5<>"",NRI!K5,"") -> 15.4 | U5: =IFERROR(T5-(1.01*T$57),"") -> 34.8324 | V5: =IF(NRI!L5<>"",NRI!L5,"") -> 22.25 | W5: =IFERROR(V5-(1.01*V$57),"") -> 69.316 | X5: =IF(NRI!M5<>"",NRI!M5,"") -> 3.48 | Y5: =IFERROR(X5-(1.01*X$57),"") -> 41.0621
A6: 3 | B6: =IF(NRI!B6<>"",NRI!B6,"") -> -21.17 | C6: 9.3623 | D6: =IF(NRI!C6<>"",NRI!C6,"") -> -26.4 | E6: 14.3636 | F6: =IF(NRI!D6<>"",NRI!D6,"") -> -38.9 | G6: =IFERROR(F6-(1.01*F$57),"") -> 18.5791 | H6: =IF(NRI!E6<>"",NRI!E6,"") -> -20.59 | I6: =IFERROR(H6-(1.01*H$57),"") -> 41.4846 | J6: =IF(NRI!F6<>"",NRI!F6,"") -> 24.17 | K6: =IFERROR(J6-(1.01*J$57),"") -> 70.9027 | L6: =IF(NRI!G6<>"",NRI!G6,"") -> -13.55 | M6: =IFERROR(L6-(1.01*L$57),"") -> 54.221 | N6: =IF(NRI!H6<>"",NRI!H6,"") -> -10.22 | O6: =IFERROR(N6-(1.01*N$57),"") -> 28.3115 | P6: =IF(NRI!I6<>"",NRI!I6,"") -> 22.57 | Q6: =IFERROR(P6-(1.01*P$57),"") -> 31.0843 | R6: =IF(NRI!J6<>"",NRI!J6,"") -> 15.75 | S6: =IFERROR(R6-(1.01*R$57),"") -> 28.1629 | T6: =IF(NRI!K6<>"",NRI!K6,"") -> 25.38 | U6: =IFERROR(T6-(1.01*T$57),"") -> 44.8124 | V6: =IF(NRI!L6<>"",NRI!L6,"") -> 1.41 | W6: =IFERROR(V6-(1.01*V$57),"") -> 48.476 | X6: =IF(NRI!M6<>"",NRI!M6,"") -> -6.72 | Y6: =IFERROR(X6-(1.01*X$57),"") -> 30.8621
A7: 4 | B7: =IF(NRI!B7<>"",NRI!B7,"") -> -19.38 | C7: 11.1523 | D7: =IF(NRI!C7<>"",NRI!C7,"") -> -16.22 | E7: 24.5436 | F7: =IF(NRI!D7<>"",NRI!D7,"") -> -26.47 | G7: =IFERROR(F7-(1.01*F$57),"") -> 31.0091 | H7: =IF(NRI!E7<>"",NRI!E7,"") -> -27.19 | I7: =IFERROR(H7-(1.01*H$57),"") -> 34.8846 | J7: =IF(NRI!F7<>"",NRI!F7,"") -> -2.08 | K7: =IFERROR(J7-(1.01*J$57),"") -> 44.6527 | L7: =IF(NRI!G7<>"",NRI!G7,"") -> 15.02 | M7: =IFERROR(L7-(1.01*L$57),"") -> 82.791 | N7: =IF(NRI!H7<>"",NRI!H7,"") -> 30.35 | O7: =IFERROR(N7-(1.01*N$57),"") -> 68.8815 | P7: =IF(NRI!I7<>"",NRI!I7,"") -> 26.86 | Q7: =IFERROR(P7-(1.01*P$57),"") -> 35.3743 | R7: =IF(NRI!J7<>"",NRI!J7,"") -> 87.14 | S7: =IFERROR(R7-(1.01*R$57),"") -> 99.5529 | T7: =IF(NRI!K7<>"",NRI!K7,"") -> 28.02 | U7: =IFERROR(T7-(1.01*T$57),"") -> 47.4524 | V7: =IF(NRI!L7<>"",NRI!L7,"") -> -7.81 | W7: =IFERROR(V7-(1.01*V$57),"") -> 39.256 | X7: =IF(NRI!M7<>"",NRI!M7,"") -> -5.23 | Y7: =IFERROR(X7-(1.01*X$57),"") -> 32.3521
A8: 5 | B8: =IF(NRI!B8<>"",NRI!B8,"") -> -30.23 | C8: 0.3023 | D8: =IF(NRI!C8<>"",NRI!C8,"") -> -22.1 | E8: 18.6636 | F8: =IF(NRI!D8<>"",NRI!D8,"") -> -27.75 | G8: =IFERROR(F8-(1.01*F$57),"") -> 29.7291 | H8: =IF(NRI!E8<>"",NRI!E8,"") -> -52.97 | I8: =IFERROR(H8-(1.01*H$57),"") -> 9.1046 | J8: =IF(NRI!F8<>"",NRI!F8,"") -> -27.21 | K8: =IFERROR(J8-(1.01*J$57),"") -> 19.5227 | L8: =IF(NRI!G8<>"",NRI!G8,"") -> -36 | M8: =IFERROR(L8-(1.01*L$57),"") -> 31.771 | N8: =IF(NRI!H8<>"",NRI!H8,"") -> -16.88 | O8: =IFERROR(N8-(1.01*N$57),"") -> 21.6515 | P8: =IF(NRI!I8<>"",NRI!I8,"") -> 27.79 | Q8: =IFERROR(P8-(1.01*P$57),"") -> 36.3043 | R8: =IF(NRI!J8<>"",NRI!J8,"") -> 25.74 | S8: =IFERROR(R8-(1.01*R$57),"") -> 38.1529 | T8: =IF(NRI!K8<>"",NRI!K8,"") -> 17.81 | U8: =IFERROR(T8-(1.01*T$57),"") -> 37.2424 | V8: =IF(NRI!L8<>"",NRI!L8,"") -> 9.58 | W8: =IFERROR(V8-(1.01*V$57),"") -> 56.646 | X8: =IF(NRI!M8<>"",NRI!M8,"") -> 0.52 | Y8: =IFERROR(X8-(1.01*X$57),"") -> 38.1021
A9: 6 | B9: =IF(NRI!B9<>"",NRI!B9,"") -> -23.71 | C9: 6.8223 | D9: =IF(NRI!C9<>"",NRI!C9,"") -> -27.99 | E9: 12.7736 | F9: =IF(NRI!D9<>"",NRI!D9,"") -> -35.66 | G9: =IFERROR(F9-(1.01*F$57),"") -> 21.8191 | H9: =IF(NRI!E9<>"",NRI!E9,"") -> -15.73 | I9: =IFERROR(H9-(1.01*H$57),"") -> 46.3446 | J9: =IF(NRI!F9<>"",NRI!F9,"") -> -14.3 | K9: =IFERROR(J9-(1.01*J$57),"") -> 32.4327 | L9: =IF(NRI!G9<>"",NRI!G9,"") -> 0.42 | M9: =IFERROR(L9-(1.01*L$57),"") -> 68.191 | N9: =IF(NRI!H9<>"",NRI!H9,"") -> -16.44 | O9: =IFERROR(N9-(1.01*N$57),"") -> 22.0915 | P9: =IF(NRI!I9<>"",NRI!I9,"") -> 54.22 | Q9: =IFERROR(P9-(1.01*P$57),"") -> 62.7343 | R9: =IF(NRI!J9<>"",NRI!J9,"") -> 69.09 | S9: =IFERROR(R9-(1.01*R$57),"") -> 81.5029 | T9: =IF(NRI!K9<>"",NRI!K9,"") -> 23.52 | U9: =IFERROR(T9-(1.01*T$57),"") -> 42.9524 | V9: =IF(NRI!L9<>"",NRI!L9,"") -> 13.28 | W9: =IFERROR(V9-(1.01*V$57),"") -> 60.346 | X9: =IF(NRI!M9<>"",NRI!M9,"") -> 0.14 | Y9: =IFERROR(X9-(1.01*X$57),"") -> 37.7221
A10: 7 | B10: =IF(NRI!B10<>"",NRI!B10,"") -> -17.65 | C10: 12.8823 | D10: =IF(NRI!C10<>"",NRI!C10,"") -> -22.37 | E10: 18.3936 | F10: =IF(NRI!D10<>"",NRI!D10,"") -> -37.29 | G10: =IFERROR(F10-(1.01*F$57),"") -> 20.1891 | H10: =IF(NRI!E10<>"",NRI!E10,"") -> -43.67 | I10: =IFERROR(H10-(1.01*H$57),"") -> 18.4046 | J10: =IF(NRI!F10<>"",NRI!F10,"") -> -22.37 | K10: =IFERROR(J10-(1.01*J$57),"") -> 24.3627 | L10: =IF(NRI!G10<>"",NRI!G10,"") -> -16.7 | M10: =IFERROR(L10-(1.01*L$57),"") -> 51.071 | N10: =IF(NRI!H10<>"",NRI!H10,"") -> 2.13 | O10: =IFERROR(N10-(1.01*N$57),"") -> 40.6615 | P10: =IF(NRI!I10<>"",NRI!I10,"") -> 6.11 | Q10: =IFERROR(P10-(1.01*P$57),"") -> 14.6243 | R10: =IF(NRI!J10<>"",NRI!J10,"") -> 57.88 | S10: =IFERROR(R10-(1.01*R$57),"") -> 70.2929 | T10: =IF(NRI!K10<>"",NRI!K10,"") -> 16.37 | U10: =IFERROR(T10-(1.01*T$57),"") -> 35.8024 | V10: =IF(NRI!L10<>"",NRI!L10,"") -> 4.41 | W10: =IFERROR(V10-(1.01*V$57),"") -> 51.476 | X10: =IF(NRI!M10<>"",NRI!M10,"") -> 8.45 | Y10: =IFERROR(X10-(1.01*X$57),"") -> 46.0321
A11: 8 | B11: =IF(NRI!B11<>"",NRI!B11,"") -> -2.19 | C11: 28.3423 | D11: =IF(NRI!C11<>"",NRI!C11,"") -> -18.22 | E11: 22.5436 | F11: =IF(NRI!D11<>"",NRI!D11,"") -> -27.09 | G11: =IFERROR(F11-(1.01*F$57),"") -> 30.3891 | H11: =IF(NRI!E11<>"",NRI!E11,"") -> -28.06 | I11: =IFERROR(H11-(1.01*H$57),"") -> 34.0146 | J11: =IF(NRI!F11<>"",NRI!F11,"") -> -12.94 | K11: =IFERROR(J11-(1.01*J$57),"") -> 33.7927 | L11: =IF(NRI!G11<>"",NRI!G11,"") -> -9.42 | M11: =IFERROR(L11-(1.01*L$57),"") -> 58.351 | N11: =IF(NRI!H11<>"",NRI!H11,"") -> 16.14 | O11: =IFERROR(N11-(1.01*N$57),"") -> 54.6715 | P11: =IF(NRI!I11<>"",NRI!I11,"") -> 2.97 | Q11: =IFERROR(P11-(1.01*P$57),"") -> 11.4843 | R11: =IF(NRI!J11<>"",NRI!J11,"") -> 23.51 | S11: =IFERROR(R11-(1.01*R$57),"") -> 35.9229 | T11: =IF(NRI!K11<>"",NRI!K11,"") -> 22.22 | U11: =IFERROR(T11-(1.01*T$57),"") -> 41.6524 | V11: =IF(NRI!L11<>"",NRI!L11,"") -> 2.97 | W11: =IFERROR(V11-(1.01*V$57),"") -> 50.036 | X11: =IF(NRI!M11<>"",NRI!M11,"") -> -1.53 | Y11: =IFERROR(X11-(1.01*X$57),"") -> 36.0521
